Workbook

Sheet Notes
A1: SeasonalityEvaluation.xlsm; Traders Tip spreadsheet created for the September 2019 Issue
A2: Coded beginning 2019-July-13 by Ronald McAllister (rpmac_xltt@sprynet.com)
A4: This Workbook demonstrates an EXCEL version of the ideas presented
A5: by Perry J. Kaufman in an article titled "A Simple Way To Trade Seasonality"
A6: which originally appeared in the September 2019 issue of
A7: "Technical Analysis of Stocks and Commodities" magazine.
A9: Computations and output
A10: The Calculations and Charts tab is here to allow you to look at the daily price history but plays no part in the seasonality calculations.
A12: For this Traders Tip spreadsheet:
A13: All pertinent computations and results are located on the SeasonalityTables tab.
A14: Each refinement level of the seasonality calculations described in the article is staged further to the right on this tab.
A15: The last refinement being the Seasonality Trading results which appear at the far right of this tab.
A17: User may select or refresh a symbol from any of the InputPriceData, the MonthlyInputPriceData, or the Follow tabs.
A18: The selected symbol will be automatically propagated to both of the input price tabs before downloading begins.
A19: Date range changes may be made on either of the input price tabs and will be propogated automatically to the other.
A20: Each time you request a data refresh or symbol change two downloads will occur for the selected symbol and date range.
A21: Onc for the monthly version of the historical data, and one for the daily version of the historical data.
A23: Bug Fix 6/14/2019
A24: On or about Saturday, June 08, 2019, Yahoo Finance introduced web page changes that
A25: removed the "crumbstore" from the surface of all pages retrieved when using a
A26: Windows Internet Explorer 11 "User-Agent" string.
A28: By trial and error, today I determined that requests using a Windows Chrome "User-Agent' string will retrieve pages
A29: containing the expected crumb store and, oh by the way, one additional crumb store with a different crumb value.
A31: Using a Windows Chrome user agent string can get my recent spread sheets back on the air, at least temporarily.
A33: I say temporarily as I believe that the folks at Yahoo Finance will be propogating similar changes
A34: to all of the supported browser types over time.
A36: The following bug fix instructions are applicable to spreadsheets as old as "WeeklyDailyStochastics.xlsm",
A37: the September of 2018 traders tip, where I first introduced the “DataViaWinHTTP” module.
A39: For spreadsheets older than September of 2018 replacing the User-Agent string "may" turn out to be helpful.
A40: I have tried this successfully with a few of the earlier 2018 spreadsheets. But I make no guarantees as to earlier spreadsheets.
A41: You will most likely only find one instance of the User-Agent" spec, in a different module, instead of the 4 instances described below.
A43: How to apply this bug fix to your copy of these older spreadsheets.
A45: You will need to get into the VBA editor (ALT-F11) and then open a FIND (Ctrl-F) dialog box.
A47: Make sure the "Current Project" radio button is selected in the Search box.
A49: What you want to find: .SetRequestHeader statements with the "User-Agent", specification.
A51: There should be 4 occurrences, all in module “DataViaWinHTTP”.
A53: Replace each of these user-agent statements with the one provided below
A55: .SetRequestHeader _
A56: "User-Agent", _
A57: "Mozilla/5.0 (Windows NT 10.0; Win64; x64) " & _
A58: "AppleWebKit/537.36 (KHTML, like Gecko) Chrome/60.0.3112.90 Safari/537.36"
A60: General Construction Notes
A62: One can replicate the chart in Figure 1 of the article by retrieving data for symbol SPY.
A63: Next, on the CalculationsAndCharts tab, set cell B26 to 01/03/2018 and cell B27 to 03/08/2019.
A64: Then Click on the "I would like to chart these dates" button.
A67: Development Notes:
C68: This workbook contains and uses VBA macros and may use VBA Class structures.
C69: Input Data
C70: The data in this workbook is sorted date descending (most recent date at the top). All formulas and
C71: VBA routines are built accordingly.
A73: 2019-06-04 Set price chart vertical axis to show tick marks and labels at each 1/10th of the vertical price spread
A75: 2019-04-04 Finally came up with a mechanism to align the left location and overall length of the cursor scroll bar so that the left most and right most
A76: scroll bar thumb positions visually align reasonably well with the left and right ends of the price chart horizontal axis.
A77: Makes it a little easier to visually align the Thumb and thus the cursor with points of interest on the charts.
A79: Older:
B80: My sincere apologies to our Macintosh based readers: Neither MSXML nor WinHttpRequest are supported in your environment. So as it stands this version of the spreadsheet will not work for you.
B81: See "Why this approach does not work for Macintosh" below.
B82: I am investigating cURL as a non-Querytable based approach for the Macintosh environment.
A84: The new Yahoo Finance history download interface has changed rather radically. The biggest hurdle being a pseudo-security requirement of adding a
B85: crumb character string to any URL requesting any type of history download. That crumb must match up (by way of some sort of hash algorithm) with
B86: the Yahoo Finance cookie that must also be sent with any request to the new Yahoo History down load interface.
B88: A crumb value is returned, buried in the HTML for any of what I call the "entry level" Yahoo Finance web pages (no crumb security requirement for entry level pages).
B89: A crumb may come with other Yahoo Finance pages. A crumb may even accompany some of the secured pages as well. I have not checked.
B91: Entry level pages are the top level pages of the various Yahoo Finance dialogs and include: Quote Lookup, Stock Summary Quote, and any of the pages
B92: with links in the horizontal row with the "Summary" link on the quote summary page such as Options, Historical Data, and the rest.
B94: To date I have found no way to get at this crumb value using any native EXCEL capabilities.
B96: So this crumb requirement effectively shuts out any solution that attempts to exclusively use built-in facilities of EXCEL, which is to say a purely Querytables solution.
B98: The approach built for this Traders Tip spreadsheet uses a combination of MSXML and EXCEL Querytable calls to Load the InputPriceData worksheet.
B100: First I call MSXML to get the HTML text for the Yahoo Summary Quote page using the requested symbol. From this HTML text I extract the full company name,
B101: the market it trades, the market status and time stamp, and finally the associated crumb string. There is a bunch of other useful bits buried in this HTML
B102: text that do not necessarily appear on the web page your browser presents. Perhaps some day I will go after and build a worksheet with these other bits.
B104: Next I add the freshly extracted crumb string to the URLs I use in three separate Querytable calls to retrieve Price history, Split history, and Dividend history respectively.
B106: From there VBA code proceeds as in the past to fill in the cell formulas and formatting that make the "prettied up" InputPriceData sheet.
A108: Why this approach works for Windows:
B109: First, MSXML shares the permanent Internet Explorer web cache where cookies are maintained. Both IE and MSXML automatically
B110: update this cache when a "set cookie" header accompanies a web response. And they both automatically search this shared cache for
B111: cookies and add any "appropriate" cookies to the headers of any web requests they send out.
B112: This cookie handling automation means that even if the response to our MSXML call for the Summary web page includes a new version of
B113: the Yahoo Finance cookie, the imbedded Crumb value will always match the cookie newly installed in the cache!
B115: Second, in the Windows environment the EXCEL Querytable mechanism leans heavily on bits from Internet Explorer. This means that cookie
B116: handling is also automated from the shared cache for Querytable calls. We can count on any appropriate cookies being added to any Querytable call.
B117: We only need to do our part by adding the corresponding Crumb value to complete the security for the Querytable to access Yahoo History downloads.
A119: Why this approach does not work for Macintosh:
B120: For what it is worth, the Macintosh version of the MS Office suite of products do in fact maintain a special, shared amongst themselves only, cookie cache.
B121: They automate cookie handling into and from this cache JUST for the Office products and any Querytable activity they might originate.
B123: This cache is not tied to, nor shared with, any browser that might be installed on the MAC. And I have not found anything with HTTP capabilities similar to
B124: MSXML that can work with that Office product cookie cache.
B126: When working in the MAC EXCEL environment, without that MSXML like capability against the office shared cache, l have no mechanism
B127: to obtain a crumb value that would be a valid match to the Yahoo Finance cookie that will be automatically attached to a Querytable call.
B128: This missing facility pretty much eliminates the use of Mac environment Querytables to access the new Yahoo Finance history download interface.
A130: One very low probability potential "Gottcha" for any Querytables approach.
B131: Yahoo Finance cookies typically have an assigned expiration that is a year out (to the second) from the time they are issued.
B132: Further, these cookies are unique. Yours will not match mine.
B134: If for testing purposes, instead of MSXML, you use a fresh instance of Winhttp (Fresh instance = empty cache = no cookie to automatically send)
B135: every time you call an entry level page, the Yahoo server says "What? Entry level page? With no inbound cookie? Get them a cookie!!"
B136: and will send you a new, unique cookie and will imbed the matching crumb value in the response HTML text for each of these "no cookie attached" calls.
B138: The Gottcha: Lets say that the Yahoo Finance cookie presently in the IE cache has an expiration date and time that just happens
B139: to fall between our MSXML call to the summary page to fetch our crumb and our first (or second, or third) Querytable call.
B140: The Querytable call after the cookie expiration may fail with a cookie and crumb validation error.
B142: Querytable error reporting is atrocious. So we will not get any sort of helpful message here. Just a very generalized message like "failed to connect".
B144: The workaround is to simply go to the InputPriceData tab and click the download button.
B145: This second time through the retrieval process should not fail on a mismatch.
B146: After all, you now have a year before the new cookie that just got put into the cache expires!
A148: Calculation and Chart Worksheet Usage Comments:
C149: In General, Items in Bolded BLUE are items you may freely change to play what-if games.
C150: Be sure to have a backup copy of the spreadsheet before you alter anything else.
A152: Features carried forward from the June 2016 version of my T-Tips Template
A153: Added a pair of buttons near cell F12 that will allow the user to step the charting window forward or backward one bar for each click.
A154: I find this to be a good way to test my understanding of the author's ideas as I step through the evolution of the price behavior and the indicators.
B156: First: In the "Help! I would like to plot data" area.
B157: Added button to resolve #NA problems by locating the bar in the input data with a slightly more recent date than what the user actually requested.
B158: I find this particularly useful when I have a general idea of where I want to be date wise. Now I can pick a set of dates "out of the air".
B159: If either (or both) of my date specifications fall between dates that are available in the price history,
B160: this button will resolve them to the dates of the nearest, slightly more recent input bars.
B161: I can then refine my data interval search as necessary from there.
B162: Really great when working with Weekly or Monthly studies!
C163: 2016Jun11 - added logic to the "I would like to chart.." button to detect #N/A values and terminate
C164: gracefully with a message instead of blowing up in the charting logic.
B166: Second: In the "Price Chart Windowing Controls" area. (A11 and A12)
B167: When retrieving data for a new symbol or when changing from daily to weekly or monthly data, there was the possibility that the
B168: residual settings in A11 and A12 would fall outside of the number bars available on the input data tab after the new data retrieval.
B169: In certain combinations, this could create a serious error in the chart sizing logic and crash the spreadsheet.
B170: I have taken this opportunity to update the validity checking logic used in the chart sizing macros
B171: to adjust these values as necessary so that they fall within the boundaries of the newly retrieved input data.
A172: Features carried forward from the October 2015 Traders Tips Template
B173: Improved automation: changes to any of the following will automatically initiate calculations appropriate to reflect a change.
C174: Changing either of cells A11 (pan) or A12 (zoom) will automatically initiate the same chart sizing macros that the manual
C175: "Set Chart" button uses.

Sheet InputPriceData
A1: SPDR S&P 500 ETF (SPY) -NYSEArca (Daily)
IJ2: 241.79
A3: Request Online Yahoo History for: | F3: Market State == > | G3: At close: | H3: 16:00:00 | I3: EDT
A4: Symbol | B4: spy | D4: Valid | I4: =OFFSET(I4,-2,0,1,1) -> 0
A5: From | B5: 1998-01-01 | D5: Data | AD5: Trailing 12 Div return (Cur Close)
A6: To | B6: =NOW() -> 2019-07-22T17:32:02.570 | D6: Types | E6: =VLOOKUP(B7,D7:E10,2,FALSE) -> d
A7: Data Type | B7: Daily | D7: Daily | E7: d
A8: Crumb | B8: 8P1Gx1vUsnz | D8: Weekly | E8: w
A9: Available Data | D9: Monthly | E9: m
A10: Bar Count: | B10: 5421 | AD10: =OFFSET(AC15,1,0,1,1)/OFFSET(N15,1,0,1,1) -> 0.01824881381
A11: From: | B11: =IF(B10<=0,"",OFFSET(B15,B10,IF(HistReqDataType="v",1,0),1,1)) -> 1998-01-02 | W11: Trailing 12 Month Dividend Returns
A12: To: | B12: =IF(B10<=0,"",IF(HistReqDataType="v",OFFSET(B15,2,1,1,1),OFFSET(B15,1,0,1,1))) -> 2019-07-19 | W12: Raw Close price on Dividend date | X12: Div Year and Month | Y12: Looking for year ago Div Year and Month | Z12: Year ago Div Date we found | AA12: row offset to year ago div Date | AB12: Same month flag | AC12: Trailing 12 Div Total | AD12: Trailing 12 Div return
Q13: Split History | S13: 0 | T13: Running | U13: Dividend History
B14: Raw Data Values | H14: Adjusted | I14: Price Adjust | J14: Vol Adjust | K14: Adjusted Values | P14: Last | Q14: Effective | R14: Shares | T14: Vol Adjust | V14: 89
A15: RelRow | B15: Date | C15: Open | D15: High | E15: Low | F15: Close | G15: Volume | H15: Close | I15: Factor | J15: Factor | K15: Open | L15: High | M15: Low | N15: Close | O15: Volume | P15: Trade | Q15: 43668 | R15: New | S15: Old | T15: 1 | U15: Date | V15: $ / Share
A16: 1 | B16: 2019-07-19 | C16: 300.040009 | D16: 300.070007 | E16: 296.980011 | F16: 297.170013 | G16: 58678600 | H16: 297.170013 | I16: =IF(F16=0,1,H16/F16) -> 1 | J16: =INDEX(OFFSET($T$15,0,0,$S$13+1,1),MATCH(B16,OFFSET($Q$15,0,0,$S$13+1,1),-1)) -> 1 | K16: =ROUND($I16*C16,2) -> 300.04 | L16: =ROUND($I16*D16,2) -> 300.07 | M16: 296.98 | N16: 297.17 | O16: =G16*J16 -> 58678600 | U16: 2019-06-21 | V16: 1.432 | W16: =(INDEX(OFFSET($F$15,1,0,$B$10,1),MATCH(U16,OFFSET($B$15,1,0,$B$10,1),-1))) -> 294 | X16: =YEAR(U16)&RIGHT("0"&MONTH(U16),2) -> 201906 | Y16: =YEAR(U16)-1&RIGHT("0"&MONTH(U16),2) -> 201806 | Z16: =OFFSET(U15,AA16,0,1,1) -> 2018-06-15 | AA16: =MATCH(Y16,OFFSET($X$15,A16,0,$V$14+1-A16,1),-1) -> 5 | AB16: =IF(OR(AND(YEAR(U16)=YEAR(Z16),MONTH(U16)=MONTH(Z16)),MONTH(U16)=MONTH(Z16)),1,0) -> 1 | AC16: =(V16+IF(AA16-AB16=0,0,IFERROR(SUM(OFFSET(V16,1,0,AA16-AB16-1,1)),0))) -> 5.423 | AD16: =AC16/(INDEX(OFFSET($F$15,1,0,$B$10,1),MATCH(U16,OFFSET($B$15,1,0,$B$10,1),-1))) -> 0.01844557823
A17: 2 | B17: 2019-07-18 | C17: 297.190002 | D17: 299.25 | E17: 296.700012 | F17: 298.829987 | G17: 51392600 | H17: 298.829987 | I17: =IF(F17=0,1,H17/F17) -> 1 | J17: =INDEX(OFFSET($T$15,0,0,$S$13+1,1),MATCH(B17,OFFSET($Q$15,0,0,$S$13+1,1),-1)) -> 1 | K17: =ROUND($I17*C17,2) -> 297.19 | L17: =ROUND($I17*D17,2) -> 299.25 | M17: =ROUND($I17*E17,2) -> 296.7 | N17: =ROUND($I17*F17,2) -> 298.83 | O17: =G17*J17 -> 51392600 | U17: 2019-03-15 | V17: 1.233 | W17: =(INDEX(OFFSET($F$15,1,0,$B$10,1),MATCH(U17,OFFSET($B$15,1,0,$B$10,1),-1))) -> 281.309998 | X17: =YEAR(U17)&RIGHT("0"&MONTH(U17),2) -> 201903 | Y17: =YEAR(U17)-1&RIGHT("0"&MONTH(U17),2) -> 201803 | Z17: =OFFSET(U16,AA17,0,1,1) -> 2018-03-16 | AA17: =MATCH(Y17,OFFSET($X$15,A17,0,$V$14+1-A17,1),-1) -> 5 | AB17: =IF(OR(AND(YEAR(U17)=YEAR(Z17),MONTH(U17)=MONTH(Z17)),MONTH(U17)=MONTH(Z17)),1,0) -> 1 | AC17: =(V17+IF(AA17-AB17=0,0,IFERROR(SUM(OFFSET(V17,1,0,AA17-AB17-1,1)),0))) -> 5.237 | AD17: =AC17/(INDEX(OFFSET($F$15,1,0,$B$10,1),MATCH(U17,OFFSET($B$15,1,0,$B$10,1),-1))) -> 0.01861647306
A18: 3 | B18: 2019-07-17 | C18: 299.75 | D18: 299.929993 | E18: 297.73999 | F18: 297.73999 | G18: 36036300 | H18: 297.73999 | I18: 1 | J18: 1 | K18: 299.75 | L18: 299.93 | M18: 297.74 | N18: 297.74 | O18: 36036300 | U18: 2018-12-21 | V18: 1.435 | W18: 240.699997 | X18: 201812 | Y18: 201712 | Z18: 2017-12-15 | AA18: 5 | AB18: 1 | AC18: 5.101 | AD18: 0.02119235589
A19: 4 | B19: 2019-07-16 | C19: 300.649994 | D19: 300.880005 | E19: 299.440002 | F19: 299.779999 | G19: 36650100 | H19: 299.779999 | I19: 1 | J19: 1 | K19: 300.65 | L19: 300.88 | M19: 299.44 | N19: 299.78 | O19: 36650100 | U19: 2018-09-21 | V19: 1.323 | W19: 291.98999 | X19: 201809 | Y19: 201709 | Z19: 2017-09-15 | AA19: 5 | AB19: 1 | AC19: 5.017 | AD19: 0.01718209587
A20: 5 | B20: 2019-07-15 | C20: 301.130005 | D20: 301.130005 | E20: 300.190002 | F20: 300.75 | G20: 33900000 | H20: 300.75 | I20: 1 | J20: 1 | K20: 301.13 | L20: 301.13 | M20: 300.19 | N20: 300.75 | O20: 33900000 | U20: 2018-06-15 | V20: 1.246 | W20: 277.130005 | X20: 201806 | Y20: 201706 | Z20: 2017-06-16 | AA20: 5 | AB20: 1 | AC20: 4.929 | AD20: 0.01778587634
A21: 6 | B21: 2019-07-12 | C21: 299.850006 | D21: 300.730011 | E21: 299.51001 | F21: 300.649994 | G21: 40326000 | H21: 300.649994 | I21: 1 | J21: 1 | K21: 299.85 | L21: 300.73 | M21: 299.51 | N21: 300.65 | O21: 40326000 | U21: 2018-03-16 | V21: 1.097 | W21: 274.200012 | X21: 201803 | Y21: 201703 | Z21: 2017-03-17 | AA21: 5 | AB21: 1 | AC21: 4.866 | AD21: 0.0177461699
A22: 7 | B22: 2019-07-11 | C22: 299.320007 | D22: 299.579987 | E22: 298.200012 | F22: 299.309998 | G22: 50826100 | H22: 299.309998 | I22: 1 | J22: 1 | K22: 299.32 | L22: 299.58 | M22: 298.2 | N22: 299.31 | O22: 50826100 | U22: 2017-12-15 | V22: 1.351 | W22: 266.51001 | X22: 201712 | Y22: 201612 | Z22: 2016-12-16 | AA22: 5 | AB22: 1 | AC22: 4.802 | AD22: 0.01801808495
A23: 8 | B23: 2019-07-10 | C23: 298.369995 | D23: 299.660004 | E23: 297.779999 | F23: 298.609985 | G23: 58448500 | H23: 298.609985 | I23: 1 | J23: 1 | K23: 298.37 | L23: 299.66 | M23: 297.78 | N23: 298.61 | O23: 58448500 | U23: 2017-09-15 | V23: 1.235 | W23: 249.190002 | X23: 201709 | Y23: 201609 | Z23: 2016-09-16 | AA23: 5 | AB23: 1 | AC23: 4.78 | AD23: 0.01918215001
A24: 9 | B24: 2019-07-09 | C24: 295.540009 | D24: 297.519989 | E24: 295.480011 | F24: 297.190002 | G24: 41101300 | H24: 297.190002 | I24: 1 | J24: 1 | K24: 295.54 | L24: 297.52 | M24: 295.48 | N24: 297.19 | O24: 41101300 | U24: 2017-06-16 | V24: 1.183 | W24: 242.639999 | X24: 201706 | Y24: 201606 | Z24: 2016-06-17 | AA24: 5 | AB24: 1 | AC24: 4.627 | AD24: 0.01906940331
A25: 10 | B25: 2019-07-08 | C25: 297.01001 | D25: 298.26001 | E25: 296.220001 | F25: 296.820007 | G25: 45841800 | H25: 296.820007 | I25: 1 | J25: 1 | K25: 297.01 | L25: 298.26 | M25: 296.22 | N25: 296.82 | O25: 45841800 | U25: 2017-03-17 | V25: 1.033 | W25: 237.029999 | X25: 201703 | Y25: 201603 | Z25: 2016-03-18 | AA25: 5 | AB25: 1 | AC25: 4.522 | AD25: 0.01907775395
A26: 11 | B26: 2019-07-05 | C26: 297.440002 | D26: 298.640015 | E26: 296.01001 | F26: 298.459991 | G26: 51677300 | H26: 298.459991 | I26: 1 | J26: 1 | K26: 297.44 | L26: 298.64 | M26: 296.01 | N26: 298.46 | O26: 51677300 | U26: 2016-12-16 | V26: 1.329 | W26: 225.039993 | X26: 201612 | Y26: 201512 | Z26: 2015-12-18 | AA26: 5 | AB26: 1 | AC26: 4.539 | AD26: 0.02016974823
A27: 12 | B27: 2019-07-03 | C27: 297.179993 | D27: 298.820007 | E27: 297.019989 | F27: 298.799988 | G27: 40898900 | H27: 298.799988 | I27: 1 | J27: 1 | K27: 297.18 | L27: 298.82 | M27: 297.02 | N27: 298.8 | O27: 40898900 | U27: 2016-09-16 | V27: 1.082 | W27: 213.369995 | X27: 201609 | Y27: 201509 | Z27: 2015-09-18 | AA27: 5 | AB27: 1 | AC27: 4.422 | AD27: 0.02072456345
A28: 13 | B28: 2019-07-02 | C28: 295.609985 | D28: 296.48999 | E28: 294.679993 | F28: 296.429993 | G28: 61504500 | H28: 296.429993 | I28: 1 | J28: 1 | K28: 295.61 | L28: 296.49 | M28: 294.68 | N28: 296.43 | O28: 61504500 | U28: 2016-06-17 | V28: 1.078 | W28: 206.520004 | X28: 201606 | Y28: 201506 | Z28: 2015-06-19 | AA28: 5 | AB28: 1 | AC28: 4.373 | AD28: 0.02117470422
A29: 14 | B29: 2019-07-01 | C29: 296.679993 | D29: 296.920013 | E29: 294.329987 | F29: 295.660004 | G29: 79107500 | H29: 295.660004 | I29: 1 | J29: 1 | K29: 296.68 | L29: 296.92 | M29: 294.33 | N29: 295.66 | O29: 79107500 | U29: 2016-03-18 | V29: 1.05 | W29: 204.380005 | X29: 201603 | Y29: 201503 | Z29: 2015-03-20 | AA29: 5 | AB29: 1 | AC29: 4.325 | AD29: 0.02116156128
A30: 15 | B30: 2019-06-28 | C30: 292.579987 | D30: 293.549988 | E30: 292.01001 | F30: 293 | G30: 59350900 | H30: 293 | I30: 1 | J30: 1 | K30: 292.58 | L30: 293.55 | M30: 292.01 | N30: 293 | O30: 59350900 | U30: 2015-12-18 | V30: 1.212 | W30: 200.020004 | X30: 201512 | Y30: 201412 | Z30: 2014-12-19 | AA30: 5 | AB30: 1 | AC30: 4.206 | AD30: 0.02102789679
A31: 16 | B31: 2019-06-27 | C31: 291.309998 | D31: 292.059998 | E31: 290.890015 | F31: 291.5 | G31: 40355200 | H31: 291.5 | I31: 1 | J31: 1 | K31: 291.31 | L31: 292.06 | M31: 290.89 | N31: 291.5 | O31: 40355200 | U31: 2015-09-18 | V31: 1.033 | W31: 195.449997 | X31: 201509 | Y31: 201409 | Z31: 2014-09-19 | AA31: 5 | AB31: 1 | AC31: 4.129 | AD31: 0.0211256079
A32: 17 | B32: 2019-06-26 | C32: 291.75 | D32: 292.309998 | E32: 290.350006 | F32: 290.470001 | G32: 51584900 | H32: 290.470001 | I32: 1 | J32: 1 | K32: 291.75 | L32: 292.31 | M32: 290.35 | N32: 290.47 | O32: 51584900 | U32: 2015-06-19 | V32: 1.03 | W32: 210.809998 | X32: 201506 | Y32: 201406 | Z32: 2014-06-20 | AA32: 5 | AB32: 1 | AC32: 4.035 | AD32: 0.01914045841
A33: 18 | B33: 2019-06-25 | C33: 293.700012 | D33: 293.730011 | E33: 290.640015 | F33: 290.76001 | G33: 82028700 | H33: 290.76001 | I33: 1 | J33: 1 | K33: 293.7 | L33: 293.73 | M33: 290.64 | N33: 290.76 | O33: 82028700 | U33: 2015-03-20 | V33: 0.931 | W33: 210.410004 | X33: 201503 | Y33: 201403 | Z33: 2014-03-21 | AA33: 5 | AB33: 1 | AC33: 3.942 | AD33: 0.01873485065
A34: 19 | B34: 2019-06-24 | C34: 294.230011 | D34: 294.579987 | E34: 293.470001 | F34: 293.640015 | G34: 47582700 | H34: 293.640015 | I34: 1 | J34: 1 | K34: 294.23 | L34: 294.58 | M34: 293.47 | N34: 293.64 | O34: 47582700 | U34: 2014-12-19 | V34: 1.135 | W34: 206.520004 | X34: 201412 | Y34: 201312 | Z34: 2013-12-20 | AA34: 5 | AB34: 1 | AC34: 3.836 | AD34: 0.01857447185
A35: 20 | B35: 2019-06-21 | C35: 294.130005 | D35: 295.519989 | E35: 293.76001 | F35: 294 | G35: 83309500 | H35: 294 | I35: 1 | J35: 1 | K35: 294.13 | L35: 295.52 | M35: 293.76 | N35: 294 | O35: 83309500 | U35: 2014-09-19 | V35: 0.939 | W35: 200.699997 | X35: 201409 | Y35: 201309 | Z35: 2013-09-20 | AA35: 5 | AB35: 1 | AC35: 3.681 | AD35: 0.01834080745
A36: 21 | B36: 2019-06-20 | C36: 296.040009 | D36: 296.309998 | E36: 293.130005 | F36: 295.859985 | G36: 116570000 | H36: 294.427979 | I36: 0.9951598524 | J36: 1 | K36: 294.61 | L36: 294.88 | M36: 291.71 | N36: 294.43 | O36: 116570000 | U36: 2014-06-20 | V36: 0.937 | W36: 195.940002 | X36: 201406 | Y36: 201306 | Z36: 2013-06-21 | AA36: 5 | AB36: 1 | AC36: 3.58 | AD36: 0.01827089907
A37: 22 | B37: 2019-06-19 | C37: 292.549988 | D37: 293.649994 | E37: 291.470001 | F37: 293.059998 | G37: 78674400 | H37: 291.641541 | I37: 0.995159841 | J37: 1 | K37: 291.13 | L37: 292.23 | M37: 290.06 | N37: 291.64 | O37: 78674400 | U37: 2014-03-21 | V37: 0.825 | W37: 186.199997 | X37: 201403 | Y37: 201303 | Z37: 2013-03-15 | AA37: 5 | AB37: 1 | AC37: 3.482 | AD37: 0.01870032254
A38: 23 | B38: 2019-06-18 | C38: 291.390015 | D38: 293.570007 | E38: 290.98999 | F38: 292.399994 | G38: 85434800 | H38: 290.984741 | I38: 0.9951598734 | J38: 1 | K38: 289.98 | L38: 292.15 | M38: 289.58 | N38: 290.98 | O38: 85434800 | U38: 2013-12-20 | V38: 0.98 | W38: 181.559998 | X38: 201312 | Y38: 201212 | Z38: 2012-12-21 | AA38: 5 | AB38: 1 | AC38: 3.351 | AD38: 0.01845670873
A39: 24 | B39: 2019-06-17 | C39: 289.519989 | D39: 290.220001 | E39: 289.179993 | F39: 289.369995 | G39: 39205700 | H39: 287.969391 | I39: 0.9951598161 | J39: 1 | K39: 288.12 | L39: 288.82 | M39: 287.78 | N39: 287.97 | O39: 39205700 | U39: 2013-09-20 | V39: 0.838 | W39: 170.720001 | X39: 201309 | Y39: 201209 | Z39: 2012-09-21 | AA39: 5 | AB39: 1 | AC39: 3.393 | AD39: 0.01987464843
A40: 25 | B40: 2019-06-14 | C40: 289.26001 | D40: 289.929993 | E40: 288.410004 | F40: 289.26001 | G40: 52324700 | H40: 287.859955 | I40: 0.9951598736 | J40: 1 | K40: 287.86 | L40: 288.53 | M40: 287.01 | N40: 287.86 | O40: 52324700 | U40: 2013-06-21 | V40: 0.839 | W40: 159.070007 | X40: 201306 | Y40: 201206 | Z40: 2012-06-15 | AA40: 5 | AB40: 1 | AC40: 3.334 | AD40: 0.02095932516
A41: 26 | B41: 2019-06-13 | C41: 289.399994 | D41: 289.980011 | E41: 288.619995 | F41: 289.579987 | G41: 48945200 | H41: 288.178375 | I41: 0.9951598451 | J41: 1 | K41: 288 | L41: 288.58 | M41: 287.22 | N41: 288.18 | O41: 48945200 | U41: 2013-03-15 | V41: 0.694 | W41: 155.830002 | X41: 201303 | Y41: 201203 | Z41: 2012-03-16 | AA41: 5 | AB41: 1 | AC41: 3.183 | AD41: 0.02042610511
A42: 27 | B42: 2019-06-12 | C42: 288.640015 | D42: 289.26001 | E42: 287.820007 | F42: 288.390015 | G42: 47096300 | H42: 286.994171 | I42: 0.995159874 | J42: 1 | K42: 287.24 | L42: 287.86 | M42: 286.43 | N42: 286.99 | O42: 47096300 | U42: 2012-12-21 | V42: 1.022 | W42: 142.789993 | X42: 201212 | Y42: 201112 | Z42: 2011-12-16 | AA42: 5 | AB42: 1 | AC42: 3.103 | AD42: 0.02173121474
A43: 28 | B43: 2019-06-11 | C43: 290.98999 | D43: 291.399994 | E43: 288.179993 | F43: 288.899994 | G43: 58641300 | H43: 287.501678 | I43: 0.9951598614 | J43: 1 | K43: 289.58 | L43: 289.99 | M43: 286.79 | N43: 287.5 | O43: 58641300 | U43: 2012-09-21 | V43: 0.779 | W43: 145.869995 | X43: 201209 | Y43: 201109 | Z43: 2011-09-16 | AA43: 5 | AB43: 1 | AC43: 2.851 | AD43: 0.01954480083
A44: 29 | B44: 2019-06-10 | C44: 289.369995 | D44: 290.820007 | E44: 288.869995 | F44: 288.970001 | G44: 60799100 | H44: 287.57135 | I44: 0.9951598747 | J44: 1 | K44: 287.97 | L44: 289.41 | M44: 287.47 | N44: 287.57 | O44: 60799100 | U44: 2012-06-15 | V44: 0.688 | W44: 134.139999 | X44: 201206 | Y44: 201106 | Z44: 2011-06-17 | AA44: 5 | AB44: 1 | AC44: 2.697 | AD44: 0.0201058597
A45: 30 | B45: 2019-06-07 | C45: 285.929993 | D45: 288.850006 | E45: 285.73999 | F45: 287.649994 | G45: 74272200 | H45: 286.257721 | I45: 0.9951598365 | J45: 1 | K45: 284.55 | L45: 287.45 | M45: 284.36 | N45: 286.26 | O45: 74272200 | U45: 2012-03-16 | V45: 0.614 | W45: 140.300003 | X45: 201203 | Y45: 201103 | Z45: 2011-03-18 | AA45: 5 | AB45: 1 | AC45: 2.637 | AD45: 0.01879543794
A46: 31 | B46: 2019-06-06 | C46: 283.290009 | D46: 285.549988 | E46: 282.570007 | F46: 284.799988 | G46: 69430400 | H46: 283.421509 | I46: 0.9951598348 | J46: 1 | K46: 281.92 | L46: 284.17 | M46: 281.2 | N46: 283.42 | O46: 69430400 | U46: 2011-12-16 | V46: 0.77 | W46: 121.589996 | X46: 201112 | Y46: 201012 | Z46: 2010-12-17 | AA46: 5 | AB46: 1 | AC46: 2.576 | AD46: 0.02118595349
A47: 32 | B47: 2019-06-05 | C47: 282.329987 | D47: 282.98999 | E47: 280.320007 | F47: 282.959991 | G47: 71169700 | H47: 281.590424 | I47: 0.9951598564 | J47: 1 | K47: 280.96 | L47: 281.62 | M47: 278.96 | N47: 281.59 | O47: 71169700 | U47: 2011-09-16 | V47: 0.625 | W47: 121.519997 | X47: 201109 | Y47: 201009 | Z47: 2010-09-17 | AA47: 5 | AB47: 1 | AC47: 2.459 | AD47: 0.0202353527
A48: 33 | B48: 2019-06-04 | C48: 277.119995 | D48: 280.679993 | E48: 276.619995 | F48: 280.529999 | G48: 77231900 | H48: 279.172211 | I48: 0.9951599187 | J48: 1 | K48: 275.78 | L48: 279.32 | M48: 275.28 | N48: 279.17 | O48: 77231900 | U48: 2011-06-17 | V48: 0.628 | W48: 127.050003 | X48: 201106 | Y48: 201006 | Z48: 2010-06-18 | AA48: 5 | AB48: 1 | AC48: 2.436 | AD48: 0.01917355327
A49: 34 | B49: 2019-06-03 | C49: 275.309998 | D49: 276.549988 | E49: 273.089996 | F49: 274.570007 | G49: 96428000 | H49: 273.241058 | I49: 0.9951598901 | J49: 1 | K49: 273.98 | L49: 275.21 | M49: 271.77 | N49: 273.24 | O49: 96428000 | U49: 2011-03-18 | V49: 0.553 | W49: 127.760002 | X49: 201103 | Y49: 201003 | Z49: 2010-03-19 | AA49: 5 | AB49: 1 | AC49: 2.339 | AD49: 0.01830776427
A50: 35 | B50: 2019-05-31 | C50: 276.200012 | D50: 277.119995 | E50: 275.23999 | F50: 275.269989 | G50: 86862800 | H50: 273.937653 | I50: 0.9951598937 | J50: 1 | K50: 274.86 | L50: 275.78 | M50: 273.91 | N50: 273.94 | O50: 86862800 | U50: 2010-12-17 | V50: 0.653 | W50: 124.300003 | X50: 201012 | Y50: 200912 | Z50: 2009-12-18 | AA50: 5 | AB50: 1 | AC50: 2.266 | AD50: 0.01823008806
A51: 36 | B51: 2019-05-30 | C51: 279.109985 | D51: 280.040009 | E51: 277.809998 | F51: 279.029999 | G51: 62523800 | H51: 277.679443 | I51: 0.9951598179 | J51: 1 | K51: 277.76 | L51: 278.68 | M51: 276.47 | N51: 277.68 | O51: 62523800 | U51: 2010-09-17 | V51: 0.602 | W51: 112.489998 | X51: 201009 | Y51: 200909 | Z51: 2009-09-18 | AA51: 5 | AB51: 1 | AC51: 2.203 | AD51: 0.01958396337
A52: 37 | B52: 2019-05-29 | C52: 278.910004 | D52: 279.359985 | E52: 276.709991 | F52: 278.269989 | G52: 104972900 | H52: 276.923126 | I52: 0.9951598697 | J52: 1 | K52: 277.56 | L52: 278.01 | M52: 275.37 | N52: 276.92 | O52: 104972900 | U52: 2010-06-18 | V52: 0.531 | W52: 111.730003 | X52: 201006 | Y52: 200906 | Z52: 2009-06-19 | AA52: 5 | AB52: 1 | AC52: 2.109 | AD52: 0.01887586094
A53: 38 | B53: 2019-05-28 | C53: 283.089996 | D53: 284.149994 | E53: 280.130005 | F53: 280.149994 | G53: 70029400 | H53: 278.794037 | I53: 0.9951598892 | J53: 1 | K53: 281.72 | L53: 282.77 | M53: 278.77 | N53: 278.79 | O53: 70029400 | U53: 2010-03-19 | V53: 0.48 | W53: 115.970001 | X53: 201003 | Y53: 200903 | Z53: 2009-03-20 | AA53: 5 | AB53: 1 | AC53: 2.096 | AD53: 0.01807363958
A54: 39 | B54: 2019-05-24 | C54: 283.73999 | D54: 284.200012 | E54: 282.089996 | F54: 282.779999 | G54: 55268100 | H54: 281.411316 | I54: 0.9951599017 | J54: 1 | K54: 282.37 | L54: 282.82 | M54: 280.72 | N54: 281.41 | O54: 55268100 | U54: 2009-12-18 | V54: 0.59 | W54: 110.209999 | X54: 200912 | Y54: 200812 | Z54: 2008-12-19 | AA54: 5 | AB54: 1 | AC54: 2.177 | AD54: 0.01975319862
A55: 40 | B55: 2019-05-23 | C55: 283.160004 | D55: 283.209991 | E55: 280.570007 | F55: 282.140015 | G55: 98733800 | H55: 280.774414 | I55: 0.9951598464 | J55: 1 | K55: 281.79 | L55: 281.84 | M55: 279.21 | N55: 280.77 | O55: 98733800 | U55: 2009-09-18 | V55: 0.508 | W55: 106.720001 | X55: 200909 | Y55: 200809 | Z55: 2008-09-19 | AA55: 5 | AB55: 1 | AC55: 2.306 | AD55: 0.02160794582
A56: 41 | B56: 2019-05-22 | C56: 285.450012 | D56: 286.690002 | E56: 285.100006 | F56: 285.630005 | G56: 49482500 | H56: 284.247528 | I56: 0.9951599028 | J56: 1 | K56: 284.07 | L56: 285.3 | M56: 283.72 | N56: 284.25 | O56: 49482500 | U56: 2009-06-19 | V56: 0.518 | W56: 92.040001 | X56: 200906 | Y56: 200806 | Z56: 2008-06-20 | AA56: 5 | AB56: 1 | AC56: 2.489 | AD56: 0.02704258988
A57: 42 | B57: 2019-05-21 | C57: 285.829987 | D57: 286.929993 | E57: 285.549988 | F57: 286.51001 | G57: 46847100 | H57: 285.12326 | I57: 0.995159855 | J57: 1 | K57: 284.45 | L57: 285.54 | M57: 284.17 | N57: 285.12 | O57: 46847100 | U57: 2009-03-20 | V57: 0.561 | W57: 76.709999 | X57: 200903 | Y57: 200803 | Z57: 2008-03-20 | AA57: 5 | AB57: 1 | AC57: 2.64 | AD57: 0.03441533091
A58: 43 | B58: 2019-05-20 | C58: 284.059998 | D58: 285.959991 | E58: 283.119995 | F58: 283.950012 | G58: 62877600 | H58: 282.575653 | I58: 0.9951598558 | J58: 1 | K58: 282.69 | L58: 284.58 | M58: 281.75 | N58: 282.58 | O58: 62877600 | U58: 2008-12-19 | V58: 0.719 | W58: 88.190002 | X58: 200812 | Y58: 200712 | Z58: 2007-12-21 | AA58: 5 | AB58: 1 | AC58: 2.721 | AD58: 0.0308538376
A59: 44 | B59: 2019-05-17 | C59: 285.140015 | D59: 288.600006 | E59: 285.119995 | F59: 285.839996 | G59: 100353000 | H59: 284.456482 | I59: 0.9951598306 | J59: 1 | K59: 283.76 | L59: 287.2 | M59: 283.74 | N59: 284.46 | O59: 100353000 | U59: 2008-09-19 | V59: 0.691 | W59: 124.120003 | X59: 200809 | Y59: 200709 | Z59: 2007-09-21 | AA59: 5 | AB59: 1 | AC59: 2.777 | AD59: 0.02237350897
A60: 45 | B60: 2019-05-16 | C60: 285.839996 | D60: 289.209991 | E60: 285.76001 | F60: 287.700012 | G60: 76749600 | H60: 286.307495 | I60: 0.9951598299 | J60: 1 | K60: 284.46 | L60: 287.81 | M60: 284.38 | N60: 286.31 | O60: 76749600 | U60: 2008-06-20 | V60: 0.669 | W60: 131.580002 | X60: 200806 | Y60: 200706 | Z60: 2007-06-15 | AA60: 5 | AB60: 1 | AC60: 2.805 | AD60: 0.02131782913
A61: 46 | B61: 2019-05-15 | C61: 281.589996 | D61: 285.769989 | E61: 281.359985 | F61: 285.059998 | G61: 73956400 | H61: 283.680267 | I61: 0.9951598575 | J61: 1 | K61: 280.23 | L61: 284.39 | M61: 280 | N61: 283.68 | O61: 73956400 | U61: 2008-03-20 | V61: 0.642 | W61: 132.080002 | X61: 200803 | Y61: 200703 | Z61: 2007-03-16 | AA61: 5 | AB61: 1 | AC61: 2.792 | AD61: 0.0211387035
A62: 47 | B62: 2019-05-14 | C62: 281.98999 | D62: 285.100006 | E62: 281.850006 | F62: 283.399994 | G62: 77003200 | H62: 282.02829 | I62: 0.9951598305 | J62: 1 | K62: 280.63 | L62: 283.72 | M62: 280.49 | N62: 282.03 | O62: 77003200 | U62: 2007-12-21 | V62: 0.775 | W62: 148.130005 | X62: 200712 | Y62: 200612 | Z62: 2006-12-15 | AA62: 5 | AB62: 1 | AC62: 2.701 | AD62: 0.01823398305
A63: 48 | B63: 2019-05-13 | C63: 282.420013 | D63: 283.48999 | E63: 279.929993 | F63: 280.859985 | G63: 127290500 | H63: 279.50058 | I63: 0.9951598481 | J63: 1 | K63: 281.05 | L63: 282.12 | M63: 278.58 | N63: 279.5 | O63: 127290500 | U63: 2007-09-21 | V63: 0.719 | W63: 151.970001 | X63: 200709 | Y63: 200609 | Z63: 2006-09-15 | AA63: 5 | AB63: 1 | AC63: 2.719 | AD63: 0.01789168903
A64: 49 | B64: 2019-05-10 | C64: 285.619995 | D64: 288.940002 | E64: 282.299988 | F64: 288.100006 | G64: 112429300 | H64: 286.705566 | I64: 0.9951598751 | J64: 1 | K64: 284.24 | L64: 287.54 | M64: 280.93 | N64: 286.71 | O64: 112429300 | U64: 2007-06-15 | V64: 0.656 | W64: 153.070007 | X64: 200706 | Y64: 200606 | Z64: 2006-06-16 | AA64: 5 | AB64: 1 | AC64: 2.579 | AD64: 0.01684849992
A65: 50 | B65: 2019-05-09 | C65: 285.230011 | D65: 287.329987 | E65: 283.299988 | F65: 286.660004 | G65: 103471100 | H65: 285.272522 | I65: 0.995159834 | J65: 1 | K65: 283.85 | L65: 285.94 | M65: 281.93 | N65: 285.27 | O65: 103471100 | U65: 2007-03-16 | V65: 0.551 | W65: 138.529999 | X65: 200703 | Y65: 200603 | Z65: 2006-03-17 | AA65: 5 | AB65: 1 | AC65: 2.478 | AD65: 0.01788782226
A66: 51 | B66: 2019-05-08 | C66: 287.529999 | D66: 289.429993 | E66: 286.869995 | F66: 287.529999 | G66: 91568300 | H66: 286.138306 | I66: 0.9951598337 | J66: 1 | K66: 286.14 | L66: 288.03 | M66: 285.48 | N66: 286.14 | O66: 91568300 | U66: 2006-12-15 | V66: 0.793 | W66: 142.339996 | X66: 200612 | Y66: 200512 | Z66: 2005-12-16 | AA66: 5 | AB66: 1 | AC66: 2.446 | AD66: 0.01718420731
A67: 52 | B67: 2019-05-07 | C67: 290.149994 | D67: 290.809998 | E67: 285.809998 | F67: 287.929993 | G67: 144729900 | H67: 286.536377 | I67: 0.995159879 | J67: 1 | K67: 288.75 | L67: 289.4 | M67: 284.43 | N67: 286.54 | O67: 144729900 | U67: 2006-09-15 | V67: 0.579 | W67: 131.960007 | X67: 200609 | Y67: 200509 | Z67: 2005-09-16 | AA67: 5 | AB67: 1 | AC67: 2.325 | AD67: 0.01761897451
A68: 53 | B68: 2019-05-06 | C68: 289.25 | D68: 293.309998 | E68: 288.899994 | F68: 292.820007 | G68: 107198100 | H68: 291.40271 | I68: 0.9951598355 | J68: 1 | K68: 287.85 | L68: 291.89 | M68: 287.5 | N68: 291.4 | O68: 107198100 | U68: 2006-06-16 | V68: 0.555 | W68: 124.650002 | X68: 200606 | Y68: 200506 | Z68: 2005-06-17 | AA68: 5 | AB68: 1 | AC68: 2.268 | AD68: 0.01819494556
A69: 54 | B69: 2019-05-03 | C69: 292.820007 | D69: 294.339996 | E69: 291.299988 | F69: 294.029999 | G69: 56543700 | H69: 292.606842 | I69: 0.9951598238 | J69: 1 | K69: 291.4 | L69: 292.92 | M69: 289.89 | N69: 292.61 | O69: 56543700 | U69: 2006-03-17 | V69: 0.519 | W69: 130.619995 | X69: 200603 | Y69: 200503 | Z69: 2005-03-18 | AA69: 5 | AB69: 1 | AC69: 2.201 | AD69: 0.0168504064
A70: 55 | B70: 2019-05-02 | C70: 291.679993 | D70: 292.700012 | E70: 289.519989 | F70: 291.179993 | G70: 65030200 | H70: 289.77063 | I70: 0.995159822 | J70: 1 | K70: 290.27 | L70: 291.28 | M70: 288.12 | N70: 289.77 | O70: 65030200 | U70: 2005-12-16 | V70: 0.672 | W70: 126.360001 | X70: 200512 | Y70: 200412 | Z70: 2004-12-17 | AA70: 5 | AB70: 1 | AC70: 2.149 | AD70: 0.01700696409
A71: 56 | B71: 2019-05-01 | C71: 294.720001 | D71: 294.950012 | E71: 291.799988 | F71: 291.809998 | G71: 71671900 | H71: 290.397583 | I71: 0.9951598129 | J71: 1 | K71: 293.29 | L71: 293.52 | M71: 290.39 | N71: 290.4 | O71: 71671900 | U71: 2005-09-16 | V71: 0.522 | W71: 123.5 | X71: 200509 | Y71: 200409 | Z71: 2004-09-17 | AA71: 6 | AB71: 1 | AC71: 2.396 | AD71: 0.01940080972
A72: 57 | B72: 2019-04-30 | C72: 293.48999 | D72: 294.339996 | E72: 291.920013 | F72: 294.019989 | G72: 81111700 | H72: 292.596893 | I72: 0.9951598665 | J72: 1 | K72: 292.07 | L72: 292.92 | M72: 290.51 | N72: 292.6 | O72: 81111700 | U72: 2005-06-17 | V72: 0.488 | W72: 121.360001 | X72: 200506 | Y72: 200406 | Z72: 2004-06-18 | AA72: 6 | AB72: 1 | AC72: 2.343 | AD72: 0.01930619628
A73: 58 | B73: 2019-04-29 | C73: 293.51001 | D73: 294.450012 | E73: 293.410004 | F73: 293.869995 | G73: 57197700 | H73: 292.447632 | I73: 0.9951598903 | J73: 1 | K73: 292.09 | L73: 293.02 | M73: 291.99 | N73: 292.45 | O73: 57197700 | U73: 2005-03-18 | V73: 0.467 | W73: 118.540001 | X73: 200503 | Y73: 200403 | Z73: 2004-03-19 | AA73: 6 | AB73: 1 | AC73: 2.269 | AD73: 0.01914121799
A74: 59 | B74: 2019-04-26 | C74: 292.100006 | D74: 293.48999 | E74: 291.23999 | F74: 293.410004 | G74: 50916400 | H74: 291.989868 | I74: 0.9951598924 | J74: 1 | K74: 290.69 | L74: 292.07 | M74: 289.83 | N74: 291.99 | O74: 50916400 | U74: 2004-12-17 | V74: 0.568 | W74: 119.440002 | X74: 200412 | Y74: 200312 | Z74: 2003-12-19 | AA74: 6 | AB74: 1 | AC74: 2.197 | AD74: 0.0183941725
A75: 60 | B75: 2019-04-25 | C75: 292.119995 | D75: 292.779999 | E75: 290.730011 | F75: 292.049988 | G75: 57770900 | H75: 290.636414 | I75: 0.9951598217 | J75: 1 | K75: 290.71 | L75: 291.36 | M75: 289.32 | N75: 290.64 | O75: 57770900 | U75: 2004-11-15 | V75: 0.351 | W75: 118.730003 | X75: 200411 | Y75: 200311 | Z75: 2003-12-19 | AA75: 5 | AB75: 0 | AC75: 2.145 | AD75: 0.01806620017
A76: 61 | B76: 2019-04-24 | C76: 292.790009 | D76: 293.160004 | E76: 292.070007 | F76: 292.230011 | G76: 50392900 | H76: 290.815582 | I76: 0.9951598777 | J76: 1 | K76: 291.37 | L76: 291.74 | M76: 290.66 | N76: 290.82 | O76: 50392900 | U76: 2004-09-17 | V76: 0.469 | W76: 113.150002 | X76: 200409 | Y76: 200309 | Z76: 2003-09-19 | AA76: 5 | AB76: 1 | AC76: 1.794 | AD76: 0.01585505938
A77: 62 | B77: 2019-04-23 | C77: 290.679993 | D77: 293.140015 | E77: 290.420013 | F77: 292.880005 | G77: 52246600 | H77: 291.462433 | I77: 0.9951598881 | J77: 1 | K77: 289.27 | L77: 291.72 | M77: 289.01 | N77: 291.46 | O77: 52246600 | U77: 2004-06-18 | V77: 0.414 | W77: 113.629997 | X77: 200406 | Y77: 200306 | Z77: 2003-06-20 | AA77: 5 | AB77: 1 | AC77: 1.725 | AD77: 0.01518085053
A78: 63 | B78: 2019-04-22 | C78: 289.170013 | D78: 290.440002 | E78: 289.070007 | F78: 290.269989 | G78: 40160100 | H78: 288.865051 | I78: 0.9951598923 | J78: 1 | K78: 287.77 | L78: 289.03 | M78: 287.67 | N78: 288.87 | O78: 40160100 | U78: 2004-03-19 | V78: 0.395 | W78: 111.059998 | X78: 200403 | Y78: 200303 | Z78: 2003-03-21 | AA78: 5 | AB78: 1 | AC78: 1.671 | AD78: 0.01504592139
A79: 64 | B79: 2019-04-18 | C79: 290.100006 | D79: 290.320007 | E79: 288.660004 | F79: 290.019989 | G79: 68708500 | H79: 288.616241 | I79: 0.9951598233 | J79: 1 | K79: 288.7 | L79: 288.91 | M79: 287.26 | N79: 288.62 | O79: 68708500 | U79: 2003-12-19 | V79: 0.516 | W79: 108.900002 | X79: 200312 | Y79: 200212 | Z79: 2002-12-20 | AA79: 5 | AB79: 1 | AC79: 1.63 | AD79: 0.01496786015
A80: 65 | B80: 2019-04-17 | C80: 291.399994 | D80: 291.429993 | E80: 288.98999 | F80: 289.450012 | G80: 58268300 | H80: 288.049042 | I80: 0.9951598896 | J80: 1 | K80: 289.99 | L80: 290.02 | M80: 287.59 | N80: 288.05 | O80: 58268300 | U80: 2003-09-19 | V80: 0.4 | W80: 103.669998 | X80: 200309 | Y80: 200209 | Z80: 2002-09-20 | AA80: 5 | AB80: 1 | AC80: 1.55 | AD80: 0.01495128803
A81: 66 | B81: 2019-04-16 | C81: 290.950012 | D81: 291.01001 | E81: 289.5 | F81: 290.160004 | G81: 52153200 | H81: 288.755585 | I81: =IF(F81=0,1,H81/F81) -> 0.9951598464 | J81: =INDEX(OFFSET($T$15,0,0,$S$13+1,1),MATCH(B81,OFFSET($Q$15,0,0,$S$13+1,1),-1)) -> 1 | K81: =ROUND($I81*C81,2) -> 289.54 | L81: =ROUND($I81*D81,2) -> 289.6 | M81: =ROUND($I81*E81,2) -> 288.1 | N81: =ROUND($I81*F81,2) -> 288.76 | O81: =G81*J81 -> 52153200 | U81: 2003-06-20 | V81: 0.36 | W81: =(INDEX(OFFSET($F$15,1,0,$B$10,1),MATCH(U81,OFFSET($B$15,1,0,$B$10,1),-1))) -> 99.440002 | X81: =YEAR(U81)&RIGHT("0"&MONTH(U81),2) -> 200306 | Y81: =YEAR(U81)-1&RIGHT("0"&MONTH(U81),2) -> 200206 | Z81: =OFFSET(U80,AA81,0,1,1) -> 2002-06-21 | AA81: =MATCH(Y81,OFFSET($X$15,A81,0,$V$14+1-A81,1),-1) -> 5 | AB81: =IF(OR(AND(YEAR(U81)=YEAR(Z81),MONTH(U81)=MONTH(Z81)),MONTH(U81)=MONTH(Z81)),1,0) -> 1 | AC81: =(V81+IF(AA81-AB81=0,0,IFERROR(SUM(OFFSET(V81,1,0,AA81-AB81-1,1)),0))) -> 1.528 | AD81: =AC81/(INDEX(OFFSET($F$15,1,0,$B$10,1),MATCH(U81,OFFSET($B$15,1,0,$B$10,1),-1))) -> 0.01536604957
A82: 67 | B82: 2019-04-15 | C82: 290.23999 | D82: 290.350006 | E82: 289.079987 | F82: 289.970001 | G82: 49596700 | H82: 288.566498 | I82: 0.9951598338 | J82: 1 | K82: 288.84 | L82: 288.94 | M82: 287.68 | N82: 288.57 | O82: 49596700 | U82: 2003-03-21 | V82: 0.354 | W82: 89.669998 | X82: 200303 | Y82: 200203 | Z82: 2002-03-15 | AA82: 5 | AB82: 1 | AC82: 1.521 | AD82: 0.01696219509
A83: 68 | B83: 2019-04-12 | C83: 290 | D83: 290.470001 | E83: 288.26001 | F83: 290.160004 | G83: 69727800 | H83: 288.755585 | I83: 0.9951598464 | J83: 1 | K83: 288.6 | L83: 289.06 | M83: 286.86 | N83: 288.76 | O83: 69727800 | U83: 2002-12-20 | V83: 0.436 | W83: 89.989998 | X83: 200212 | Y83: 200112 | Z83: 2001-12-21 | AA83: 5 | AB83: 1 | AC83: 1.498 | AD83: 0.0166462944
A84: 69 | B84: 2019-04-11 | C84: 288.829987 | D84: 288.839996 | E84: 287.579987 | F84: 288.209991 | G84: 55093100 | H84: 286.815002 | I84: 0.9951598173 | J84: 1 | K84: 287.43 | L84: 287.44 | M84: 286.19 | N84: 286.82 | O84: 55093100 | U84: 2002-09-20 | V84: 0.378 | W84: 84.349998 | X84: 200209 | Y84: 200109 | Z84: 2001-09-21 | AA84: 5 | AB84: 1 | AC84: 1.455 | AD84: 0.01724955583
A85: 70 | B85: 2019-04-10 | C85: 287.769989 | D85: 288.390015 | E85: 287.309998 | F85: 288.290009 | G85: 52601500 | H85: 286.894653 | I85: 0.9951598878 | J85: 1 | K85: 286.38 | L85: 286.99 | M85: 285.92 | N85: 286.89 | O85: 52601500 | U85: 2002-06-21 | V85: 0.353 | W85: 99.279999 | X85: 200206 | Y85: 200106 | Z85: 2001-06-15 | AA85: 5 | AB85: 1 | AC85: 1.446 | AD85: 0.01456486719
A86: 71 | B86: 2019-04-09 | C86: 287.720001 | D86: 288.079987 | E86: 286.700012 | F86: 287.309998 | G86: 66142300 | H86: 285.919373 | I86: 0.9951598447 | J86: 1 | K86: 286.33 | L86: 286.69 | M86: 285.31 | N86: 285.92 | O86: 66142300 | U86: 2002-03-15 | V86: 0.331 | W86: 116.650002 | X86: 200203 | Y86: 200103 | Z86: 2001-03-16 | AA86: 5 | AB86: 1 | AC86: 1.439 | AD86: 0.0123360478
A87: 72 | B87: 2019-04-08 | C87: 288.100006 | D87: 288.910004 | E87: 287.369995 | F87: 288.790009 | G87: 53566300 | H87: 287.392212 | I87: 0.9951598152 | J87: 1 | K87: 286.71 | L87: 287.51 | M87: 285.98 | N87: 287.39 | O87: 53566300 | U87: 2001-12-21 | V87: 0.393 | W87: 114.949997 | X87: 200112 | Y87: 200012 | Z87: 2000-12-27 | AA87: 5 | AB87: 1 | AC87: 1.424 | AD87: 0.0123879951
A88: 73 | B88: 2019-04-05 | C88: 287.920013 | D88: 288.630005 | E88: 287.600006 | F88: 288.570007 | G88: 58621700 | H88: 287.173279 | I88: 0.9951598296 | J88: 1 | K88: 286.53 | L88: 287.23 | M88: 286.21 | N88: 287.17 | O88: 58621700 | U88: 2001-09-21 | V88: 0.369 | W88: 97.279999 | X88: 200109 | Y88: 200009 | Z88: 2000-09-15 | AA88: 6 | AB88: 1 | AC88: 1.442 | AD88: 0.01482319094
A89: 74 | B89: 2019-04-04 | C89: 286.779999 | D89: 287.459991 | E89: 286.01001 | F89: 287.179993 | G89: 48997500 | H89: 285.790009 | I89: 0.9951598857 | J89: 1 | K89: 285.39 | L89: 286.07 | M89: 284.63 | N89: 285.79 | O89: 48997500 | U89: 2001-06-15 | V89: 0.346 | W89: 121.849998 | X89: 200106 | Y89: 200006 | Z89: 2000-06-16 | AA89: 7 | AB89: 1 | AC89: 1.448 | AD89: 0.01188346347
A90: 75 | B90: 2019-04-03 | C90: 287.320007 | D90: 287.76001 | E90: 285.75 | F90: 286.420013 | G90: 68243200 | H90: 285.033691 | I90: 0.9951598284 | J90: 1 | K90: 285.93 | L90: 286.37 | M90: 284.37 | N90: 285.03 | O90: 68243200 | U90: 2001-03-16 | V90: 0.316 | W90: 115.010002 | X90: 200103 | Y90: 200003 | Z90: 2000-03-17 | AA90: 7 | AB90: 1 | AC90: 1.45 | AD90: 0.01260759912
A91: 76 | B91: 2019-04-02 | C91: 286.040009 | D91: 286.230011 | E91: 285.089996 | F91: 285.970001 | G91: 40070400 | H91: 284.585876 | I91: 0.9951598944 | J91: 1 | K91: 284.66 | L91: 284.84 | M91: 283.71 | N91: 284.59 | O91: 40070400 | U91: 2000-12-27 | V91: 0 | W91: 133.3125 | X91: 200012 | Y91: 199912 | Z91: 1999-12-17 | AA91: 7 | AB91: 1 | AC91: 1.505 | AD91: 0.01128926395
A92: 77 | B92: 2019-04-01 | C92: 284.700012 | D92: 286.160004 | E92: 284.399994 | F92: 285.829987 | G92: 77617900 | H92: 284.446533 | I92: 0.995159871 | J92: 1 | K92: 283.32 | L92: 284.77 | M92: 283.02 | N92: 284.45 | O92: 77617900 | U92: 2000-12-15 | V92: 0.411 | W92: 130.96875 | X92: 200012 | Y92: 199912 | Z92: 1999-12-17 | AA92: 6 | AB92: 1 | AC92: 1.505 | AD92: 0.01149129086
A93: 78 | B93: 2019-03-29 | C93: 282.390015 | D93: 282.839996 | E93: 281.140015 | F93: 282.480011 | G93: 82186800 | H93: 281.112762 | I93: 0.9951598381 | J93: 1 | K93: 281.02 | L93: 281.47 | M93: 279.78 | N93: 281.11 | O93: 82186800 | U93: 2000-09-15 | V93: 0.375 | W93: 146 | X93: 200009 | Y93: 199909 | Z93: 1999-09-17 | AA93: 6 | AB93: 1 | AC93: 1.442 | AD93: 0.009876712329
A94: 79 | B94: 2019-03-28 | C94: 280.350006 | D94: 281.209991 | E94: 279.070007 | F94: 280.709991 | G94: 56238500 | H94: 279.351318 | I94: 0.9951598695 | J94: 1 | K94: 278.99 | L94: 279.85 | M94: 277.72 | N94: 279.35 | O94: 56238500 | U94: 2000-09-14 | V94: 0 | W94: 149.640625 | X94: 200009 | Y94: 199909 | Z94: 1999-09-17 | AA94: 5 | AB94: 1 | AC94: 1.067 | AD94: 0.007130416623
A95: 80 | B95: 2019-03-27 | C95: 281.109985 | D95: 281.76001 | E95: 277.929993 | F95: 279.649994 | G95: 72224700 | H95: 278.296448 | I95: 0.9951598569 | J95: 1 | K95: 279.75 | L95: 280.4 | M95: 276.58 | N95: 278.3 | O95: 72224700 | U95: 2000-06-16 | V95: 0.348 | W95: 146.59375 | X95: 200006 | Y95: 199906 | Z95: 1999-06-18 | AA95: 5 | AB95: 1 | AC95: 1.439 | AD95: 0.009816243871
A96: 81 | B96: 2019-03-26 | C96: 280.98999 | D96: 282.179993 | E96: 279.559998 | F96: 281.119995 | G96: 68125900 | H96: 279.759338 | I96: 0.9951598711 | J96: 1 | K96: 279.63 | L96: 280.81 | M96: 278.21 | N96: 279.76 | O96: 68125900 | U96: 2000-03-17 | V96: 0.371 | W96: 146.9375 | X96: 200003 | Y96: 199903 | Z96: 1999-03-19 | AA96: 5 | AB96: 1 | AC96: 1.496 | AD96: 0.01018119949
A97: 82 | B97: 2019-03-25 | C97: 278.869995 | D97: 280.190002 | E97: 277.640015 | F97: 279.040009 | G97: 85575200 | H97: 277.689423 | I97: 0.995159884 | J97: 1 | K97: 277.52 | L97: 278.83 | M97: 276.3 | N97: 277.69 | O97: 85575200 | U97: 1999-12-17 | V97: 0.348 | W97: 142.6875 | X97: 199912 | Y97: 199812 | Z97: 1998-12-18 | AA97: 5 | AB97: 1 | AC97: 1.445 | AD97: 0.01012702584
A98: 83 | B98: 2019-03-22 | C98: 283.220001 | D98: 283.799988 | E98: 279.179993 | F98: 279.25 | G98: 122659300 | H98: 277.898407 | I98: 0.9951599176 | J98: 1 | K98: 281.85 | L98: 282.43 | M98: 277.83 | N98: 277.9 | O98: 122659300 | U98: 1999-09-17 | V98: 0.372 | W98: 133.75 | X98: 199909 | Y98: 199809 | Z98: 1998-09-18 | AA98: 5 | AB98: 1 | AC98: 1.489 | AD98: 0.01113271028
A99: 84 | B99: 2019-03-21 | C99: 280.640015 | D99: 285.179993 | E99: 280.589996 | F99: 284.730011 | G99: 79550400 | H99: 283.351868 | I99: 0.9951598253 | J99: 1 | K99: 279.28 | L99: 283.8 | M99: 279.23 | N99: 283.35 | O99: 79550400 | U99: 1999-06-18 | V99: 0.405 | W99: 134.3125 | X99: 199906 | Y99: 199806 | Z99: 1998-06-19 | AA99: 5 | AB99: 1 | AC99: 1.476 | AD99: 0.01098929735
A100: 85 | B100: 2019-03-20 | C100: 282.160004 | D100: 283.5 | E100: 280.320007 | F100: 281.549988 | G100: 84609200 | H100: 280.187256 | I100: 0.9951598932 | J100: 1 | K100: 280.79 | L100: 282.13 | M100: 278.96 | N100: 280.19 | O100: 84609200 | U100: 1999-03-19 | V100: 0.32 | W100: 129.6875 | X100: 199903 | Y100: 199803 | Z100: 1998-03-20 | AA100: 5 | AB100: 1 | AC100: 1.423 | AD100: 0.01097253012
A101: 86 | B101: 2019-03-19 | C101: 283.51001 | D101: 284.359985 | E101: 281.410004 | F101: 282.399994 | G101: 90268100 | H101: 281.033142 | I101: 0.9951598724 | J101: 1 | K101: 282.14 | L101: 282.98 | M101: 280.05 | N101: 281.03 | O101: 90268100 | U101: 1998-12-18 | V101: 0.392 | W101: 118.5 | X101: 199812 | Y101: 199712 | Z101: 1998-03-20 | AA101: 4 | AB101: 0 | AC101: 1.416 | AD101: 0.01194936709
A102: 87 | B102: 2019-03-18 | C102: 281.549988 | D102: 282.660004 | E102: 281.299988 | F102: 282.329987 | G102: 62199800 | H102: 280.96347 | I102: 0.9951598588 | J102: 1 | K102: 280.19 | L102: 281.29 | M102: 279.94 | N102: 280.96 | O102: 62199800 | U102: 1998-09-18 | V102: 0.359 | W102: 102.09375 | X102: 199809 | Y102: 199709 | Z102: 1998-03-20 | AA102: 3 | AB102: 0 | AC102: 1.024 | AD102: 0.01002999694
A103: 88 | B103: 2019-03-15 | C103: 280.540009 | D103: 282.209991 | E103: 280.329987 | F103: 281.309998 | G103: 81309000 | H103: 279.948425 | I103: 0.9951598841 | J103: 1 | K103: 279.18 | L103: 280.84 | M103: 278.97 | N103: 279.95 | O103: 81309000 | U103: 1998-06-19 | V103: 0.352 | W103: 110.0625 | X103: 199806 | Y103: 199706 | Z103: 1998-03-20 | AA103: 2 | AB103: 0 | AC103: 0.665 | AD103: 0.006042021579
A104: 89 | B104: 2019-03-14 | C104: 281.369995 | D104: 281.839996 | E104: 280.670013 | F104: 281.160004 | G104: 67518400 | H104: 278.572113 | I104: 0.9907956645 | J104: 1 | K104: 278.78 | L104: 279.25 | M104: 278.09 | N104: 278.57 | O104: 67518400 | U104: 1998-03-20 | V104: 0.313 | W104: 109.875 | X104: 199803 | Y104: 199703 | Z104: 1998-03-20 | AA104: 1 | AB104: 1 | AC104: 0.313 | AD104: 0.002848691695
A105: 90 | B105: 2019-03-13 | C105: 280.480011 | D105: 282.380005 | E105: 280.299988 | F105: 281.339996 | G105: 80639200 | H105: 278.750458 | I105: 0.990795699 | J105: 1 | K105: 277.9 | L105: 279.78 | M105: 277.72 | N105: 278.75 | O105: 80639200
A106: 91 | B106: 2019-03-12 | C106: 279.059998 | D106: 280.070007 | E106: 278.850006 | F106: 279.48999 | G106: 79667500 | H106: 276.91748 | I106: 0.990795699 | J106: 1 | K106: 276.49 | L106: 277.49 | M106: 276.28 | N106: 276.92 | O106: 79667500
A107: 92 | B107: 2019-03-11 | C107: 275.26001 | D107: 278.619995 | E107: 275.230011 | F107: 278.440002 | G107: 65098900 | H107: 275.877167 | I107: 0.990795737 | J107: 1 | K107: 272.73 | L107: 276.06 | M107: 272.7 | N107: 275.88 | O107: 65098900
A108: 93 | B108: 2019-03-08 | C108: 272.940002 | D108: 274.649994 | E108: 272.420013 | F108: 274.459991 | G108: 85795800 | H108: 271.933777 | I108: 0.9907956931 | J108: 1 | K108: 270.43 | L108: 272.12 | M108: 269.91 | N108: 271.93 | O108: 85795800
A109: 94 | B109: 2019-03-07 | C109: 276.829987 | D109: 276.98999 | E109: 274.070007 | F109: 275.01001 | G109: 94885100 | H109: 272.478729 | I109: 0.9907956769 | J109: 1 | K109: 274.28 | L109: 274.44 | M109: 271.55 | N109: 272.48 | O109: 94885100
A110: 95 | B110: 2019-03-06 | C110: 279.149994 | D110: 279.160004 | E110: 276.970001 | F110: 277.329987 | G110: 75039800 | H110: 274.777344 | I110: 0.9907956474 | J110: 1 | K110: 276.58 | L110: 276.59 | M110: 274.42 | N110: 274.78 | O110: 75039800
A111: 96 | B111: 2019-03-05 | C111: 279.540009 | D111: 279.76001 | E111: 278.410004 | F111: 279.019989 | G111: 59114600 | H111: 276.451813 | I111: 0.9907957275 | J111: 1 | K111: 276.97 | L111: 277.19 | M111: 275.85 | N111: 276.45 | O111: 59114600
A112: 97 | B112: 2019-03-04 | C112: 281.600006 | D112: 281.869995 | E112: 276.839996 | F112: 279.399994 | G112: 106494600 | H112: 276.828308 | I112: 0.9907956834 | J112: 1 | K112: 279.01 | L112: 279.28 | M112: 274.29 | N112: 276.83 | O112: 106494600
A113: 98 | B113: 2019-03-01 | C113: 280.440002 | D113: 280.880005 | E113: 278.820007 | F113: 280.420013 | G113: 78880500 | H113: 277.838928 | I113: 0.9907956462 | J113: 1 | K113: 277.86 | L113: 278.29 | M113: 276.25 | N113: 277.84 | O113: 78880500
A114: 99 | B114: 2019-02-28 | C114: 278.959991 | D114: 279.450012 | E114: 278.320007 | F114: 278.679993 | G114: 69268300 | H114: 276.114929 | I114: 0.990795665 | J114: 1 | K114: 276.39 | L114: 276.88 | M114: 275.76 | N114: 276.11 | O114: 69268300
A115: 100 | B115: 2019-02-27 | C115: 278.519989 | D115: 279.589996 | E115: 277.480011 | F115: 279.200012 | G115: 56921600 | H115: 276.630188 | I115: 0.9907957597 | J115: 1 | K115: 275.96 | L115: 277.02 | M115: 274.93 | N115: 276.63 | O115: 56921600
A116: 101 | B116: 2019-02-26 | C116: 279.130005 | D116: 280.299988 | E116: 278.899994 | F116: 279.320007 | G116: 56844100 | H116: 276.749054 | I116: 0.9907956719 | J116: 1 | K116: 276.56 | L116: 277.72 | M116: 276.33 | N116: 276.75 | O116: 56844100
A117: 102 | B117: 2019-02-25 | C117: 280.730011 | D117: 281.309998 | E117: 279.429993 | F117: 279.519989 | G117: 69030700 | H117: 276.947205 | I117: 0.9907957066 | J117: 1 | K117: 278.15 | L117: 278.72 | M117: 276.86 | N117: 276.95 | O117: 69030700
A118: 103 | B118: 2019-02-22 | C118: 278.109985 | D118: 279.359985 | E118: 277.399994 | F118: 279.140015 | G118: 78114600 | H118: 276.570709 | I118: 0.9907956371 | J118: 1 | K118: 275.55 | L118: 276.79 | M118: 274.85 | N118: 276.57 | O118: 78114600
A119: 104 | B119: 2019-02-21 | C119: 277.700012 | D119: 278.100006 | E119: 276.350006 | F119: 277.420013 | G119: 64214700 | H119: 274.866547 | I119: 0.9907956677 | J119: 1 | K119: 275.14 | L119: 275.54 | M119: 273.81 | N119: 274.87 | O119: 64214700
A120: 105 | B120: 2019-02-20 | C120: 277.809998 | D120: 278.920013 | E120: 277.25 | F120: 278.410004 | G120: 76610800 | H120: 275.847412 | I120: 0.9907956181 | J120: 1 | K120: 275.25 | L120: 276.35 | M120: 274.7 | N120: 275.85 | O120: 76610800
A121: 106 | B121: 2019-02-19 | C121: 276.480011 | D121: 278.579987 | E121: 276.470001 | F121: 277.850006 | G121: 59120800 | H121: 275.292603 | I121: 0.9907957425 | J121: 1 | K121: 273.94 | L121: 276.02 | M121: 273.93 | N121: 275.29 | O121: 59120800
A122: 107 | B122: 2019-02-15 | C122: 276.359985 | D122: 277.410004 | E122: 276.130005 | F122: 277.369995 | G122: 97088700 | H122: 274.817017 | I122: 0.9907957672 | J122: 1 | K122: 273.82 | L122: 274.86 | M122: 273.59 | N122: 274.82 | O122: 97088700
A123: 108 | B123: 2019-02-14 | C123: 273.779999 | D123: 275.640015 | E123: 272.869995 | F123: 274.380005 | G123: 83234400 | H123: 271.854523 | I123: 0.9907956777 | J123: 1 | K123: 271.26 | L123: 273.1 | M123: 270.36 | N123: 271.85 | O123: 83234400
A124: 109 | B124: 2019-02-13 | C124: 275.029999 | D124: 275.929993 | E124: 274.559998 | F124: 274.98999 | G124: 65277200 | H124: 272.458893 | I124: 0.9907956759 | J124: 1 | K124: 272.5 | L124: 273.39 | M124: 272.03 | N124: 272.46 | O124: 65277200
A125: 110 | B125: 2019-02-12 | C125: 272.420013 | D125: 274.519989 | E125: 272.339996 | F125: 274.100006 | G125: 72270200 | H125: 271.577118 | I125: 0.990795739 | J125: 1 | K125: 269.91 | L125: 271.99 | M125: 269.83 | N125: 271.58 | O125: 72270200
A126: 111 | B126: 2019-02-11 | C126: 271.200012 | D126: 271.48999 | E126: 270.029999 | F126: 270.619995 | G126: 68021400 | H126: 268.12912 | I126: 0.9907956727 | J126: 1 | K126: 268.7 | L126: 268.99 | M126: 267.54 | N126: 268.13 | O126: 68021400
A127: 112 | B127: 2019-02-08 | C127: 268.75 | D127: 270.579987 | E127: 267.829987 | F127: 270.470001 | G127: 75788900 | H127: 267.980499 | I127: 0.9907956447 | J127: 1 | K127: 266.28 | L127: 268.09 | M127: 265.36 | N127: 267.98 | O127: 75788900
A128: 113 | B128: 2019-02-07 | C128: 270.940002 | D128: 271.549988 | E128: 268.290009 | F128: 270.140015 | G128: 95482000 | H128: 267.653564 | I128: 0.9907956953 | J128: 1 | K128: 268.45 | L128: 269.05 | M128: 265.82 | N128: 267.65 | O128: 95482000
A129: 114 | B129: 2019-02-06 | C129: 272.790009 | D129: 273.339996 | E129: 271.920013 | F129: 272.73999 | G129: 58347800 | H129: 270.229614 | I129: 0.9907957172 | J129: 1 | K129: 270.28 | L129: 270.82 | M129: 269.42 | N129: 270.23 | O129: 58347800
A130: 115 | B130: 2019-02-05 | C130: 272.440002 | D130: 273.440002 | E130: 271.880005 | F130: 273.100006 | G130: 79552800 | H130: 270.586304 | I130: 0.9907956721 | J130: 1 | K130: 269.93 | L130: 270.92 | M130: 269.38 | N130: 270.59 | O130: 79552800
A131: 116 | B131: 2019-02-04 | C131: 270.109985 | D131: 272.029999 | E131: 269.359985 | F131: 271.959991 | G131: 60744800 | H131: 269.456787 | I131: 0.9907956902 | J131: 1 | K131: 267.62 | L131: 269.53 | M131: 266.88 | N131: 269.46 | O131: 60744800
A132: 117 | B132: 2019-02-01 | C132: 270.149994 | D132: 271.200012 | E132: 269.179993 | F132: 270.059998 | G132: 85782500 | H132: 267.57428 | I132: 0.9907956824 | J132: 1 | K132: 267.66 | L132: 268.7 | M132: 266.7 | N132: 267.57 | O132: 85782500
A133: 118 | B133: 2019-01-31 | C133: 267.51001 | D133: 270.470001 | E133: 267.269989 | F133: 269.929993 | G133: 104012100 | H133: 267.445465 | I133: 0.9907956579 | J133: 1 | K133: 265.05 | L133: 267.98 | M133: 264.81 | N133: 267.45 | O133: 104012100
A134: 119 | B134: 2019-01-30 | C134: 265.100006 | D134: 268.519989 | E134: 264.25 | F134: 267.579987 | G134: 92473700 | H134: 265.117096 | I134: 0.9907956831 | J134: 1 | K134: 262.66 | L134: 266.05 | M134: 261.82 | N134: 265.12 | O134: 92473700
A135: 120 | B135: 2019-01-29 | C135: 263.920013 | D135: 264.549988 | E135: 262.480011 | F135: 263.410004 | G135: 66136300 | H135: 260.985504 | I135: 0.9907957178 | J135: 1 | K135: 261.49 | L135: 262.11 | M135: 260.06 | N135: 260.99 | O135: 66136300
A136: 121 | B136: 2019-01-28 | C136: 263.390015 | D136: 263.829987 | E136: 261.790009 | F136: 263.76001 | G136: 85613700 | H136: 261.332275 | I136: 0.9907956669 | J136: 1 | K136: 260.97 | L136: 261.4 | M136: 259.38 | N136: 261.33 | O136: 85613700
A137: 122 | B137: 2019-01-25 | C137: 265.609985 | D137: 266.700012 | E137: 263.660004 | F137: 265.779999 | G137: 96883400 | H137: 263.333679 | I137: 0.9907956957 | J137: 1 | K137: 263.17 | L137: 264.25 | M137: 261.23 | N137: 263.33 | O137: 96883400
A138: 123 | B138: 2019-01-24 | C138: 263.209991 | D138: 264.200012 | E138: 262.079987 | F138: 263.549988 | G138: 59204100 | H138: 261.124207 | I138: 0.9907957461 | J138: 1 | K138: 260.79 | L138: 261.77 | M138: 259.67 | N138: 261.12 | O138: 59204100
A139: 124 | B139: 2019-01-23 | C139: 264.01001 | D139: 264.790009 | E139: 260.660004 | F139: 263.410004 | G139: 86030300 | H139: 260.985504 | I139: 0.9907957178 | J139: 1 | K139: 261.58 | L139: 262.35 | M139: 258.26 | N139: 260.99 | O139: 86030300
A140: 125 | B140: 2019-01-22 | C140: 264.820007 | D140: 265.059998 | E140: 261.059998 | F140: 262.859985 | G140: 115531200 | H140: 260.440552 | I140: 0.9907957348 | J140: 1 | K140: 262.38 | L140: 262.62 | M140: 258.66 | N140: 260.44 | O140: 115531200
A141: 126 | B141: 2019-01-18 | C141: 264.980011 | D141: 266.980011 | E141: 263 | F141: 266.459991 | G141: 127900300 | H141: 264.007385 | I141: 0.9907955938 | J141: 1 | K141: 262.54 | L141: 264.52 | M141: 260.58 | N141: 264.01 | O141: 127900300
A142: 127 | B142: 2019-01-17 | C142: 260.01001 | D142: 263.920013 | E142: 259.959991 | F142: 262.959991 | G142: 96118400 | H142: 260.539612 | I142: 0.9907956378 | J142: 1 | K142: 257.62 | L142: 261.49 | M142: 257.57 | N142: 260.54 | O142: 96118400
A143: 128 | B143: 2019-01-16 | C143: 260.829987 | D143: 261.970001 | E143: 260.600006 | F143: 260.980011 | G143: 77636700 | H143: 258.577881 | I143: 0.9907957319 | J143: 1 | K143: 258.43 | L143: 259.56 | M143: 258.2 | N143: 258.58 | O143: 77636700
A144: 129 | B144: 2019-01-15 | C144: 257.820007 | D144: 260.700012 | E144: 257.809998 | F144: 260.350006 | G144: 85208300 | H144: 257.953644 | I144: 0.9907956138 | J144: 1 | K144: 255.45 | L144: 258.3 | M144: 255.44 | N144: 257.95 | O144: 85208300
A145: 130 | B145: 2019-01-14 | C145: 256.859985 | D145: 258.299988 | E145: 256.410004 | F145: 257.399994 | G145: 70908200 | H145: 255.030792 | I145: =IF(F145=0,1,H145/F145) -> 0.9907956408 | J145: =INDEX(OFFSET($T$15,0,0,$S$13+1,1),MATCH(B145,OFFSET($Q$15,0,0,$S$13+1,1),-1)) -> 1 | K145: =ROUND($I145*C145,2) -> 254.5 | L145: =ROUND($I145*D145,2) -> 255.92 | M145: =ROUND($I145*E145,2) -> 254.05 | N145: =ROUND($I145*F145,2) -> 255.03 | O145: =G145*J145 -> 70908200
A146: 131 | B146: 2019-01-11 | C146: 257.679993 | D146: 259.01001 | E146: 257.029999 | F146: 258.980011 | G146: 73858100 | H146: 256.596252 | I146: 0.9907955869 | J146: 1 | K146: 255.31 | L146: 256.63 | M146: 254.66 | N146: 256.6 | O146: 73858100
A147: 132 | B147: 2019-01-10 | C147: 256.26001 | D147: 259.160004 | E147: 255.5 | F147: 258.880005 | G147: 96823900 | H147: 256.497192 | I147: 0.9907956854 | J147: 1 | K147: 253.9 | L147: 256.77 | M147: 253.15 | N147: 256.5 | O147: 96823900
A148: 133 | B148: 2019-01-09 | C148: 257.559998 | D148: 258.910004 | E148: 256.190002 | F148: 257.970001 | G148: 95006600 | H148: 255.595551 | I148: 0.9907956352 | J148: 1 | K148: 255.19 | L148: 256.53 | M148: 253.83 | N148: 255.6 | O148: 95006600
A149: 134 | B149: 2019-01-08 | C149: 256.820007 | D149: 257.309998 | E149: 254 | F149: 256.769989 | G149: 102512600 | H149: 254.406601 | I149: 0.9907957 | J149: 1 | K149: 254.46 | L149: 254.94 | M149: 251.66 | N149: 254.41 | O149: 102512600
A150: 135 | B150: 2019-01-07 | C150: 252.690002 | D150: 255.949997 | E150: 251.690002 | F150: 254.380005 | G150: 103139100 | H150: 252.03862 | I150: 0.9907957192 | J150: 1 | K150: 250.36 | L150: 253.59 | M150: 249.37 | N150: 252.04 | O150: 103139100
A151: 136 | B151: 2019-01-04 | C151: 247.589996 | D151: 253.110001 | E151: 247.169998 | F151: 252.389999 | G151: 142628800 | H151: 250.066925 | I151: 0.9907956971 | J151: 1 | K151: 245.31 | L151: 250.78 | M151: 244.89 | N151: 250.07 | O151: 142628800
A152: 137 | B152: 2019-01-03 | C152: 248.229996 | D152: 248.570007 | E152: 243.669998 | F152: 244.210007 | G152: 144140700 | H152: 241.962219 | I152: 0.9907956761 | J152: 1 | K152: 245.95 | L152: 246.28 | M152: 241.43 | N152: 241.96 | O152: 144140700
A153: 138 | B153: 2019-01-02 | C153: 245.979996 | D153: 251.210007 | E153: 245.949997 | F153: 250.179993 | G153: 126925200 | H153: 247.877258 | I153: 0.9907956868 | J153: 1 | K153: 243.72 | L153: 248.9 | M153: 243.69 | N153: 247.88 | O153: 126925200
A154: 139 | B154: 2018-12-31 | C154: 249.559998 | D154: 250.190002 | E154: 247.470001 | F154: 249.919998 | G154: 144299400 | H154: 247.619644 | I154: 0.9907956385 | J154: 1 | K154: 247.26 | L154: 247.89 | M154: 245.19 | N154: 247.62 | O154: 144299400
A155: 140 | B155: 2018-12-28 | C155: 249.580002 | D155: 251.399994 | E155: 246.449997 | F155: 247.75 | G155: 153100200 | H155: 245.469635 | I155: 0.9907957013 | J155: 1 | K155: 247.28 | L155: 249.09 | M155: 244.18 | N155: 245.47 | O155: 153100200
A156: 141 | B156: 2018-12-27 | C156: 242.570007 | D156: 248.289993 | E156: 238.960007 | F156: 248.070007 | G156: 186267300 | H156: 245.786697 | I156: 0.9907957031 | J156: 1 | K156: 240.34 | L156: 246 | M156: 236.76 | N156: 245.79 | O156: 186267300
A157: 142 | B157: 2018-12-26 | C157: 235.970001 | D157: 246.179993 | E157: 233.759995 | F157: 246.179993 | G157: 218485400 | H157: 243.914063 | I157: 0.9907956371 | J157: 1 | K157: 233.8 | L157: 243.91 | M157: 231.61 | N157: 243.91 | O157: 218485400
A158: 143 | B158: 2018-12-24 | C158: 239.039993 | D158: 240.839996 | E158: 234.270004 | F158: 234.339996 | G158: 147311600 | H158: 232.18306 | I158: 0.9907956984 | J158: 1 | K158: 236.84 | L158: 238.62 | M158: 232.11 | N158: 232.18 | O158: 147311600
A159: 144 | B159: 2018-12-21 | C159: 246.740005 | D159: 249.710007 | E159: 239.979996 | F159: 240.699997 | G159: 255345600 | H159: 238.484512 | I159: 0.9907956584 | J159: 1 | K159: 244.47 | L159: 247.41 | M159: 237.77 | N159: 238.48 | O159: 255345600
A160: 145 | B160: 2018-12-20 | C160: 249.860001 | D160: 251.619995 | E160: 244.649994 | F160: 247.169998 | G160: 252053400 | H160: 243.473175 | I160: 0.9850433992 | J160: 1 | K160: 246.12 | L160: 247.86 | M160: 240.99 | N160: 243.47 | O160: 252053400
A161: 146 | B161: 2018-12-19 | C161: 255.169998 | D161: 259.399994 | E161: 249.350006 | F161: 251.259995 | G161: 214992800 | H161: 247.501999 | I161: 0.985043397 | J161: 1 | K161: 251.35 | L161: 255.52 | M161: 245.62 | N161: 247.5 | O161: 214992800
A162: 147 | B162: 2018-12-18 | C162: 257.200012 | D162: 257.950012 | E162: 253.279999 | F162: 255.080002 | G162: 134515100 | H162: 251.264862 | I162: 0.9850433591 | J162: 1 | K162: 253.35 | L162: 254.09 | M162: 249.49 | N162: 251.26 | O162: 134515100
A163: 148 | B163: 2018-12-17 | C163: 259.399994 | D163: 260.649994 | E163: 253.529999 | F163: 255.360001 | G163: 165492300 | H163: 251.54068 | I163: 0.9850433859 | J163: 1 | K163: 255.52 | L163: 256.75 | M163: 249.74 | N163: 251.54 | O163: 165492300
A164: 149 | B164: 2018-12-14 | C164: 262.959991 | D164: 264.029999 | E164: 259.850006 | F164: 260.470001 | G164: 116961100 | H164: 256.574249 | I164: 0.9850433755 | J164: 1 | K164: 259.03 | L164: 260.08 | M164: 255.96 | N164: 256.57 | O164: 116961100
A165: 150 | B165: 2018-12-13 | C165: 266.519989 | D165: 267.48999 | E165: 264.119995 | F165: 265.369995 | G165: 96662700 | H165: 261.40094 | I165: 0.9850433166 | J165: 1 | K165: 262.53 | L165: 263.49 | M165: 260.17 | N165: 261.4 | O165: 96662700
A166: 151 | B166: 2018-12-12 | C166: 267.470001 | D166: 269 | E166: 265.369995 | F166: 265.459991 | G166: 97976700 | H166: 261.489624 | I166: 0.9850434448 | J166: 1 | K166: 263.47 | L166: 264.98 | M166: 261.4 | N166: 261.49 | O166: 97976700
A167: 152 | B167: 2018-12-11 | C167: 267.660004 | D167: 267.869995 | E167: 262.480011 | F167: 264.130005 | G167: 121504400 | H167: 260.179504 | I167: 0.9850433464 | J167: 1 | K167: 263.66 | L167: 263.86 | M167: 258.55 | N167: 260.18 | O167: 121504400
A168: 153 | B168: 2018-12-10 | C168: 263.369995 | D168: 265.160004 | E168: 258.619995 | F168: 264.070007 | G168: 151445900 | H168: 260.120422 | I168: 0.9850434169 | J168: 1 | K168: 259.43 | L168: 261.19 | M168: 254.75 | N168: 260.12 | O168: 151445900
A169: 154 | B169: 2018-12-07 | C169: 269.459991 | D169: 271.220001 | E169: 262.630005 | F169: 263.570007 | G169: 161018900 | H169: 259.627899 | I169: 0.985043412 | J169: 1 | K169: 265.43 | L169: 267.16 | M169: 258.7 | N169: 259.63 | O169: 161018900
A170: 155 | B170: 2018-12-06 | C170: 265.920013 | D170: 269.970001 | E170: 262.440002 | F170: 269.839996 | G170: 204185400 | H170: 265.804108 | I170: 0.9850434033 | J170: 1 | K170: 261.94 | L170: 265.93 | M170: 258.51 | N170: 265.8 | O170: 204185400
A171: 156 | B171: 2018-12-04 | C171: 278.369995 | D171: 278.850006 | E171: 269.899994 | F171: 270.25 | G171: 177986000 | H171: 266.207977 | I171: 0.9850433932 | J171: 1 | K171: 274.21 | L171: 274.68 | M171: 265.86 | N171: 266.21 | O171: 177986000
A172: 157 | B172: 2018-12-03 | C172: 280.279999 | D172: 280.399994 | E172: 277.51001 | F172: 279.299988 | G172: 103176300 | H172: 275.122589 | I172: 0.9850433255 | J172: 1 | K172: 276.09 | L172: 276.21 | M172: 273.36 | N172: 275.12 | O172: 103176300
A173: 158 | B173: 2018-11-30 | C173: 273.809998 | D173: 276.279999 | E173: 273.450012 | F173: 275.649994 | G173: 98204200 | H173: 271.527222 | I173: 0.9850434533 | J173: 1 | K173: 269.71 | L173: 272.15 | M173: 269.36 | N173: 271.53 | O173: 98204200
A174: 159 | B174: 2018-11-29 | C174: 273.709991 | D174: 275.549988 | E174: 272.429993 | F174: 273.980011 | G174: 82346400 | H174: 269.882172 | I174: 0.9850432921 | J174: 1 | K174: 269.62 | L174: 271.43 | M174: 268.36 | N174: 269.88 | O174: 82346400
A175: 160 | B175: 2018-11-28 | C175: 269.600006 | D175: 274.579987 | E175: 268.329987 | F175: 274.579987 | G175: 127629600 | H175: 270.473206 | I175: 0.9850434074 | J175: 1 | K175: 265.57 | L175: 270.47 | M175: 264.32 | N175: 270.47 | O175: 127629600
A176: 161 | B176: 2018-11-27 | C176: 266.339996 | D176: 268.399994 | E176: 265.660004 | F176: 268.399994 | G176: 75502400 | H176: 264.385651 | I176: 0.9850434311 | J176: 1 | K176: 262.36 | L176: 264.39 | M176: 261.69 | N176: 264.39 | O176: 75502400
A177: 162 | B177: 2018-11-26 | C177: 265.779999 | D177: 267.75 | E177: 265.339996 | F177: 267.5 | G177: 79981400 | H177: 263.499084 | I177: 0.9850433047 | J177: 1 | K177: 261.8 | L177: 263.75 | M177: 261.37 | N177: 263.5 | O177: 79981400
A178: 163 | B178: 2018-11-23 | C178: 263.179993 | D178: 264.820007 | E178: 263.070007 | F178: 263.25 | G178: 42807900 | H178: 259.312683 | I178: 0.9850434302 | J178: 1 | K178: 259.24 | L178: 260.86 | M178: 259.14 | N178: 259.31 | O178: 42807900
A179: 164 | B179: 2018-11-21 | C179: 265.859985 | D179: 267.149994 | E179: 265.01001 | F179: 265.019989 | G179: 75563700 | H179: 261.056183 | I179: 0.9850433697 | J179: 1 | K179: 261.88 | L179: 263.15 | M179: 261.05 | N179: 261.06 | O179: 75563700
A180: 165 | B180: 2018-11-20 | C180: 265.359985 | D180: 267 | E180: 263.149994 | F180: 264.119995 | G180: 136021300 | H180: 260.169647 | I180: 0.9850433588 | J180: 1 | K180: 261.39 | L180: 263.01 | M180: 259.21 | N180: 260.17 | O180: 136021300
A181: 166 | B181: 2018-11-19 | C181: 273.049988 | D181: 273.380005 | E181: 268.070007 | F181: 269.100006 | G181: 103061700 | H181: 265.075195 | I181: 0.9850434377 | J181: 1 | K181: 268.97 | L181: 269.29 | M181: 264.06 | N181: 265.08 | O181: 103061700
A182: 167 | B182: 2018-11-16 | C182: 271.790009 | D182: 274.75 | E182: 271.209991 | F182: 273.730011 | G182: 126668000 | H182: 269.635925 | I182: 0.9850433426 | J182: 1 | K182: 267.72 | L182: 270.64 | M182: 267.15 | N182: 269.64 | O182: 126668000
A183: 168 | B183: 2018-11-15 | C183: 268.779999 | D183: 273.540009 | E183: 267.01001 | F183: 273.019989 | G183: 135101400 | H183: 268.936523 | I183: 0.9850433442 | J183: 1 | K183: 264.76 | L183: 269.45 | M183: 263.02 | N183: 268.94 | O183: 135101400
A184: 169 | B184: 2018-11-14 | C184: 274.160004 | D184: 274.609985 | E184: 268.450012 | F184: 270.200012 | G184: 125335900 | H184: 266.158722 | I184: 0.9850433389 | J184: 1 | K184: 270.06 | L184: 270.5 | M184: 264.43 | N184: 266.16 | O184: 125335900
A185: 170 | B185: 2018-11-13 | C185: 273.089996 | D185: 275.329987 | E185: 271.25 | F185: 272.059998 | G185: 98176600 | H185: 267.990906 | I185: 0.9850434021 | J185: 1 | K185: 269.01 | L185: 271.21 | M185: 267.19 | N185: 267.99 | O185: 98176600
A186: 171 | B186: 2018-11-12 | C186: 277.190002 | D186: 277.459991 | E186: 271.98999 | F186: 272.570007 | G186: 99673600 | H186: 268.493286 | I186: 0.9850433984 | J186: 1 | K186: 273.04 | L186: 273.31 | M186: 267.92 | N186: 268.49 | O186: 99673600
A187: 172 | B187: 2018-11-09 | C187: 279.029999 | D187: 279.23999 | E187: 276.179993 | F187: 277.76001 | G187: 98812600 | H187: 273.605652 | I187: 0.9850433545 | J187: 1 | K187: 274.86 | L187: 275.06 | M187: 272.05 | N187: 273.61 | O187: 98812600
A188: 173 | B188: 2018-11-08 | C188: 280.109985 | D188: 281.220001 | E188: 279.220001 | F188: 280.5 | G188: 65584900 | H188: 276.304688 | I188: 0.985043451 | J188: 1 | K188: 275.92 | L188: 277.01 | M188: 275.04 | N188: 276.3 | O188: 65584900
A189: 174 | B189: 2018-11-07 | C189: 277.559998 | D189: 281.100006 | E189: 277.079987 | F189: 281.01001 | G189: 102752100 | H189: 276.807037 | I189: 0.9850433335 | J189: 1 | K189: 273.41 | L189: 276.9 | M189: 272.94 | N189: 276.81 | O189: 102752100
A190: 175 | B190: 2018-11-06 | C190: 273.320007 | D190: 275.299988 | E190: 273.25 | F190: 275.119995 | G190: 60085900 | H190: 271.005127 | I190: 0.9850433699 | J190: 1 | K190: 269.23 | L190: 271.18 | M190: 269.16 | N190: 271.01 | O190: 60085900
A191: 176 | B191: 2018-11-05 | C191: 272.440002 | D191: 274.01001 | E191: 271.350006 | F191: 273.390015 | G191: 65622500 | H191: 269.301056 | I191: 0.9850434955 | J191: 1 | K191: 268.37 | L191: 269.91 | M191: 267.29 | N191: 269.3 | O191: 65622500
A192: 177 | B192: 2018-11-02 | C192: 274.75 | D192: 275.230011 | E192: 269.589996 | F192: 271.890015 | G192: 122634100 | H192: 267.823456 | I192: 0.9850433676 | J192: 1 | K192: 270.64 | L192: 271.11 | M192: 265.56 | N192: 267.82 | O192: 122634100
A193: 178 | B193: 2018-11-01 | C193: 271.600006 | D193: 273.730011 | E193: 270.380005 | F193: 273.51001 | G193: 99495000 | H193: 269.41922 | I193: 0.9850433628 | J193: 1 | K193: 267.54 | L193: 269.64 | M193: 266.34 | N193: 269.42 | O193: 99495000
A194: 179 | B194: 2018-10-31 | C194: 270.649994 | D194: 273.230011 | E194: 270.119995 | F194: 270.630005 | G194: 128296300 | H194: 266.582306 | I194: 0.9850434212 | J194: 1 | K194: 266.6 | L194: 269.14 | M194: 266.08 | N194: 266.58 | O194: 128296300
A195: 180 | B195: 2018-10-30 | C195: 263.670013 | D195: 268.119995 | E195: 263.119995 | F195: 267.769989 | G195: 157116000 | H195: 263.765076 | I195: 0.9850434583 | J195: 1 | K195: 259.73 | L195: 264.11 | M195: 259.18 | N195: 263.77 | O195: 157116000
A196: 181 | B196: 2018-10-29 | C196: 268.799988 | D196: 270.25 | E196: 259.850006 | F196: 263.859985 | G196: 160749100 | H196: 259.913544 | I196: 0.9850434275 | J196: 1 | K196: 264.78 | L196: 266.21 | M196: 255.96 | N196: 259.91 | O196: 160749100
A197: 182 | B197: 2018-10-26 | C197: 265.920013 | D197: 271 | E197: 262.290009 | F197: 265.329987 | G197: 201574600 | H197: 261.361542 | I197: 0.9850433604 | J197: 1 | K197: 261.94 | L197: 266.95 | M197: 258.37 | N197: 261.36 | O197: 201574600
A198: 183 | B198: 2018-10-25 | C198: 267.380005 | D198: 271.809998 | E198: 266.230011 | F198: 270.079987 | G198: 138061500 | H198: 266.040497 | I198: 0.9850433568 | J198: 1 | K198: 263.38 | L198: 267.74 | M198: 262.25 | N198: 266.04 | O198: 138061500
A199: 184 | B199: 2018-10-24 | C199: 273.329987 | D199: 273.76001 | E199: 264.700012 | F199: 265.320007 | G199: 177806700 | H199: 261.351746 | I199: 0.9850434913 | J199: 1 | K199: 269.24 | L199: 269.67 | M199: 260.74 | N199: 261.35 | O199: 177806700
A200: 185 | B200: 2018-10-23 | C200: 270.950012 | D200: 274.869995 | E200: 268.609985 | F200: 273.609985 | G200: 146352700 | H200: 269.5177 | I200: 0.9850433638 | J200: 1 | K200: 266.9 | L200: 270.76 | M200: 264.59 | N200: 269.52 | O200: 146352700
... 5236 more rows

Sheet MonthlyInputPriceData
A1: SPDR S&P 500 ETF (SPY) -NYSEArca (Monthly)
IJ2: 241.79
A3: Request Online Yahoo History for: | F3: Market State == > | G3: At close: | H3: 16:00:00 | I3: EDT
A4: Symbol | B4: spy | D4: Valid | I4: =OFFSET(I4,-2,0,1,1) -> 0
A5: From | B5: 1998-01-01 | D5: Data | AD5: Trailing 12 Div return (Cur Close)
A6: To | B6: =NOW() -> 2019-07-22T17:32:02.570 | D6: Types | E6: =VLOOKUP(B7,D7:E10,2,FALSE) -> m
A7: Data Type | B7: Monthly | D7: Daily | E7: d
A8: Crumb | B8: 8NYHZGlZBBr | D8: Weekly | E8: w
A9: Available Data | D9: Monthly | E9: m
A10: Bar Count: | B10: 260 | E10: Available Full Years | AD10: =OFFSET(AC15,1,0,1,1)/OFFSET(N15,1,0,1,1) -> 0.01824881381
A11: From: | B11: =IF(B10<=0,"",OFFSET(B15,B10,IF(HistReqDataType="v",1,0),1,1)) -> 1998-01-01 | E11: From: | F11: =IF(B10<=0,"",IF(MONTH(B11)=1,0,1)+YEAR(B11)) -> 1998 | W11: Trailing 12 Month Dividend Returns
A12: To: | B12: =IF(B10<=0,"",IF(HistReqDataType="v",OFFSET(B15,2,1,1,1),OFFSET(B15,1,0,1,1))) -> 2019-07-19 | E12: To: | F12: =IF(B10<=0,"",IF(MONTH(B12)=12,0,-1)+YEAR(B12)) -> 2018 | W12: Raw Close price on Dividend date | X12: Div Year and Month | Y12: Looking for year ago Div Year and Month | Z12: Year ago Div Date we found | AA12: row offset to year ago div Date | AB12: Same month flag | AC12: Trailing 12 Div Total | AD12: Trailing 12 Div return
Q13: Split History | S13: 0 | T13: Running | U13: Dividend History
B14: Raw Data Values | H14: Adjusted | I14: Price Adjust | J14: Vol Adjust | K14: Adjusted Values | P14: Last | Q14: Effective | R14: Shares | T14: Vol Adjust | V14: 89
A15: RelRow | B15: Date | C15: Open | D15: High | E15: Low | F15: Close | G15: Volume | H15: Close | I15: Factor | J15: Factor | K15: Open | L15: High | M15: Low | N15: Close | O15: Volume | P15: Trade | Q15: 43668 | R15: New | S15: Old | T15: 1 | U15: Date | V15: $ / Share
A16: 1 | B16: 2019-07-19 | C16: 300.040009 | D16: 300.065002 | E16: 296.980011 | F16: 297.170013 | G16: 71081238 | H16: 297.170013 | I16: =IF(F16=0,1,H16/F16) -> 1 | J16: =INDEX(OFFSET($T$15,0,0,$S$13+1,1),MATCH(B16,OFFSET($Q$15,0,0,$S$13+1,1),-1)) -> 1 | K16: =ROUND($I16*C16,2) -> 300.04 | L16: =ROUND($I16*D16,2) -> 300.07 | M16: 296.98 | N16: 297.17 | O16: =G16*J16 -> 71081238 | U16: 2019-06-21 | V16: 1.432 | W16: =(INDEX(OFFSET($F$15,1,0,$B$10,1),MATCH(U16,OFFSET($B$15,1,0,$B$10,1),-1))) -> 297.170013 | X16: =YEAR(U16)&RIGHT("0"&MONTH(U16),2) -> 201906 | Y16: =YEAR(U16)-1&RIGHT("0"&MONTH(U16),2) -> 201806 | Z16: =OFFSET(U15,AA16,0,1,1) -> 2018-06-15 | AA16: =MATCH(Y16,OFFSET($X$15,A16,0,$V$14+1-A16,1),-1) -> 5 | AB16: =IF(OR(AND(YEAR(U16)=YEAR(Z16),MONTH(U16)=MONTH(Z16)),MONTH(U16)=MONTH(Z16)),1,0) -> 1 | AC16: =(V16+IF(AA16-AB16=0,0,IFERROR(SUM(OFFSET(V16,1,0,AA16-AB16-1,1)),0))) -> 5.423 | AD16: =AC16/(INDEX(OFFSET($F$15,1,0,$B$10,1),MATCH(U16,OFFSET($B$15,1,0,$B$10,1),-1))) -> 0.01824881301
A17: 2 | B17: 2019-07-01 | C17: 296.679993 | D17: 301.130005 | E17: 294.329987 | F17: 297.170013 | G17: 686389500 | H17: 297.170013 | I17: =IF(F17=0,1,H17/F17) -> 1 | J17: =INDEX(OFFSET($T$15,0,0,$S$13+1,1),MATCH(B17,OFFSET($Q$15,0,0,$S$13+1,1),-1)) -> 1 | K17: =ROUND($I17*C17,2) -> 296.68 | L17: =ROUND($I17*D17,2) -> 301.13 | M17: =ROUND($I17*E17,2) -> 294.33 | N17: =ROUND($I17*F17,2) -> 297.17 | O17: =G17*J17 -> 686389500 | U17: 2019-03-15 | V17: 1.233 | W17: =(INDEX(OFFSET($F$15,1,0,$B$10,1),MATCH(U17,OFFSET($B$15,1,0,$B$10,1),-1))) -> 294.019989 | X17: =YEAR(U17)&RIGHT("0"&MONTH(U17),2) -> 201903 | Y17: =YEAR(U17)-1&RIGHT("0"&MONTH(U17),2) -> 201803 | Z17: =OFFSET(U16,AA17,0,1,1) -> 2018-03-16 | AA17: =MATCH(Y17,OFFSET($X$15,A17,0,$V$14+1-A17,1),-1) -> 5 | AB17: =IF(OR(AND(YEAR(U17)=YEAR(Z17),MONTH(U17)=MONTH(Z17)),MONTH(U17)=MONTH(Z17)),1,0) -> 1 | AC17: =(V17+IF(AA17-AB17=0,0,IFERROR(SUM(OFFSET(V17,1,0,AA17-AB17-1,1)),0))) -> 5.237 | AD17: =AC17/(INDEX(OFFSET($F$15,1,0,$B$10,1),MATCH(U17,OFFSET($B$15,1,0,$B$10,1),-1))) -> 0.01781171416
A18: 3 | B18: 2019-06-01 | C18: 275.309998 | D18: 296.309998 | E18: 273.089996 | F18: 293 | G18: 1340435600 | H18: 291.581848 | I18: 0.9951598908 | J18: 1 | K18: 273.98 | L18: 294.88 | M18: 271.77 | N18: 291.58 | O18: 1340435600 | U18: 2018-12-21 | V18: 1.435 | W18: 269.929993 | X18: 201812 | Y18: 201712 | Z18: 2017-12-15 | AA18: 5 | AB18: 1 | AC18: 5.101 | AD18: 0.01889749243
A19: 4 | B19: 2019-05-01 | C19: 294.720001 | D19: 294.950012 | E19: 275.23999 | F19: 275.269989 | G19: 1845593200 | H19: 273.937653 | I19: 0.9951598937 | J19: 1 | K19: 293.29 | L19: 293.52 | M19: 273.91 | N19: 273.94 | O19: 1845593200 | U19: 2018-09-21 | V19: 1.323 | W19: 270.630005 | X19: 201809 | Y19: 201709 | Z19: 2017-09-15 | AA19: 5 | AB19: 1 | AC19: 5.017 | AD19: 0.01853822528
A20: 5 | B20: 2019-04-01 | C20: 284.700012 | D20: 294.450012 | E20: 284.399994 | F20: 294.019989 | G20: 1209204700 | H20: 292.596893 | I20: 0.9951598665 | J20: 1 | K20: 283.32 | L20: 293.02 | M20: 283.02 | N20: 292.6 | O20: 1209204700 | U20: 2018-06-15 | V20: 1.246 | W20: 281.329987 | X20: 201806 | Y20: 201706 | Z20: 2017-06-16 | AA20: 5 | AB20: 1 | AC20: 4.929 | AD20: 0.01752035058
A21: 6 | B21: 2019-03-01 | C21: 280.440002 | D21: 285.179993 | E21: 272.420013 | F21: 282.480011 | G21: 1678081300 | H21: 279.879974 | I21: 0.9907956779 | J21: 1 | K21: 277.86 | L21: 282.56 | M21: 269.91 | N21: 279.88 | O21: 1678081300 | U21: 2018-03-16 | V21: 1.097 | W21: 264.51001 | X21: 201803 | Y21: 201703 | Z21: 2017-03-17 | AA21: 5 | AB21: 1 | AC21: 4.866 | AD21: 0.01839627922
A22: 7 | B22: 2019-02-01 | C22: 270.149994 | D22: 281.309998 | E22: 267.829987 | F22: 278.679993 | G22: 1371716300 | H22: 276.114929 | I22: 0.990795665 | J22: 1 | K22: 267.66 | L22: 278.72 | M22: 265.36 | N22: 276.11 | O22: 1371716300 | U22: 2017-12-15 | V22: 1.351 | W22: 281.899994 | X22: 201712 | Y22: 201612 | Z22: 2016-12-16 | AA22: 5 | AB22: 1 | AC22: 4.802 | AD22: 0.01703440973
A23: 8 | B23: 2019-01-01 | C23: 245.979996 | D23: 270.470001 | E23: 243.669998 | F23: 269.929993 | G23: 2048691700 | H23: 267.445465 | I23: 0.9907956579 | J23: 1 | K23: 243.72 | L23: 267.98 | M23: 241.43 | N23: 267.45 | O23: 2048691700 | U23: 2017-09-15 | V23: 1.235 | W23: 257.149994 | X23: 201709 | Y23: 201609 | Z23: 2016-09-16 | AA23: 5 | AB23: 1 | AC23: 4.78 | AD23: 0.01858837298
A24: 9 | B24: 2018-12-01 | C24: 280.279999 | D24: 280.399994 | E24: 233.759995 | F24: 249.919998 | G24: 3102780500 | H24: 246.182022 | I24: 0.9850433097 | J24: 1 | K24: 276.09 | L24: 276.21 | M24: 230.26 | N24: 246.18 | O24: 3102780500 | U24: 2017-06-16 | V24: 1.183 | W24: 246.770004 | X24: 201706 | Y24: 201606 | Z24: 2016-06-17 | AA24: 5 | AB24: 1 | AC24: 4.627 | AD24: 0.01875025297
A25: 10 | B25: 2018-11-01 | C25: 271.600006 | D25: 281.220001 | E25: 263.070007 | F25: 275.649994 | G25: 2021061200 | H25: 271.527222 | I25: 0.9850434533 | J25: 1 | K25: 267.54 | L25: 277.01 | M25: 259.14 | N25: 271.53 | O25: 2021061200 | U25: 2017-03-17 | V25: 1.033 | W25: 238.080002 | X25: 201703 | Y25: 201603 | Z25: 2016-03-18 | AA25: 5 | AB25: 1 | AC25: 4.522 | AD25: 0.01899361543
A26: 11 | B26: 2018-10-01 | C26: 292.109985 | D26: 293.209991 | E26: 259.850006 | F26: 270.630005 | G26: 3024345800 | H26: 266.582306 | I26: 0.9850434212 | J26: 1 | K26: 287.74 | L26: 288.82 | M26: 255.96 | N26: 266.58 | O26: 3024345800 | U26: 2016-12-16 | V26: 1.329 | W26: 227.529999 | X26: 201612 | Y26: 201512 | Z26: 2015-12-18 | AA26: 5 | AB26: 1 | AC26: 4.539 | AD26: 0.0199490178
A27: 12 | B27: 2018-09-01 | C27: 289.839996 | D27: 293.940002 | E27: 286.709991 | F27: 290.720001 | G27: 1228103300 | H27: 285.081329 | I27: 0.980604458 | J27: 1 | K27: 284.22 | L27: 288.24 | M27: 281.15 | N27: 285.08 | O27: 1228103300 | U27: 2016-09-16 | V27: 1.082 | W27: 212.550003 | X27: 201609 | Y27: 201509 | Z27: 2015-09-18 | AA27: 5 | AB27: 1 | AC27: 4.422 | AD27: 0.02080451629
A28: 13 | B28: 2018-08-01 | C28: 281.559998 | D28: 291.73999 | E28: 279.160004 | F28: 290.309998 | G28: 1308443700 | H28: 284.67926 | I28: 0.9806043952 | J28: 1 | K28: 276.1 | L28: 286.08 | M28: 273.75 | N28: 284.68 | O28: 1308443700 | U28: 2016-06-17 | V28: 1.078 | W28: 217.119995 | X28: 201606 | Y28: 201506 | Z28: 2015-06-19 | AA28: 5 | AB28: 1 | AC28: 4.373 | AD28: 0.02014093635
A29: 14 | B29: 2018-07-01 | C29: 269.51001 | D29: 284.369995 | E29: 269.23999 | F29: 281.329987 | G29: 1266892500 | H29: 275.873383 | I29: 0.9806042574 | J29: 1 | K29: 264.28 | L29: 278.85 | M29: 264.02 | N29: 275.87 | O29: 1266892500 | U29: 2016-03-18 | V29: 1.05 | W29: 206.330002 | X29: 201603 | Y29: 201503 | Z29: 2015-03-20 | AA29: 5 | AB29: 1 | AC29: 4.325 | AD29: 0.02096156622
A30: 15 | B30: 2018-06-01 | C30: 272.410004 | D30: 279.480011 | E30: 268.48999 | F30: 271.279999 | G30: 1599001000 | H30: 264.829163 | I30: 0.976220746 | J30: 1 | K30: 265.93 | L30: 272.83 | M30: 262.11 | N30: 264.83 | O30: 1599001000 | U30: 2015-12-18 | V30: 1.212 | W30: 193.720001 | X30: 201512 | Y30: 201412 | Z30: 2014-12-19 | AA30: 5 | AB30: 1 | AC30: 4.206 | AD30: 0.0217117488
A31: 16 | B31: 2018-05-01 | C31: 263.869995 | D31: 274.25 | E31: 259.049988 | F31: 270.940002 | G31: 1606397200 | H31: 264.497223 | I31: 0.9762206431 | J31: 1 | K31: 257.6 | L31: 267.73 | M31: 252.89 | N31: 264.5 | O31: 1606397200 | U31: 2015-09-18 | V31: 1.033 | W31: 208.889999 | X31: 201509 | Y31: 201409 | Z31: 2014-09-19 | AA31: 5 | AB31: 1 | AC31: 4.129 | AD31: 0.01976638432
A32: 17 | B32: 2018-04-01 | C32: 262.549988 | D32: 271.299988 | E32: 254.669998 | F32: 264.51001 | G32: 1998466500 | H32: 258.220184 | I32: 0.9762208394 | J32: 1 | K32: 256.31 | L32: 264.85 | M32: 248.61 | N32: 258.22 | O32: 1998466500 | U32: 2015-06-19 | V32: 1.03 | W32: 210.5 | X32: 201506 | Y32: 201406 | Z32: 2014-06-20 | AA32: 5 | AB32: 1 | AC32: 4.035 | AD32: 0.01916864608
A33: 18 | B33: 2018-03-01 | C33: 271.410004 | D33: 280.410004 | E33: 257.829987 | F33: 263.149994 | G33: 2323561800 | H33: 255.867722 | I33: 0.9723265356 | J33: 1 | K33: 263.9 | L33: 272.65 | M33: 250.69 | N33: 255.87 | O33: 2323561800 | U33: 2015-03-20 | V33: 0.931 | W33: 208.460007 | X33: 201503 | Y33: 201403 | Z33: 2014-03-21 | AA33: 5 | AB33: 1 | AC33: 3.942 | AD33: 0.01891010202
A34: 19 | B34: 2018-02-01 | C34: 281.070007 | D34: 283.059998 | E34: 252.919998 | F34: 271.649994 | G34: 2923722000 | H34: 264.132507 | I34: 0.9723265703 | J34: 1 | K34: 273.29 | L34: 275.23 | M34: 245.92 | N34: 264.13 | O34: 2923722000 | U34: 2014-12-19 | V34: 1.135 | W34: 199.449997 | X34: 201412 | Y34: 201312 | Z34: 2013-12-20 | AA34: 5 | AB34: 1 | AC34: 3.836 | AD34: 0.01923289074
A35: 20 | B35: 2018-01-01 | C35: 267.839996 | D35: 286.630005 | E35: 267.399994 | F35: 281.899994 | G35: 1985506700 | H35: 274.098877 | I35: 0.9723266507 | J35: 1 | K35: 260.43 | L35: 278.7 | M35: 260 | N35: 274.1 | O35: 1985506700 | U35: 2014-09-19 | V35: 0.939 | W35: 201.660004 | X35: 201409 | Y35: 201309 | Z35: 2013-09-20 | AA35: 5 | AB35: 1 | AC35: 3.681 | AD35: 0.01825349562
A36: 21 | B36: 2017-12-01 | C36: 264.76001 | D36: 268.600006 | E36: 260.76001 | F36: 266.859985 | G36: 1715222900 | H36: 258.155518 | I36: 0.967381895 | J36: 1 | K36: 256.12 | L36: 259.84 | M36: 252.25 | N36: 258.16 | O36: 1715222900 | U36: 2014-06-20 | V36: 0.937 | W36: 193.089996 | X36: 201406 | Y36: 201306 | Z36: 2013-06-21 | AA36: 5 | AB36: 1 | AC36: 3.58 | AD36: 0.01854057732
A37: 22 | B37: 2017-11-01 | C37: 258.040009 | D37: 266.049988 | E37: 255.630005 | F37: 265.01001 | G37: 1365620900 | H37: 256.365875 | I37: 0.9673818547 | J37: 1 | K37: 249.62 | L37: 257.37 | M37: 247.29 | N37: 256.37 | O37: 1365620900 | U37: 2014-03-21 | V37: 0.825 | W37: 188.309998 | X37: 201403 | Y37: 201303 | Z37: 2013-03-15 | AA37: 5 | AB37: 1 | AC37: 3.482 | AD37: 0.01849078667
A38: 23 | B38: 2017-10-01 | C38: 251.490005 | D38: 257.890015 | E38: 251.289993 | F38: 257.149994 | G38: 1320624600 | H38: 248.762222 | I38: 0.967381792 | J38: 1 | K38: 243.29 | L38: 249.48 | M38: 243.09 | N38: 248.76 | O38: 1320624600 | U38: 2013-12-20 | V38: 0.98 | W38: 178.179993 | X38: 201312 | Y38: 201212 | Z38: 2012-12-21 | AA38: 5 | AB38: 1 | AC38: 3.351 | AD38: 0.0188068253
A39: 24 | B39: 2017-09-01 | C39: 247.919998 | D39: 251.320007 | E39: 244.949997 | F39: 251.229996 | G39: 1286405100 | H39: 241.835159 | I39: 0.9626046366 | J39: 1 | K39: 238.65 | L39: 241.92 | M39: 235.79 | N39: 241.84 | O39: 1286405100 | U39: 2013-09-20 | V39: 0.838 | W39: 175.789993 | X39: 201309 | Y39: 201209 | Z39: 2012-09-21 | AA39: 5 | AB39: 1 | AC39: 3.393 | AD39: 0.01930143999
A40: 25 | B40: 2017-08-01 | C40: 247.460007 | D40: 248.910004 | E40: 241.830002 | F40: 247.490005 | G40: 1557031500 | H40: 238.235031 | I40: 0.9626046555 | J40: 1 | K40: 238.21 | L40: 239.6 | M40: 232.79 | N40: 238.24 | O40: 1557031500 | U40: 2013-06-21 | V40: 0.839 | W40: 168.710007 | X40: 201306 | Y40: 201206 | Z40: 2012-06-15 | AA40: 5 | AB40: 1 | AC40: 3.334 | AD40: 0.01976172048
A41: 26 | B41: 2017-07-01 | C41: 242.880005 | D41: 248 | E41: 240.339996 | F41: 246.770004 | G41: 1055908800 | H41: 237.541946 | I41: 0.9626046203 | J41: 1 | K41: 233.8 | L41: 238.73 | M41: 231.35 | N41: 237.54 | O41: 1055908800 | U41: 2013-03-15 | V41: 0.694 | W41: 159.679993 | X41: 201303 | Y41: 201203 | Z41: 2012-03-16 | AA41: 5 | AB41: 1 | AC41: 3.183 | AD41: 0.01993361811
A42: 27 | B42: 2017-06-01 | C42: 241.970001 | D42: 245.009995 | E42: 239.960007 | F42: 241.800003 | G42: 1572753000 | H42: 231.628265 | I42: 0.9579332594 | J42: 1 | K42: 231.79 | L42: 234.7 | M42: 229.87 | N42: 231.63 | O42: 1572753000 | U42: 2012-12-21 | V42: 1.022 | W42: 149.699997 | X42: 201212 | Y42: 201112 | Z42: 2011-12-16 | AA42: 5 | AB42: 1 | AC42: 3.103 | AD42: 0.02072812333
A43: 28 | B43: 2017-05-01 | C43: 238.679993 | D43: 242.080002 | E43: 235.429993 | F43: 241.440002 | G43: 1492547000 | H43: 231.283386 | I43: 0.957933168 | J43: 1 | K43: 228.64 | L43: 231.9 | M43: 225.53 | N43: 231.28 | O43: 1492547000 | U43: 2012-09-21 | V43: 0.779 | W43: 141.350006 | X43: 201209 | Y43: 201109 | Z43: 2011-09-16 | AA43: 5 | AB43: 1 | AC43: 2.851 | AD43: 0.02016979044
A44: 29 | B44: 2017-04-01 | C44: 235.800003 | D44: 239.529999 | E44: 232.509995 | F44: 238.080002 | G44: 1549613700 | H44: 228.064743 | I44: 0.9579332203 | J44: 1 | K44: 225.88 | L44: 229.45 | M44: 222.73 | N44: 228.06 | O44: 1549613700 | U44: 2012-06-15 | V44: 0.688 | W44: 137.710007 | X44: 201206 | Y44: 201106 | Z44: 2011-06-17 | AA44: 5 | AB44: 1 | AC44: 2.697 | AD44: 0.01958463338
A45: 30 | B45: 2017-03-01 | C45: 238.389999 | D45: 240.320007 | E45: 231.610001 | F45: 235.740005 | G45: 1921474100 | H45: 224.845001 | I45: 0.9537838137 | J45: 1 | K45: 227.37 | L45: 229.21 | M45: 220.91 | N45: 224.85 | O45: 1921474100 | U45: 2012-03-16 | V45: 0.614 | W45: 139.869995 | X45: 201203 | Y45: 201103 | Z45: 2011-03-18 | AA45: 5 | AB45: 1 | AC45: 2.637 | AD45: 0.01885322152
A46: 31 | B46: 2017-02-01 | C46: 227.529999 | D46: 237.309998 | E46: 226.820007 | F46: 236.470001 | G46: 1365136600 | H46: 225.54126 | I46: 0.9537838163 | J46: 1 | K46: 217.01 | L46: 226.34 | M46: 216.34 | N46: 225.54 | O46: 1365136600 | U46: 2011-12-16 | V46: 0.77 | W46: 131.320007 | X46: 201112 | Y46: 201012 | Z46: 2010-12-17 | AA46: 5 | AB46: 1 | AC46: 2.576 | AD46: 0.01961620365
A47: 32 | B47: 2017-01-01 | C47: 225.039993 | D47: 229.710007 | E47: 223.880005 | F47: 227.529999 | G47: 1482408500 | H47: 217.01442 | I47: 0.953783769 | J47: 1 | K47: 214.64 | L47: 219.09 | M47: 213.53 | N47: 217.01 | O47: 1482408500 | U47: 2011-09-16 | V47: 0.625 | W47: 125.5 | X47: 201109 | Y47: 201009 | Z47: 2010-09-17 | AA47: 5 | AB47: 1 | AC47: 2.459 | AD47: 0.0195936255
A48: 33 | B48: 2016-12-01 | C48: 220.729996 | D48: 228.339996 | E48: 219.149994 | F48: 223.529999 | G48: 1821910200 | H48: 211.950027 | I48: 0.9481949982 | J48: 1 | K48: 209.3 | L48: 216.51 | M48: 207.8 | N48: 211.95 | O48: 1821910200 | U48: 2011-06-17 | V48: 0.628 | W48: 129.330002 | X48: 201106 | Y48: 201006 | Z48: 2010-06-18 | AA48: 5 | AB48: 1 | AC48: 2.436 | AD48: 0.01883553671
A49: 34 | B49: 2016-11-01 | C49: 212.929993 | D49: 221.820007 | E49: 208.380005 | F49: 220.380005 | G49: 2073824400 | H49: 208.963226 | I49: 0.9481950325 | J49: 1 | K49: 201.9 | L49: 210.33 | M49: 197.58 | N49: 208.96 | O49: 2073824400 | U49: 2011-03-18 | V49: 0.553 | W49: 136.429993 | X49: 201103 | Y49: 201003 | Z49: 2010-03-19 | AA49: 5 | AB49: 1 | AC49: 2.339 | AD49: 0.01714432398
A50: 35 | B50: 2016-10-01 | C50: 215.820007 | D50: 216.699997 | E50: 211.210007 | F50: 212.550003 | G50: 1725687400 | H50: 201.538879 | I50: 0.948195136 | J50: 1 | K50: 204.64 | L50: 205.47 | M50: 200.27 | N50: 201.54 | O50: 1725687400 | U50: 2010-12-17 | V50: 0.653 | W50: 128.679993 | X50: 201012 | Y50: 200912 | Z50: 2009-12-18 | AA50: 5 | AB50: 1 | AC50: 2.266 | AD50: 0.0176095751
A51: 36 | B51: 2016-09-01 | C51: 217.369995 | D51: 219.220001 | E51: 212.309998 | F51: 216.300003 | G51: 2292393000 | H51: 204.063782 | I51: 0.9434293998 | J51: 1 | K51: 205.07 | L51: 206.82 | M51: 200.3 | N51: 204.06 | O51: 2292393000 | U51: 2010-09-17 | V51: 0.602 | W51: 118.489998 | X51: 201009 | Y51: 200909 | Z51: 2009-09-18 | AA51: 5 | AB51: 1 | AC51: 2.203 | AD51: 0.01859228658
A52: 37 | B52: 2016-08-01 | C52: 217.190002 | D52: 219.600006 | E52: 214.25 | F52: 217.380005 | G52: 1519703200 | H52: 205.082687 | I52: 0.9434293968 | J52: 1 | K52: 204.9 | L52: 207.18 | M52: 202.13 | N52: 205.08 | O52: 1519703200 | U52: 2010-06-18 | V52: 0.531 | W52: 110.269997 | X52: 201006 | Y52: 200906 | Z52: 2009-06-19 | AA52: 5 | AB52: 1 | AC52: 2.109 | AD52: 0.01912578269
A53: 38 | B53: 2016-07-01 | C53: 209.479996 | D53: 217.539993 | E53: 207.059998 | F53: 217.119995 | G53: 1648453700 | H53: 204.837402 | I53: 0.9434294709 | J53: 1 | K53: 197.63 | L53: 205.23 | M53: 195.35 | N53: 204.84 | O53: 1648453700 | U53: 2010-03-19 | V53: 0.48 | W53: 118.809998 | X53: 201003 | Y53: 200903 | Z53: 2009-03-20 | AA53: 5 | AB53: 1 | AC53: 2.096 | AD53: 0.01764161296
A54: 39 | B54: 2016-06-01 | C54: 209.119995 | D54: 212.520004 | E54: 198.649994 | F54: 209.479996 | G54: 2612406900 | H54: 196.607178 | I54: 0.9385487004 | J54: 1 | K54: 196.27 | L54: 199.46 | M54: 186.44 | N54: 196.61 | O54: 2612406900 | U54: 2009-12-18 | V54: 0.59 | W54: 107.389999 | X54: 200912 | Y54: 200812 | Z54: 2008-12-19 | AA54: 5 | AB54: 1 | AC54: 2.177 | AD54: 0.02027190633
A55: 40 | B55: 2016-05-01 | C55: 206.919998 | D55: 210.690002 | E55: 202.779999 | F55: 209.839996 | G55: 1828530900 | H55: 196.945023 | I55: 0.9385485453 | J55: 1 | K55: 194.2 | L55: 197.74 | M55: 190.32 | N55: 196.95 | O55: 1828530900 | U55: 2009-09-18 | V55: 0.508 | W55: 103.559998 | X55: 200909 | Y55: 200809 | Z55: 2008-09-19 | AA55: 5 | AB55: 1 | AC55: 2.306 | AD55: 0.0222672851
A56: 41 | B56: 2016-04-01 | C56: 204.350006 | D56: 210.919998 | E56: 203.089996 | F56: 206.330002 | G56: 1910635600 | H56: 193.650711 | I56: 0.938548486 | J56: 1 | K56: 191.79 | L56: 197.96 | M56: 190.61 | N56: 193.65 | O56: 1910635600 | U56: 2009-06-19 | V56: 0.518 | W56: 98.809998 | X56: 200906 | Y56: 200806 | Z56: 2008-06-20 | AA56: 5 | AB56: 1 | AC56: 2.489 | AD56: 0.02518975863
A57: 42 | B57: 2016-03-01 | C57: 195.009995 | D57: 206.869995 | E57: 194.449997 | F57: 205.520004 | G57: 2323306500 | H57: 191.900757 | I57: 0.9337327426 | J57: 1 | K57: 182.09 | L57: 193.16 | M57: 181.56 | N57: 191.9 | O57: 2323306500 | U57: 2009-03-20 | V57: 0.561 | W57: 87.419998 | X57: 200903 | Y57: 200803 | Z57: 2008-03-20 | AA57: 5 | AB57: 1 | AC57: 2.64 | AD57: 0.03019903981
A58: 43 | B58: 2016-02-01 | C58: 192.529999 | D58: 196.679993 | E58: 181.089996 | F58: 193.559998 | G58: 2920730800 | H58: 180.733292 | I58: 0.933732661 | J58: 1 | K58: 179.77 | L58: 183.65 | M58: 169.09 | N58: 180.73 | O58: 2920730800 | U58: 2008-12-19 | V58: 0.719 | W58: 82.830002 | X58: 200812 | Y58: 200712 | Z58: 2007-12-21 | AA58: 5 | AB58: 1 | AC58: 2.721 | AD58: 0.03285041572
A59: 44 | B59: 2016-01-01 | C59: 200.490005 | D59: 201.899994 | E59: 181.020004 | F59: 193.720001 | G59: 3712950900 | H59: 180.882675 | I59: 0.9337325731 | J59: 1 | K59: 187.2 | L59: 188.52 | M59: 169.02 | N59: 180.88 | O59: 3712950900 | U59: 2008-09-19 | V59: 0.691 | W59: 96.830002 | X59: 200809 | Y59: 200709 | Z59: 2007-09-21 | AA59: 5 | AB59: 1 | AC59: 2.777 | AD59: 0.02867912778
A60: 45 | B60: 2015-12-01 | C60: 209.440002 | D60: 211 | E60: 199.830002 | F60: 203.869995 | G60: 2924882300 | H60: 189.233887 | I60: 0.9282086214 | J60: 1 | K60: 194.4 | L60: 195.85 | M60: 185.48 | N60: 189.23 | O60: 2924882300 | U60: 2008-06-20 | V60: 0.669 | W60: 126.830002 | X60: 200806 | Y60: 200706 | Z60: 2007-06-15 | AA60: 5 | AB60: 1 | AC60: 2.805 | AD60: 0.02211621821
A61: 46 | B61: 2015-11-01 | C61: 208.320007 | D61: 211.660004 | E61: 202.179993 | F61: 208.690002 | G61: 1924512800 | H61: 193.707825 | I61: 0.9282084582 | J61: 1 | K61: 193.36 | L61: 196.46 | M61: 187.67 | N61: 193.71 | O61: 1924512800 | U61: 2008-03-20 | V61: 0.642 | W61: 138.259995 | X61: 200803 | Y61: 200703 | Z61: 2007-03-16 | AA61: 5 | AB61: 1 | AC61: 2.792 | AD61: 0.02019383843
A62: 47 | B62: 2015-10-01 | C62: 192.080002 | D62: 209.440002 | E62: 189.119995 | F62: 208.889999 | G62: 3220136500 | H62: 193.893478 | I62: 0.9282085257 | J62: 1 | K62: 178.29 | L62: 194.4 | M62: 175.54 | N62: 193.89 | O62: 3220136500 | U62: 2007-12-21 | V62: 0.775 | W62: 137.369995 | X62: 200712 | Y62: 200612 | Z62: 2006-12-15 | AA62: 5 | AB62: 1 | AC62: 2.701 | AD62: 0.01966222682
A63: 48 | B63: 2015-09-01 | C63: 193.119995 | D63: 202.889999 | E63: 186.929993 | F63: 191.630005 | G63: 3279512900 | H63: 176.952667 | I63: 0.923407934 | J63: 1 | K63: 178.33 | L63: 187.35 | M63: 172.61 | N63: 176.95 | O63: 3279512900 | U63: 2007-09-21 | V63: 0.719 | W63: 154.649994 | X63: 200709 | Y63: 200609 | Z63: 2006-09-15 | AA63: 5 | AB63: 1 | AC63: 2.719 | AD63: 0.01758163663
A64: 49 | B64: 2015-08-01 | C64: 210.460007 | D64: 211.309998 | E64: 182.399994 | F64: 199.160004 | G64: 4340428600 | H64: 183.90593 | I64: 0.9234079449 | J64: 1 | K64: 194.34 | L64: 195.13 | M64: 168.43 | N64: 183.91 | O64: 4340428600 | U64: 2007-06-15 | V64: 0.656 | W64: 145.720001 | X64: 200706 | Y64: 200606 | Z64: 2006-06-16 | AA64: 5 | AB64: 1 | AC64: 2.579 | AD64: 0.01769832543
A65: 50 | B65: 2015-07-01 | C65: 207.729996 | D65: 213.179993 | E65: 204.110001 | F65: 210.5 | G65: 2452758000 | H65: 194.377365 | I65: 0.9234079097 | J65: 1 | K65: 191.82 | L65: 196.85 | M65: 188.48 | N65: 194.38 | O65: 2452758000 | U65: 2007-03-16 | V65: 0.551 | W65: 148.289993 | X65: 200703 | Y65: 200603 | Z65: 2006-03-17 | AA65: 5 | AB65: 1 | AC65: 2.478 | AD65: 0.01671050049
A66: 51 | B66: 2015-06-01 | C66: 211.940002 | D66: 213.339996 | E66: 205.279999 | F66: 205.850006 | G66: 2535242600 | H66: 189.163391 | I66: 0.9189379912 | J66: 1 | K66: 194.76 | L66: 196.05 | M66: 188.64 | N66: 189.16 | O66: 2535242600 | U66: 2006-12-15 | V66: 0.793 | W66: 143.75 | X66: 200612 | Y66: 200512 | Z66: 2005-12-16 | AA66: 5 | AB66: 1 | AC66: 2.446 | AD66: 0.01701565217
A67: 52 | B67: 2015-05-01 | C67: 209.399994 | D67: 213.779999 | E67: 206.759995 | F67: 211.139999 | G67: 1892519900 | H67: 194.024597 | I67: 0.9189381355 | J67: 1 | K67: 192.43 | L67: 196.45 | M67: 190 | N67: 194.02 | O67: 1892519900 | U67: 2006-09-15 | V67: 0.579 | W67: 137.789993 | X67: 200609 | Y67: 200509 | Z67: 2005-09-16 | AA67: 5 | AB67: 1 | AC67: 2.325 | AD67: 0.01687350401
A68: 53 | B68: 2015-04-01 | C68: 206.389999 | D68: 212.479996 | E68: 204.509995 | F68: 208.460007 | G68: 2036685200 | H68: 191.561829 | I68: 0.918938034 | J68: 1 | K68: 189.66 | L68: 195.26 | M68: 187.93 | N68: 191.56 | O68: 2036685200 | U68: 2006-06-16 | V68: 0.555 | W68: 127.849998 | X68: 200606 | Y68: 200506 | Z68: 2005-06-17 | AA68: 5 | AB68: 1 | AC68: 2.268 | AD68: 0.0177395388
A69: 54 | B69: 2015-03-01 | C69: 210.779999 | D69: 212.059998 | E69: 204.119995 | F69: 206.429993 | G69: 2749923000 | H69: 188.853333 | I69: 0.9148541365 | J69: 1 | K69: 192.83 | L69: 194 | M69: 186.74 | N69: 188.85 | O69: 2749923000 | U69: 2006-03-17 | V69: 0.519 | W69: 131.470001 | X69: 200603 | Y69: 200503 | Z69: 2005-03-18 | AA69: 5 | AB69: 1 | AC69: 2.201 | AD69: 0.0167414618
A70: 55 | B70: 2015-02-01 | C70: 200.050003 | D70: 212.240005 | E70: 197.860001 | F70: 210.660004 | G70: 1901638100 | H70: 192.723221 | I70: 0.9148543499 | J70: 1 | K70: 183.02 | L70: 194.17 | M70: 181.01 | N70: 192.72 | O70: 1901638100 | U70: 2005-12-16 | V70: 0.672 | W70: 127.5 | X70: 200512 | Y70: 200412 | Z70: 2004-12-17 | AA70: 5 | AB70: 1 | AC70: 2.149 | AD70: 0.01685490196
A71: 56 | B71: 2015-01-01 | C71: 206.380005 | D71: 206.880005 | E71: 198.550003 | F71: 199.449997 | G71: 3183506000 | H71: 182.467682 | I71: 0.914854273 | J71: 1 | K71: 188.81 | L71: 189.27 | M71: 181.64 | N71: 182.47 | O71: 3183506000 | U71: 2005-09-16 | V71: 0.522 | W71: 120.129997 | X71: 200509 | Y71: 200409 | Z71: 2004-09-17 | AA71: 6 | AB71: 1 | AC71: 2.396 | AD71: 0.01994506002
A72: 57 | B72: 2014-12-01 | C72: 206.399994 | D72: 212.970001 | E72: 197.860001 | F72: 205.539993 | G72: 3045171000 | H72: 187.007019 | I72: 0.9098327594 | J72: 1 | K72: 187.79 | L72: 193.77 | M72: 180.02 | N72: 187.01 | O72: 3045171000 | U72: 2005-06-17 | V72: 0.488 | W72: 123.739998 | X72: 200506 | Y72: 200406 | Z72: 2004-06-18 | AA72: 6 | AB72: 1 | AC72: 2.343 | AD72: 0.01893486373
A73: 58 | B73: 2014-11-01 | C73: 201.919998 | D73: 207.869995 | E73: 200.059998 | F73: 207.199997 | G73: 1571091800 | H73: 188.517303 | I73: 0.9098325566 | J73: 1 | K73: 183.71 | L73: 189.13 | M73: 182.02 | N73: 188.52 | O73: 1571091800 | U73: 2005-03-18 | V73: 0.467 | W73: 115.75 | X73: 200503 | Y73: 200403 | Z73: 2004-03-19 | AA73: 6 | AB73: 1 | AC73: 2.269 | AD73: 0.01960259179
A74: 59 | B74: 2014-10-01 | C74: 196.699997 | D74: 201.820007 | E74: 181.919998 | F74: 201.660004 | G74: 3943068000 | H74: 183.476852 | I74: 0.909832631 | J74: 1 | K74: 178.96 | L74: 183.62 | M74: 165.52 | N74: 183.48 | O74: 3943068000 | U74: 2004-12-17 | V74: 0.568 | W74: 118.160004 | X74: 200412 | Y74: 200312 | Z74: 2003-12-19 | AA74: 6 | AB74: 1 | AC74: 2.197 | AD74: 0.018593432
A75: 60 | B75: 2014-09-01 | C75: 200.970001 | D75: 201.899994 | E75: 196.050003 | F75: 197.020004 | G75: 2106462700 | H75: 178.421249 | I75: 0.9055996618 | J75: 1 | K75: 182 | L75: 182.84 | M75: 177.54 | N75: 178.42 | O75: 2106462700 | U75: 2004-11-15 | V75: 0.351 | W75: 120.870003 | X75: 200411 | Y75: 200311 | Z75: 2003-12-19 | AA75: 5 | AB75: 0 | AC75: 2.145 | AD75: 0.0177463386
A76: 61 | B76: 2014-08-01 | C76: 192.559998 | D76: 200.820007 | E76: 190.550003 | F76: 200.710007 | G76: 1829885000 | H76: 181.762909 | I76: 0.9055996346 | J76: 1 | K76: 174.38 | L76: 181.86 | M76: 172.56 | N76: 181.76 | O76: 1829885000 | U76: 2004-09-17 | V76: 0.469 | W76: 113.199997 | X76: 200409 | Y76: 200309 | Z76: 2003-09-19 | AA76: 5 | AB76: 1 | AC76: 1.794 | AD76: 0.01584805696
A77: 62 | B77: 2014-07-01 | C77: 196.199997 | D77: 199.059998 | E77: 192.970001 | F77: 193.089996 | G77: 1893710200 | H77: 174.862244 | I77: 0.905599708 | J77: 1 | K77: 177.68 | L77: 180.27 | M77: 174.75 | N77: 174.86 | O77: 1893710200 | U77: 2004-06-18 | V77: 0.414 | W77: 110.839996 | X77: 200406 | Y77: 200306 | Z77: 2003-06-20 | AA77: 5 | AB77: 1 | AC77: 1.725 | AD77: 0.01556297422
A78: 63 | B78: 2014-06-01 | C78: 192.949997 | D78: 196.600006 | E78: 191.970001 | F78: 195.720001 | G78: 1675047300 | H78: 176.398682 | I78: 0.9012808149 | J78: 1 | K78: 173.9 | L78: 177.19 | M78: 173.02 | N78: 176.4 | O78: 1675047300 | U78: 2004-03-19 | V78: 0.395 | W78: 110.959999 | X78: 200403 | Y78: 200303 | Z78: 2003-03-21 | AA78: 5 | AB78: 1 | AC78: 1.671 | AD78: 0.01505948103
A79: 64 | B79: 2014-05-01 | C79: 188.220001 | D79: 192.800003 | E79: 186.009995 | F79: 192.679993 | G79: 1781093800 | H79: 173.658752 | I79: 0.9012806638 | J79: 1 | K79: 169.64 | L79: 173.77 | M79: 167.65 | N79: 173.66 | O79: 1781093800 | U79: 2003-12-19 | V79: 0.516 | W79: 113.480003 | X79: 200312 | Y79: 200212 | Z79: 2002-12-20 | AA79: 5 | AB79: 1 | AC79: 1.63 | AD79: 0.01436376416
A80: 65 | B80: 2014-04-01 | C80: 187.619995 | D80: 189.699997 | E80: 181.309998 | F80: 188.309998 | G80: 2345902000 | H80: 169.7202 | I80: 0.9012808762 | J80: 1 | K80: 169.1 | L80: 170.97 | M80: 163.41 | N80: 169.72 | O80: 2345902000 | U80: 2003-09-19 | V80: 0.4 | W80: 105.300003 | X80: 200309 | Y80: 200209 | Z80: 2002-09-20 | AA80: 5 | AB80: 1 | AC80: 1.55 | AD80: 0.01471984763
A81: 66 | B81: 2014-03-01 | C81: 184.649994 | D81: 189.020004 | E81: 183.75 | F81: 187.009995 | G81: 2554084300 | H81: 167.807922 | I81: =IF(F81=0,1,H81/F81) -> 0.8973206058 | J81: =INDEX(OFFSET($T$15,0,0,$S$13+1,1),MATCH(B81,OFFSET($Q$15,0,0,$S$13+1,1),-1)) -> 1 | K81: =ROUND($I81*C81,2) -> 165.69 | L81: =ROUND($I81*D81,2) -> 169.61 | M81: =ROUND($I81*E81,2) -> 164.88 | N81: =ROUND($I81*F81,2) -> 167.81 | O81: =G81*J81 -> 2554084300 | U81: 2003-06-20 | V81: 0.36 | W81: =(INDEX(OFFSET($F$15,1,0,$B$10,1),MATCH(U81,OFFSET($B$15,1,0,$B$10,1),-1))) -> 99.389999 | X81: =YEAR(U81)&RIGHT("0"&MONTH(U81),2) -> 200306 | Y81: =YEAR(U81)-1&RIGHT("0"&MONTH(U81),2) -> 200206 | Z81: =OFFSET(U80,AA81,0,1,1) -> 2002-06-21 | AA81: =MATCH(Y81,OFFSET($X$15,A81,0,$V$14+1-A81,1),-1) -> 5 | AB81: =IF(OR(AND(YEAR(U81)=YEAR(Z81),MONTH(U81)=MONTH(Z81)),MONTH(U81)=MONTH(Z81)),1,0) -> 1 | AC81: =(V81+IF(AA81-AB81=0,0,IFERROR(SUM(OFFSET(V81,1,0,AA81-AB81-1,1)),0))) -> 1.528 | AD81: =AC81/(INDEX(OFFSET($F$15,1,0,$B$10,1),MATCH(U81,OFFSET($B$15,1,0,$B$10,1),-1))) -> 0.01537378021
A82: 67 | B82: 2014-02-01 | C82: 177.970001 | D82: 187.149994 | E82: 173.710007 | F82: 186.289993 | G82: 2394184600 | H82: 167.161835 | I82: 0.8973205286 | J82: 1 | K82: 159.7 | L82: 167.93 | M82: 155.87 | N82: 167.16 | O82: 2394184600 | U82: 2003-03-21 | V82: 0.354 | W82: 91.910004 | X82: 200303 | Y82: 200203 | Z82: 2002-03-15 | AA82: 5 | AB82: 1 | AC82: 1.521 | AD82: 0.01654879702
A83: 68 | B83: 2014-01-01 | C83: 183.979996 | D83: 184.940002 | E83: 176.880005 | F83: 178.179993 | G83: 2530650900 | H83: 159.884537 | I83: 0.8973203686 | J83: 1 | K83: 165.09 | L83: 165.95 | M83: 158.72 | N83: 159.88 | O83: 2530650900 | U83: 2002-12-20 | V83: 0.436 | W83: 86.059998 | X83: 200212 | Y83: 200112 | Z83: 2001-12-21 | AA83: 5 | AB83: 1 | AC83: 1.498 | AD83: 0.01740646101
A84: 69 | B84: 2013-12-01 | C84: 181.089996 | D84: 184.690002 | E84: 177.320007 | F84: 184.690002 | G84: 2232775900 | H84: 164.831238 | I84: 0.8924751541 | J84: 1 | K84: 161.62 | L84: 164.83 | M84: 158.25 | N84: 164.83 | O84: 2232775900 | U84: 2002-09-20 | V84: 0.378 | W84: 88.519997 | X84: 200209 | Y84: 200109 | Z84: 2001-09-21 | AA84: 5 | AB84: 1 | AC84: 1.455 | AD84: 0.01643696396
A85: 70 | B85: 2013-11-01 | C85: 176.020004 | D85: 181.75 | E85: 174.759995 | F85: 181 | G85: 1930952900 | H85: 161.537994 | I85: 0.892475105 | J85: 1 | K85: 157.09 | L85: 162.21 | M85: 155.97 | N85: 161.54 | O85: 1930952900 | U85: 2002-06-21 | V85: 0.353 | W85: 91.160004 | X85: 200206 | Y85: 200106 | Z85: 2001-06-15 | AA85: 5 | AB85: 1 | AC85: 1.446 | AD85: 0.01586221958
A86: 71 | B86: 2013-10-01 | C86: 168.139999 | D86: 177.509995 | E86: 164.529999 | F86: 175.789993 | G86: 2901739000 | H86: 156.888229 | I86: 0.8924753129 | J86: 1 | K86: 150.06 | L86: 158.42 | M86: 146.84 | N86: 156.89 | O86: 2901739000 | U86: 2002-03-15 | V86: 0.331 | W86: 107.860001 | X86: 200203 | Y86: 200103 | Z86: 2001-03-16 | AA86: 5 | AB86: 1 | AC86: 1.439 | AD86: 0.01334136832
A87: 72 | B87: 2013-09-01 | C87: 165.229996 | D87: 173.600006 | E87: 163.699997 | F87: 168.009995 | G87: 2226749600 | H87: 149.217392 | I87: 0.8881459225 | J87: 1 | K87: 146.75 | L87: 154.18 | M87: 145.39 | N87: 149.22 | O87: 2226749600 | U87: 2001-12-21 | V87: 0.393 | W87: 113.18 | X87: 200112 | Y87: 200012 | Z87: 2000-12-27 | AA87: 5 | AB87: 1 | AC87: 1.424 | AD87: 0.01258172822
A88: 73 | B88: 2013-08-01 | C88: 169.990005 | D88: 170.970001 | E88: 163.050003 | F88: 163.649994 | G88: 2283131700 | H88: 145.345047 | I88: 0.8881457521 | J88: 1 | K88: 150.98 | L88: 151.85 | M88: 144.81 | N88: 145.35 | O88: 2283131700 | U88: 2001-09-21 | V88: 0.369 | W88: 105.800003 | X88: 200109 | Y88: 200009 | Z88: 2000-09-15 | AA88: 6 | AB88: 1 | AC88: 1.442 | AD88: 0.01362948922
A89: 74 | B89: 2013-07-01 | C89: 161.259995 | D89: 169.860001 | E89: 160.220001 | F89: 168.710007 | G89: 2330904500 | H89: 149.839127 | I89: 0.8881460541 | J89: 1 | K89: 143.22 | L89: 150.86 | M89: 142.3 | N89: 149.84 | O89: 2330904500 | U89: 2001-06-15 | V89: 0.346 | W89: 121.349998 | X89: 200106 | Y89: 200006 | Z89: 2000-06-16 | AA89: 7 | AB89: 1 | AC89: 1.448 | AD89: 0.01193242706
A90: 75 | B90: 2013-06-01 | C90: 163.830002 | D90: 165.990005 | E90: 155.729996 | F90: 160.419998 | G90: 3533321800 | H90: 141.726471 | I90: 0.8834713425 | J90: 1 | K90: 144.74 | L90: 146.65 | M90: 137.58 | N90: 141.73 | O90: 3533321800 | U90: 2001-03-16 | V90: 0.316 | W90: 126.660004 | X90: 200103 | Y90: 200003 | Z90: 2000-03-17 | AA90: 7 | AB90: 1 | AC90: 1.45 | AD90: 0.01144797058
A91: 76 | B91: 2013-05-01 | C91: 159.330002 | D91: 169.070007 | E91: 158.100006 | F91: 163.449997 | G91: 2781596000 | H91: 144.403381 | I91: 0.883471298 | J91: 1 | K91: 140.76 | L91: 149.37 | M91: 139.68 | N91: 144.4 | O91: 2781596000 | U91: 2000-12-27 | V91: 0 | W91: 137.020004 | X91: 200012 | Y91: 199912 | Z91: 1999-12-17 | AA91: 7 | AB91: 1 | AC91: 1.505 | AD91: 0.01098379767
A92: 77 | B92: 2013-04-01 | C92: 156.589996 | D92: 159.720001 | E92: 153.550003 | F92: 159.679993 | G92: 2907035000 | H92: 141.072678 | I92: 0.8834712186 | J92: 1 | K92: 138.34 | L92: 141.11 | M92: 135.66 | N92: 141.07 | O92: 2907035000 | U92: 2000-12-15 | V92: 0.411 | W92: 137.020004 | X92: 200012 | Y92: 199912 | Z92: 1999-12-17 | AA92: 6 | AB92: 1 | AC92: 1.505 | AD92: 0.01098379767
A93: 78 | B93: 2013-03-01 | C93: 151.089996 | D93: 156.850006 | E93: 150.410004 | F93: 156.669998 | G93: 2330972300 | H93: 137.800568 | I93: 0.8795593908 | J93: 1 | K93: 132.89 | L93: 137.96 | M93: 132.29 | N93: 137.8 | O93: 2330972300 | U93: 2000-09-15 | V93: 0.375 | W93: 142.953125 | X93: 200009 | Y93: 199909 | Z93: 1999-09-17 | AA93: 6 | AB93: 1 | AC93: 1.442 | AD93: 0.01008722265
A94: 79 | B94: 2013-02-01 | C94: 150.649994 | D94: 153.279999 | E94: 148.729996 | F94: 151.610001 | G94: 2581459300 | H94: 133.350006 | I94: 0.8795594296 | J94: 1 | K94: 132.51 | L94: 134.82 | M94: 130.82 | N94: 133.35 | O94: 2581459300 | U94: 2000-09-14 | V94: 0 | W94: 142.953125 | X94: 200009 | Y94: 199909 | Z94: 1999-09-17 | AA94: 5 | AB94: 1 | AC94: 1.067 | AD94: 0.007463985135
A95: 80 | B95: 2013-01-01 | C95: 145.110001 | D95: 150.940002 | E95: 144.729996 | F95: 149.699997 | G95: 2587140200 | H95: 131.670029 | I95: 0.8795593296 | J95: 1 | K95: 127.63 | L95: 132.76 | M95: 127.3 | N95: 131.67 | O95: 2587140200 | U95: 2000-06-16 | V95: 0.348 | W95: 143 | X95: 200006 | Y95: 199906 | Z95: 1999-06-18 | AA95: 5 | AB95: 1 | AC95: 1.439 | AD95: 0.01006293706
A96: 81 | B96: 2012-12-01 | C96: 142.800003 | D96: 145.580002 | E96: 139.539993 | F96: 142.410004 | G96: 2889875900 | H96: 124.375893 | I96: 0.8733648586 | J96: 1 | K96: 124.72 | L96: 127.14 | M96: 121.87 | N96: 124.38 | O96: 2889875900 | U96: 2000-03-17 | V96: 0.371 | W96: 145.09375 | X96: 200003 | Y96: 199903 | Z96: 1999-03-19 | AA96: 5 | AB96: 1 | AC96: 1.496 | AD96: 0.01031057506
A97: 82 | B97: 2012-11-01 | C97: 141.649994 | D97: 143.720001 | E97: 134.699997 | F97: 142.149994 | G97: 3032769100 | H97: 124.148811 | I97: 0.8733648698 | J97: 1 | K97: 123.71 | L97: 125.52 | M97: 117.64 | N97: 124.15 | O97: 3032769100 | U97: 1999-12-17 | V97: 0.348 | W97: 139.5625 | X97: 199912 | Y97: 199812 | Z97: 1998-12-18 | AA97: 5 | AB97: 1 | AC97: 1.445 | AD97: 0.01035378415
A98: 83 | B98: 2012-10-01 | C98: 144.520004 | D98: 147.160004 | E98: 140.389999 | F98: 141.350006 | G98: 2719915500 | H98: 123.450134 | I98: 0.873364901 | J98: 1 | K98: 126.22 | L98: 128.52 | M98: 122.61 | N98: 123.45 | O98: 2719915500 | U98: 1999-09-17 | V98: 0.372 | W98: 137 | X98: 199909 | Y98: 199809 | Z98: 1998-09-18 | AA98: 5 | AB98: 1 | AC98: 1.489 | AD98: 0.01086861314
A99: 84 | B99: 2012-09-01 | C99: 141.039993 | D99: 148.110001 | E99: 140.130005 | F99: 143.970001 | G99: 2391233500 | H99: 125.070732 | I99: 0.8687277289 | J99: 1 | K99: 122.53 | L99: 128.67 | M99: 121.73 | N99: 125.07 | O99: 2391233500 | U99: 1999-06-18 | V99: 0.405 | W99: 132.75 | X99: 199906 | Y99: 199806 | Z99: 1998-06-19 | AA99: 5 | AB99: 1 | AC99: 1.476 | AD99: 0.01111864407
A100: 85 | B100: 2012-08-01 | C100: 138.699997 | D100: 143.089996 | E100: 135.580002 | F100: 141.160004 | G100: 2413590900 | H100: 122.629616 | I100: 0.8687277736 | J100: 1 | K100: 120.49 | L100: 124.31 | M100: 117.78 | N100: 122.63 | O100: 2413590900 | U100: 1999-03-19 | V100: 0.32 | W100: 133.25 | X100: 199903 | Y100: 199803 | Z100: 1998-03-20 | AA100: 5 | AB100: 1 | AC100: 1.423 | AD100: 0.01067917448
A101: 86 | B101: 2012-07-01 | C101: 136.479996 | D101: 139.339996 | E101: 132.600006 | F101: 137.710007 | G101: 2864743300 | H101: 119.632477 | I101: 0.8687275501 | J101: 1 | K101: 118.56 | L101: 121.05 | M101: 115.19 | N101: 119.63 | O101: 2864743300 | U101: 1998-12-18 | V101: 0.392 | W101: 127.65625 | X101: 199812 | Y101: 199712 | Z101: 1998-03-20 | AA101: 4 | AB101: 0 | AC101: 1.416 | AD101: 0.01109228886
A102: 87 | B102: 2012-06-01 | C102: 129.410004 | D102: 136.270004 | E102: 127.139999 | F102: 136.100006 | G102: 3644886200 | H102: 117.62439 | I102: 0.8642497047 | J102: 1 | K102: 111.84 | L102: 117.77 | M102: 109.88 | N102: 117.62 | O102: 3644886200 | U102: 1998-09-18 | V102: 0.359 | W102: 110 | X102: 199809 | Y102: 199709 | Z102: 1998-03-20 | AA102: 3 | AB102: 0 | AC102: 1.024 | AD102: 0.009309090909
A103: 88 | B103: 2012-05-01 | C103: 139.789993 | D103: 141.660004 | E103: 129.550003 | F103: 131.470001 | G103: 4004156100 | H103: 113.622864 | I103: 0.8642493583 | J103: 1 | K103: 120.81 | L103: 122.43 | M103: 111.96 | N103: 113.62 | O103: 4004156100 | U103: 1998-06-19 | V103: 0.352 | W103: 111.78125 | X103: 199806 | Y103: 199706 | Z103: 1998-03-20 | AA103: 2 | AB103: 0 | AC103: 0.665 | AD103: 0.005949119374
A104: 89 | B104: 2012-04-01 | C104: 140.639999 | D104: 142.210007 | E104: 135.759995 | F104: 139.869995 | G104: 3035644100 | H104: 120.882614 | I104: 0.8642497914 | J104: 1 | K104: 121.55 | L104: 122.9 | M104: 117.33 | N104: 120.88 | O104: 3035644100 | U104: 1998-03-20 | V104: 0.313 | W104: 111.34375 | X104: 199803 | Y104: 199703 | Z104: 1998-03-20 | AA104: 1 | AB104: 1 | AC104: 0.313 | AD104: 0.00281111423
A105: 90 | B105: 2012-03-01 | C105: 137.309998 | D105: 141.830002 | E105: 134.360001 | F105: 140.809998 | G105: 3057516200 | H105: 121.164009 | I105: 0.8604787353 | J105: 1 | K105: 118.15 | L105: 122.04 | M105: 115.61 | N105: 121.16 | O105: 3057516200
A106: 91 | B106: 2012-02-01 | C106: 132.289993 | D106: 138.190002 | E106: 132.130005 | F106: 137.020004 | G106: 2894582000 | H106: 117.902817 | I106: 0.8604788612 | J106: 1 | K106: 113.83 | L106: 118.91 | M106: 113.7 | N106: 117.9 | O106: 2894582000
A107: 92 | B107: 2012-01-01 | C107: 127.760002 | D107: 133.399994 | E107: 126.43 | F107: 131.320007 | G107: 2883821400 | H107: 112.998047 | I107: 0.8604785332 | J107: 1 | K107: 109.93 | L107: 114.79 | M107: 108.79 | N107: 113 | O107: 2883821400
A108: 93 | B108: 2011-12-01 | C108: 124.849998 | D108: 127.260002 | E108: 120.029999 | F108: 125.5 | G108: 3848636100 | H108: 107.309486 | I108: 0.8550556653 | J108: 1 | K108: 106.75 | L108: 108.81 | M108: 102.63 | N108: 107.31 | O108: 3848636100
A109: 94 | B109: 2011-11-01 | C109: 122.029999 | D109: 128.020004 | E109: 116.199997 | F109: 124.989998 | G109: 5013586000 | H109: 106.873421 | I109: 0.8550557861 | J109: 1 | K109: 104.34 | L109: 109.46 | M109: 99.36 | N109: 106.87 | O109: 5013586000
A110: 95 | B110: 2011-10-01 | C110: 112.489998 | D110: 129.419998 | E110: 107.43 | F110: 125.5 | G110: 5721102000 | H110: 107.309486 | I110: 0.8550556653 | J110: 1 | K110: 96.19 | L110: 110.66 | M110: 91.86 | N110: 107.31 | O110: 5721102000
A111: 96 | B111: 2011-09-01 | C111: 122.290001 | D111: 123.400002 | E111: 111.300003 | F111: 113.150002 | G111: 6188283200 | H111: 96.251595 | I111: 0.8506548237 | J111: 1 | K111: 104.03 | L111: 104.97 | M111: 94.68 | N111: 96.25 | O111: 6188283200
A112: 97 | B112: 2011-08-01 | C112: 130.839996 | D112: 130.960007 | E112: 110.269997 | F112: 122.220001 | G112: 9050451800 | H112: 103.96701 | I112: 0.8506546322 | J112: 1 | K112: 111.3 | L112: 111.4 | M112: 93.8 | N112: 103.97 | O112: 9050451800
A113: 98 | B113: 2011-07-01 | C113: 132.089996 | D113: 135.699997 | E113: 127.970001 | F113: 129.330002 | G113: 3840768000 | H113: 110.01516 | I113: 0.8506545913 | J113: 1 | K113: 112.36 | L113: 115.43 | M113: 108.86 | N113: 110.02 | O113: 3840768000
A114: 99 | B114: 2011-06-01 | C114: 134.509995 | D114: 134.919998 | E114: 126.190002 | F114: 131.970001 | G114: 4710433400 | H114: 111.7071 | I114: 0.8464582796 | J114: 1 | K114: 113.86 | L114: 114.2 | M114: 106.81 | N114: 111.71 | O114: 4710433400
A115: 100 | B115: 2011-05-01 | C115: 137.070007 | D115: 137.179993 | E115: 131.380005 | F115: 134.899994 | G115: 3337607300 | H115: 114.187233 | I115: 0.8464583994 | J115: 1 | K115: 116.02 | L115: 116.12 | M115: 111.21 | N115: 114.19 | O115: 3337607300
A116: 101 | B116: 2011-04-01 | C116: 133.410004 | D116: 136.570007 | E116: 129.509995 | F116: 136.429993 | G116: 2812718500 | H116: 115.482285 | I116: 0.8464581905 | J116: 1 | K116: 112.93 | L116: 115.6 | M116: 109.62 | N116: 115.48 | O116: 2812718500
A117: 102 | B117: 2011-03-01 | C117: 133.570007 | D117: 133.690002 | E117: 125.279999 | F117: 132.589996 | G117: 4787459400 | H117: 111.746445 | I117: 0.8427969558 | J117: 1 | K117: 112.57 | L117: 112.67 | M117: 105.59 | N117: 111.75 | O117: 4787459400
A118: 103 | B118: 2011-02-01 | C118: 129.460007 | D118: 134.690002 | E118: 129.380005 | F118: 133.149994 | G118: 2820073500 | H118: 112.218414 | I118: 0.8427969888 | J118: 1 | K118: 109.11 | L118: 113.52 | M118: 109.04 | N118: 112.22 | O118: 2820073500
A119: 104 | B119: 2011-01-01 | C119: 126.709999 | D119: 130.350006 | E119: 125.699997 | F119: 128.679993 | G119: 2860314700 | H119: 108.451126 | I119: 0.8427971083 | J119: 1 | K119: 106.79 | L119: 109.86 | M119: 105.94 | N119: 108.45 | O119: 2860314700
A120: 105 | B120: 2010-12-01 | C120: 120.199997 | D120: 126.199997 | E120: 120.190002 | F120: 125.75 | G120: 2722749900 | H120: 105.427277 | I120: 0.8383878887 | J120: 1 | K120: 100.77 | L120: 105.8 | M120: 100.77 | N120: 105.43 | O120: 2722749900
A121: 106 | B121: 2010-11-01 | C121: 119.07 | D121: 122.949997 | E121: 117.589996 | F121: 118.489998 | G121: 3983708900 | H121: 99.340576 | I121: 0.8383878612 | J121: 1 | K121: 99.83 | L121: 103.08 | M121: 98.59 | N121: 99.34 | O121: 3983708900
A122: 107 | B122: 2010-10-01 | C122: 114.989998 | D122: 119.760002 | E122: 113.18 | F122: 118.489998 | G122: 3767490800 | H122: 99.340576 | I122: 0.8383878612 | J122: 1 | K122: 96.41 | L122: 100.41 | M122: 94.89 | N122: 99.34 | O122: 3767490800
A123: 108 | B123: 2010-09-01 | C123: 106.730003 | D123: 115.790001 | E123: 106.660004 | F123: 114.129997 | G123: 4035642500 | H123: 95.175674 | I123: 0.83392339 | J123: 1 | K123: 89 | L123: 96.56 | M123: 88.95 | N123: 95.18 | O123: 4035642500
A124: 109 | B124: 2010-08-01 | C124: 111.989998 | D124: 113.18 | E124: 104.290001 | F124: 105.309998 | G124: 4541971600 | H124: 87.82048 | I124: 0.8339234799 | J124: 1 | K124: 93.39 | L124: 94.38 | M124: 86.97 | N124: 87.82 | O124: 4541971600
A125: 110 | B125: 2010-07-01 | C125: 103.150002 | D125: 112.290001 | E125: 101.129997 | F125: 110.269997 | G125: 4725402000 | H125: 91.956734 | I125: 0.8339234289 | J125: 1 | K125: 86.02 | L125: 93.64 | M125: 84.33 | N125: 91.96 | O125: 4725402000
A126: 111 | B126: 2010-06-01 | C126: 108.349998 | D126: 113.199997 | E126: 102.879997 | F126: 103.220001 | G126: 5706059600 | H126: 85.669998 | I126: 0.8299747837 | J126: 1 | K126: 89.93 | L126: 93.95 | M126: 85.39 | N126: 85.67 | O126: 5706059600
A127: 112 | B127: 2010-05-01 | C127: 119.379997 | D127: 120.68 | E127: 104.379997 | F127: 109.370003 | G127: 7413878800 | H127: 90.77433 | I127: 0.8299746504 | J127: 1 | K127: 99.08 | L127: 100.16 | M127: 86.63 | N127: 90.77 | O127: 7413878800
A128: 113 | B128: 2010-04-01 | C128: 117.800003 | D128: 122.120003 | E128: 117.099998 | F128: 118.809998 | G128: 3887089700 | H128: 98.609283 | I128: 0.8299746205 | J128: 1 | K128: 97.77 | L128: 101.36 | M128: 97.19 | N128: 98.61 | O128: 3887089700
A129: 114 | B129: 2010-03-01 | C129: 111.199997 | D129: 118.169998 | E129: 111.169998 | F129: 117 | G129: 3899688500 | H129: 96.708801 | I129: 0.8265709487 | J129: 1 | K129: 91.91 | L129: 97.68 | M129: 91.89 | N129: 96.71 | O129: 3899688500
A130: 115 | B130: 2010-02-01 | C130: 108.150002 | D130: 111.580002 | E130: 104.580002 | F130: 110.739998 | G130: 4451912400 | H130: 91.534454 | I130: 0.8265708475 | J130: 1 | K130: 89.39 | L130: 92.23 | M130: 86.44 | N130: 91.53 | O130: 4451912400
A131: 116 | B131: 2010-01-01 | C131: 112.370003 | D131: 115.139999 | E131: 107.220001 | F131: 107.389999 | G131: 3706842300 | H131: 88.765427 | I131: 0.8265707033 | J131: 1 | K131: 92.88 | L131: 95.17 | M131: 88.62 | N131: 88.77 | O131: 3706842300
A132: 117 | B132: 2009-12-01 | C132: 110.919998 | D132: 113.029999 | E132: 109.019997 | F132: 111.440002 | G132: 2883885800 | H132: 91.619804 | I132: 0.822144673 | J132: 1 | K132: 91.19 | L132: 92.93 | M132: 89.63 | N132: 91.62 | O132: 2883885800
A133: 118 | B133: 2009-11-01 | C133: 104.129997 | D133: 111.739998 | E133: 103.080002 | F133: 109.940002 | G133: 3430866200 | H133: 90.386574 | I133: 0.8221445548 | J133: 1 | K133: 85.61 | L133: 91.87 | M133: 84.75 | N133: 90.39 | O133: 3430866200
A134: 119 | B134: 2009-10-01 | C134: 103 | D134: 110.309998 | E134: 101.989998 | F134: 103.559998 | G134: 4481700800 | H134: 85.141289 | I134: 0.8221445601 | J134: 1 | K134: 84.68 | L134: 90.69 | M134: 83.85 | N134: 85.14 | O134: 4481700800
A135: 120 | B135: 2009-09-01 | C135: 101.949997 | D135: 108.059998 | E135: 99.57 | F135: 105.589996 | G135: 3777956700 | H135: 86.398689 | I135: 0.8182469199 | J135: 1 | K135: 83.42 | L135: 88.42 | M135: 81.47 | N135: 86.4 | O135: 3777956700
A136: 121 | B136: 2009-08-01 | C136: 99.849998 | D136: 104.349998 | E136: 98.110001 | F136: 102.459999 | G136: 3957574800 | H136: 83.837608 | I136: 0.8182472069 | J136: 1 | K136: 81.7 | L136: 85.38 | M136: 80.28 | N136: 83.84 | O136: 3957574800
A137: 122 | B137: 2009-07-01 | C137: 92.339996 | D137: 99.830002 | E137: 87 | F137: 98.809998 | G137: 4295844600 | H137: 80.850998 | I137: 0.8182471373 | J137: 1 | K137: 75.56 | L137: 81.69 | M137: 71.19 | N137: 80.85 | O137: 4295844600
A138: 123 | B138: 2009-06-01 | C138: 93.669998 | D138: 96.110001 | E138: 88.849998 | F138: 91.949997 | G138: 5054855000 | H138: 74.815224 | I138: 0.8136511848 | J138: 1 | K138: 76.21 | L138: 78.2 | M138: 72.29 | N138: 74.82 | O138: 5054855000
A139: 124 | B139: 2009-05-01 | C139: 87.440002 | D139: 93.699997 | E139: 86.720001 | F139: 92.529999 | G139: 5195735600 | H139: 75.28714 | I139: 0.813651149 | J139: 1 | K139: 71.15 | L139: 76.24 | M139: 70.56 | N139: 75.29 | O139: 5195735600
A140: 125 | B140: 2009-04-01 | C140: 78.529999 | D140: 89.019997 | E140: 78.330002 | F140: 87.419998 | G140: 6023006600 | H140: 71.129372 | I140: 0.8136510367 | J140: 1 | K140: 63.9 | L140: 72.43 | M140: 63.73 | N140: 71.13 | O140: 6023006600
A141: 126 | B141: 2009-03-01 | C141: 72.519997 | D141: 83.300003 | E141: 67.099998 | F141: 79.519997 | G141: 8813959700 | H141: 64.241714 | I141: 0.8078686673 | J141: 1 | K141: 58.59 | L141: 67.3 | M141: 54.21 | N141: 64.24 | O141: 8813959700
A142: 127 | B142: 2009-02-01 | C142: 81.57 | D142: 87.739998 | E142: 73.809998 | F142: 73.93 | G142: 7275092500 | H142: 59.72575 | I142: 0.8078689301 | J142: 1 | K142: 65.9 | L142: 70.88 | M142: 59.63 | N142: 59.73 | O142: 7275092500
A143: 128 | B143: 2009-01-01 | C143: 90.440002 | D143: 94.449997 | E143: 80.050003 | F143: 82.830002 | G143: 6872039400 | H143: 66.915756 | I143: 0.8078685788 | J143: 1 | K143: 73.06 | L143: 76.3 | M143: 64.67 | N143: 66.92 | O143: 6872039400
A144: 129 | B144: 2008-12-01 | C144: 87.510002 | D144: 92.43 | E144: 81.860001 | F144: 90.239998 | G144: 6919927700 | H144: 72.315056 | I144: 0.8013636702 | J144: 1 | K144: 70.13 | L144: 74.07 | M144: 65.6 | N144: 72.32 | O144: 6919927700
A145: 130 | B145: 2008-11-01 | C145: 96.779999 | D145: 100.860001 | E145: 74.339996 | F145: 90.089996 | G145: 8762237000 | H145: 72.194817 | I145: =IF(F145=0,1,H145/F145) -> 0.8013633056 | J145: =INDEX(OFFSET($T$15,0,0,$S$13+1,1),MATCH(B145,OFFSET($Q$15,0,0,$S$13+1,1),-1)) -> 1 | K145: =ROUND($I145*C145,2) -> 77.56 | L145: =ROUND($I145*D145,2) -> 80.83 | M145: =ROUND($I145*E145,2) -> 59.57 | N145: =ROUND($I145*F145,2) -> 72.19 | O145: =G145*J145 -> 8762237000
A146: 131 | B146: 2008-10-01 | C146: 115.269997 | D146: 116.690002 | E146: 83.580002 | F146: 96.830002 | G146: 11882352200 | H146: 77.596016 | I146: 0.8013633626 | J146: 1 | K146: 92.37 | L146: 93.51 | M146: 66.98 | N146: 77.6 | O146: 11882352200
A147: 132 | B147: 2008-09-01 | C147: 130.029999 | D147: 130.710007 | E147: 110.529999 | F147: 115.989998 | G147: 8105188900 | H147: 92.415207 | I147: 0.7967515182 | J147: 1 | K147: 103.6 | L147: 104.14 | M147: 88.06 | N147: 92.42 | O147: 8105188900
A148: 133 | B148: 2008-08-01 | C148: 127.120003 | D148: 131.509995 | E148: 124.760002 | F148: 128.789993 | G148: 4344355500 | H148: 102.613632 | I148: 0.7967515923 | J148: 1 | K148: 101.28 | L148: 104.78 | M148: 99.4 | N148: 102.61 | O148: 4344355500
A149: 134 | B149: 2008-07-01 | C149: 126.519997 | D149: 129.160004 | E149: 120.019997 | F149: 126.830002 | G149: 7156206800 | H149: 101.05204 | I149: 0.79675186 | J149: 1 | K149: 100.81 | L149: 102.91 | M149: 95.63 | N149: 101.05 | O149: 7156206800
A150: 135 | B150: 2008-06-01 | C150: 139.830002 | D150: 140.889999 | E150: 127.040001 | F150: 127.980003 | G150: 5408930000 | H150: 101.46077 | I150: 0.7927861199 | J150: 1 | K150: 110.86 | L150: 111.7 | M150: 100.72 | N150: 101.46 | O150: 5408930000
A151: 136 | B151: 2008-05-01 | C151: 138.380005 | D151: 144.300003 | E151: 137.520004 | F151: 140.350006 | G151: 3646997000 | H151: 111.267525 | I151: 0.7927860366 | J151: 1 | K151: 109.71 | L151: 114.4 | M151: 109.02 | N151: 111.27 | O151: 3646997000
A152: 137 | B152: 2008-04-01 | C152: 133.610001 | D152: 140.589996 | E152: 132.330002 | F152: 138.259995 | G152: 4014652600 | H152: 109.610603 | I152: 0.7927861056 | J152: 1 | K152: 105.92 | L152: 111.46 | M152: 104.91 | N152: 109.61 | O152: 4014652600
A153: 138 | B153: 2008-03-01 | C153: 133.139999 | D153: 135.809998 | E153: 126.07 | F153: 131.970001 | G153: 5462121800 | H153: 104.108559 | I153: 0.7888804896 | J153: 1 | K153: 105.03 | L153: 107.14 | M153: 99.45 | N153: 104.11 | O153: 5462121800
A154: 139 | B154: 2008-02-01 | C154: 137.940002 | D154: 139.610001 | E154: 131.729996 | F154: 133.820007 | G154: 4151028600 | H154: 105.568001 | I154: 0.7888805521 | J154: 1 | K154: 108.82 | L154: 110.14 | M154: 103.92 | N154: 105.57 | O154: 4151028600
A155: 140 | B155: 2008-01-01 | C155: 146.529999 | D155: 146.990005 | E155: 126 | F155: 137.369995 | G155: 6106834300 | H155: 108.368515 | I155: 0.7888805339 | J155: 1 | K155: 115.59 | L155: 115.96 | M155: 99.4 | N155: 108.37 | O155: 6106834300
A156: 141 | B156: 2007-12-01 | C156: 148.190002 | D156: 152.889999 | E156: 143.960007 | F156: 146.210007 | G156: 3293787500 | H156: 114.73333 | I156: 0.7847159873 | J156: 1 | K156: 116.29 | L156: 119.98 | M156: 112.97 | N156: 114.73 | O156: 3293787500
A157: 142 | B157: 2007-11-01 | C157: 153.289993 | D157: 153.410004 | E157: 140.660004 | F157: 148.660004 | G157: 5472709900 | H157: 116.655861 | I157: 0.7847158473 | J157: 1 | K157: 120.29 | L157: 120.38 | M157: 110.38 | N157: 116.66 | O157: 5472709900
A158: 143 | B158: 2007-10-01 | C158: 152.600006 | D158: 157.520004 | E158: 148.660004 | F158: 154.649994 | G158: 3850069600 | H158: 121.356285 | I158: 0.7847157433 | J158: 1 | K158: 119.75 | L158: 123.61 | M158: 116.66 | N158: 121.36 | O158: 3850069600
A159: 144 | B159: 2007-09-01 | C159: 147.449997 | D159: 154.389999 | E159: 144.330002 | F159: 152.580002 | G159: 2967009200 | H159: 119.166634 | I159: 0.78101083 | J159: 1 | K159: 115.16 | L159: 120.58 | M159: 112.72 | N159: 119.17 | O159: 2967009200
A160: 145 | B160: 2007-08-01 | C160: 145.179993 | D160: 150.589996 | E160: 137 | F160: 147.589996 | G160: 6195918600 | H160: 115.269379 | I160: 0.7810107875 | J160: 1 | K160: 113.39 | L160: 117.61 | M160: 107 | N160: 115.27 | O160: 6195918600
A161: 146 | B161: 2007-07-01 | C161: 150.869995 | D161: 155.529999 | E161: 145.039993 | F161: 145.720001 | G161: 3988676200 | H161: 113.808914 | I161: 0.7810109334 | J161: 1 | K161: 117.83 | L161: 121.47 | M161: 113.28 | N161: 113.81 | O161: 3988676200
A162: 147 | B162: 2007-06-01 | C162: 153.880005 | D162: 154.399994 | E162: 148.059998 | F162: 150.429993 | G162: 3502885400 | H162: 116.983253 | I162: 0.7776591002 | J162: 1 | K162: 119.67 | L162: 120.07 | M162: 115.14 | N162: 116.98 | O162: 3502885400
A163: 148 | B163: 2007-05-01 | C163: 148.419998 | D163: 153.889999 | E163: 147.669998 | F163: 153.320007 | G163: 2508178000 | H163: 119.230705 | I163: 0.7776591414 | J163: 1 | K163: 115.42 | L163: 119.67 | M163: 114.84 | N163: 119.23 | O163: 2508178000
A164: 149 | B164: 2007-04-01 | C164: 142.160004 | D164: 149.800003 | E164: 141.479996 | F164: 148.289993 | G164: 1791289900 | H164: 115.319077 | I164: 0.7776591978 | J164: 1 | K164: 110.55 | L164: 116.49 | M164: 110.02 | N164: 115.32 | O164: 1791289900
A165: 150 | B165: 2007-03-01 | C165: 139.339996 | D165: 143.809998 | E165: 136.75 | F165: 142 | G165: 2918304400 | H165: 109.991341 | I165: 0.7745869085 | J165: 1 | K165: 107.93 | L165: 111.39 | M165: 105.92 | N165: 109.99 | O165: 2918304400
A166: 151 | B166: 2007-02-01 | C166: 144.149994 | D166: 146.419998 | E166: 139 | F166: 140.929993 | G166: 1494548900 | H166: 109.162491 | I166: 0.7745866488 | J166: 1 | K166: 111.66 | L166: 113.41 | M166: 107.67 | N166: 109.16 | O166: 1494548900
A167: 152 | B167: 2007-01-01 | C167: 142.25 | D167: 144.130005 | E167: 140.25 | F167: 143.75 | G167: 1330329900 | H167: 111.346863 | I167: 0.774586873 | J167: 1 | K167: 110.18 | L167: 111.64 | M167: 108.64 | N167: 111.35 | O167: 1330329900
A168: 153 | B168: 2006-12-01 | C168: 140.529999 | D168: 143.240005 | E168: 138.970001 | F168: 141.619995 | G168: 1212756800 | H168: 109.089149 | I168: 0.7702948231 | J168: 1 | K168: 108.25 | L168: 110.34 | M168: 107.05 | N168: 109.09 | O168: 1212756800
A169: 154 | B169: 2006-11-01 | C169: 138.220001 | D169: 141.160004 | E169: 135.619995 | F169: 140.529999 | G169: 1502059900 | H169: 108.24955 | I169: 0.7702949603 | J169: 1 | K169: 106.47 | L169: 108.73 | M169: 104.47 | N169: 108.25 | O169: 1502059900
A170: 155 | B170: 2006-10-01 | C170: 133.539993 | D170: 139 | E170: 132.649994 | F170: 137.789993 | G170: 1443344100 | H170: 106.138985 | I170: 0.7702953073 | J170: 1 | K170: 102.87 | L170: 107.07 | M170: 102.18 | N170: 106.14 | O170: 1443344100
A171: 156 | B171: 2006-09-01 | C171: 131.139999 | D171: 133.990005 | E171: 129.350006 | F171: 133.580002 | G171: 1363687900 | H171: 102.445435 | I171: 0.7669219454 | J171: 1 | K171: 100.57 | L171: 102.76 | M171: 99.2 | N171: 102.45 | O171: 1363687900
A172: 157 | B172: 2006-08-01 | C172: 127.339996 | D172: 131.039993 | E172: 126.279999 | F172: 130.639999 | G172: 1420345400 | H172: 100.190712 | I172: 0.7669221737 | J172: 1 | K172: 97.66 | L172: 100.5 | M172: 96.85 | N172: 100.19 | O172: 1420345400
A173: 158 | B173: 2006-07-01 | C173: 127.43 | D173: 128.139999 | E173: 122.389999 | F173: 127.849998 | G173: 1691301400 | H173: 98.050972 | I173: 0.7669219674 | J173: 1 | K173: 97.73 | L173: 98.27 | M173: 93.86 | N173: 98.05 | O173: 1691301400
A174: 159 | B174: 2006-06-01 | C174: 127.379997 | D174: 129.429993 | E174: 122.339996 | F174: 127.279999 | G174: 2163829300 | H174: 97.184273 | I174: 0.7635470912 | J174: 1 | K174: 97.26 | L174: 98.83 | M174: 93.41 | N174: 97.18 | O174: 2163829300
A175: 160 | B175: 2006-05-01 | C175: 131.470001 | D175: 132.800003 | E175: 124.760002 | F175: 127.510002 | G175: 1752747100 | H175: 97.359924 | I175: 0.763547349 | J175: 1 | K175: 100.38 | L175: 101.4 | M175: 95.26 | N175: 97.36 | O175: 1752747100
A176: 161 | B176: 2006-04-01 | C176: 130.070007 | D176: 131.860001 | E176: 128.020004 | F176: 131.470001 | G176: 1300327900 | H176: 100.38356 | I176: 0.7635472673 | J176: 1 | K176: 99.31 | L176: 100.68 | M176: 97.75 | N176: 100.38 | O176: 1300327900
A177: 162 | B177: 2006-03-01 | C177: 128.600006 | D177: 131.470001 | E177: 127.18 | F177: 129.830002 | G177: 1350777100 | H177: 98.738686 | I177: 0.7605228721 | J177: 1 | K177: 97.8 | L177: 99.99 | M177: 96.72 | N177: 98.74 | O177: 1350777100
A178: 163 | B178: 2006-02-01 | C178: 127.82 | D178: 130.039993 | E178: 125.400002 | F178: 128.229996 | G178: 1145244400 | H178: 97.52182 | I178: 0.7605226783 | J178: 1 | K178: 97.21 | L178: 98.9 | M178: 95.37 | N178: 97.52 | O178: 1145244400
A179: 164 | B179: 2006-01-01 | C179: 125.190002 | D179: 129.440002 | E179: 124.389999 | F179: 127.5 | G179: 1233910800 | H179: 96.96666 | I179: 0.7605228235 | J179: 1 | K179: 95.21 | L179: 98.44 | M179: 94.6 | N179: 96.97 | O179: 1233910800
A180: 165 | B180: 2005-12-01 | C180: 126.019997 | D180: 128.089996 | E180: 124.360001 | F180: 124.510002 | G180: 1073146800 | H180: 94.193367 | I180: 0.7565124527 | J180: 1 | K180: 95.34 | L180: 96.9 | M180: 94.08 | N180: 94.19 | O180: 1073146800
A181: 166 | B181: 2005-11-01 | C181: 120.580002 | D181: 127.410004 | E181: 120.129997 | F181: 125.410004 | G181: 1183732800 | H181: 94.874222 | I181: 0.7565123911 | J181: 1 | K181: 91.22 | L181: 96.39 | M181: 90.88 | N181: 94.87 | O181: 1183732800
A182: 167 | B182: 2005-10-01 | C182: 122.959999 | D182: 123.339996 | E182: 116.879997 | F182: 120.129997 | G182: 1784566400 | H182: 90.879837 | I182: 0.7565124388 | J182: 1 | K182: 93.02 | L182: 93.31 | M182: 88.42 | N182: 90.88 | O182: 1784566400
A183: 168 | B183: 2005-09-01 | C183: 122.519997 | D183: 124.739998 | E183: 120.440002 | F183: 123.040001 | G183: 1287005000 | H183: 92.686768 | I183: 0.7533059757 | J183: 1 | K183: 92.3 | L183: 93.97 | M183: 90.73 | N183: 92.69 | O183: 1287005000
A184: 169 | B184: 2005-08-01 | C184: 123.830002 | D184: 124.739998 | E184: 120.379997 | F184: 122.580002 | G184: 1306564800 | H184: 92.340225 | I184: 0.753305788 | J184: 1 | K184: 93.28 | L184: 93.97 | M184: 90.68 | N184: 92.34 | O184: 1306564800
A185: 170 | B185: 2005-07-01 | C185: 119.449997 | D185: 124.639999 | E185: 118.260002 | F185: 123.739998 | G185: 1176306400 | H185: 93.214058 | I185: 0.7533057985 | J185: 1 | K185: 89.98 | L185: 93.89 | M185: 89.09 | N185: 93.21 | O185: 1176306400
A186: 171 | B186: 2005-06-01 | C186: 119.519997 | D186: 121.940002 | E186: 118.75 | F186: 119.18 | G186: 1089322900 | H186: 89.418121 | I186: 0.7502779074 | J186: 1 | K186: 89.67 | L186: 91.49 | M186: 89.1 | N186: 89.42 | O186: 1089322900
A187: 172 | B187: 2005-05-01 | C187: 116.07 | D187: 120.25 | E187: 114.800003 | F187: 119.480003 | G187: 1334647300 | H187: 89.643188 | I187: 0.7502777515 | J187: 1 | K187: 87.08 | L187: 90.22 | M187: 86.13 | N187: 89.64 | O187: 1334647300
A188: 173 | B188: 2005-04-01 | C188: 118.629997 | D188: 119.260002 | E188: 113.550003 | F188: 115.75 | G188: 1633318500 | H188: 86.844658 | I188: 0.7502778229 | J188: 1 | K188: 89.01 | L188: 89.48 | M188: 85.19 | N188: 86.84 | O188: 1633318500
A189: 174 | B189: 2005-03-01 | C189: 120.82 | D189: 123.25 | E189: 116.25 | F189: 117.959999 | G189: 1330548800 | H189: 88.156509 | I189: 0.7473424021 | J189: 1 | K189: 90.29 | L189: 92.11 | M189: 86.88 | N189: 88.16 | O189: 1330548800
A190: 175 | B190: 2005-02-01 | C190: 118.25 | D190: 121.669998 | E190: 118.099998 | F190: 120.629997 | G190: 1025608400 | H190: 90.151909 | I190: 0.7473423795 | J190: 1 | K190: 88.37 | L190: 90.93 | M190: 88.26 | N190: 90.15 | O190: 1025608400
A191: 176 | B191: 2005-01-01 | C191: 121.559998 | D191: 121.760002 | E191: 116.370003 | F191: 118.160004 | G191: 1184211500 | H191: 88.305992 | I191: 0.7473424933 | J191: 1 | K191: 90.85 | L191: 91 | M191: 86.97 | N191: 88.31 | O191: 1184211500
A192: 177 | B192: 2004-12-01 | C192: 118.160004 | D192: 121.660004 | E192: 117.730003 | F192: 120.870003 | G192: 909170200 | H192: 89.906548 | I192: 0.7438284584 | J192: 1 | K192: 87.89 | L192: 90.49 | M192: 87.57 | N192: 89.91 | O192: 909170200
A193: 178 | B193: 2004-11-01 | C193: 113.559998 | D193: 119.139999 | E193: 113.199997 | F193: 117.889999 | G193: 961601700 | H193: 87.430878 | I193: 0.7416310013 | J193: 1 | K193: 84.22 | L193: 88.36 | M193: 83.95 | N193: 87.43 | O193: 961601700
A194: 179 | B194: 2004-10-01 | C194: 112.260002 | D194: 114.68 | E194: 109.349998 | F194: 113.199997 | G194: 1044071300 | H194: 83.952599 | I194: 0.7416307529 | J194: 1 | K194: 83.26 | L194: 85.05 | M194: 81.1 | N194: 83.95 | O194: 1044071300
A195: 180 | B195: 2004-09-01 | C195: 110.949997 | D195: 113.739998 | E195: 110.410004 | F195: 111.760002 | G195: 790891900 | H195: 82.541092 | I195: 0.7385566439 | J195: 1 | K195: 81.94 | L195: 84 | M195: 81.54 | N195: 82.54 | O195: 790891900
A196: 181 | B196: 2004-08-01 | C196: 110.190002 | D196: 111.629997 | E196: 106.589996 | F196: 111.110001 | G196: 922892000 | H196: 82.061005 | I196: 0.7385564239 | J196: 1 | K196: 81.38 | L196: 82.45 | M196: 78.72 | N196: 82.06 | O196: 922892000
A197: 182 | B197: 2004-07-01 | C197: 114.25 | D197: 114.400002 | E197: 108.209999 | F197: 110.839996 | G197: 954619200 | H197: 81.861595 | I197: 0.7385564593 | J197: 1 | K197: 84.38 | L197: 84.49 | M197: 79.92 | N197: 81.86 | O197: 954619200
A198: 183 | B198: 2004-06-01 | C198: 112.459999 | D198: 114.940002 | E198: 111.870003 | F198: 114.529999 | G198: 721880400 | H198: 84.279228 | I198: 0.7358703286 | J198: 1 | K198: 82.76 | L198: 84.58 | M198: 82.32 | N198: 84.28 | O198: 721880400
A199: 184 | B199: 2004-05-01 | C199: 111.370003 | D199: 113.260002 | E199: 108.059998 | F199: 112.860001 | G199: 981083900 | H199: 83.050308 | I199: 0.7358701689 | J199: 1 | K199: 81.95 | L199: 83.34 | M199: 79.52 | N199: 83.05 | O199: 981083900
A200: 185 | B200: 2004-04-01 | C200: 113.07 | D200: 115.410004 | E200: 110.900002 | F200: 110.959999 | G200: 968620900 | H200: 81.652191 | I200: 0.7358705095 | J200: 1 | K200: 83.2 | L200: 84.93 | M200: 81.61 | N200: 81.65 | O200: 968620900
... 75 more rows

Sheet CalculationsAndCharts
A1: SeasonalityEvaluation.xlsm
A2: =InputPriceData!A1 -> SPDR S&P 500 ETF (SPY) -NYSEArca (Daily)
A4: User Charting Controls | E4: Click to Shift Chart One Bar:
A5: Data Control
A6: =InputPriceData!$B$10 -> 5421 | B6: Available Input Data Rows | E6: Earliest: | F6: =OFFSET(InputPriceData!B15,CalculationsAndCharts!A6,0,1,1) -> 1998-01-02
C7: FALSE | E7: Latest: | F7: =OFFSET(InputPriceData!B15,1,0,1,1) -> 2019-07-19
A8: =MIN(A6-A11,LOOKUP(2,1/(B:B<>0),ROW(A:A))-32) -> 1000 | B8: Logically Available for Calc / Plot | E8: $ Change: | F8: =G33-G34 -> -1.659974
A11: 0 | B11: Input Data Offset (Pan)
A12: 296 | B12: Data Points to Plot (Zoom)
B13: First: | C13: =OFFSET(B32,A12,0,1,1) -> 2018-05-16
B14: ="Last: " & IF(OFFSET(InputPriceData!P15,1+A11,0,1,1)="","",TEXT(OFFSET(InputPriceData!P15,1+A11,0,1,1),"H:MM AM/PM")) -> Last: | C14: =B33 -> 2019-07-19
A25: Help! I would like to plot data
A26: From | B26: 2018-01-03 | C26: =OFFSET(InputPriceData!$A$15,MATCH(B26,OFFSET(InputPriceData!B15,1,0,InputPriceData!$B$10,1),0),0,1,1)-C27 -> 296 | E26: 32
A27: To | B27: 2019-03-08 | C27: =OFFSET(InputPriceData!$A$15,MATCH(B27,OFFSET(InputPriceData!$B$15,1,0,InputPriceData!$B$10,1),0),0,1,1)-1 -> 92 | E27: =$A$12-$E$26+1 -> 265
H28: @ Cursor => | I28: =OFFSET(A32,$E$27,0,1,1)&"(RR)" -> 265(RR) | J28: =OFFSET($B$32,E27,0,1,1) -> 2018-06-29 | K28: =TEXT(OFFSET(D32,$E$27,0,1,1),"#,##0.00")&"(o)" -> 272.12(o) | L28: =TEXT(OFFSET(E32,$E$27,0,1,1),"#,##0.00")&"(h)" -> 273.66(h) | M28: =TEXT(OFFSET(F32,$E$27,0,1,1),"#,##0.00")&"(l)" -> 271.15(l) | N28: =TEXT(OFFSET(G32,$E$27,0,1,1),"#,##0.00")&"(c)" -> 271.28(c)
E29: Cursor ==> | AU29: Chart Cursor work area
A31: Rel Row | AP31: Used To Color Vol Bars
B32: Date | C32: Volume | D32: Open | E32: High | F32: Low | G32: Close | H32: Filt | AP32: Up Vol | AQ32: Dn Vol | AU32: Volume Cursor | AV32: =MAX(OFFSET(C33,0,0,A12,1)) -> 274840500 | AW32: Z Cursor | AY32: Price Chart Cursor
A33: 1 | B33: =OFFSET(InputPriceData!B$15,CalculationsAndCharts!$A33+$A$11,0,1,1) -> 2019-07-19 | C33: =OFFSET(InputPriceData!G$15,CalculationsAndCharts!$A33+$A$11,IF($C$7,8,0),1,1) -> 58678600 | D33: =OFFSET(InputPriceData!C$15,CalculationsAndCharts!$A33+$A$11,IF($C$7,8,0),1,1) -> 300.040009 | E33: =OFFSET(InputPriceData!D$15,CalculationsAndCharts!$A33+$A$11,IF($C$7,8,0),1,1) -> 300.070007 | F33: =OFFSET(InputPriceData!E$15,CalculationsAndCharts!$A33+$A$11,IF($C$7,8,0),1,1) -> 296.980011 | G33: =OFFSET(InputPriceData!F$15,CalculationsAndCharts!$A33+$A$11,IF($C$7,8,0),1,1) -> 297.170013 | H33: =0.5*$D$22*(G33-G35)+$D$18*$D$21*H34-$D$20*H35 -> 0 | AP33: =IF(G33>=D33,C33,NA()) ->  | AQ33: =IF(G33<D33,C33,NA()) -> 58678600 | AU33: =$E$27 -> 265 | AV33: 0 | AW33: =$E$27 -> 265 | AX33: -3 | AY33: =E27 -> 265 | AZ33: 227.9159951
A34: 2 | B34: =OFFSET(InputPriceData!B$15,CalculationsAndCharts!$A34+$A$11,0,1,1) -> 2019-07-18 | C34: =OFFSET(InputPriceData!G$15,CalculationsAndCharts!$A34+$A$11,IF($C$7,8,0),1,1) -> 51392600 | D34: =OFFSET(InputPriceData!C$15,CalculationsAndCharts!$A34+$A$11,IF($C$7,8,0),1,1) -> 297.190002 | E34: =OFFSET(InputPriceData!D$15,CalculationsAndCharts!$A34+$A$11,IF($C$7,8,0),1,1) -> 299.25 | F34: =OFFSET(InputPriceData!E$15,CalculationsAndCharts!$A34+$A$11,IF($C$7,8,0),1,1) -> 296.700012 | G34: =OFFSET(InputPriceData!F$15,CalculationsAndCharts!$A34+$A$11,IF($C$7,8,0),1,1) -> 298.829987 | H34: =0.5*$D$22*(G34-G36)+$D$18*$D$21*H35-$D$20*H36 -> 0 | AP34: =IF(G34>=D34,C34,NA()) -> 51392600 | AQ34: =IF(G34<D34,C34,NA()) ->  | AU34: =$E$27 -> 265 | AV34: =CEILING(AV32,10^INT(LOG10(AV32))) -> 300000000 | AW34: =$E$27 -> 265 | AX34: 3 | AY34: =E27 -> 265 | AZ34: 308.6582551
A35: 3 | B35: =OFFSET(InputPriceData!B$15,CalculationsAndCharts!$A35+$A$11,0,1,1) -> 2019-07-17 | C35: =OFFSET(InputPriceData!G$15,CalculationsAndCharts!$A35+$A$11,IF($C$7,8,0),1,1) -> 36036300 | D35: =OFFSET(InputPriceData!C$15,CalculationsAndCharts!$A35+$A$11,IF($C$7,8,0),1,1) -> 299.75 | E35: =OFFSET(InputPriceData!D$15,CalculationsAndCharts!$A35+$A$11,IF($C$7,8,0),1,1) -> 299.929993 | F35: =OFFSET(InputPriceData!E$15,CalculationsAndCharts!$A35+$A$11,IF($C$7,8,0),1,1) -> 297.73999 | G35: =OFFSET(InputPriceData!F$15,CalculationsAndCharts!$A35+$A$11,IF($C$7,8,0),1,1) -> 297.73999 | H35: 0 | AP35: =IF(G35>=D35,C35,NA()) ->  | AQ35: =IF(G35<D35,C35,NA()) -> 36036300
A36: 4 | B36: =OFFSET(InputPriceData!B$15,CalculationsAndCharts!$A36+$A$11,0,1,1) -> 2019-07-16 | C36: =OFFSET(InputPriceData!G$15,CalculationsAndCharts!$A36+$A$11,IF($C$7,8,0),1,1) -> 36650100 | D36: =OFFSET(InputPriceData!C$15,CalculationsAndCharts!$A36+$A$11,IF($C$7,8,0),1,1) -> 300.649994 | E36: =OFFSET(InputPriceData!D$15,CalculationsAndCharts!$A36+$A$11,IF($C$7,8,0),1,1) -> 300.880005 | F36: =OFFSET(InputPriceData!E$15,CalculationsAndCharts!$A36+$A$11,IF($C$7,8,0),1,1) -> 299.440002 | G36: =OFFSET(InputPriceData!F$15,CalculationsAndCharts!$A36+$A$11,IF($C$7,8,0),1,1) -> 299.779999 | H36: 0 | AP36: =IF(G36>=D36,C36,NA()) ->  | AQ36: =IF(G36<D36,C36,NA()) -> 36650100
A37: 5 | B37: =OFFSET(InputPriceData!B$15,CalculationsAndCharts!$A37+$A$11,0,1,1) -> 2019-07-15 | C37: =OFFSET(InputPriceData!G$15,CalculationsAndCharts!$A37+$A$11,IF($C$7,8,0),1,1) -> 33900000 | D37: =OFFSET(InputPriceData!C$15,CalculationsAndCharts!$A37+$A$11,IF($C$7,8,0),1,1) -> 301.130005 | E37: =OFFSET(InputPriceData!D$15,CalculationsAndCharts!$A37+$A$11,IF($C$7,8,0),1,1) -> 301.130005 | F37: =OFFSET(InputPriceData!E$15,CalculationsAndCharts!$A37+$A$11,IF($C$7,8,0),1,1) -> 300.190002 | G37: =OFFSET(InputPriceData!F$15,CalculationsAndCharts!$A37+$A$11,IF($C$7,8,0),1,1) -> 300.75 | H37: 0 | AQ37: 33900000
A38: 6 | B38: =OFFSET(InputPriceData!B$15,CalculationsAndCharts!$A38+$A$11,0,1,1) -> 2019-07-12 | C38: =OFFSET(InputPriceData!G$15,CalculationsAndCharts!$A38+$A$11,IF($C$7,8,0),1,1) -> 40326000 | D38: =OFFSET(InputPriceData!C$15,CalculationsAndCharts!$A38+$A$11,IF($C$7,8,0),1,1) -> 299.850006 | E38: =OFFSET(InputPriceData!D$15,CalculationsAndCharts!$A38+$A$11,IF($C$7,8,0),1,1) -> 300.730011 | F38: =OFFSET(InputPriceData!E$15,CalculationsAndCharts!$A38+$A$11,IF($C$7,8,0),1,1) -> 299.51001 | G38: =OFFSET(InputPriceData!F$15,CalculationsAndCharts!$A38+$A$11,IF($C$7,8,0),1,1) -> 300.649994 | H38: 0 | AP38: 40326000
A39: 7 | B39: =OFFSET(InputPriceData!B$15,CalculationsAndCharts!$A39+$A$11,0,1,1) -> 2019-07-11 | C39: =OFFSET(InputPriceData!G$15,CalculationsAndCharts!$A39+$A$11,IF($C$7,8,0),1,1) -> 50826100 | D39: =OFFSET(InputPriceData!C$15,CalculationsAndCharts!$A39+$A$11,IF($C$7,8,0),1,1) -> 299.320007 | E39: =OFFSET(InputPriceData!D$15,CalculationsAndCharts!$A39+$A$11,IF($C$7,8,0),1,1) -> 299.579987 | F39: =OFFSET(InputPriceData!E$15,CalculationsAndCharts!$A39+$A$11,IF($C$7,8,0),1,1) -> 298.200012 | G39: =OFFSET(InputPriceData!F$15,CalculationsAndCharts!$A39+$A$11,IF($C$7,8,0),1,1) -> 299.309998 | H39: 0 | AQ39: 50826100
A40: 8 | B40: =OFFSET(InputPriceData!B$15,CalculationsAndCharts!$A40+$A$11,0,1,1) -> 2019-07-10 | C40: =OFFSET(InputPriceData!G$15,CalculationsAndCharts!$A40+$A$11,IF($C$7,8,0),1,1) -> 58448500 | D40: =OFFSET(InputPriceData!C$15,CalculationsAndCharts!$A40+$A$11,IF($C$7,8,0),1,1) -> 298.369995 | E40: =OFFSET(InputPriceData!D$15,CalculationsAndCharts!$A40+$A$11,IF($C$7,8,0),1,1) -> 299.660004 | F40: =OFFSET(InputPriceData!E$15,CalculationsAndCharts!$A40+$A$11,IF($C$7,8,0),1,1) -> 297.779999 | G40: =OFFSET(InputPriceData!F$15,CalculationsAndCharts!$A40+$A$11,IF($C$7,8,0),1,1) -> 298.609985 | H40: 0 | AP40: 58448500
A41: 9 | B41: =OFFSET(InputPriceData!B$15,CalculationsAndCharts!$A41+$A$11,0,1,1) -> 2019-07-09 | C41: =OFFSET(InputPriceData!G$15,CalculationsAndCharts!$A41+$A$11,IF($C$7,8,0),1,1) -> 41101300 | D41: =OFFSET(InputPriceData!C$15,CalculationsAndCharts!$A41+$A$11,IF($C$7,8,0),1,1) -> 295.540009 | E41: =OFFSET(InputPriceData!D$15,CalculationsAndCharts!$A41+$A$11,IF($C$7,8,0),1,1) -> 297.519989 | F41: =OFFSET(InputPriceData!E$15,CalculationsAndCharts!$A41+$A$11,IF($C$7,8,0),1,1) -> 295.480011 | G41: =OFFSET(InputPriceData!F$15,CalculationsAndCharts!$A41+$A$11,IF($C$7,8,0),1,1) -> 297.190002 | H41: 0 | AP41: 41101300
A42: 10 | B42: =OFFSET(InputPriceData!B$15,CalculationsAndCharts!$A42+$A$11,0,1,1) -> 2019-07-08 | C42: =OFFSET(InputPriceData!G$15,CalculationsAndCharts!$A42+$A$11,IF($C$7,8,0),1,1) -> 45841800 | D42: =OFFSET(InputPriceData!C$15,CalculationsAndCharts!$A42+$A$11,IF($C$7,8,0),1,1) -> 297.01001 | E42: =OFFSET(InputPriceData!D$15,CalculationsAndCharts!$A42+$A$11,IF($C$7,8,0),1,1) -> 298.26001 | F42: =OFFSET(InputPriceData!E$15,CalculationsAndCharts!$A42+$A$11,IF($C$7,8,0),1,1) -> 296.220001 | G42: =OFFSET(InputPriceData!F$15,CalculationsAndCharts!$A42+$A$11,IF($C$7,8,0),1,1) -> 296.820007 | H42: 0 | AQ42: 45841800
A43: 11 | B43: =OFFSET(InputPriceData!B$15,CalculationsAndCharts!$A43+$A$11,0,1,1) -> 2019-07-05 | C43: =OFFSET(InputPriceData!G$15,CalculationsAndCharts!$A43+$A$11,IF($C$7,8,0),1,1) -> 51677300 | D43: =OFFSET(InputPriceData!C$15,CalculationsAndCharts!$A43+$A$11,IF($C$7,8,0),1,1) -> 297.440002 | E43: =OFFSET(InputPriceData!D$15,CalculationsAndCharts!$A43+$A$11,IF($C$7,8,0),1,1) -> 298.640015 | F43: =OFFSET(InputPriceData!E$15,CalculationsAndCharts!$A43+$A$11,IF($C$7,8,0),1,1) -> 296.01001 | G43: =OFFSET(InputPriceData!F$15,CalculationsAndCharts!$A43+$A$11,IF($C$7,8,0),1,1) -> 298.459991 | H43: 0 | AP43: 51677300
A44: 12 | B44: =OFFSET(InputPriceData!B$15,CalculationsAndCharts!$A44+$A$11,0,1,1) -> 2019-07-03 | C44: =OFFSET(InputPriceData!G$15,CalculationsAndCharts!$A44+$A$11,IF($C$7,8,0),1,1) -> 40898900 | D44: =OFFSET(InputPriceData!C$15,CalculationsAndCharts!$A44+$A$11,IF($C$7,8,0),1,1) -> 297.179993 | E44: =OFFSET(InputPriceData!D$15,CalculationsAndCharts!$A44+$A$11,IF($C$7,8,0),1,1) -> 298.820007 | F44: =OFFSET(InputPriceData!E$15,CalculationsAndCharts!$A44+$A$11,IF($C$7,8,0),1,1) -> 297.019989 | G44: =OFFSET(InputPriceData!F$15,CalculationsAndCharts!$A44+$A$11,IF($C$7,8,0),1,1) -> 298.799988 | H44: 0 | AP44: 40898900
A45: 13 | B45: =OFFSET(InputPriceData!B$15,CalculationsAndCharts!$A45+$A$11,0,1,1) -> 2019-07-02 | C45: =OFFSET(InputPriceData!G$15,CalculationsAndCharts!$A45+$A$11,IF($C$7,8,0),1,1) -> 61504500 | D45: =OFFSET(InputPriceData!C$15,CalculationsAndCharts!$A45+$A$11,IF($C$7,8,0),1,1) -> 295.609985 | E45: =OFFSET(InputPriceData!D$15,CalculationsAndCharts!$A45+$A$11,IF($C$7,8,0),1,1) -> 296.48999 | F45: =OFFSET(InputPriceData!E$15,CalculationsAndCharts!$A45+$A$11,IF($C$7,8,0),1,1) -> 294.679993 | G45: =OFFSET(InputPriceData!F$15,CalculationsAndCharts!$A45+$A$11,IF($C$7,8,0),1,1) -> 296.429993 | H45: 0 | AP45: 61504500
A46: 14 | B46: =OFFSET(InputPriceData!B$15,CalculationsAndCharts!$A46+$A$11,0,1,1) -> 2019-07-01 | C46: =OFFSET(InputPriceData!G$15,CalculationsAndCharts!$A46+$A$11,IF($C$7,8,0),1,1) -> 79107500 | D46: =OFFSET(InputPriceData!C$15,CalculationsAndCharts!$A46+$A$11,IF($C$7,8,0),1,1) -> 296.679993 | E46: =OFFSET(InputPriceData!D$15,CalculationsAndCharts!$A46+$A$11,IF($C$7,8,0),1,1) -> 296.920013 | F46: =OFFSET(InputPriceData!E$15,CalculationsAndCharts!$A46+$A$11,IF($C$7,8,0),1,1) -> 294.329987 | G46: =OFFSET(InputPriceData!F$15,CalculationsAndCharts!$A46+$A$11,IF($C$7,8,0),1,1) -> 295.660004 | H46: 0 | AQ46: 79107500
A47: 15 | B47: =OFFSET(InputPriceData!B$15,CalculationsAndCharts!$A47+$A$11,0,1,1) -> 2019-06-28 | C47: =OFFSET(InputPriceData!G$15,CalculationsAndCharts!$A47+$A$11,IF($C$7,8,0),1,1) -> 59350900 | D47: =OFFSET(InputPriceData!C$15,CalculationsAndCharts!$A47+$A$11,IF($C$7,8,0),1,1) -> 292.579987 | E47: =OFFSET(InputPriceData!D$15,CalculationsAndCharts!$A47+$A$11,IF($C$7,8,0),1,1) -> 293.549988 | F47: =OFFSET(InputPriceData!E$15,CalculationsAndCharts!$A47+$A$11,IF($C$7,8,0),1,1) -> 292.01001 | G47: =OFFSET(InputPriceData!F$15,CalculationsAndCharts!$A47+$A$11,IF($C$7,8,0),1,1) -> 293 | H47: 0 | AP47: 59350900
A48: 16 | B48: =OFFSET(InputPriceData!B$15,CalculationsAndCharts!$A48+$A$11,0,1,1) -> 2019-06-27 | C48: =OFFSET(InputPriceData!G$15,CalculationsAndCharts!$A48+$A$11,IF($C$7,8,0),1,1) -> 40355200 | D48: =OFFSET(InputPriceData!C$15,CalculationsAndCharts!$A48+$A$11,IF($C$7,8,0),1,1) -> 291.309998 | E48: =OFFSET(InputPriceData!D$15,CalculationsAndCharts!$A48+$A$11,IF($C$7,8,0),1,1) -> 292.059998 | F48: =OFFSET(InputPriceData!E$15,CalculationsAndCharts!$A48+$A$11,IF($C$7,8,0),1,1) -> 290.890015 | G48: =OFFSET(InputPriceData!F$15,CalculationsAndCharts!$A48+$A$11,IF($C$7,8,0),1,1) -> 291.5 | H48: 0 | AP48: 40355200
A49: 17 | B49: =OFFSET(InputPriceData!B$15,CalculationsAndCharts!$A49+$A$11,0,1,1) -> 2019-06-26 | C49: =OFFSET(InputPriceData!G$15,CalculationsAndCharts!$A49+$A$11,IF($C$7,8,0),1,1) -> 51584900 | D49: =OFFSET(InputPriceData!C$15,CalculationsAndCharts!$A49+$A$11,IF($C$7,8,0),1,1) -> 291.75 | E49: =OFFSET(InputPriceData!D$15,CalculationsAndCharts!$A49+$A$11,IF($C$7,8,0),1,1) -> 292.309998 | F49: =OFFSET(InputPriceData!E$15,CalculationsAndCharts!$A49+$A$11,IF($C$7,8,0),1,1) -> 290.350006 | G49: =OFFSET(InputPriceData!F$15,CalculationsAndCharts!$A49+$A$11,IF($C$7,8,0),1,1) -> 290.470001 | H49: 0 | AQ49: 51584900
A50: 18 | B50: =OFFSET(InputPriceData!B$15,CalculationsAndCharts!$A50+$A$11,0,1,1) -> 2019-06-25 | C50: =OFFSET(InputPriceData!G$15,CalculationsAndCharts!$A50+$A$11,IF($C$7,8,0),1,1) -> 82028700 | D50: =OFFSET(InputPriceData!C$15,CalculationsAndCharts!$A50+$A$11,IF($C$7,8,0),1,1) -> 293.700012 | E50: =OFFSET(InputPriceData!D$15,CalculationsAndCharts!$A50+$A$11,IF($C$7,8,0),1,1) -> 293.730011 | F50: =OFFSET(InputPriceData!E$15,CalculationsAndCharts!$A50+$A$11,IF($C$7,8,0),1,1) -> 290.640015 | G50: =OFFSET(InputPriceData!F$15,CalculationsAndCharts!$A50+$A$11,IF($C$7,8,0),1,1) -> 290.76001 | H50: 0 | AQ50: 82028700
A51: 19 | B51: =OFFSET(InputPriceData!B$15,CalculationsAndCharts!$A51+$A$11,0,1,1) -> 2019-06-24 | C51: =OFFSET(InputPriceData!G$15,CalculationsAndCharts!$A51+$A$11,IF($C$7,8,0),1,1) -> 47582700 | D51: =OFFSET(InputPriceData!C$15,CalculationsAndCharts!$A51+$A$11,IF($C$7,8,0),1,1) -> 294.230011 | E51: =OFFSET(InputPriceData!D$15,CalculationsAndCharts!$A51+$A$11,IF($C$7,8,0),1,1) -> 294.579987 | F51: =OFFSET(InputPriceData!E$15,CalculationsAndCharts!$A51+$A$11,IF($C$7,8,0),1,1) -> 293.470001 | G51: =OFFSET(InputPriceData!F$15,CalculationsAndCharts!$A51+$A$11,IF($C$7,8,0),1,1) -> 293.640015 | H51: 0 | AQ51: 47582700
A52: 20 | B52: =OFFSET(InputPriceData!B$15,CalculationsAndCharts!$A52+$A$11,0,1,1) -> 2019-06-21 | C52: =OFFSET(InputPriceData!G$15,CalculationsAndCharts!$A52+$A$11,IF($C$7,8,0),1,1) -> 83309500 | D52: =OFFSET(InputPriceData!C$15,CalculationsAndCharts!$A52+$A$11,IF($C$7,8,0),1,1) -> 294.130005 | E52: =OFFSET(InputPriceData!D$15,CalculationsAndCharts!$A52+$A$11,IF($C$7,8,0),1,1) -> 295.519989 | F52: =OFFSET(InputPriceData!E$15,CalculationsAndCharts!$A52+$A$11,IF($C$7,8,0),1,1) -> 293.76001 | G52: =OFFSET(InputPriceData!F$15,CalculationsAndCharts!$A52+$A$11,IF($C$7,8,0),1,1) -> 294 | H52: 0 | AQ52: 83309500
A53: 21 | B53: =OFFSET(InputPriceData!B$15,CalculationsAndCharts!$A53+$A$11,0,1,1) -> 2019-06-20 | C53: =OFFSET(InputPriceData!G$15,CalculationsAndCharts!$A53+$A$11,IF($C$7,8,0),1,1) -> 116570000 | D53: =OFFSET(InputPriceData!C$15,CalculationsAndCharts!$A53+$A$11,IF($C$7,8,0),1,1) -> 296.040009 | E53: =OFFSET(InputPriceData!D$15,CalculationsAndCharts!$A53+$A$11,IF($C$7,8,0),1,1) -> 296.309998 | F53: =OFFSET(InputPriceData!E$15,CalculationsAndCharts!$A53+$A$11,IF($C$7,8,0),1,1) -> 293.130005 | G53: =OFFSET(InputPriceData!F$15,CalculationsAndCharts!$A53+$A$11,IF($C$7,8,0),1,1) -> 295.859985 | H53: 0 | AQ53: 116570000
A54: 22 | B54: =OFFSET(InputPriceData!B$15,CalculationsAndCharts!$A54+$A$11,0,1,1) -> 2019-06-19 | C54: =OFFSET(InputPriceData!G$15,CalculationsAndCharts!$A54+$A$11,IF($C$7,8,0),1,1) -> 78674400 | D54: =OFFSET(InputPriceData!C$15,CalculationsAndCharts!$A54+$A$11,IF($C$7,8,0),1,1) -> 292.549988 | E54: =OFFSET(InputPriceData!D$15,CalculationsAndCharts!$A54+$A$11,IF($C$7,8,0),1,1) -> 293.649994 | F54: =OFFSET(InputPriceData!E$15,CalculationsAndCharts!$A54+$A$11,IF($C$7,8,0),1,1) -> 291.470001 | G54: =OFFSET(InputPriceData!F$15,CalculationsAndCharts!$A54+$A$11,IF($C$7,8,0),1,1) -> 293.059998 | H54: 0 | AP54: 78674400
A55: 23 | B55: =OFFSET(InputPriceData!B$15,CalculationsAndCharts!$A55+$A$11,0,1,1) -> 2019-06-18 | C55: =OFFSET(InputPriceData!G$15,CalculationsAndCharts!$A55+$A$11,IF($C$7,8,0),1,1) -> 85434800 | D55: =OFFSET(InputPriceData!C$15,CalculationsAndCharts!$A55+$A$11,IF($C$7,8,0),1,1) -> 291.390015 | E55: =OFFSET(InputPriceData!D$15,CalculationsAndCharts!$A55+$A$11,IF($C$7,8,0),1,1) -> 293.570007 | F55: =OFFSET(InputPriceData!E$15,CalculationsAndCharts!$A55+$A$11,IF($C$7,8,0),1,1) -> 290.98999 | G55: =OFFSET(InputPriceData!F$15,CalculationsAndCharts!$A55+$A$11,IF($C$7,8,0),1,1) -> 292.399994 | H55: 0 | AP55: 85434800
A56: 24 | B56: =OFFSET(InputPriceData!B$15,CalculationsAndCharts!$A56+$A$11,0,1,1) -> 2019-06-17 | C56: =OFFSET(InputPriceData!G$15,CalculationsAndCharts!$A56+$A$11,IF($C$7,8,0),1,1) -> 39205700 | D56: =OFFSET(InputPriceData!C$15,CalculationsAndCharts!$A56+$A$11,IF($C$7,8,0),1,1) -> 289.519989 | E56: =OFFSET(InputPriceData!D$15,CalculationsAndCharts!$A56+$A$11,IF($C$7,8,0),1,1) -> 290.220001 | F56: =OFFSET(InputPriceData!E$15,CalculationsAndCharts!$A56+$A$11,IF($C$7,8,0),1,1) -> 289.179993 | G56: =OFFSET(InputPriceData!F$15,CalculationsAndCharts!$A56+$A$11,IF($C$7,8,0),1,1) -> 289.369995 | H56: 0 | AQ56: 39205700
A57: 25 | B57: =OFFSET(InputPriceData!B$15,CalculationsAndCharts!$A57+$A$11,0,1,1) -> 2019-06-14 | C57: =OFFSET(InputPriceData!G$15,CalculationsAndCharts!$A57+$A$11,IF($C$7,8,0),1,1) -> 52324700 | D57: =OFFSET(InputPriceData!C$15,CalculationsAndCharts!$A57+$A$11,IF($C$7,8,0),1,1) -> 289.26001 | E57: =OFFSET(InputPriceData!D$15,CalculationsAndCharts!$A57+$A$11,IF($C$7,8,0),1,1) -> 289.929993 | F57: =OFFSET(InputPriceData!E$15,CalculationsAndCharts!$A57+$A$11,IF($C$7,8,0),1,1) -> 288.410004 | G57: =OFFSET(InputPriceData!F$15,CalculationsAndCharts!$A57+$A$11,IF($C$7,8,0),1,1) -> 289.26001 | H57: 0 | AP57: 52324700
A58: 26 | B58: =OFFSET(InputPriceData!B$15,CalculationsAndCharts!$A58+$A$11,0,1,1) -> 2019-06-13 | C58: =OFFSET(InputPriceData!G$15,CalculationsAndCharts!$A58+$A$11,IF($C$7,8,0),1,1) -> 48945200 | D58: =OFFSET(InputPriceData!C$15,CalculationsAndCharts!$A58+$A$11,IF($C$7,8,0),1,1) -> 289.399994 | E58: =OFFSET(InputPriceData!D$15,CalculationsAndCharts!$A58+$A$11,IF($C$7,8,0),1,1) -> 289.980011 | F58: =OFFSET(InputPriceData!E$15,CalculationsAndCharts!$A58+$A$11,IF($C$7,8,0),1,1) -> 288.619995 | G58: =OFFSET(InputPriceData!F$15,CalculationsAndCharts!$A58+$A$11,IF($C$7,8,0),1,1) -> 289.579987 | H58: 0 | AP58: 48945200
A59: 27 | B59: =OFFSET(InputPriceData!B$15,CalculationsAndCharts!$A59+$A$11,0,1,1) -> 2019-06-12 | C59: =OFFSET(InputPriceData!G$15,CalculationsAndCharts!$A59+$A$11,IF($C$7,8,0),1,1) -> 47096300 | D59: =OFFSET(InputPriceData!C$15,CalculationsAndCharts!$A59+$A$11,IF($C$7,8,0),1,1) -> 288.640015 | E59: =OFFSET(InputPriceData!D$15,CalculationsAndCharts!$A59+$A$11,IF($C$7,8,0),1,1) -> 289.26001 | F59: =OFFSET(InputPriceData!E$15,CalculationsAndCharts!$A59+$A$11,IF($C$7,8,0),1,1) -> 287.820007 | G59: =OFFSET(InputPriceData!F$15,CalculationsAndCharts!$A59+$A$11,IF($C$7,8,0),1,1) -> 288.390015 | H59: 0 | AQ59: 47096300
A60: 28 | B60: =OFFSET(InputPriceData!B$15,CalculationsAndCharts!$A60+$A$11,0,1,1) -> 2019-06-11 | C60: =OFFSET(InputPriceData!G$15,CalculationsAndCharts!$A60+$A$11,IF($C$7,8,0),1,1) -> 58641300 | D60: =OFFSET(InputPriceData!C$15,CalculationsAndCharts!$A60+$A$11,IF($C$7,8,0),1,1) -> 290.98999 | E60: =OFFSET(InputPriceData!D$15,CalculationsAndCharts!$A60+$A$11,IF($C$7,8,0),1,1) -> 291.399994 | F60: =OFFSET(InputPriceData!E$15,CalculationsAndCharts!$A60+$A$11,IF($C$7,8,0),1,1) -> 288.179993 | G60: =OFFSET(InputPriceData!F$15,CalculationsAndCharts!$A60+$A$11,IF($C$7,8,0),1,1) -> 288.899994 | H60: 0 | AQ60: 58641300
A61: 29 | B61: =OFFSET(InputPriceData!B$15,CalculationsAndCharts!$A61+$A$11,0,1,1) -> 2019-06-10 | C61: =OFFSET(InputPriceData!G$15,CalculationsAndCharts!$A61+$A$11,IF($C$7,8,0),1,1) -> 60799100 | D61: =OFFSET(InputPriceData!C$15,CalculationsAndCharts!$A61+$A$11,IF($C$7,8,0),1,1) -> 289.369995 | E61: =OFFSET(InputPriceData!D$15,CalculationsAndCharts!$A61+$A$11,IF($C$7,8,0),1,1) -> 290.820007 | F61: =OFFSET(InputPriceData!E$15,CalculationsAndCharts!$A61+$A$11,IF($C$7,8,0),1,1) -> 288.869995 | G61: =OFFSET(InputPriceData!F$15,CalculationsAndCharts!$A61+$A$11,IF($C$7,8,0),1,1) -> 288.970001 | H61: 0 | AQ61: 60799100
A62: 30 | B62: =OFFSET(InputPriceData!B$15,CalculationsAndCharts!$A62+$A$11,0,1,1) -> 2019-06-07 | C62: =OFFSET(InputPriceData!G$15,CalculationsAndCharts!$A62+$A$11,IF($C$7,8,0),1,1) -> 74272200 | D62: =OFFSET(InputPriceData!C$15,CalculationsAndCharts!$A62+$A$11,IF($C$7,8,0),1,1) -> 285.929993 | E62: =OFFSET(InputPriceData!D$15,CalculationsAndCharts!$A62+$A$11,IF($C$7,8,0),1,1) -> 288.850006 | F62: =OFFSET(InputPriceData!E$15,CalculationsAndCharts!$A62+$A$11,IF($C$7,8,0),1,1) -> 285.73999 | G62: =OFFSET(InputPriceData!F$15,CalculationsAndCharts!$A62+$A$11,IF($C$7,8,0),1,1) -> 287.649994 | H62: 0 | AP62: 74272200
A63: 31 | B63: =OFFSET(InputPriceData!B$15,CalculationsAndCharts!$A63+$A$11,0,1,1) -> 2019-06-06 | C63: =OFFSET(InputPriceData!G$15,CalculationsAndCharts!$A63+$A$11,IF($C$7,8,0),1,1) -> 69430400 | D63: =OFFSET(InputPriceData!C$15,CalculationsAndCharts!$A63+$A$11,IF($C$7,8,0),1,1) -> 283.290009 | E63: =OFFSET(InputPriceData!D$15,CalculationsAndCharts!$A63+$A$11,IF($C$7,8,0),1,1) -> 285.549988 | F63: =OFFSET(InputPriceData!E$15,CalculationsAndCharts!$A63+$A$11,IF($C$7,8,0),1,1) -> 282.570007 | G63: =OFFSET(InputPriceData!F$15,CalculationsAndCharts!$A63+$A$11,IF($C$7,8,0),1,1) -> 284.799988 | H63: 0 | AP63: 69430400
A64: 32 | B64: =OFFSET(InputPriceData!B$15,CalculationsAndCharts!$A64+$A$11,0,1,1) -> 2019-06-05 | C64: =OFFSET(InputPriceData!G$15,CalculationsAndCharts!$A64+$A$11,IF($C$7,8,0),1,1) -> 71169700 | D64: =OFFSET(InputPriceData!C$15,CalculationsAndCharts!$A64+$A$11,IF($C$7,8,0),1,1) -> 282.329987 | E64: =OFFSET(InputPriceData!D$15,CalculationsAndCharts!$A64+$A$11,IF($C$7,8,0),1,1) -> 282.98999 | F64: =OFFSET(InputPriceData!E$15,CalculationsAndCharts!$A64+$A$11,IF($C$7,8,0),1,1) -> 280.320007 | G64: =OFFSET(InputPriceData!F$15,CalculationsAndCharts!$A64+$A$11,IF($C$7,8,0),1,1) -> 282.959991 | H64: 0 | AP64: 71169700
A65: 33 | B65: =OFFSET(InputPriceData!B$15,CalculationsAndCharts!$A65+$A$11,0,1,1) -> 2019-06-04 | C65: =OFFSET(InputPriceData!G$15,CalculationsAndCharts!$A65+$A$11,IF($C$7,8,0),1,1) -> 77231900 | D65: =OFFSET(InputPriceData!C$15,CalculationsAndCharts!$A65+$A$11,IF($C$7,8,0),1,1) -> 277.119995 | E65: =OFFSET(InputPriceData!D$15,CalculationsAndCharts!$A65+$A$11,IF($C$7,8,0),1,1) -> 280.679993 | F65: =OFFSET(InputPriceData!E$15,CalculationsAndCharts!$A65+$A$11,IF($C$7,8,0),1,1) -> 276.619995 | G65: =OFFSET(InputPriceData!F$15,CalculationsAndCharts!$A65+$A$11,IF($C$7,8,0),1,1) -> 280.529999 | H65: 0 | AP65: 77231900
A66: 34 | B66: =OFFSET(InputPriceData!B$15,CalculationsAndCharts!$A66+$A$11,0,1,1) -> 2019-06-03 | C66: =OFFSET(InputPriceData!G$15,CalculationsAndCharts!$A66+$A$11,IF($C$7,8,0),1,1) -> 96428000 | D66: =OFFSET(InputPriceData!C$15,CalculationsAndCharts!$A66+$A$11,IF($C$7,8,0),1,1) -> 275.309998 | E66: =OFFSET(InputPriceData!D$15,CalculationsAndCharts!$A66+$A$11,IF($C$7,8,0),1,1) -> 276.549988 | F66: =OFFSET(InputPriceData!E$15,CalculationsAndCharts!$A66+$A$11,IF($C$7,8,0),1,1) -> 273.089996 | G66: =OFFSET(InputPriceData!F$15,CalculationsAndCharts!$A66+$A$11,IF($C$7,8,0),1,1) -> 274.570007 | H66: 0 | AQ66: 96428000
A67: 35 | B67: =OFFSET(InputPriceData!B$15,CalculationsAndCharts!$A67+$A$11,0,1,1) -> 2019-05-31 | C67: =OFFSET(InputPriceData!G$15,CalculationsAndCharts!$A67+$A$11,IF($C$7,8,0),1,1) -> 86862800 | D67: =OFFSET(InputPriceData!C$15,CalculationsAndCharts!$A67+$A$11,IF($C$7,8,0),1,1) -> 276.200012 | E67: =OFFSET(InputPriceData!D$15,CalculationsAndCharts!$A67+$A$11,IF($C$7,8,0),1,1) -> 277.119995 | F67: =OFFSET(InputPriceData!E$15,CalculationsAndCharts!$A67+$A$11,IF($C$7,8,0),1,1) -> 275.23999 | G67: =OFFSET(InputPriceData!F$15,CalculationsAndCharts!$A67+$A$11,IF($C$7,8,0),1,1) -> 275.269989 | H67: 0 | AQ67: 86862800
A68: 36 | B68: =OFFSET(InputPriceData!B$15,CalculationsAndCharts!$A68+$A$11,0,1,1) -> 2019-05-30 | C68: =OFFSET(InputPriceData!G$15,CalculationsAndCharts!$A68+$A$11,IF($C$7,8,0),1,1) -> 62523800 | D68: =OFFSET(InputPriceData!C$15,CalculationsAndCharts!$A68+$A$11,IF($C$7,8,0),1,1) -> 279.109985 | E68: =OFFSET(InputPriceData!D$15,CalculationsAndCharts!$A68+$A$11,IF($C$7,8,0),1,1) -> 280.040009 | F68: =OFFSET(InputPriceData!E$15,CalculationsAndCharts!$A68+$A$11,IF($C$7,8,0),1,1) -> 277.809998 | G68: =OFFSET(InputPriceData!F$15,CalculationsAndCharts!$A68+$A$11,IF($C$7,8,0),1,1) -> 279.029999 | H68: 0 | AQ68: 62523800
A69: 37 | B69: =OFFSET(InputPriceData!B$15,CalculationsAndCharts!$A69+$A$11,0,1,1) -> 2019-05-29 | C69: =OFFSET(InputPriceData!G$15,CalculationsAndCharts!$A69+$A$11,IF($C$7,8,0),1,1) -> 104972900 | D69: =OFFSET(InputPriceData!C$15,CalculationsAndCharts!$A69+$A$11,IF($C$7,8,0),1,1) -> 278.910004 | E69: =OFFSET(InputPriceData!D$15,CalculationsAndCharts!$A69+$A$11,IF($C$7,8,0),1,1) -> 279.359985 | F69: =OFFSET(InputPriceData!E$15,CalculationsAndCharts!$A69+$A$11,IF($C$7,8,0),1,1) -> 276.709991 | G69: =OFFSET(InputPriceData!F$15,CalculationsAndCharts!$A69+$A$11,IF($C$7,8,0),1,1) -> 278.269989 | H69: 0 | AQ69: 104972900
A70: 38 | B70: =OFFSET(InputPriceData!B$15,CalculationsAndCharts!$A70+$A$11,0,1,1) -> 2019-05-28 | C70: =OFFSET(InputPriceData!G$15,CalculationsAndCharts!$A70+$A$11,IF($C$7,8,0),1,1) -> 70029400 | D70: =OFFSET(InputPriceData!C$15,CalculationsAndCharts!$A70+$A$11,IF($C$7,8,0),1,1) -> 283.089996 | E70: =OFFSET(InputPriceData!D$15,CalculationsAndCharts!$A70+$A$11,IF($C$7,8,0),1,1) -> 284.149994 | F70: =OFFSET(InputPriceData!E$15,CalculationsAndCharts!$A70+$A$11,IF($C$7,8,0),1,1) -> 280.130005 | G70: =OFFSET(InputPriceData!F$15,CalculationsAndCharts!$A70+$A$11,IF($C$7,8,0),1,1) -> 280.149994 | H70: 0 | AQ70: 70029400
A71: 39 | B71: =OFFSET(InputPriceData!B$15,CalculationsAndCharts!$A71+$A$11,0,1,1) -> 2019-05-24 | C71: =OFFSET(InputPriceData!G$15,CalculationsAndCharts!$A71+$A$11,IF($C$7,8,0),1,1) -> 55268100 | D71: =OFFSET(InputPriceData!C$15,CalculationsAndCharts!$A71+$A$11,IF($C$7,8,0),1,1) -> 283.73999 | E71: =OFFSET(InputPriceData!D$15,CalculationsAndCharts!$A71+$A$11,IF($C$7,8,0),1,1) -> 284.200012 | F71: =OFFSET(InputPriceData!E$15,CalculationsAndCharts!$A71+$A$11,IF($C$7,8,0),1,1) -> 282.089996 | G71: =OFFSET(InputPriceData!F$15,CalculationsAndCharts!$A71+$A$11,IF($C$7,8,0),1,1) -> 282.779999 | H71: 0 | AQ71: 55268100
A72: 40 | B72: =OFFSET(InputPriceData!B$15,CalculationsAndCharts!$A72+$A$11,0,1,1) -> 2019-05-23 | C72: =OFFSET(InputPriceData!G$15,CalculationsAndCharts!$A72+$A$11,IF($C$7,8,0),1,1) -> 98733800 | D72: =OFFSET(InputPriceData!C$15,CalculationsAndCharts!$A72+$A$11,IF($C$7,8,0),1,1) -> 283.160004 | E72: =OFFSET(InputPriceData!D$15,CalculationsAndCharts!$A72+$A$11,IF($C$7,8,0),1,1) -> 283.209991 | F72: =OFFSET(InputPriceData!E$15,CalculationsAndCharts!$A72+$A$11,IF($C$7,8,0),1,1) -> 280.570007 | G72: =OFFSET(InputPriceData!F$15,CalculationsAndCharts!$A72+$A$11,IF($C$7,8,0),1,1) -> 282.140015 | H72: 0 | AQ72: 98733800
A73: 41 | B73: =OFFSET(InputPriceData!B$15,CalculationsAndCharts!$A73+$A$11,0,1,1) -> 2019-05-22 | C73: =OFFSET(InputPriceData!G$15,CalculationsAndCharts!$A73+$A$11,IF($C$7,8,0),1,1) -> 49482500 | D73: =OFFSET(InputPriceData!C$15,CalculationsAndCharts!$A73+$A$11,IF($C$7,8,0),1,1) -> 285.450012 | E73: =OFFSET(InputPriceData!D$15,CalculationsAndCharts!$A73+$A$11,IF($C$7,8,0),1,1) -> 286.690002 | F73: =OFFSET(InputPriceData!E$15,CalculationsAndCharts!$A73+$A$11,IF($C$7,8,0),1,1) -> 285.100006 | G73: =OFFSET(InputPriceData!F$15,CalculationsAndCharts!$A73+$A$11,IF($C$7,8,0),1,1) -> 285.630005 | H73: 0 | AP73: 49482500
A74: 42 | B74: =OFFSET(InputPriceData!B$15,CalculationsAndCharts!$A74+$A$11,0,1,1) -> 2019-05-21 | C74: =OFFSET(InputPriceData!G$15,CalculationsAndCharts!$A74+$A$11,IF($C$7,8,0),1,1) -> 46847100 | D74: =OFFSET(InputPriceData!C$15,CalculationsAndCharts!$A74+$A$11,IF($C$7,8,0),1,1) -> 285.829987 | E74: =OFFSET(InputPriceData!D$15,CalculationsAndCharts!$A74+$A$11,IF($C$7,8,0),1,1) -> 286.929993 | F74: =OFFSET(InputPriceData!E$15,CalculationsAndCharts!$A74+$A$11,IF($C$7,8,0),1,1) -> 285.549988 | G74: =OFFSET(InputPriceData!F$15,CalculationsAndCharts!$A74+$A$11,IF($C$7,8,0),1,1) -> 286.51001 | H74: 0 | AP74: 46847100
A75: 43 | B75: =OFFSET(InputPriceData!B$15,CalculationsAndCharts!$A75+$A$11,0,1,1) -> 2019-05-20 | C75: =OFFSET(InputPriceData!G$15,CalculationsAndCharts!$A75+$A$11,IF($C$7,8,0),1,1) -> 62877600 | D75: =OFFSET(InputPriceData!C$15,CalculationsAndCharts!$A75+$A$11,IF($C$7,8,0),1,1) -> 284.059998 | E75: =OFFSET(InputPriceData!D$15,CalculationsAndCharts!$A75+$A$11,IF($C$7,8,0),1,1) -> 285.959991 | F75: =OFFSET(InputPriceData!E$15,CalculationsAndCharts!$A75+$A$11,IF($C$7,8,0),1,1) -> 283.119995 | G75: =OFFSET(InputPriceData!F$15,CalculationsAndCharts!$A75+$A$11,IF($C$7,8,0),1,1) -> 283.950012 | H75: 0 | AQ75: 62877600
A76: 44 | B76: =OFFSET(InputPriceData!B$15,CalculationsAndCharts!$A76+$A$11,0,1,1) -> 2019-05-17 | C76: =OFFSET(InputPriceData!G$15,CalculationsAndCharts!$A76+$A$11,IF($C$7,8,0),1,1) -> 100353000 | D76: =OFFSET(InputPriceData!C$15,CalculationsAndCharts!$A76+$A$11,IF($C$7,8,0),1,1) -> 285.140015 | E76: =OFFSET(InputPriceData!D$15,CalculationsAndCharts!$A76+$A$11,IF($C$7,8,0),1,1) -> 288.600006 | F76: =OFFSET(InputPriceData!E$15,CalculationsAndCharts!$A76+$A$11,IF($C$7,8,0),1,1) -> 285.119995 | G76: =OFFSET(InputPriceData!F$15,CalculationsAndCharts!$A76+$A$11,IF($C$7,8,0),1,1) -> 285.839996 | H76: 0 | AP76: 100353000
A77: 45 | B77: =OFFSET(InputPriceData!B$15,CalculationsAndCharts!$A77+$A$11,0,1,1) -> 2019-05-16 | C77: =OFFSET(InputPriceData!G$15,CalculationsAndCharts!$A77+$A$11,IF($C$7,8,0),1,1) -> 76749600 | D77: =OFFSET(InputPriceData!C$15,CalculationsAndCharts!$A77+$A$11,IF($C$7,8,0),1,1) -> 285.839996 | E77: =OFFSET(InputPriceData!D$15,CalculationsAndCharts!$A77+$A$11,IF($C$7,8,0),1,1) -> 289.209991 | F77: =OFFSET(InputPriceData!E$15,CalculationsAndCharts!$A77+$A$11,IF($C$7,8,0),1,1) -> 285.76001 | G77: =OFFSET(InputPriceData!F$15,CalculationsAndCharts!$A77+$A$11,IF($C$7,8,0),1,1) -> 287.700012 | H77: 0 | AP77: 76749600
A78: 46 | B78: =OFFSET(InputPriceData!B$15,CalculationsAndCharts!$A78+$A$11,0,1,1) -> 2019-05-15 | C78: =OFFSET(InputPriceData!G$15,CalculationsAndCharts!$A78+$A$11,IF($C$7,8,0),1,1) -> 73956400 | D78: =OFFSET(InputPriceData!C$15,CalculationsAndCharts!$A78+$A$11,IF($C$7,8,0),1,1) -> 281.589996 | E78: =OFFSET(InputPriceData!D$15,CalculationsAndCharts!$A78+$A$11,IF($C$7,8,0),1,1) -> 285.769989 | F78: =OFFSET(InputPriceData!E$15,CalculationsAndCharts!$A78+$A$11,IF($C$7,8,0),1,1) -> 281.359985 | G78: =OFFSET(InputPriceData!F$15,CalculationsAndCharts!$A78+$A$11,IF($C$7,8,0),1,1) -> 285.059998 | H78: 0 | AP78: 73956400
A79: 47 | B79: =OFFSET(InputPriceData!B$15,CalculationsAndCharts!$A79+$A$11,0,1,1) -> 2019-05-14 | C79: =OFFSET(InputPriceData!G$15,CalculationsAndCharts!$A79+$A$11,IF($C$7,8,0),1,1) -> 77003200 | D79: =OFFSET(InputPriceData!C$15,CalculationsAndCharts!$A79+$A$11,IF($C$7,8,0),1,1) -> 281.98999 | E79: =OFFSET(InputPriceData!D$15,CalculationsAndCharts!$A79+$A$11,IF($C$7,8,0),1,1) -> 285.100006 | F79: =OFFSET(InputPriceData!E$15,CalculationsAndCharts!$A79+$A$11,IF($C$7,8,0),1,1) -> 281.850006 | G79: =OFFSET(InputPriceData!F$15,CalculationsAndCharts!$A79+$A$11,IF($C$7,8,0),1,1) -> 283.399994 | H79: 0 | AP79: 77003200
A80: 48 | B80: =OFFSET(InputPriceData!B$15,CalculationsAndCharts!$A80+$A$11,0,1,1) -> 2019-05-13 | C80: =OFFSET(InputPriceData!G$15,CalculationsAndCharts!$A80+$A$11,IF($C$7,8,0),1,1) -> 127290500 | D80: =OFFSET(InputPriceData!C$15,CalculationsAndCharts!$A80+$A$11,IF($C$7,8,0),1,1) -> 282.420013 | E80: =OFFSET(InputPriceData!D$15,CalculationsAndCharts!$A80+$A$11,IF($C$7,8,0),1,1) -> 283.48999 | F80: =OFFSET(InputPriceData!E$15,CalculationsAndCharts!$A80+$A$11,IF($C$7,8,0),1,1) -> 279.929993 | G80: =OFFSET(InputPriceData!F$15,CalculationsAndCharts!$A80+$A$11,IF($C$7,8,0),1,1) -> 280.859985 | H80: 0 | AQ80: 127290500
A81: 49 | B81: =OFFSET(InputPriceData!B$15,CalculationsAndCharts!$A81+$A$11,0,1,1) -> 2019-05-10 | C81: =OFFSET(InputPriceData!G$15,CalculationsAndCharts!$A81+$A$11,IF($C$7,8,0),1,1) -> 112429300 | D81: =OFFSET(InputPriceData!C$15,CalculationsAndCharts!$A81+$A$11,IF($C$7,8,0),1,1) -> 285.619995 | E81: =OFFSET(InputPriceData!D$15,CalculationsAndCharts!$A81+$A$11,IF($C$7,8,0),1,1) -> 288.940002 | F81: =OFFSET(InputPriceData!E$15,CalculationsAndCharts!$A81+$A$11,IF($C$7,8,0),1,1) -> 282.299988 | G81: =OFFSET(InputPriceData!F$15,CalculationsAndCharts!$A81+$A$11,IF($C$7,8,0),1,1) -> 288.100006 | H81: 0 | AP81: 112429300
A82: 50 | B82: =OFFSET(InputPriceData!B$15,CalculationsAndCharts!$A82+$A$11,0,1,1) -> 2019-05-09 | C82: =OFFSET(InputPriceData!G$15,CalculationsAndCharts!$A82+$A$11,IF($C$7,8,0),1,1) -> 103471100 | D82: =OFFSET(InputPriceData!C$15,CalculationsAndCharts!$A82+$A$11,IF($C$7,8,0),1,1) -> 285.230011 | E82: =OFFSET(InputPriceData!D$15,CalculationsAndCharts!$A82+$A$11,IF($C$7,8,0),1,1) -> 287.329987 | F82: =OFFSET(InputPriceData!E$15,CalculationsAndCharts!$A82+$A$11,IF($C$7,8,0),1,1) -> 283.299988 | G82: =OFFSET(InputPriceData!F$15,CalculationsAndCharts!$A82+$A$11,IF($C$7,8,0),1,1) -> 286.660004 | H82: 0 | AP82: =IF(G82>=D82,C82,NA()) -> 103471100 | AQ82: =IF(G82<D82,C82,NA()) -> 
A83: 51 | B83: =OFFSET(InputPriceData!B$15,CalculationsAndCharts!$A83+$A$11,0,1,1) -> 2019-05-08 | C83: =OFFSET(InputPriceData!G$15,CalculationsAndCharts!$A83+$A$11,IF($C$7,8,0),1,1) -> 91568300 | D83: =OFFSET(InputPriceData!C$15,CalculationsAndCharts!$A83+$A$11,IF($C$7,8,0),1,1) -> 287.529999 | E83: =OFFSET(InputPriceData!D$15,CalculationsAndCharts!$A83+$A$11,IF($C$7,8,0),1,1) -> 289.429993 | F83: =OFFSET(InputPriceData!E$15,CalculationsAndCharts!$A83+$A$11,IF($C$7,8,0),1,1) -> 286.869995 | G83: =OFFSET(InputPriceData!F$15,CalculationsAndCharts!$A83+$A$11,IF($C$7,8,0),1,1) -> 287.529999 | H83: 0 | AP83: 91568300
A84: 52 | B84: =OFFSET(InputPriceData!B$15,CalculationsAndCharts!$A84+$A$11,0,1,1) -> 2019-05-07 | C84: =OFFSET(InputPriceData!G$15,CalculationsAndCharts!$A84+$A$11,IF($C$7,8,0),1,1) -> 144729900 | D84: =OFFSET(InputPriceData!C$15,CalculationsAndCharts!$A84+$A$11,IF($C$7,8,0),1,1) -> 290.149994 | E84: =OFFSET(InputPriceData!D$15,CalculationsAndCharts!$A84+$A$11,IF($C$7,8,0),1,1) -> 290.809998 | F84: =OFFSET(InputPriceData!E$15,CalculationsAndCharts!$A84+$A$11,IF($C$7,8,0),1,1) -> 285.809998 | G84: =OFFSET(InputPriceData!F$15,CalculationsAndCharts!$A84+$A$11,IF($C$7,8,0),1,1) -> 287.929993 | H84: 0 | AQ84: 144729900
A85: 53 | B85: =OFFSET(InputPriceData!B$15,CalculationsAndCharts!$A85+$A$11,0,1,1) -> 2019-05-06 | C85: =OFFSET(InputPriceData!G$15,CalculationsAndCharts!$A85+$A$11,IF($C$7,8,0),1,1) -> 107198100 | D85: =OFFSET(InputPriceData!C$15,CalculationsAndCharts!$A85+$A$11,IF($C$7,8,0),1,1) -> 289.25 | E85: =OFFSET(InputPriceData!D$15,CalculationsAndCharts!$A85+$A$11,IF($C$7,8,0),1,1) -> 293.309998 | F85: =OFFSET(InputPriceData!E$15,CalculationsAndCharts!$A85+$A$11,IF($C$7,8,0),1,1) -> 288.899994 | G85: =OFFSET(InputPriceData!F$15,CalculationsAndCharts!$A85+$A$11,IF($C$7,8,0),1,1) -> 292.820007 | H85: 0 | AP85: 107198100
A86: 54 | B86: =OFFSET(InputPriceData!B$15,CalculationsAndCharts!$A86+$A$11,0,1,1) -> 2019-05-03 | C86: =OFFSET(InputPriceData!G$15,CalculationsAndCharts!$A86+$A$11,IF($C$7,8,0),1,1) -> 56543700 | D86: =OFFSET(InputPriceData!C$15,CalculationsAndCharts!$A86+$A$11,IF($C$7,8,0),1,1) -> 292.820007 | E86: =OFFSET(InputPriceData!D$15,CalculationsAndCharts!$A86+$A$11,IF($C$7,8,0),1,1) -> 294.339996 | F86: =OFFSET(InputPriceData!E$15,CalculationsAndCharts!$A86+$A$11,IF($C$7,8,0),1,1) -> 291.299988 | G86: =OFFSET(InputPriceData!F$15,CalculationsAndCharts!$A86+$A$11,IF($C$7,8,0),1,1) -> 294.029999 | H86: 0 | AP86: 56543700
A87: 55 | B87: =OFFSET(InputPriceData!B$15,CalculationsAndCharts!$A87+$A$11,0,1,1) -> 2019-05-02 | C87: =OFFSET(InputPriceData!G$15,CalculationsAndCharts!$A87+$A$11,IF($C$7,8,0),1,1) -> 65030200 | D87: =OFFSET(InputPriceData!C$15,CalculationsAndCharts!$A87+$A$11,IF($C$7,8,0),1,1) -> 291.679993 | E87: =OFFSET(InputPriceData!D$15,CalculationsAndCharts!$A87+$A$11,IF($C$7,8,0),1,1) -> 292.700012 | F87: =OFFSET(InputPriceData!E$15,CalculationsAndCharts!$A87+$A$11,IF($C$7,8,0),1,1) -> 289.519989 | G87: =OFFSET(InputPriceData!F$15,CalculationsAndCharts!$A87+$A$11,IF($C$7,8,0),1,1) -> 291.179993 | H87: 0 | AQ87: 65030200
A88: 56 | B88: =OFFSET(InputPriceData!B$15,CalculationsAndCharts!$A88+$A$11,0,1,1) -> 2019-05-01 | C88: =OFFSET(InputPriceData!G$15,CalculationsAndCharts!$A88+$A$11,IF($C$7,8,0),1,1) -> 71671900 | D88: =OFFSET(InputPriceData!C$15,CalculationsAndCharts!$A88+$A$11,IF($C$7,8,0),1,1) -> 294.720001 | E88: =OFFSET(InputPriceData!D$15,CalculationsAndCharts!$A88+$A$11,IF($C$7,8,0),1,1) -> 294.950012 | F88: =OFFSET(InputPriceData!E$15,CalculationsAndCharts!$A88+$A$11,IF($C$7,8,0),1,1) -> 291.799988 | G88: =OFFSET(InputPriceData!F$15,CalculationsAndCharts!$A88+$A$11,IF($C$7,8,0),1,1) -> 291.809998 | H88: 0 | AQ88: 71671900
A89: 57 | B89: =OFFSET(InputPriceData!B$15,CalculationsAndCharts!$A89+$A$11,0,1,1) -> 2019-04-30 | C89: =OFFSET(InputPriceData!G$15,CalculationsAndCharts!$A89+$A$11,IF($C$7,8,0),1,1) -> 81111700 | D89: =OFFSET(InputPriceData!C$15,CalculationsAndCharts!$A89+$A$11,IF($C$7,8,0),1,1) -> 293.48999 | E89: =OFFSET(InputPriceData!D$15,CalculationsAndCharts!$A89+$A$11,IF($C$7,8,0),1,1) -> 294.339996 | F89: =OFFSET(InputPriceData!E$15,CalculationsAndCharts!$A89+$A$11,IF($C$7,8,0),1,1) -> 291.920013 | G89: =OFFSET(InputPriceData!F$15,CalculationsAndCharts!$A89+$A$11,IF($C$7,8,0),1,1) -> 294.019989 | H89: 0 | AP89: 81111700
A90: 58 | B90: =OFFSET(InputPriceData!B$15,CalculationsAndCharts!$A90+$A$11,0,1,1) -> 2019-04-29 | C90: =OFFSET(InputPriceData!G$15,CalculationsAndCharts!$A90+$A$11,IF($C$7,8,0),1,1) -> 57197700 | D90: =OFFSET(InputPriceData!C$15,CalculationsAndCharts!$A90+$A$11,IF($C$7,8,0),1,1) -> 293.51001 | E90: =OFFSET(InputPriceData!D$15,CalculationsAndCharts!$A90+$A$11,IF($C$7,8,0),1,1) -> 294.450012 | F90: =OFFSET(InputPriceData!E$15,CalculationsAndCharts!$A90+$A$11,IF($C$7,8,0),1,1) -> 293.410004 | G90: =OFFSET(InputPriceData!F$15,CalculationsAndCharts!$A90+$A$11,IF($C$7,8,0),1,1) -> 293.869995 | H90: 0 | AP90: 57197700
A91: 59 | B91: =OFFSET(InputPriceData!B$15,CalculationsAndCharts!$A91+$A$11,0,1,1) -> 2019-04-26 | C91: =OFFSET(InputPriceData!G$15,CalculationsAndCharts!$A91+$A$11,IF($C$7,8,0),1,1) -> 50916400 | D91: =OFFSET(InputPriceData!C$15,CalculationsAndCharts!$A91+$A$11,IF($C$7,8,0),1,1) -> 292.100006 | E91: =OFFSET(InputPriceData!D$15,CalculationsAndCharts!$A91+$A$11,IF($C$7,8,0),1,1) -> 293.48999 | F91: =OFFSET(InputPriceData!E$15,CalculationsAndCharts!$A91+$A$11,IF($C$7,8,0),1,1) -> 291.23999 | G91: =OFFSET(InputPriceData!F$15,CalculationsAndCharts!$A91+$A$11,IF($C$7,8,0),1,1) -> 293.410004 | H91: 0 | AP91: 50916400
A92: 60 | B92: =OFFSET(InputPriceData!B$15,CalculationsAndCharts!$A92+$A$11,0,1,1) -> 2019-04-25 | C92: =OFFSET(InputPriceData!G$15,CalculationsAndCharts!$A92+$A$11,IF($C$7,8,0),1,1) -> 57770900 | D92: =OFFSET(InputPriceData!C$15,CalculationsAndCharts!$A92+$A$11,IF($C$7,8,0),1,1) -> 292.119995 | E92: =OFFSET(InputPriceData!D$15,CalculationsAndCharts!$A92+$A$11,IF($C$7,8,0),1,1) -> 292.779999 | F92: =OFFSET(InputPriceData!E$15,CalculationsAndCharts!$A92+$A$11,IF($C$7,8,0),1,1) -> 290.730011 | G92: =OFFSET(InputPriceData!F$15,CalculationsAndCharts!$A92+$A$11,IF($C$7,8,0),1,1) -> 292.049988 | H92: 0 | AQ92: 57770900
A93: 61 | B93: =OFFSET(InputPriceData!B$15,CalculationsAndCharts!$A93+$A$11,0,1,1) -> 2019-04-24 | C93: =OFFSET(InputPriceData!G$15,CalculationsAndCharts!$A93+$A$11,IF($C$7,8,0),1,1) -> 50392900 | D93: =OFFSET(InputPriceData!C$15,CalculationsAndCharts!$A93+$A$11,IF($C$7,8,0),1,1) -> 292.790009 | E93: =OFFSET(InputPriceData!D$15,CalculationsAndCharts!$A93+$A$11,IF($C$7,8,0),1,1) -> 293.160004 | F93: =OFFSET(InputPriceData!E$15,CalculationsAndCharts!$A93+$A$11,IF($C$7,8,0),1,1) -> 292.070007 | G93: =OFFSET(InputPriceData!F$15,CalculationsAndCharts!$A93+$A$11,IF($C$7,8,0),1,1) -> 292.230011 | H93: 0 | AQ93: 50392900
A94: 62 | B94: =OFFSET(InputPriceData!B$15,CalculationsAndCharts!$A94+$A$11,0,1,1) -> 2019-04-23 | C94: =OFFSET(InputPriceData!G$15,CalculationsAndCharts!$A94+$A$11,IF($C$7,8,0),1,1) -> 52246600 | D94: =OFFSET(InputPriceData!C$15,CalculationsAndCharts!$A94+$A$11,IF($C$7,8,0),1,1) -> 290.679993 | E94: =OFFSET(InputPriceData!D$15,CalculationsAndCharts!$A94+$A$11,IF($C$7,8,0),1,1) -> 293.140015 | F94: =OFFSET(InputPriceData!E$15,CalculationsAndCharts!$A94+$A$11,IF($C$7,8,0),1,1) -> 290.420013 | G94: =OFFSET(InputPriceData!F$15,CalculationsAndCharts!$A94+$A$11,IF($C$7,8,0),1,1) -> 292.880005 | H94: 0 | AP94: 52246600
A95: 63 | B95: =OFFSET(InputPriceData!B$15,CalculationsAndCharts!$A95+$A$11,0,1,1) -> 2019-04-22 | C95: =OFFSET(InputPriceData!G$15,CalculationsAndCharts!$A95+$A$11,IF($C$7,8,0),1,1) -> 40160100 | D95: =OFFSET(InputPriceData!C$15,CalculationsAndCharts!$A95+$A$11,IF($C$7,8,0),1,1) -> 289.170013 | E95: =OFFSET(InputPriceData!D$15,CalculationsAndCharts!$A95+$A$11,IF($C$7,8,0),1,1) -> 290.440002 | F95: =OFFSET(InputPriceData!E$15,CalculationsAndCharts!$A95+$A$11,IF($C$7,8,0),1,1) -> 289.070007 | G95: =OFFSET(InputPriceData!F$15,CalculationsAndCharts!$A95+$A$11,IF($C$7,8,0),1,1) -> 290.269989 | H95: 0 | AP95: 40160100
A96: 64 | B96: =OFFSET(InputPriceData!B$15,CalculationsAndCharts!$A96+$A$11,0,1,1) -> 2019-04-18 | C96: =OFFSET(InputPriceData!G$15,CalculationsAndCharts!$A96+$A$11,IF($C$7,8,0),1,1) -> 68708500 | D96: =OFFSET(InputPriceData!C$15,CalculationsAndCharts!$A96+$A$11,IF($C$7,8,0),1,1) -> 290.100006 | E96: =OFFSET(InputPriceData!D$15,CalculationsAndCharts!$A96+$A$11,IF($C$7,8,0),1,1) -> 290.320007 | F96: =OFFSET(InputPriceData!E$15,CalculationsAndCharts!$A96+$A$11,IF($C$7,8,0),1,1) -> 288.660004 | G96: =OFFSET(InputPriceData!F$15,CalculationsAndCharts!$A96+$A$11,IF($C$7,8,0),1,1) -> 290.019989 | H96: 0 | AQ96: 68708500
A97: 65 | B97: =OFFSET(InputPriceData!B$15,CalculationsAndCharts!$A97+$A$11,0,1,1) -> 2019-04-17 | C97: =OFFSET(InputPriceData!G$15,CalculationsAndCharts!$A97+$A$11,IF($C$7,8,0),1,1) -> 58268300 | D97: =OFFSET(InputPriceData!C$15,CalculationsAndCharts!$A97+$A$11,IF($C$7,8,0),1,1) -> 291.399994 | E97: =OFFSET(InputPriceData!D$15,CalculationsAndCharts!$A97+$A$11,IF($C$7,8,0),1,1) -> 291.429993 | F97: =OFFSET(InputPriceData!E$15,CalculationsAndCharts!$A97+$A$11,IF($C$7,8,0),1,1) -> 288.98999 | G97: =OFFSET(InputPriceData!F$15,CalculationsAndCharts!$A97+$A$11,IF($C$7,8,0),1,1) -> 289.450012 | H97: 0 | AQ97: 58268300
A98: 66 | B98: =OFFSET(InputPriceData!B$15,CalculationsAndCharts!$A98+$A$11,0,1,1) -> 2019-04-16 | C98: =OFFSET(InputPriceData!G$15,CalculationsAndCharts!$A98+$A$11,IF($C$7,8,0),1,1) -> 52153200 | D98: =OFFSET(InputPriceData!C$15,CalculationsAndCharts!$A98+$A$11,IF($C$7,8,0),1,1) -> 290.950012 | E98: =OFFSET(InputPriceData!D$15,CalculationsAndCharts!$A98+$A$11,IF($C$7,8,0),1,1) -> 291.01001 | F98: =OFFSET(InputPriceData!E$15,CalculationsAndCharts!$A98+$A$11,IF($C$7,8,0),1,1) -> 289.5 | G98: =OFFSET(InputPriceData!F$15,CalculationsAndCharts!$A98+$A$11,IF($C$7,8,0),1,1) -> 290.160004 | H98: =0.5*$D$22*(G98-G100)+$D$18*$D$21*H99-$D$20*H100 -> 0 | AQ98: 52153200
A99: 67 | B99: =OFFSET(InputPriceData!B$15,CalculationsAndCharts!$A99+$A$11,0,1,1) -> 2019-04-15 | C99: =OFFSET(InputPriceData!G$15,CalculationsAndCharts!$A99+$A$11,IF($C$7,8,0),1,1) -> 49596700 | D99: =OFFSET(InputPriceData!C$15,CalculationsAndCharts!$A99+$A$11,IF($C$7,8,0),1,1) -> 290.23999 | E99: =OFFSET(InputPriceData!D$15,CalculationsAndCharts!$A99+$A$11,IF($C$7,8,0),1,1) -> 290.350006 | F99: =OFFSET(InputPriceData!E$15,CalculationsAndCharts!$A99+$A$11,IF($C$7,8,0),1,1) -> 289.079987 | G99: =OFFSET(InputPriceData!F$15,CalculationsAndCharts!$A99+$A$11,IF($C$7,8,0),1,1) -> 289.970001 | H99: 0 | AQ99: 49596700
A100: 68 | B100: =OFFSET(InputPriceData!B$15,CalculationsAndCharts!$A100+$A$11,0,1,1) -> 2019-04-12 | C100: =OFFSET(InputPriceData!G$15,CalculationsAndCharts!$A100+$A$11,IF($C$7,8,0),1,1) -> 69727800 | D100: =OFFSET(InputPriceData!C$15,CalculationsAndCharts!$A100+$A$11,IF($C$7,8,0),1,1) -> 290 | E100: =OFFSET(InputPriceData!D$15,CalculationsAndCharts!$A100+$A$11,IF($C$7,8,0),1,1) -> 290.470001 | F100: =OFFSET(InputPriceData!E$15,CalculationsAndCharts!$A100+$A$11,IF($C$7,8,0),1,1) -> 288.26001 | G100: =OFFSET(InputPriceData!F$15,CalculationsAndCharts!$A100+$A$11,IF($C$7,8,0),1,1) -> 290.160004 | H100: 0 | AP100: 69727800
A101: 69 | B101: =OFFSET(InputPriceData!B$15,CalculationsAndCharts!$A101+$A$11,0,1,1) -> 2019-04-11 | C101: =OFFSET(InputPriceData!G$15,CalculationsAndCharts!$A101+$A$11,IF($C$7,8,0),1,1) -> 55093100 | D101: =OFFSET(InputPriceData!C$15,CalculationsAndCharts!$A101+$A$11,IF($C$7,8,0),1,1) -> 288.829987 | E101: =OFFSET(InputPriceData!D$15,CalculationsAndCharts!$A101+$A$11,IF($C$7,8,0),1,1) -> 288.839996 | F101: =OFFSET(InputPriceData!E$15,CalculationsAndCharts!$A101+$A$11,IF($C$7,8,0),1,1) -> 287.579987 | G101: =OFFSET(InputPriceData!F$15,CalculationsAndCharts!$A101+$A$11,IF($C$7,8,0),1,1) -> 288.209991 | H101: 0 | AQ101: 55093100
A102: 70 | B102: =OFFSET(InputPriceData!B$15,CalculationsAndCharts!$A102+$A$11,0,1,1) -> 2019-04-10 | C102: =OFFSET(InputPriceData!G$15,CalculationsAndCharts!$A102+$A$11,IF($C$7,8,0),1,1) -> 52601500 | D102: =OFFSET(InputPriceData!C$15,CalculationsAndCharts!$A102+$A$11,IF($C$7,8,0),1,1) -> 287.769989 | E102: =OFFSET(InputPriceData!D$15,CalculationsAndCharts!$A102+$A$11,IF($C$7,8,0),1,1) -> 288.390015 | F102: =OFFSET(InputPriceData!E$15,CalculationsAndCharts!$A102+$A$11,IF($C$7,8,0),1,1) -> 287.309998 | G102: =OFFSET(InputPriceData!F$15,CalculationsAndCharts!$A102+$A$11,IF($C$7,8,0),1,1) -> 288.290009 | H102: 0 | AP102: 52601500
A103: 71 | B103: =OFFSET(InputPriceData!B$15,CalculationsAndCharts!$A103+$A$11,0,1,1) -> 2019-04-09 | C103: =OFFSET(InputPriceData!G$15,CalculationsAndCharts!$A103+$A$11,IF($C$7,8,0),1,1) -> 66142300 | D103: =OFFSET(InputPriceData!C$15,CalculationsAndCharts!$A103+$A$11,IF($C$7,8,0),1,1) -> 287.720001 | E103: =OFFSET(InputPriceData!D$15,CalculationsAndCharts!$A103+$A$11,IF($C$7,8,0),1,1) -> 288.079987 | F103: =OFFSET(InputPriceData!E$15,CalculationsAndCharts!$A103+$A$11,IF($C$7,8,0),1,1) -> 286.700012 | G103: =OFFSET(InputPriceData!F$15,CalculationsAndCharts!$A103+$A$11,IF($C$7,8,0),1,1) -> 287.309998 | H103: 0 | AQ103: 66142300
A104: 72 | B104: =OFFSET(InputPriceData!B$15,CalculationsAndCharts!$A104+$A$11,0,1,1) -> 2019-04-08 | C104: =OFFSET(InputPriceData!G$15,CalculationsAndCharts!$A104+$A$11,IF($C$7,8,0),1,1) -> 53566300 | D104: =OFFSET(InputPriceData!C$15,CalculationsAndCharts!$A104+$A$11,IF($C$7,8,0),1,1) -> 288.100006 | E104: =OFFSET(InputPriceData!D$15,CalculationsAndCharts!$A104+$A$11,IF($C$7,8,0),1,1) -> 288.910004 | F104: =OFFSET(InputPriceData!E$15,CalculationsAndCharts!$A104+$A$11,IF($C$7,8,0),1,1) -> 287.369995 | G104: =OFFSET(InputPriceData!F$15,CalculationsAndCharts!$A104+$A$11,IF($C$7,8,0),1,1) -> 288.790009 | H104: 0 | AP104: 53566300
A105: 73 | B105: =OFFSET(InputPriceData!B$15,CalculationsAndCharts!$A105+$A$11,0,1,1) -> 2019-04-05 | C105: =OFFSET(InputPriceData!G$15,CalculationsAndCharts!$A105+$A$11,IF($C$7,8,0),1,1) -> 58621700 | D105: =OFFSET(InputPriceData!C$15,CalculationsAndCharts!$A105+$A$11,IF($C$7,8,0),1,1) -> 287.920013 | E105: =OFFSET(InputPriceData!D$15,CalculationsAndCharts!$A105+$A$11,IF($C$7,8,0),1,1) -> 288.630005 | F105: =OFFSET(InputPriceData!E$15,CalculationsAndCharts!$A105+$A$11,IF($C$7,8,0),1,1) -> 287.600006 | G105: =OFFSET(InputPriceData!F$15,CalculationsAndCharts!$A105+$A$11,IF($C$7,8,0),1,1) -> 288.570007 | H105: 0 | AP105: 58621700
A106: 74 | B106: =OFFSET(InputPriceData!B$15,CalculationsAndCharts!$A106+$A$11,0,1,1) -> 2019-04-04 | C106: =OFFSET(InputPriceData!G$15,CalculationsAndCharts!$A106+$A$11,IF($C$7,8,0),1,1) -> 48997500 | D106: =OFFSET(InputPriceData!C$15,CalculationsAndCharts!$A106+$A$11,IF($C$7,8,0),1,1) -> 286.779999 | E106: =OFFSET(InputPriceData!D$15,CalculationsAndCharts!$A106+$A$11,IF($C$7,8,0),1,1) -> 287.459991 | F106: =OFFSET(InputPriceData!E$15,CalculationsAndCharts!$A106+$A$11,IF($C$7,8,0),1,1) -> 286.01001 | G106: =OFFSET(InputPriceData!F$15,CalculationsAndCharts!$A106+$A$11,IF($C$7,8,0),1,1) -> 287.179993 | H106: 0 | AP106: 48997500
A107: 75 | B107: =OFFSET(InputPriceData!B$15,CalculationsAndCharts!$A107+$A$11,0,1,1) -> 2019-04-03 | C107: =OFFSET(InputPriceData!G$15,CalculationsAndCharts!$A107+$A$11,IF($C$7,8,0),1,1) -> 68243200 | D107: =OFFSET(InputPriceData!C$15,CalculationsAndCharts!$A107+$A$11,IF($C$7,8,0),1,1) -> 287.320007 | E107: =OFFSET(InputPriceData!D$15,CalculationsAndCharts!$A107+$A$11,IF($C$7,8,0),1,1) -> 287.76001 | F107: =OFFSET(InputPriceData!E$15,CalculationsAndCharts!$A107+$A$11,IF($C$7,8,0),1,1) -> 285.75 | G107: =OFFSET(InputPriceData!F$15,CalculationsAndCharts!$A107+$A$11,IF($C$7,8,0),1,1) -> 286.420013 | H107: 0 | AQ107: 68243200
A108: 76 | B108: =OFFSET(InputPriceData!B$15,CalculationsAndCharts!$A108+$A$11,0,1,1) -> 2019-04-02 | C108: =OFFSET(InputPriceData!G$15,CalculationsAndCharts!$A108+$A$11,IF($C$7,8,0),1,1) -> 40070400 | D108: =OFFSET(InputPriceData!C$15,CalculationsAndCharts!$A108+$A$11,IF($C$7,8,0),1,1) -> 286.040009 | E108: =OFFSET(InputPriceData!D$15,CalculationsAndCharts!$A108+$A$11,IF($C$7,8,0),1,1) -> 286.230011 | F108: =OFFSET(InputPriceData!E$15,CalculationsAndCharts!$A108+$A$11,IF($C$7,8,0),1,1) -> 285.089996 | G108: =OFFSET(InputPriceData!F$15,CalculationsAndCharts!$A108+$A$11,IF($C$7,8,0),1,1) -> 285.970001 | H108: 0 | AQ108: 40070400
A109: 77 | B109: =OFFSET(InputPriceData!B$15,CalculationsAndCharts!$A109+$A$11,0,1,1) -> 2019-04-01 | C109: =OFFSET(InputPriceData!G$15,CalculationsAndCharts!$A109+$A$11,IF($C$7,8,0),1,1) -> 77617900 | D109: =OFFSET(InputPriceData!C$15,CalculationsAndCharts!$A109+$A$11,IF($C$7,8,0),1,1) -> 284.700012 | E109: =OFFSET(InputPriceData!D$15,CalculationsAndCharts!$A109+$A$11,IF($C$7,8,0),1,1) -> 286.160004 | F109: =OFFSET(InputPriceData!E$15,CalculationsAndCharts!$A109+$A$11,IF($C$7,8,0),1,1) -> 284.399994 | G109: =OFFSET(InputPriceData!F$15,CalculationsAndCharts!$A109+$A$11,IF($C$7,8,0),1,1) -> 285.829987 | H109: 0 | AP109: 77617900
A110: 78 | B110: =OFFSET(InputPriceData!B$15,CalculationsAndCharts!$A110+$A$11,0,1,1) -> 2019-03-29 | C110: =OFFSET(InputPriceData!G$15,CalculationsAndCharts!$A110+$A$11,IF($C$7,8,0),1,1) -> 82186800 | D110: =OFFSET(InputPriceData!C$15,CalculationsAndCharts!$A110+$A$11,IF($C$7,8,0),1,1) -> 282.390015 | E110: =OFFSET(InputPriceData!D$15,CalculationsAndCharts!$A110+$A$11,IF($C$7,8,0),1,1) -> 282.839996 | F110: =OFFSET(InputPriceData!E$15,CalculationsAndCharts!$A110+$A$11,IF($C$7,8,0),1,1) -> 281.140015 | G110: =OFFSET(InputPriceData!F$15,CalculationsAndCharts!$A110+$A$11,IF($C$7,8,0),1,1) -> 282.480011 | H110: 0 | AP110: 82186800
A111: 79 | B111: =OFFSET(InputPriceData!B$15,CalculationsAndCharts!$A111+$A$11,0,1,1) -> 2019-03-28 | C111: =OFFSET(InputPriceData!G$15,CalculationsAndCharts!$A111+$A$11,IF($C$7,8,0),1,1) -> 56238500 | D111: =OFFSET(InputPriceData!C$15,CalculationsAndCharts!$A111+$A$11,IF($C$7,8,0),1,1) -> 280.350006 | E111: =OFFSET(InputPriceData!D$15,CalculationsAndCharts!$A111+$A$11,IF($C$7,8,0),1,1) -> 281.209991 | F111: =OFFSET(InputPriceData!E$15,CalculationsAndCharts!$A111+$A$11,IF($C$7,8,0),1,1) -> 279.070007 | G111: =OFFSET(InputPriceData!F$15,CalculationsAndCharts!$A111+$A$11,IF($C$7,8,0),1,1) -> 280.709991 | H111: 0 | AP111: 56238500
A112: 80 | B112: =OFFSET(InputPriceData!B$15,CalculationsAndCharts!$A112+$A$11,0,1,1) -> 2019-03-27 | C112: =OFFSET(InputPriceData!G$15,CalculationsAndCharts!$A112+$A$11,IF($C$7,8,0),1,1) -> 72224700 | D112: =OFFSET(InputPriceData!C$15,CalculationsAndCharts!$A112+$A$11,IF($C$7,8,0),1,1) -> 281.109985 | E112: =OFFSET(InputPriceData!D$15,CalculationsAndCharts!$A112+$A$11,IF($C$7,8,0),1,1) -> 281.76001 | F112: =OFFSET(InputPriceData!E$15,CalculationsAndCharts!$A112+$A$11,IF($C$7,8,0),1,1) -> 277.929993 | G112: =OFFSET(InputPriceData!F$15,CalculationsAndCharts!$A112+$A$11,IF($C$7,8,0),1,1) -> 279.649994 | H112: 0 | AQ112: 72224700
A113: 81 | B113: =OFFSET(InputPriceData!B$15,CalculationsAndCharts!$A113+$A$11,0,1,1) -> 2019-03-26 | C113: =OFFSET(InputPriceData!G$15,CalculationsAndCharts!$A113+$A$11,IF($C$7,8,0),1,1) -> 68125900 | D113: =OFFSET(InputPriceData!C$15,CalculationsAndCharts!$A113+$A$11,IF($C$7,8,0),1,1) -> 280.98999 | E113: =OFFSET(InputPriceData!D$15,CalculationsAndCharts!$A113+$A$11,IF($C$7,8,0),1,1) -> 282.179993 | F113: =OFFSET(InputPriceData!E$15,CalculationsAndCharts!$A113+$A$11,IF($C$7,8,0),1,1) -> 279.559998 | G113: =OFFSET(InputPriceData!F$15,CalculationsAndCharts!$A113+$A$11,IF($C$7,8,0),1,1) -> 281.119995 | H113: 0 | AP113: 68125900
A114: 82 | B114: =OFFSET(InputPriceData!B$15,CalculationsAndCharts!$A114+$A$11,0,1,1) -> 2019-03-25 | C114: =OFFSET(InputPriceData!G$15,CalculationsAndCharts!$A114+$A$11,IF($C$7,8,0),1,1) -> 85575200 | D114: =OFFSET(InputPriceData!C$15,CalculationsAndCharts!$A114+$A$11,IF($C$7,8,0),1,1) -> 278.869995 | E114: =OFFSET(InputPriceData!D$15,CalculationsAndCharts!$A114+$A$11,IF($C$7,8,0),1,1) -> 280.190002 | F114: =OFFSET(InputPriceData!E$15,CalculationsAndCharts!$A114+$A$11,IF($C$7,8,0),1,1) -> 277.640015 | G114: =OFFSET(InputPriceData!F$15,CalculationsAndCharts!$A114+$A$11,IF($C$7,8,0),1,1) -> 279.040009 | H114: 0 | AP114: 85575200
A115: 83 | B115: =OFFSET(InputPriceData!B$15,CalculationsAndCharts!$A115+$A$11,0,1,1) -> 2019-03-22 | C115: =OFFSET(InputPriceData!G$15,CalculationsAndCharts!$A115+$A$11,IF($C$7,8,0),1,1) -> 122659300 | D115: =OFFSET(InputPriceData!C$15,CalculationsAndCharts!$A115+$A$11,IF($C$7,8,0),1,1) -> 283.220001 | E115: =OFFSET(InputPriceData!D$15,CalculationsAndCharts!$A115+$A$11,IF($C$7,8,0),1,1) -> 283.799988 | F115: =OFFSET(InputPriceData!E$15,CalculationsAndCharts!$A115+$A$11,IF($C$7,8,0),1,1) -> 279.179993 | G115: =OFFSET(InputPriceData!F$15,CalculationsAndCharts!$A115+$A$11,IF($C$7,8,0),1,1) -> 279.25 | H115: 0 | AQ115: 122659300
A116: 84 | B116: =OFFSET(InputPriceData!B$15,CalculationsAndCharts!$A116+$A$11,0,1,1) -> 2019-03-21 | C116: =OFFSET(InputPriceData!G$15,CalculationsAndCharts!$A116+$A$11,IF($C$7,8,0),1,1) -> 79550400 | D116: =OFFSET(InputPriceData!C$15,CalculationsAndCharts!$A116+$A$11,IF($C$7,8,0),1,1) -> 280.640015 | E116: =OFFSET(InputPriceData!D$15,CalculationsAndCharts!$A116+$A$11,IF($C$7,8,0),1,1) -> 285.179993 | F116: =OFFSET(InputPriceData!E$15,CalculationsAndCharts!$A116+$A$11,IF($C$7,8,0),1,1) -> 280.589996 | G116: =OFFSET(InputPriceData!F$15,CalculationsAndCharts!$A116+$A$11,IF($C$7,8,0),1,1) -> 284.730011 | H116: 0 | AP116: 79550400
A117: 85 | B117: =OFFSET(InputPriceData!B$15,CalculationsAndCharts!$A117+$A$11,0,1,1) -> 2019-03-20 | C117: =OFFSET(InputPriceData!G$15,CalculationsAndCharts!$A117+$A$11,IF($C$7,8,0),1,1) -> 84609200 | D117: =OFFSET(InputPriceData!C$15,CalculationsAndCharts!$A117+$A$11,IF($C$7,8,0),1,1) -> 282.160004 | E117: =OFFSET(InputPriceData!D$15,CalculationsAndCharts!$A117+$A$11,IF($C$7,8,0),1,1) -> 283.5 | F117: =OFFSET(InputPriceData!E$15,CalculationsAndCharts!$A117+$A$11,IF($C$7,8,0),1,1) -> 280.320007 | G117: =OFFSET(InputPriceData!F$15,CalculationsAndCharts!$A117+$A$11,IF($C$7,8,0),1,1) -> 281.549988 | H117: 0 | AQ117: 84609200
A118: 86 | B118: =OFFSET(InputPriceData!B$15,CalculationsAndCharts!$A118+$A$11,0,1,1) -> 2019-03-19 | C118: =OFFSET(InputPriceData!G$15,CalculationsAndCharts!$A118+$A$11,IF($C$7,8,0),1,1) -> 90268100 | D118: =OFFSET(InputPriceData!C$15,CalculationsAndCharts!$A118+$A$11,IF($C$7,8,0),1,1) -> 283.51001 | E118: =OFFSET(InputPriceData!D$15,CalculationsAndCharts!$A118+$A$11,IF($C$7,8,0),1,1) -> 284.359985 | F118: =OFFSET(InputPriceData!E$15,CalculationsAndCharts!$A118+$A$11,IF($C$7,8,0),1,1) -> 281.410004 | G118: =OFFSET(InputPriceData!F$15,CalculationsAndCharts!$A118+$A$11,IF($C$7,8,0),1,1) -> 282.399994 | H118: 0 | AQ118: 90268100
A119: 87 | B119: =OFFSET(InputPriceData!B$15,CalculationsAndCharts!$A119+$A$11,0,1,1) -> 2019-03-18 | C119: =OFFSET(InputPriceData!G$15,CalculationsAndCharts!$A119+$A$11,IF($C$7,8,0),1,1) -> 62199800 | D119: =OFFSET(InputPriceData!C$15,CalculationsAndCharts!$A119+$A$11,IF($C$7,8,0),1,1) -> 281.549988 | E119: =OFFSET(InputPriceData!D$15,CalculationsAndCharts!$A119+$A$11,IF($C$7,8,0),1,1) -> 282.660004 | F119: =OFFSET(InputPriceData!E$15,CalculationsAndCharts!$A119+$A$11,IF($C$7,8,0),1,1) -> 281.299988 | G119: =OFFSET(InputPriceData!F$15,CalculationsAndCharts!$A119+$A$11,IF($C$7,8,0),1,1) -> 282.329987 | H119: 0 | AP119: 62199800
A120: 88 | B120: =OFFSET(InputPriceData!B$15,CalculationsAndCharts!$A120+$A$11,0,1,1) -> 2019-03-15 | C120: =OFFSET(InputPriceData!G$15,CalculationsAndCharts!$A120+$A$11,IF($C$7,8,0),1,1) -> 81309000 | D120: =OFFSET(InputPriceData!C$15,CalculationsAndCharts!$A120+$A$11,IF($C$7,8,0),1,1) -> 280.540009 | E120: =OFFSET(InputPriceData!D$15,CalculationsAndCharts!$A120+$A$11,IF($C$7,8,0),1,1) -> 282.209991 | F120: =OFFSET(InputPriceData!E$15,CalculationsAndCharts!$A120+$A$11,IF($C$7,8,0),1,1) -> 280.329987 | G120: =OFFSET(InputPriceData!F$15,CalculationsAndCharts!$A120+$A$11,IF($C$7,8,0),1,1) -> 281.309998 | H120: 0 | AP120: 81309000
A121: 89 | B121: =OFFSET(InputPriceData!B$15,CalculationsAndCharts!$A121+$A$11,0,1,1) -> 2019-03-14 | C121: =OFFSET(InputPriceData!G$15,CalculationsAndCharts!$A121+$A$11,IF($C$7,8,0),1,1) -> 67518400 | D121: =OFFSET(InputPriceData!C$15,CalculationsAndCharts!$A121+$A$11,IF($C$7,8,0),1,1) -> 281.369995 | E121: =OFFSET(InputPriceData!D$15,CalculationsAndCharts!$A121+$A$11,IF($C$7,8,0),1,1) -> 281.839996 | F121: =OFFSET(InputPriceData!E$15,CalculationsAndCharts!$A121+$A$11,IF($C$7,8,0),1,1) -> 280.670013 | G121: =OFFSET(InputPriceData!F$15,CalculationsAndCharts!$A121+$A$11,IF($C$7,8,0),1,1) -> 281.160004 | H121: 0 | AQ121: 67518400
A122: 90 | B122: =OFFSET(InputPriceData!B$15,CalculationsAndCharts!$A122+$A$11,0,1,1) -> 2019-03-13 | C122: =OFFSET(InputPriceData!G$15,CalculationsAndCharts!$A122+$A$11,IF($C$7,8,0),1,1) -> 80639200 | D122: =OFFSET(InputPriceData!C$15,CalculationsAndCharts!$A122+$A$11,IF($C$7,8,0),1,1) -> 280.480011 | E122: =OFFSET(InputPriceData!D$15,CalculationsAndCharts!$A122+$A$11,IF($C$7,8,0),1,1) -> 282.380005 | F122: =OFFSET(InputPriceData!E$15,CalculationsAndCharts!$A122+$A$11,IF($C$7,8,0),1,1) -> 280.299988 | G122: =OFFSET(InputPriceData!F$15,CalculationsAndCharts!$A122+$A$11,IF($C$7,8,0),1,1) -> 281.339996 | H122: 0 | AP122: 80639200
A123: 91 | B123: =OFFSET(InputPriceData!B$15,CalculationsAndCharts!$A123+$A$11,0,1,1) -> 2019-03-12 | C123: =OFFSET(InputPriceData!G$15,CalculationsAndCharts!$A123+$A$11,IF($C$7,8,0),1,1) -> 79667500 | D123: =OFFSET(InputPriceData!C$15,CalculationsAndCharts!$A123+$A$11,IF($C$7,8,0),1,1) -> 279.059998 | E123: =OFFSET(InputPriceData!D$15,CalculationsAndCharts!$A123+$A$11,IF($C$7,8,0),1,1) -> 280.070007 | F123: =OFFSET(InputPriceData!E$15,CalculationsAndCharts!$A123+$A$11,IF($C$7,8,0),1,1) -> 278.850006 | G123: =OFFSET(InputPriceData!F$15,CalculationsAndCharts!$A123+$A$11,IF($C$7,8,0),1,1) -> 279.48999 | H123: 0 | AP123: 79667500
A124: 92 | B124: =OFFSET(InputPriceData!B$15,CalculationsAndCharts!$A124+$A$11,0,1,1) -> 2019-03-11 | C124: =OFFSET(InputPriceData!G$15,CalculationsAndCharts!$A124+$A$11,IF($C$7,8,0),1,1) -> 65098900 | D124: =OFFSET(InputPriceData!C$15,CalculationsAndCharts!$A124+$A$11,IF($C$7,8,0),1,1) -> 275.26001 | E124: =OFFSET(InputPriceData!D$15,CalculationsAndCharts!$A124+$A$11,IF($C$7,8,0),1,1) -> 278.619995 | F124: =OFFSET(InputPriceData!E$15,CalculationsAndCharts!$A124+$A$11,IF($C$7,8,0),1,1) -> 275.230011 | G124: =OFFSET(InputPriceData!F$15,CalculationsAndCharts!$A124+$A$11,IF($C$7,8,0),1,1) -> 278.440002 | H124: 0 | AP124: 65098900
A125: 93 | B125: =OFFSET(InputPriceData!B$15,CalculationsAndCharts!$A125+$A$11,0,1,1) -> 2019-03-08 | C125: =OFFSET(InputPriceData!G$15,CalculationsAndCharts!$A125+$A$11,IF($C$7,8,0),1,1) -> 85795800 | D125: =OFFSET(InputPriceData!C$15,CalculationsAndCharts!$A125+$A$11,IF($C$7,8,0),1,1) -> 272.940002 | E125: =OFFSET(InputPriceData!D$15,CalculationsAndCharts!$A125+$A$11,IF($C$7,8,0),1,1) -> 274.649994 | F125: =OFFSET(InputPriceData!E$15,CalculationsAndCharts!$A125+$A$11,IF($C$7,8,0),1,1) -> 272.420013 | G125: =OFFSET(InputPriceData!F$15,CalculationsAndCharts!$A125+$A$11,IF($C$7,8,0),1,1) -> 274.459991 | H125: 0 | AP125: 85795800
A126: 94 | B126: =OFFSET(InputPriceData!B$15,CalculationsAndCharts!$A126+$A$11,0,1,1) -> 2019-03-07 | C126: =OFFSET(InputPriceData!G$15,CalculationsAndCharts!$A126+$A$11,IF($C$7,8,0),1,1) -> 94885100 | D126: =OFFSET(InputPriceData!C$15,CalculationsAndCharts!$A126+$A$11,IF($C$7,8,0),1,1) -> 276.829987 | E126: =OFFSET(InputPriceData!D$15,CalculationsAndCharts!$A126+$A$11,IF($C$7,8,0),1,1) -> 276.98999 | F126: =OFFSET(InputPriceData!E$15,CalculationsAndCharts!$A126+$A$11,IF($C$7,8,0),1,1) -> 274.070007 | G126: =OFFSET(InputPriceData!F$15,CalculationsAndCharts!$A126+$A$11,IF($C$7,8,0),1,1) -> 275.01001 | H126: 0 | AQ126: 94885100
A127: 95 | B127: =OFFSET(InputPriceData!B$15,CalculationsAndCharts!$A127+$A$11,0,1,1) -> 2019-03-06 | C127: =OFFSET(InputPriceData!G$15,CalculationsAndCharts!$A127+$A$11,IF($C$7,8,0),1,1) -> 75039800 | D127: =OFFSET(InputPriceData!C$15,CalculationsAndCharts!$A127+$A$11,IF($C$7,8,0),1,1) -> 279.149994 | E127: =OFFSET(InputPriceData!D$15,CalculationsAndCharts!$A127+$A$11,IF($C$7,8,0),1,1) -> 279.160004 | F127: =OFFSET(InputPriceData!E$15,CalculationsAndCharts!$A127+$A$11,IF($C$7,8,0),1,1) -> 276.970001 | G127: =OFFSET(InputPriceData!F$15,CalculationsAndCharts!$A127+$A$11,IF($C$7,8,0),1,1) -> 277.329987 | H127: 0 | AQ127: 75039800
A128: 96 | B128: =OFFSET(InputPriceData!B$15,CalculationsAndCharts!$A128+$A$11,0,1,1) -> 2019-03-05 | C128: =OFFSET(InputPriceData!G$15,CalculationsAndCharts!$A128+$A$11,IF($C$7,8,0),1,1) -> 59114600 | D128: =OFFSET(InputPriceData!C$15,CalculationsAndCharts!$A128+$A$11,IF($C$7,8,0),1,1) -> 279.540009 | E128: =OFFSET(InputPriceData!D$15,CalculationsAndCharts!$A128+$A$11,IF($C$7,8,0),1,1) -> 279.76001 | F128: =OFFSET(InputPriceData!E$15,CalculationsAndCharts!$A128+$A$11,IF($C$7,8,0),1,1) -> 278.410004 | G128: =OFFSET(InputPriceData!F$15,CalculationsAndCharts!$A128+$A$11,IF($C$7,8,0),1,1) -> 279.019989 | H128: 0 | AQ128: 59114600
A129: 97 | B129: =OFFSET(InputPriceData!B$15,CalculationsAndCharts!$A129+$A$11,0,1,1) -> 2019-03-04 | C129: =OFFSET(InputPriceData!G$15,CalculationsAndCharts!$A129+$A$11,IF($C$7,8,0),1,1) -> 106494600 | D129: =OFFSET(InputPriceData!C$15,CalculationsAndCharts!$A129+$A$11,IF($C$7,8,0),1,1) -> 281.600006 | E129: =OFFSET(InputPriceData!D$15,CalculationsAndCharts!$A129+$A$11,IF($C$7,8,0),1,1) -> 281.869995 | F129: =OFFSET(InputPriceData!E$15,CalculationsAndCharts!$A129+$A$11,IF($C$7,8,0),1,1) -> 276.839996 | G129: =OFFSET(InputPriceData!F$15,CalculationsAndCharts!$A129+$A$11,IF($C$7,8,0),1,1) -> 279.399994 | H129: 0 | AQ129: 106494600
A130: 98 | B130: =OFFSET(InputPriceData!B$15,CalculationsAndCharts!$A130+$A$11,0,1,1) -> 2019-03-01 | C130: =OFFSET(InputPriceData!G$15,CalculationsAndCharts!$A130+$A$11,IF($C$7,8,0),1,1) -> 78880500 | D130: =OFFSET(InputPriceData!C$15,CalculationsAndCharts!$A130+$A$11,IF($C$7,8,0),1,1) -> 280.440002 | E130: =OFFSET(InputPriceData!D$15,CalculationsAndCharts!$A130+$A$11,IF($C$7,8,0),1,1) -> 280.880005 | F130: =OFFSET(InputPriceData!E$15,CalculationsAndCharts!$A130+$A$11,IF($C$7,8,0),1,1) -> 278.820007 | G130: =OFFSET(InputPriceData!F$15,CalculationsAndCharts!$A130+$A$11,IF($C$7,8,0),1,1) -> 280.420013 | H130: 0 | AQ130: 78880500
A131: 99 | B131: =OFFSET(InputPriceData!B$15,CalculationsAndCharts!$A131+$A$11,0,1,1) -> 2019-02-28 | C131: =OFFSET(InputPriceData!G$15,CalculationsAndCharts!$A131+$A$11,IF($C$7,8,0),1,1) -> 69268300 | D131: =OFFSET(InputPriceData!C$15,CalculationsAndCharts!$A131+$A$11,IF($C$7,8,0),1,1) -> 278.959991 | E131: =OFFSET(InputPriceData!D$15,CalculationsAndCharts!$A131+$A$11,IF($C$7,8,0),1,1) -> 279.450012 | F131: =OFFSET(InputPriceData!E$15,CalculationsAndCharts!$A131+$A$11,IF($C$7,8,0),1,1) -> 278.320007 | G131: =OFFSET(InputPriceData!F$15,CalculationsAndCharts!$A131+$A$11,IF($C$7,8,0),1,1) -> 278.679993 | H131: 0 | AQ131: 69268300
A132: 100 | B132: =OFFSET(InputPriceData!B$15,CalculationsAndCharts!$A132+$A$11,0,1,1) -> 2019-02-27 | C132: =OFFSET(InputPriceData!G$15,CalculationsAndCharts!$A132+$A$11,IF($C$7,8,0),1,1) -> 56921600 | D132: =OFFSET(InputPriceData!C$15,CalculationsAndCharts!$A132+$A$11,IF($C$7,8,0),1,1) -> 278.519989 | E132: =OFFSET(InputPriceData!D$15,CalculationsAndCharts!$A132+$A$11,IF($C$7,8,0),1,1) -> 279.589996 | F132: =OFFSET(InputPriceData!E$15,CalculationsAndCharts!$A132+$A$11,IF($C$7,8,0),1,1) -> 277.480011 | G132: =OFFSET(InputPriceData!F$15,CalculationsAndCharts!$A132+$A$11,IF($C$7,8,0),1,1) -> 279.200012 | H132: 0 | AP132: 56921600
A133: 101 | B133: =OFFSET(InputPriceData!B$15,CalculationsAndCharts!$A133+$A$11,0,1,1) -> 2019-02-26 | C133: =OFFSET(InputPriceData!G$15,CalculationsAndCharts!$A133+$A$11,IF($C$7,8,0),1,1) -> 56844100 | D133: =OFFSET(InputPriceData!C$15,CalculationsAndCharts!$A133+$A$11,IF($C$7,8,0),1,1) -> 279.130005 | E133: =OFFSET(InputPriceData!D$15,CalculationsAndCharts!$A133+$A$11,IF($C$7,8,0),1,1) -> 280.299988 | F133: =OFFSET(InputPriceData!E$15,CalculationsAndCharts!$A133+$A$11,IF($C$7,8,0),1,1) -> 278.899994 | G133: =OFFSET(InputPriceData!F$15,CalculationsAndCharts!$A133+$A$11,IF($C$7,8,0),1,1) -> 279.320007 | H133: 0 | AP133: 56844100
A134: 102 | B134: =OFFSET(InputPriceData!B$15,CalculationsAndCharts!$A134+$A$11,0,1,1) -> 2019-02-25 | C134: =OFFSET(InputPriceData!G$15,CalculationsAndCharts!$A134+$A$11,IF($C$7,8,0),1,1) -> 69030700 | D134: =OFFSET(InputPriceData!C$15,CalculationsAndCharts!$A134+$A$11,IF($C$7,8,0),1,1) -> 280.730011 | E134: =OFFSET(InputPriceData!D$15,CalculationsAndCharts!$A134+$A$11,IF($C$7,8,0),1,1) -> 281.309998 | F134: =OFFSET(InputPriceData!E$15,CalculationsAndCharts!$A134+$A$11,IF($C$7,8,0),1,1) -> 279.429993 | G134: =OFFSET(InputPriceData!F$15,CalculationsAndCharts!$A134+$A$11,IF($C$7,8,0),1,1) -> 279.519989 | H134: 0 | AQ134: 69030700
A135: 103 | B135: =OFFSET(InputPriceData!B$15,CalculationsAndCharts!$A135+$A$11,0,1,1) -> 2019-02-22 | C135: =OFFSET(InputPriceData!G$15,CalculationsAndCharts!$A135+$A$11,IF($C$7,8,0),1,1) -> 78114600 | D135: =OFFSET(InputPriceData!C$15,CalculationsAndCharts!$A135+$A$11,IF($C$7,8,0),1,1) -> 278.109985 | E135: =OFFSET(InputPriceData!D$15,CalculationsAndCharts!$A135+$A$11,IF($C$7,8,0),1,1) -> 279.359985 | F135: =OFFSET(InputPriceData!E$15,CalculationsAndCharts!$A135+$A$11,IF($C$7,8,0),1,1) -> 277.399994 | G135: =OFFSET(InputPriceData!F$15,CalculationsAndCharts!$A135+$A$11,IF($C$7,8,0),1,1) -> 279.140015 | H135: 0 | AP135: 78114600
A136: 104 | B136: =OFFSET(InputPriceData!B$15,CalculationsAndCharts!$A136+$A$11,0,1,1) -> 2019-02-21 | C136: =OFFSET(InputPriceData!G$15,CalculationsAndCharts!$A136+$A$11,IF($C$7,8,0),1,1) -> 64214700 | D136: =OFFSET(InputPriceData!C$15,CalculationsAndCharts!$A136+$A$11,IF($C$7,8,0),1,1) -> 277.700012 | E136: =OFFSET(InputPriceData!D$15,CalculationsAndCharts!$A136+$A$11,IF($C$7,8,0),1,1) -> 278.100006 | F136: =OFFSET(InputPriceData!E$15,CalculationsAndCharts!$A136+$A$11,IF($C$7,8,0),1,1) -> 276.350006 | G136: =OFFSET(InputPriceData!F$15,CalculationsAndCharts!$A136+$A$11,IF($C$7,8,0),1,1) -> 277.420013 | H136: 0 | AQ136: 64214700
A137: 105 | B137: =OFFSET(InputPriceData!B$15,CalculationsAndCharts!$A137+$A$11,0,1,1) -> 2019-02-20 | C137: =OFFSET(InputPriceData!G$15,CalculationsAndCharts!$A137+$A$11,IF($C$7,8,0),1,1) -> 76610800 | D137: =OFFSET(InputPriceData!C$15,CalculationsAndCharts!$A137+$A$11,IF($C$7,8,0),1,1) -> 277.809998 | E137: =OFFSET(InputPriceData!D$15,CalculationsAndCharts!$A137+$A$11,IF($C$7,8,0),1,1) -> 278.920013 | F137: =OFFSET(InputPriceData!E$15,CalculationsAndCharts!$A137+$A$11,IF($C$7,8,0),1,1) -> 277.25 | G137: =OFFSET(InputPriceData!F$15,CalculationsAndCharts!$A137+$A$11,IF($C$7,8,0),1,1) -> 278.410004 | H137: 0 | AP137: 76610800
A138: 106 | B138: =OFFSET(InputPriceData!B$15,CalculationsAndCharts!$A138+$A$11,0,1,1) -> 2019-02-19 | C138: =OFFSET(InputPriceData!G$15,CalculationsAndCharts!$A138+$A$11,IF($C$7,8,0),1,1) -> 59120800 | D138: =OFFSET(InputPriceData!C$15,CalculationsAndCharts!$A138+$A$11,IF($C$7,8,0),1,1) -> 276.480011 | E138: =OFFSET(InputPriceData!D$15,CalculationsAndCharts!$A138+$A$11,IF($C$7,8,0),1,1) -> 278.579987 | F138: =OFFSET(InputPriceData!E$15,CalculationsAndCharts!$A138+$A$11,IF($C$7,8,0),1,1) -> 276.470001 | G138: =OFFSET(InputPriceData!F$15,CalculationsAndCharts!$A138+$A$11,IF($C$7,8,0),1,1) -> 277.850006 | H138: 0 | AP138: 59120800
A139: 107 | B139: =OFFSET(InputPriceData!B$15,CalculationsAndCharts!$A139+$A$11,0,1,1) -> 2019-02-15 | C139: =OFFSET(InputPriceData!G$15,CalculationsAndCharts!$A139+$A$11,IF($C$7,8,0),1,1) -> 97088700 | D139: =OFFSET(InputPriceData!C$15,CalculationsAndCharts!$A139+$A$11,IF($C$7,8,0),1,1) -> 276.359985 | E139: =OFFSET(InputPriceData!D$15,CalculationsAndCharts!$A139+$A$11,IF($C$7,8,0),1,1) -> 277.410004 | F139: =OFFSET(InputPriceData!E$15,CalculationsAndCharts!$A139+$A$11,IF($C$7,8,0),1,1) -> 276.130005 | G139: =OFFSET(InputPriceData!F$15,CalculationsAndCharts!$A139+$A$11,IF($C$7,8,0),1,1) -> 277.369995 | H139: 0 | AP139: 97088700
A140: 108 | B140: =OFFSET(InputPriceData!B$15,CalculationsAndCharts!$A140+$A$11,0,1,1) -> 2019-02-14 | C140: =OFFSET(InputPriceData!G$15,CalculationsAndCharts!$A140+$A$11,IF($C$7,8,0),1,1) -> 83234400 | D140: =OFFSET(InputPriceData!C$15,CalculationsAndCharts!$A140+$A$11,IF($C$7,8,0),1,1) -> 273.779999 | E140: =OFFSET(InputPriceData!D$15,CalculationsAndCharts!$A140+$A$11,IF($C$7,8,0),1,1) -> 275.640015 | F140: =OFFSET(InputPriceData!E$15,CalculationsAndCharts!$A140+$A$11,IF($C$7,8,0),1,1) -> 272.869995 | G140: =OFFSET(InputPriceData!F$15,CalculationsAndCharts!$A140+$A$11,IF($C$7,8,0),1,1) -> 274.380005 | H140: 0 | AP140: 83234400
A141: 109 | B141: =OFFSET(InputPriceData!B$15,CalculationsAndCharts!$A141+$A$11,0,1,1) -> 2019-02-13 | C141: =OFFSET(InputPriceData!G$15,CalculationsAndCharts!$A141+$A$11,IF($C$7,8,0),1,1) -> 65277200 | D141: =OFFSET(InputPriceData!C$15,CalculationsAndCharts!$A141+$A$11,IF($C$7,8,0),1,1) -> 275.029999 | E141: =OFFSET(InputPriceData!D$15,CalculationsAndCharts!$A141+$A$11,IF($C$7,8,0),1,1) -> 275.929993 | F141: =OFFSET(InputPriceData!E$15,CalculationsAndCharts!$A141+$A$11,IF($C$7,8,0),1,1) -> 274.559998 | G141: =OFFSET(InputPriceData!F$15,CalculationsAndCharts!$A141+$A$11,IF($C$7,8,0),1,1) -> 274.98999 | H141: 0 | AQ141: 65277200
A142: 110 | B142: =OFFSET(InputPriceData!B$15,CalculationsAndCharts!$A142+$A$11,0,1,1) -> 2019-02-12 | C142: =OFFSET(InputPriceData!G$15,CalculationsAndCharts!$A142+$A$11,IF($C$7,8,0),1,1) -> 72270200 | D142: =OFFSET(InputPriceData!C$15,CalculationsAndCharts!$A142+$A$11,IF($C$7,8,0),1,1) -> 272.420013 | E142: =OFFSET(InputPriceData!D$15,CalculationsAndCharts!$A142+$A$11,IF($C$7,8,0),1,1) -> 274.519989 | F142: =OFFSET(InputPriceData!E$15,CalculationsAndCharts!$A142+$A$11,IF($C$7,8,0),1,1) -> 272.339996 | G142: =OFFSET(InputPriceData!F$15,CalculationsAndCharts!$A142+$A$11,IF($C$7,8,0),1,1) -> 274.100006 | H142: 0 | AP142: 72270200
A143: 111 | B143: =OFFSET(InputPriceData!B$15,CalculationsAndCharts!$A143+$A$11,0,1,1) -> 2019-02-11 | C143: =OFFSET(InputPriceData!G$15,CalculationsAndCharts!$A143+$A$11,IF($C$7,8,0),1,1) -> 68021400 | D143: =OFFSET(InputPriceData!C$15,CalculationsAndCharts!$A143+$A$11,IF($C$7,8,0),1,1) -> 271.200012 | E143: =OFFSET(InputPriceData!D$15,CalculationsAndCharts!$A143+$A$11,IF($C$7,8,0),1,1) -> 271.48999 | F143: =OFFSET(InputPriceData!E$15,CalculationsAndCharts!$A143+$A$11,IF($C$7,8,0),1,1) -> 270.029999 | G143: =OFFSET(InputPriceData!F$15,CalculationsAndCharts!$A143+$A$11,IF($C$7,8,0),1,1) -> 270.619995 | H143: 0 | AQ143: 68021400
A144: 112 | B144: =OFFSET(InputPriceData!B$15,CalculationsAndCharts!$A144+$A$11,0,1,1) -> 2019-02-08 | C144: =OFFSET(InputPriceData!G$15,CalculationsAndCharts!$A144+$A$11,IF($C$7,8,0),1,1) -> 75788900 | D144: =OFFSET(InputPriceData!C$15,CalculationsAndCharts!$A144+$A$11,IF($C$7,8,0),1,1) -> 268.75 | E144: =OFFSET(InputPriceData!D$15,CalculationsAndCharts!$A144+$A$11,IF($C$7,8,0),1,1) -> 270.579987 | F144: =OFFSET(InputPriceData!E$15,CalculationsAndCharts!$A144+$A$11,IF($C$7,8,0),1,1) -> 267.829987 | G144: =OFFSET(InputPriceData!F$15,CalculationsAndCharts!$A144+$A$11,IF($C$7,8,0),1,1) -> 270.470001 | H144: 0 | AP144: 75788900
A145: 113 | B145: =OFFSET(InputPriceData!B$15,CalculationsAndCharts!$A145+$A$11,0,1,1) -> 2019-02-07 | C145: =OFFSET(InputPriceData!G$15,CalculationsAndCharts!$A145+$A$11,IF($C$7,8,0),1,1) -> 95482000 | D145: =OFFSET(InputPriceData!C$15,CalculationsAndCharts!$A145+$A$11,IF($C$7,8,0),1,1) -> 270.940002 | E145: =OFFSET(InputPriceData!D$15,CalculationsAndCharts!$A145+$A$11,IF($C$7,8,0),1,1) -> 271.549988 | F145: =OFFSET(InputPriceData!E$15,CalculationsAndCharts!$A145+$A$11,IF($C$7,8,0),1,1) -> 268.290009 | G145: =OFFSET(InputPriceData!F$15,CalculationsAndCharts!$A145+$A$11,IF($C$7,8,0),1,1) -> 270.140015 | H145: 0 | AQ145: 95482000
A146: 114 | B146: =OFFSET(InputPriceData!B$15,CalculationsAndCharts!$A146+$A$11,0,1,1) -> 2019-02-06 | C146: =OFFSET(InputPriceData!G$15,CalculationsAndCharts!$A146+$A$11,IF($C$7,8,0),1,1) -> 58347800 | D146: =OFFSET(InputPriceData!C$15,CalculationsAndCharts!$A146+$A$11,IF($C$7,8,0),1,1) -> 272.790009 | E146: =OFFSET(InputPriceData!D$15,CalculationsAndCharts!$A146+$A$11,IF($C$7,8,0),1,1) -> 273.339996 | F146: =OFFSET(InputPriceData!E$15,CalculationsAndCharts!$A146+$A$11,IF($C$7,8,0),1,1) -> 271.920013 | G146: =OFFSET(InputPriceData!F$15,CalculationsAndCharts!$A146+$A$11,IF($C$7,8,0),1,1) -> 272.73999 | H146: 0 | AP146: =IF(G146>=D146,C146,NA()) ->  | AQ146: =IF(G146<D146,C146,NA()) -> 58347800
A147: 115 | B147: =OFFSET(InputPriceData!B$15,CalculationsAndCharts!$A147+$A$11,0,1,1) -> 2019-02-05 | C147: =OFFSET(InputPriceData!G$15,CalculationsAndCharts!$A147+$A$11,IF($C$7,8,0),1,1) -> 79552800 | D147: =OFFSET(InputPriceData!C$15,CalculationsAndCharts!$A147+$A$11,IF($C$7,8,0),1,1) -> 272.440002 | E147: =OFFSET(InputPriceData!D$15,CalculationsAndCharts!$A147+$A$11,IF($C$7,8,0),1,1) -> 273.440002 | F147: =OFFSET(InputPriceData!E$15,CalculationsAndCharts!$A147+$A$11,IF($C$7,8,0),1,1) -> 271.880005 | G147: =OFFSET(InputPriceData!F$15,CalculationsAndCharts!$A147+$A$11,IF($C$7,8,0),1,1) -> 273.100006 | H147: 0 | AP147: 79552800
A148: 116 | B148: =OFFSET(InputPriceData!B$15,CalculationsAndCharts!$A148+$A$11,0,1,1) -> 2019-02-04 | C148: =OFFSET(InputPriceData!G$15,CalculationsAndCharts!$A148+$A$11,IF($C$7,8,0),1,1) -> 60744800 | D148: =OFFSET(InputPriceData!C$15,CalculationsAndCharts!$A148+$A$11,IF($C$7,8,0),1,1) -> 270.109985 | E148: =OFFSET(InputPriceData!D$15,CalculationsAndCharts!$A148+$A$11,IF($C$7,8,0),1,1) -> 272.029999 | F148: =OFFSET(InputPriceData!E$15,CalculationsAndCharts!$A148+$A$11,IF($C$7,8,0),1,1) -> 269.359985 | G148: =OFFSET(InputPriceData!F$15,CalculationsAndCharts!$A148+$A$11,IF($C$7,8,0),1,1) -> 271.959991 | H148: 0 | AP148: 60744800
A149: 117 | B149: =OFFSET(InputPriceData!B$15,CalculationsAndCharts!$A149+$A$11,0,1,1) -> 2019-02-01 | C149: =OFFSET(InputPriceData!G$15,CalculationsAndCharts!$A149+$A$11,IF($C$7,8,0),1,1) -> 85782500 | D149: =OFFSET(InputPriceData!C$15,CalculationsAndCharts!$A149+$A$11,IF($C$7,8,0),1,1) -> 270.149994 | E149: =OFFSET(InputPriceData!D$15,CalculationsAndCharts!$A149+$A$11,IF($C$7,8,0),1,1) -> 271.200012 | F149: =OFFSET(InputPriceData!E$15,CalculationsAndCharts!$A149+$A$11,IF($C$7,8,0),1,1) -> 269.179993 | G149: =OFFSET(InputPriceData!F$15,CalculationsAndCharts!$A149+$A$11,IF($C$7,8,0),1,1) -> 270.059998 | H149: 0 | AQ149: 85782500
A150: 118 | B150: =OFFSET(InputPriceData!B$15,CalculationsAndCharts!$A150+$A$11,0,1,1) -> 2019-01-31 | C150: =OFFSET(InputPriceData!G$15,CalculationsAndCharts!$A150+$A$11,IF($C$7,8,0),1,1) -> 104012100 | D150: =OFFSET(InputPriceData!C$15,CalculationsAndCharts!$A150+$A$11,IF($C$7,8,0),1,1) -> 267.51001 | E150: =OFFSET(InputPriceData!D$15,CalculationsAndCharts!$A150+$A$11,IF($C$7,8,0),1,1) -> 270.470001 | F150: =OFFSET(InputPriceData!E$15,CalculationsAndCharts!$A150+$A$11,IF($C$7,8,0),1,1) -> 267.269989 | G150: =OFFSET(InputPriceData!F$15,CalculationsAndCharts!$A150+$A$11,IF($C$7,8,0),1,1) -> 269.929993 | H150: 0 | AP150: 104012100
A151: 119 | B151: =OFFSET(InputPriceData!B$15,CalculationsAndCharts!$A151+$A$11,0,1,1) -> 2019-01-30 | C151: =OFFSET(InputPriceData!G$15,CalculationsAndCharts!$A151+$A$11,IF($C$7,8,0),1,1) -> 92473700 | D151: =OFFSET(InputPriceData!C$15,CalculationsAndCharts!$A151+$A$11,IF($C$7,8,0),1,1) -> 265.100006 | E151: =OFFSET(InputPriceData!D$15,CalculationsAndCharts!$A151+$A$11,IF($C$7,8,0),1,1) -> 268.519989 | F151: =OFFSET(InputPriceData!E$15,CalculationsAndCharts!$A151+$A$11,IF($C$7,8,0),1,1) -> 264.25 | G151: =OFFSET(InputPriceData!F$15,CalculationsAndCharts!$A151+$A$11,IF($C$7,8,0),1,1) -> 267.579987 | H151: 0 | AP151: 92473700
A152: 120 | B152: =OFFSET(InputPriceData!B$15,CalculationsAndCharts!$A152+$A$11,0,1,1) -> 2019-01-29 | C152: =OFFSET(InputPriceData!G$15,CalculationsAndCharts!$A152+$A$11,IF($C$7,8,0),1,1) -> 66136300 | D152: =OFFSET(InputPriceData!C$15,CalculationsAndCharts!$A152+$A$11,IF($C$7,8,0),1,1) -> 263.920013 | E152: =OFFSET(InputPriceData!D$15,CalculationsAndCharts!$A152+$A$11,IF($C$7,8,0),1,1) -> 264.549988 | F152: =OFFSET(InputPriceData!E$15,CalculationsAndCharts!$A152+$A$11,IF($C$7,8,0),1,1) -> 262.480011 | G152: =OFFSET(InputPriceData!F$15,CalculationsAndCharts!$A152+$A$11,IF($C$7,8,0),1,1) -> 263.410004 | H152: 0 | AQ152: 66136300
A153: 121 | B153: =OFFSET(InputPriceData!B$15,CalculationsAndCharts!$A153+$A$11,0,1,1) -> 2019-01-28 | C153: =OFFSET(InputPriceData!G$15,CalculationsAndCharts!$A153+$A$11,IF($C$7,8,0),1,1) -> 85613700 | D153: =OFFSET(InputPriceData!C$15,CalculationsAndCharts!$A153+$A$11,IF($C$7,8,0),1,1) -> 263.390015 | E153: =OFFSET(InputPriceData!D$15,CalculationsAndCharts!$A153+$A$11,IF($C$7,8,0),1,1) -> 263.829987 | F153: =OFFSET(InputPriceData!E$15,CalculationsAndCharts!$A153+$A$11,IF($C$7,8,0),1,1) -> 261.790009 | G153: =OFFSET(InputPriceData!F$15,CalculationsAndCharts!$A153+$A$11,IF($C$7,8,0),1,1) -> 263.76001 | H153: 0 | AP153: 85613700
A154: 122 | B154: =OFFSET(InputPriceData!B$15,CalculationsAndCharts!$A154+$A$11,0,1,1) -> 2019-01-25 | C154: =OFFSET(InputPriceData!G$15,CalculationsAndCharts!$A154+$A$11,IF($C$7,8,0),1,1) -> 96883400 | D154: =OFFSET(InputPriceData!C$15,CalculationsAndCharts!$A154+$A$11,IF($C$7,8,0),1,1) -> 265.609985 | E154: =OFFSET(InputPriceData!D$15,CalculationsAndCharts!$A154+$A$11,IF($C$7,8,0),1,1) -> 266.700012 | F154: =OFFSET(InputPriceData!E$15,CalculationsAndCharts!$A154+$A$11,IF($C$7,8,0),1,1) -> 263.660004 | G154: =OFFSET(InputPriceData!F$15,CalculationsAndCharts!$A154+$A$11,IF($C$7,8,0),1,1) -> 265.779999 | H154: 0 | AP154: 96883400
A155: 123 | B155: =OFFSET(InputPriceData!B$15,CalculationsAndCharts!$A155+$A$11,0,1,1) -> 2019-01-24 | C155: =OFFSET(InputPriceData!G$15,CalculationsAndCharts!$A155+$A$11,IF($C$7,8,0),1,1) -> 59204100 | D155: =OFFSET(InputPriceData!C$15,CalculationsAndCharts!$A155+$A$11,IF($C$7,8,0),1,1) -> 263.209991 | E155: =OFFSET(InputPriceData!D$15,CalculationsAndCharts!$A155+$A$11,IF($C$7,8,0),1,1) -> 264.200012 | F155: =OFFSET(InputPriceData!E$15,CalculationsAndCharts!$A155+$A$11,IF($C$7,8,0),1,1) -> 262.079987 | G155: =OFFSET(InputPriceData!F$15,CalculationsAndCharts!$A155+$A$11,IF($C$7,8,0),1,1) -> 263.549988 | H155: 0 | AP155: 59204100
A156: 124 | B156: =OFFSET(InputPriceData!B$15,CalculationsAndCharts!$A156+$A$11,0,1,1) -> 2019-01-23 | C156: =OFFSET(InputPriceData!G$15,CalculationsAndCharts!$A156+$A$11,IF($C$7,8,0),1,1) -> 86030300 | D156: =OFFSET(InputPriceData!C$15,CalculationsAndCharts!$A156+$A$11,IF($C$7,8,0),1,1) -> 264.01001 | E156: =OFFSET(InputPriceData!D$15,CalculationsAndCharts!$A156+$A$11,IF($C$7,8,0),1,1) -> 264.790009 | F156: =OFFSET(InputPriceData!E$15,CalculationsAndCharts!$A156+$A$11,IF($C$7,8,0),1,1) -> 260.660004 | G156: =OFFSET(InputPriceData!F$15,CalculationsAndCharts!$A156+$A$11,IF($C$7,8,0),1,1) -> 263.410004 | H156: 0 | AQ156: 86030300
A157: 125 | B157: =OFFSET(InputPriceData!B$15,CalculationsAndCharts!$A157+$A$11,0,1,1) -> 2019-01-22 | C157: =OFFSET(InputPriceData!G$15,CalculationsAndCharts!$A157+$A$11,IF($C$7,8,0),1,1) -> 115531200 | D157: =OFFSET(InputPriceData!C$15,CalculationsAndCharts!$A157+$A$11,IF($C$7,8,0),1,1) -> 264.820007 | E157: =OFFSET(InputPriceData!D$15,CalculationsAndCharts!$A157+$A$11,IF($C$7,8,0),1,1) -> 265.059998 | F157: =OFFSET(InputPriceData!E$15,CalculationsAndCharts!$A157+$A$11,IF($C$7,8,0),1,1) -> 261.059998 | G157: =OFFSET(InputPriceData!F$15,CalculationsAndCharts!$A157+$A$11,IF($C$7,8,0),1,1) -> 262.859985 | H157: 0 | AQ157: 115531200
A158: 126 | B158: =OFFSET(InputPriceData!B$15,CalculationsAndCharts!$A158+$A$11,0,1,1) -> 2019-01-18 | C158: =OFFSET(InputPriceData!G$15,CalculationsAndCharts!$A158+$A$11,IF($C$7,8,0),1,1) -> 127900300 | D158: =OFFSET(InputPriceData!C$15,CalculationsAndCharts!$A158+$A$11,IF($C$7,8,0),1,1) -> 264.980011 | E158: =OFFSET(InputPriceData!D$15,CalculationsAndCharts!$A158+$A$11,IF($C$7,8,0),1,1) -> 266.980011 | F158: =OFFSET(InputPriceData!E$15,CalculationsAndCharts!$A158+$A$11,IF($C$7,8,0),1,1) -> 263 | G158: =OFFSET(InputPriceData!F$15,CalculationsAndCharts!$A158+$A$11,IF($C$7,8,0),1,1) -> 266.459991 | H158: 0 | AP158: 127900300
A159: 127 | B159: =OFFSET(InputPriceData!B$15,CalculationsAndCharts!$A159+$A$11,0,1,1) -> 2019-01-17 | C159: =OFFSET(InputPriceData!G$15,CalculationsAndCharts!$A159+$A$11,IF($C$7,8,0),1,1) -> 96118400 | D159: =OFFSET(InputPriceData!C$15,CalculationsAndCharts!$A159+$A$11,IF($C$7,8,0),1,1) -> 260.01001 | E159: =OFFSET(InputPriceData!D$15,CalculationsAndCharts!$A159+$A$11,IF($C$7,8,0),1,1) -> 263.920013 | F159: =OFFSET(InputPriceData!E$15,CalculationsAndCharts!$A159+$A$11,IF($C$7,8,0),1,1) -> 259.959991 | G159: =OFFSET(InputPriceData!F$15,CalculationsAndCharts!$A159+$A$11,IF($C$7,8,0),1,1) -> 262.959991 | H159: 0 | AP159: 96118400
A160: 128 | B160: =OFFSET(InputPriceData!B$15,CalculationsAndCharts!$A160+$A$11,0,1,1) -> 2019-01-16 | C160: =OFFSET(InputPriceData!G$15,CalculationsAndCharts!$A160+$A$11,IF($C$7,8,0),1,1) -> 77636700 | D160: =OFFSET(InputPriceData!C$15,CalculationsAndCharts!$A160+$A$11,IF($C$7,8,0),1,1) -> 260.829987 | E160: =OFFSET(InputPriceData!D$15,CalculationsAndCharts!$A160+$A$11,IF($C$7,8,0),1,1) -> 261.970001 | F160: =OFFSET(InputPriceData!E$15,CalculationsAndCharts!$A160+$A$11,IF($C$7,8,0),1,1) -> 260.600006 | G160: =OFFSET(InputPriceData!F$15,CalculationsAndCharts!$A160+$A$11,IF($C$7,8,0),1,1) -> 260.980011 | H160: 0 | AP160: 77636700
A161: 129 | B161: =OFFSET(InputPriceData!B$15,CalculationsAndCharts!$A161+$A$11,0,1,1) -> 2019-01-15 | C161: =OFFSET(InputPriceData!G$15,CalculationsAndCharts!$A161+$A$11,IF($C$7,8,0),1,1) -> 85208300 | D161: =OFFSET(InputPriceData!C$15,CalculationsAndCharts!$A161+$A$11,IF($C$7,8,0),1,1) -> 257.820007 | E161: =OFFSET(InputPriceData!D$15,CalculationsAndCharts!$A161+$A$11,IF($C$7,8,0),1,1) -> 260.700012 | F161: =OFFSET(InputPriceData!E$15,CalculationsAndCharts!$A161+$A$11,IF($C$7,8,0),1,1) -> 257.809998 | G161: =OFFSET(InputPriceData!F$15,CalculationsAndCharts!$A161+$A$11,IF($C$7,8,0),1,1) -> 260.350006 | H161: 0 | AP161: 85208300
A162: 130 | B162: =OFFSET(InputPriceData!B$15,CalculationsAndCharts!$A162+$A$11,0,1,1) -> 2019-01-14 | C162: =OFFSET(InputPriceData!G$15,CalculationsAndCharts!$A162+$A$11,IF($C$7,8,0),1,1) -> 70908200 | D162: =OFFSET(InputPriceData!C$15,CalculationsAndCharts!$A162+$A$11,IF($C$7,8,0),1,1) -> 256.859985 | E162: =OFFSET(InputPriceData!D$15,CalculationsAndCharts!$A162+$A$11,IF($C$7,8,0),1,1) -> 258.299988 | F162: =OFFSET(InputPriceData!E$15,CalculationsAndCharts!$A162+$A$11,IF($C$7,8,0),1,1) -> 256.410004 | G162: =OFFSET(InputPriceData!F$15,CalculationsAndCharts!$A162+$A$11,IF($C$7,8,0),1,1) -> 257.399994 | H162: =0.5*$D$22*(G162-G164)+$D$18*$D$21*H163-$D$20*H164 -> 0 | AP162: 70908200
A163: 131 | B163: =OFFSET(InputPriceData!B$15,CalculationsAndCharts!$A163+$A$11,0,1,1) -> 2019-01-11 | C163: =OFFSET(InputPriceData!G$15,CalculationsAndCharts!$A163+$A$11,IF($C$7,8,0),1,1) -> 73858100 | D163: =OFFSET(InputPriceData!C$15,CalculationsAndCharts!$A163+$A$11,IF($C$7,8,0),1,1) -> 257.679993 | E163: =OFFSET(InputPriceData!D$15,CalculationsAndCharts!$A163+$A$11,IF($C$7,8,0),1,1) -> 259.01001 | F163: =OFFSET(InputPriceData!E$15,CalculationsAndCharts!$A163+$A$11,IF($C$7,8,0),1,1) -> 257.029999 | G163: =OFFSET(InputPriceData!F$15,CalculationsAndCharts!$A163+$A$11,IF($C$7,8,0),1,1) -> 258.980011 | H163: 0 | AP163: 73858100
A164: 132 | B164: =OFFSET(InputPriceData!B$15,CalculationsAndCharts!$A164+$A$11,0,1,1) -> 2019-01-10 | C164: =OFFSET(InputPriceData!G$15,CalculationsAndCharts!$A164+$A$11,IF($C$7,8,0),1,1) -> 96823900 | D164: =OFFSET(InputPriceData!C$15,CalculationsAndCharts!$A164+$A$11,IF($C$7,8,0),1,1) -> 256.26001 | E164: =OFFSET(InputPriceData!D$15,CalculationsAndCharts!$A164+$A$11,IF($C$7,8,0),1,1) -> 259.160004 | F164: =OFFSET(InputPriceData!E$15,CalculationsAndCharts!$A164+$A$11,IF($C$7,8,0),1,1) -> 255.5 | G164: =OFFSET(InputPriceData!F$15,CalculationsAndCharts!$A164+$A$11,IF($C$7,8,0),1,1) -> 258.880005 | H164: 0 | AP164: 96823900
A165: 133 | B165: =OFFSET(InputPriceData!B$15,CalculationsAndCharts!$A165+$A$11,0,1,1) -> 2019-01-09 | C165: =OFFSET(InputPriceData!G$15,CalculationsAndCharts!$A165+$A$11,IF($C$7,8,0),1,1) -> 95006600 | D165: =OFFSET(InputPriceData!C$15,CalculationsAndCharts!$A165+$A$11,IF($C$7,8,0),1,1) -> 257.559998 | E165: =OFFSET(InputPriceData!D$15,CalculationsAndCharts!$A165+$A$11,IF($C$7,8,0),1,1) -> 258.910004 | F165: =OFFSET(InputPriceData!E$15,CalculationsAndCharts!$A165+$A$11,IF($C$7,8,0),1,1) -> 256.190002 | G165: =OFFSET(InputPriceData!F$15,CalculationsAndCharts!$A165+$A$11,IF($C$7,8,0),1,1) -> 257.970001 | H165: 0 | AP165: 95006600
A166: 134 | B166: =OFFSET(InputPriceData!B$15,CalculationsAndCharts!$A166+$A$11,0,1,1) -> 2019-01-08 | C166: =OFFSET(InputPriceData!G$15,CalculationsAndCharts!$A166+$A$11,IF($C$7,8,0),1,1) -> 102512600 | D166: =OFFSET(InputPriceData!C$15,CalculationsAndCharts!$A166+$A$11,IF($C$7,8,0),1,1) -> 256.820007 | E166: =OFFSET(InputPriceData!D$15,CalculationsAndCharts!$A166+$A$11,IF($C$7,8,0),1,1) -> 257.309998 | F166: =OFFSET(InputPriceData!E$15,CalculationsAndCharts!$A166+$A$11,IF($C$7,8,0),1,1) -> 254 | G166: =OFFSET(InputPriceData!F$15,CalculationsAndCharts!$A166+$A$11,IF($C$7,8,0),1,1) -> 256.769989 | H166: 0 | AQ166: 102512600
A167: 135 | B167: =OFFSET(InputPriceData!B$15,CalculationsAndCharts!$A167+$A$11,0,1,1) -> 2019-01-07 | C167: =OFFSET(InputPriceData!G$15,CalculationsAndCharts!$A167+$A$11,IF($C$7,8,0),1,1) -> 103139100 | D167: =OFFSET(InputPriceData!C$15,CalculationsAndCharts!$A167+$A$11,IF($C$7,8,0),1,1) -> 252.690002 | E167: =OFFSET(InputPriceData!D$15,CalculationsAndCharts!$A167+$A$11,IF($C$7,8,0),1,1) -> 255.949997 | F167: =OFFSET(InputPriceData!E$15,CalculationsAndCharts!$A167+$A$11,IF($C$7,8,0),1,1) -> 251.690002 | G167: =OFFSET(InputPriceData!F$15,CalculationsAndCharts!$A167+$A$11,IF($C$7,8,0),1,1) -> 254.380005 | H167: 0 | AP167: 103139100
A168: 136 | B168: =OFFSET(InputPriceData!B$15,CalculationsAndCharts!$A168+$A$11,0,1,1) -> 2019-01-04 | C168: =OFFSET(InputPriceData!G$15,CalculationsAndCharts!$A168+$A$11,IF($C$7,8,0),1,1) -> 142628800 | D168: =OFFSET(InputPriceData!C$15,CalculationsAndCharts!$A168+$A$11,IF($C$7,8,0),1,1) -> 247.589996 | E168: =OFFSET(InputPriceData!D$15,CalculationsAndCharts!$A168+$A$11,IF($C$7,8,0),1,1) -> 253.110001 | F168: =OFFSET(InputPriceData!E$15,CalculationsAndCharts!$A168+$A$11,IF($C$7,8,0),1,1) -> 247.169998 | G168: =OFFSET(InputPriceData!F$15,CalculationsAndCharts!$A168+$A$11,IF($C$7,8,0),1,1) -> 252.389999 | H168: 0 | AP168: 142628800
A169: 137 | B169: =OFFSET(InputPriceData!B$15,CalculationsAndCharts!$A169+$A$11,0,1,1) -> 2019-01-03 | C169: =OFFSET(InputPriceData!G$15,CalculationsAndCharts!$A169+$A$11,IF($C$7,8,0),1,1) -> 144140700 | D169: =OFFSET(InputPriceData!C$15,CalculationsAndCharts!$A169+$A$11,IF($C$7,8,0),1,1) -> 248.229996 | E169: =OFFSET(InputPriceData!D$15,CalculationsAndCharts!$A169+$A$11,IF($C$7,8,0),1,1) -> 248.570007 | F169: =OFFSET(InputPriceData!E$15,CalculationsAndCharts!$A169+$A$11,IF($C$7,8,0),1,1) -> 243.669998 | G169: =OFFSET(InputPriceData!F$15,CalculationsAndCharts!$A169+$A$11,IF($C$7,8,0),1,1) -> 244.210007 | H169: 0 | AQ169: 144140700
A170: 138 | B170: =OFFSET(InputPriceData!B$15,CalculationsAndCharts!$A170+$A$11,0,1,1) -> 2019-01-02 | C170: =OFFSET(InputPriceData!G$15,CalculationsAndCharts!$A170+$A$11,IF($C$7,8,0),1,1) -> 126925200 | D170: =OFFSET(InputPriceData!C$15,CalculationsAndCharts!$A170+$A$11,IF($C$7,8,0),1,1) -> 245.979996 | E170: =OFFSET(InputPriceData!D$15,CalculationsAndCharts!$A170+$A$11,IF($C$7,8,0),1,1) -> 251.210007 | F170: =OFFSET(InputPriceData!E$15,CalculationsAndCharts!$A170+$A$11,IF($C$7,8,0),1,1) -> 245.949997 | G170: =OFFSET(InputPriceData!F$15,CalculationsAndCharts!$A170+$A$11,IF($C$7,8,0),1,1) -> 250.179993 | H170: 0 | AP170: 126925200
A171: 139 | B171: =OFFSET(InputPriceData!B$15,CalculationsAndCharts!$A171+$A$11,0,1,1) -> 2018-12-31 | C171: =OFFSET(InputPriceData!G$15,CalculationsAndCharts!$A171+$A$11,IF($C$7,8,0),1,1) -> 144299400 | D171: =OFFSET(InputPriceData!C$15,CalculationsAndCharts!$A171+$A$11,IF($C$7,8,0),1,1) -> 249.559998 | E171: =OFFSET(InputPriceData!D$15,CalculationsAndCharts!$A171+$A$11,IF($C$7,8,0),1,1) -> 250.190002 | F171: =OFFSET(InputPriceData!E$15,CalculationsAndCharts!$A171+$A$11,IF($C$7,8,0),1,1) -> 247.470001 | G171: =OFFSET(InputPriceData!F$15,CalculationsAndCharts!$A171+$A$11,IF($C$7,8,0),1,1) -> 249.919998 | H171: 0 | AP171: 144299400
A172: 140 | B172: =OFFSET(InputPriceData!B$15,CalculationsAndCharts!$A172+$A$11,0,1,1) -> 2018-12-28 | C172: =OFFSET(InputPriceData!G$15,CalculationsAndCharts!$A172+$A$11,IF($C$7,8,0),1,1) -> 153100200 | D172: =OFFSET(InputPriceData!C$15,CalculationsAndCharts!$A172+$A$11,IF($C$7,8,0),1,1) -> 249.580002 | E172: =OFFSET(InputPriceData!D$15,CalculationsAndCharts!$A172+$A$11,IF($C$7,8,0),1,1) -> 251.399994 | F172: =OFFSET(InputPriceData!E$15,CalculationsAndCharts!$A172+$A$11,IF($C$7,8,0),1,1) -> 246.449997 | G172: =OFFSET(InputPriceData!F$15,CalculationsAndCharts!$A172+$A$11,IF($C$7,8,0),1,1) -> 247.75 | H172: 0 | AQ172: 153100200
A173: 141 | B173: =OFFSET(InputPriceData!B$15,CalculationsAndCharts!$A173+$A$11,0,1,1) -> 2018-12-27 | C173: =OFFSET(InputPriceData!G$15,CalculationsAndCharts!$A173+$A$11,IF($C$7,8,0),1,1) -> 186267300 | D173: =OFFSET(InputPriceData!C$15,CalculationsAndCharts!$A173+$A$11,IF($C$7,8,0),1,1) -> 242.570007 | E173: =OFFSET(InputPriceData!D$15,CalculationsAndCharts!$A173+$A$11,IF($C$7,8,0),1,1) -> 248.289993 | F173: =OFFSET(InputPriceData!E$15,CalculationsAndCharts!$A173+$A$11,IF($C$7,8,0),1,1) -> 238.960007 | G173: =OFFSET(InputPriceData!F$15,CalculationsAndCharts!$A173+$A$11,IF($C$7,8,0),1,1) -> 248.070007 | H173: 0 | AP173: 186267300
A174: 142 | B174: =OFFSET(InputPriceData!B$15,CalculationsAndCharts!$A174+$A$11,0,1,1) -> 2018-12-26 | C174: =OFFSET(InputPriceData!G$15,CalculationsAndCharts!$A174+$A$11,IF($C$7,8,0),1,1) -> 218485400 | D174: =OFFSET(InputPriceData!C$15,CalculationsAndCharts!$A174+$A$11,IF($C$7,8,0),1,1) -> 235.970001 | E174: =OFFSET(InputPriceData!D$15,CalculationsAndCharts!$A174+$A$11,IF($C$7,8,0),1,1) -> 246.179993 | F174: =OFFSET(InputPriceData!E$15,CalculationsAndCharts!$A174+$A$11,IF($C$7,8,0),1,1) -> 233.759995 | G174: =OFFSET(InputPriceData!F$15,CalculationsAndCharts!$A174+$A$11,IF($C$7,8,0),1,1) -> 246.179993 | H174: 0 | AP174: 218485400
A175: 143 | B175: =OFFSET(InputPriceData!B$15,CalculationsAndCharts!$A175+$A$11,0,1,1) -> 2018-12-24 | C175: =OFFSET(InputPriceData!G$15,CalculationsAndCharts!$A175+$A$11,IF($C$7,8,0),1,1) -> 147311600 | D175: =OFFSET(InputPriceData!C$15,CalculationsAndCharts!$A175+$A$11,IF($C$7,8,0),1,1) -> 239.039993 | E175: =OFFSET(InputPriceData!D$15,CalculationsAndCharts!$A175+$A$11,IF($C$7,8,0),1,1) -> 240.839996 | F175: =OFFSET(InputPriceData!E$15,CalculationsAndCharts!$A175+$A$11,IF($C$7,8,0),1,1) -> 234.270004 | G175: =OFFSET(InputPriceData!F$15,CalculationsAndCharts!$A175+$A$11,IF($C$7,8,0),1,1) -> 234.339996 | H175: 0 | AQ175: 147311600
A176: 144 | B176: =OFFSET(InputPriceData!B$15,CalculationsAndCharts!$A176+$A$11,0,1,1) -> 2018-12-21 | C176: =OFFSET(InputPriceData!G$15,CalculationsAndCharts!$A176+$A$11,IF($C$7,8,0),1,1) -> 255345600 | D176: =OFFSET(InputPriceData!C$15,CalculationsAndCharts!$A176+$A$11,IF($C$7,8,0),1,1) -> 246.740005 | E176: =OFFSET(InputPriceData!D$15,CalculationsAndCharts!$A176+$A$11,IF($C$7,8,0),1,1) -> 249.710007 | F176: =OFFSET(InputPriceData!E$15,CalculationsAndCharts!$A176+$A$11,IF($C$7,8,0),1,1) -> 239.979996 | G176: =OFFSET(InputPriceData!F$15,CalculationsAndCharts!$A176+$A$11,IF($C$7,8,0),1,1) -> 240.699997 | H176: 0 | AQ176: 255345600
A177: 145 | B177: =OFFSET(InputPriceData!B$15,CalculationsAndCharts!$A177+$A$11,0,1,1) -> 2018-12-20 | C177: =OFFSET(InputPriceData!G$15,CalculationsAndCharts!$A177+$A$11,IF($C$7,8,0),1,1) -> 252053400 | D177: =OFFSET(InputPriceData!C$15,CalculationsAndCharts!$A177+$A$11,IF($C$7,8,0),1,1) -> 249.860001 | E177: =OFFSET(InputPriceData!D$15,CalculationsAndCharts!$A177+$A$11,IF($C$7,8,0),1,1) -> 251.619995 | F177: =OFFSET(InputPriceData!E$15,CalculationsAndCharts!$A177+$A$11,IF($C$7,8,0),1,1) -> 244.649994 | G177: =OFFSET(InputPriceData!F$15,CalculationsAndCharts!$A177+$A$11,IF($C$7,8,0),1,1) -> 247.169998 | H177: 0 | AQ177: 252053400
A178: 146 | B178: =OFFSET(InputPriceData!B$15,CalculationsAndCharts!$A178+$A$11,0,1,1) -> 2018-12-19 | C178: =OFFSET(InputPriceData!G$15,CalculationsAndCharts!$A178+$A$11,IF($C$7,8,0),1,1) -> 214992800 | D178: =OFFSET(InputPriceData!C$15,CalculationsAndCharts!$A178+$A$11,IF($C$7,8,0),1,1) -> 255.169998 | E178: =OFFSET(InputPriceData!D$15,CalculationsAndCharts!$A178+$A$11,IF($C$7,8,0),1,1) -> 259.399994 | F178: =OFFSET(InputPriceData!E$15,CalculationsAndCharts!$A178+$A$11,IF($C$7,8,0),1,1) -> 249.350006 | G178: =OFFSET(InputPriceData!F$15,CalculationsAndCharts!$A178+$A$11,IF($C$7,8,0),1,1) -> 251.259995 | H178: 0 | AQ178: 214992800
A179: 147 | B179: =OFFSET(InputPriceData!B$15,CalculationsAndCharts!$A179+$A$11,0,1,1) -> 2018-12-18 | C179: =OFFSET(InputPriceData!G$15,CalculationsAndCharts!$A179+$A$11,IF($C$7,8,0),1,1) -> 134515100 | D179: =OFFSET(InputPriceData!C$15,CalculationsAndCharts!$A179+$A$11,IF($C$7,8,0),1,1) -> 257.200012 | E179: =OFFSET(InputPriceData!D$15,CalculationsAndCharts!$A179+$A$11,IF($C$7,8,0),1,1) -> 257.950012 | F179: =OFFSET(InputPriceData!E$15,CalculationsAndCharts!$A179+$A$11,IF($C$7,8,0),1,1) -> 253.279999 | G179: =OFFSET(InputPriceData!F$15,CalculationsAndCharts!$A179+$A$11,IF($C$7,8,0),1,1) -> 255.080002 | H179: 0 | AQ179: 134515100
A180: 148 | B180: =OFFSET(InputPriceData!B$15,CalculationsAndCharts!$A180+$A$11,0,1,1) -> 2018-12-17 | C180: =OFFSET(InputPriceData!G$15,CalculationsAndCharts!$A180+$A$11,IF($C$7,8,0),1,1) -> 165492300 | D180: =OFFSET(InputPriceData!C$15,CalculationsAndCharts!$A180+$A$11,IF($C$7,8,0),1,1) -> 259.399994 | E180: =OFFSET(InputPriceData!D$15,CalculationsAndCharts!$A180+$A$11,IF($C$7,8,0),1,1) -> 260.649994 | F180: =OFFSET(InputPriceData!E$15,CalculationsAndCharts!$A180+$A$11,IF($C$7,8,0),1,1) -> 253.529999 | G180: =OFFSET(InputPriceData!F$15,CalculationsAndCharts!$A180+$A$11,IF($C$7,8,0),1,1) -> 255.360001 | H180: 0 | AQ180: 165492300
A181: 149 | B181: =OFFSET(InputPriceData!B$15,CalculationsAndCharts!$A181+$A$11,0,1,1) -> 2018-12-14 | C181: =OFFSET(InputPriceData!G$15,CalculationsAndCharts!$A181+$A$11,IF($C$7,8,0),1,1) -> 116961100 | D181: =OFFSET(InputPriceData!C$15,CalculationsAndCharts!$A181+$A$11,IF($C$7,8,0),1,1) -> 262.959991 | E181: =OFFSET(InputPriceData!D$15,CalculationsAndCharts!$A181+$A$11,IF($C$7,8,0),1,1) -> 264.029999 | F181: =OFFSET(InputPriceData!E$15,CalculationsAndCharts!$A181+$A$11,IF($C$7,8,0),1,1) -> 259.850006 | G181: =OFFSET(InputPriceData!F$15,CalculationsAndCharts!$A181+$A$11,IF($C$7,8,0),1,1) -> 260.470001 | H181: 0 | AQ181: 116961100
A182: 150 | B182: =OFFSET(InputPriceData!B$15,CalculationsAndCharts!$A182+$A$11,0,1,1) -> 2018-12-13 | C182: =OFFSET(InputPriceData!G$15,CalculationsAndCharts!$A182+$A$11,IF($C$7,8,0),1,1) -> 96662700 | D182: =OFFSET(InputPriceData!C$15,CalculationsAndCharts!$A182+$A$11,IF($C$7,8,0),1,1) -> 266.519989 | E182: =OFFSET(InputPriceData!D$15,CalculationsAndCharts!$A182+$A$11,IF($C$7,8,0),1,1) -> 267.48999 | F182: =OFFSET(InputPriceData!E$15,CalculationsAndCharts!$A182+$A$11,IF($C$7,8,0),1,1) -> 264.119995 | G182: =OFFSET(InputPriceData!F$15,CalculationsAndCharts!$A182+$A$11,IF($C$7,8,0),1,1) -> 265.369995 | H182: 0 | AQ182: 96662700
A183: 151 | B183: =OFFSET(InputPriceData!B$15,CalculationsAndCharts!$A183+$A$11,0,1,1) -> 2018-12-12 | C183: =OFFSET(InputPriceData!G$15,CalculationsAndCharts!$A183+$A$11,IF($C$7,8,0),1,1) -> 97976700 | D183: =OFFSET(InputPriceData!C$15,CalculationsAndCharts!$A183+$A$11,IF($C$7,8,0),1,1) -> 267.470001 | E183: =OFFSET(InputPriceData!D$15,CalculationsAndCharts!$A183+$A$11,IF($C$7,8,0),1,1) -> 269 | F183: =OFFSET(InputPriceData!E$15,CalculationsAndCharts!$A183+$A$11,IF($C$7,8,0),1,1) -> 265.369995 | G183: =OFFSET(InputPriceData!F$15,CalculationsAndCharts!$A183+$A$11,IF($C$7,8,0),1,1) -> 265.459991 | H183: 0 | AQ183: 97976700
A184: 152 | B184: =OFFSET(InputPriceData!B$15,CalculationsAndCharts!$A184+$A$11,0,1,1) -> 2018-12-11 | C184: =OFFSET(InputPriceData!G$15,CalculationsAndCharts!$A184+$A$11,IF($C$7,8,0),1,1) -> 121504400 | D184: =OFFSET(InputPriceData!C$15,CalculationsAndCharts!$A184+$A$11,IF($C$7,8,0),1,1) -> 267.660004 | E184: =OFFSET(InputPriceData!D$15,CalculationsAndCharts!$A184+$A$11,IF($C$7,8,0),1,1) -> 267.869995 | F184: =OFFSET(InputPriceData!E$15,CalculationsAndCharts!$A184+$A$11,IF($C$7,8,0),1,1) -> 262.480011 | G184: =OFFSET(InputPriceData!F$15,CalculationsAndCharts!$A184+$A$11,IF($C$7,8,0),1,1) -> 264.130005 | H184: 0 | AQ184: 121504400
A185: 153 | B185: =OFFSET(InputPriceData!B$15,CalculationsAndCharts!$A185+$A$11,0,1,1) -> 2018-12-10 | C185: =OFFSET(InputPriceData!G$15,CalculationsAndCharts!$A185+$A$11,IF($C$7,8,0),1,1) -> 151445900 | D185: =OFFSET(InputPriceData!C$15,CalculationsAndCharts!$A185+$A$11,IF($C$7,8,0),1,1) -> 263.369995 | E185: =OFFSET(InputPriceData!D$15,CalculationsAndCharts!$A185+$A$11,IF($C$7,8,0),1,1) -> 265.160004 | F185: =OFFSET(InputPriceData!E$15,CalculationsAndCharts!$A185+$A$11,IF($C$7,8,0),1,1) -> 258.619995 | G185: =OFFSET(InputPriceData!F$15,CalculationsAndCharts!$A185+$A$11,IF($C$7,8,0),1,1) -> 264.070007 | H185: 0 | AP185: 151445900
A186: 154 | B186: =OFFSET(InputPriceData!B$15,CalculationsAndCharts!$A186+$A$11,0,1,1) -> 2018-12-07 | C186: =OFFSET(InputPriceData!G$15,CalculationsAndCharts!$A186+$A$11,IF($C$7,8,0),1,1) -> 161018900 | D186: =OFFSET(InputPriceData!C$15,CalculationsAndCharts!$A186+$A$11,IF($C$7,8,0),1,1) -> 269.459991 | E186: =OFFSET(InputPriceData!D$15,CalculationsAndCharts!$A186+$A$11,IF($C$7,8,0),1,1) -> 271.220001 | F186: =OFFSET(InputPriceData!E$15,CalculationsAndCharts!$A186+$A$11,IF($C$7,8,0),1,1) -> 262.630005 | G186: =OFFSET(InputPriceData!F$15,CalculationsAndCharts!$A186+$A$11,IF($C$7,8,0),1,1) -> 263.570007 | H186: 0 | AQ186: 161018900
A187: 155 | B187: =OFFSET(InputPriceData!B$15,CalculationsAndCharts!$A187+$A$11,0,1,1) -> 2018-12-06 | C187: =OFFSET(InputPriceData!G$15,CalculationsAndCharts!$A187+$A$11,IF($C$7,8,0),1,1) -> 204185400 | D187: =OFFSET(InputPriceData!C$15,CalculationsAndCharts!$A187+$A$11,IF($C$7,8,0),1,1) -> 265.920013 | E187: =OFFSET(InputPriceData!D$15,CalculationsAndCharts!$A187+$A$11,IF($C$7,8,0),1,1) -> 269.970001 | F187: =OFFSET(InputPriceData!E$15,CalculationsAndCharts!$A187+$A$11,IF($C$7,8,0),1,1) -> 262.440002 | G187: =OFFSET(InputPriceData!F$15,CalculationsAndCharts!$A187+$A$11,IF($C$7,8,0),1,1) -> 269.839996 | H187: 0 | AP187: 204185400
A188: 156 | B188: =OFFSET(InputPriceData!B$15,CalculationsAndCharts!$A188+$A$11,0,1,1) -> 2018-12-04 | C188: =OFFSET(InputPriceData!G$15,CalculationsAndCharts!$A188+$A$11,IF($C$7,8,0),1,1) -> 177986000 | D188: =OFFSET(InputPriceData!C$15,CalculationsAndCharts!$A188+$A$11,IF($C$7,8,0),1,1) -> 278.369995 | E188: =OFFSET(InputPriceData!D$15,CalculationsAndCharts!$A188+$A$11,IF($C$7,8,0),1,1) -> 278.850006 | F188: =OFFSET(InputPriceData!E$15,CalculationsAndCharts!$A188+$A$11,IF($C$7,8,0),1,1) -> 269.899994 | G188: =OFFSET(InputPriceData!F$15,CalculationsAndCharts!$A188+$A$11,IF($C$7,8,0),1,1) -> 270.25 | H188: 0 | AQ188: 177986000
A189: 157 | B189: =OFFSET(InputPriceData!B$15,CalculationsAndCharts!$A189+$A$11,0,1,1) -> 2018-12-03 | C189: =OFFSET(InputPriceData!G$15,CalculationsAndCharts!$A189+$A$11,IF($C$7,8,0),1,1) -> 103176300 | D189: =OFFSET(InputPriceData!C$15,CalculationsAndCharts!$A189+$A$11,IF($C$7,8,0),1,1) -> 280.279999 | E189: =OFFSET(InputPriceData!D$15,CalculationsAndCharts!$A189+$A$11,IF($C$7,8,0),1,1) -> 280.399994 | F189: =OFFSET(InputPriceData!E$15,CalculationsAndCharts!$A189+$A$11,IF($C$7,8,0),1,1) -> 277.51001 | G189: =OFFSET(InputPriceData!F$15,CalculationsAndCharts!$A189+$A$11,IF($C$7,8,0),1,1) -> 279.299988 | H189: 0 | AQ189: 103176300
A190: 158 | B190: =OFFSET(InputPriceData!B$15,CalculationsAndCharts!$A190+$A$11,0,1,1) -> 2018-11-30 | C190: =OFFSET(InputPriceData!G$15,CalculationsAndCharts!$A190+$A$11,IF($C$7,8,0),1,1) -> 98204200 | D190: =OFFSET(InputPriceData!C$15,CalculationsAndCharts!$A190+$A$11,IF($C$7,8,0),1,1) -> 273.809998 | E190: =OFFSET(InputPriceData!D$15,CalculationsAndCharts!$A190+$A$11,IF($C$7,8,0),1,1) -> 276.279999 | F190: =OFFSET(InputPriceData!E$15,CalculationsAndCharts!$A190+$A$11,IF($C$7,8,0),1,1) -> 273.450012 | G190: =OFFSET(InputPriceData!F$15,CalculationsAndCharts!$A190+$A$11,IF($C$7,8,0),1,1) -> 275.649994 | H190: 0 | AP190: 98204200
A191: 159 | B191: =OFFSET(InputPriceData!B$15,CalculationsAndCharts!$A191+$A$11,0,1,1) -> 2018-11-29 | C191: =OFFSET(InputPriceData!G$15,CalculationsAndCharts!$A191+$A$11,IF($C$7,8,0),1,1) -> 82346400 | D191: =OFFSET(InputPriceData!C$15,CalculationsAndCharts!$A191+$A$11,IF($C$7,8,0),1,1) -> 273.709991 | E191: =OFFSET(InputPriceData!D$15,CalculationsAndCharts!$A191+$A$11,IF($C$7,8,0),1,1) -> 275.549988 | F191: =OFFSET(InputPriceData!E$15,CalculationsAndCharts!$A191+$A$11,IF($C$7,8,0),1,1) -> 272.429993 | G191: =OFFSET(InputPriceData!F$15,CalculationsAndCharts!$A191+$A$11,IF($C$7,8,0),1,1) -> 273.980011 | H191: 0 | AP191: 82346400
A192: 160 | B192: =OFFSET(InputPriceData!B$15,CalculationsAndCharts!$A192+$A$11,0,1,1) -> 2018-11-28 | C192: =OFFSET(InputPriceData!G$15,CalculationsAndCharts!$A192+$A$11,IF($C$7,8,0),1,1) -> 127629600 | D192: =OFFSET(InputPriceData!C$15,CalculationsAndCharts!$A192+$A$11,IF($C$7,8,0),1,1) -> 269.600006 | E192: =OFFSET(InputPriceData!D$15,CalculationsAndCharts!$A192+$A$11,IF($C$7,8,0),1,1) -> 274.579987 | F192: =OFFSET(InputPriceData!E$15,CalculationsAndCharts!$A192+$A$11,IF($C$7,8,0),1,1) -> 268.329987 | G192: =OFFSET(InputPriceData!F$15,CalculationsAndCharts!$A192+$A$11,IF($C$7,8,0),1,1) -> 274.579987 | H192: 0 | AP192: 127629600
A193: 161 | B193: =OFFSET(InputPriceData!B$15,CalculationsAndCharts!$A193+$A$11,0,1,1) -> 2018-11-27 | C193: =OFFSET(InputPriceData!G$15,CalculationsAndCharts!$A193+$A$11,IF($C$7,8,0),1,1) -> 75502400 | D193: =OFFSET(InputPriceData!C$15,CalculationsAndCharts!$A193+$A$11,IF($C$7,8,0),1,1) -> 266.339996 | E193: =OFFSET(InputPriceData!D$15,CalculationsAndCharts!$A193+$A$11,IF($C$7,8,0),1,1) -> 268.399994 | F193: =OFFSET(InputPriceData!E$15,CalculationsAndCharts!$A193+$A$11,IF($C$7,8,0),1,1) -> 265.660004 | G193: =OFFSET(InputPriceData!F$15,CalculationsAndCharts!$A193+$A$11,IF($C$7,8,0),1,1) -> 268.399994 | H193: 0 | AP193: 75502400
A194: 162 | B194: =OFFSET(InputPriceData!B$15,CalculationsAndCharts!$A194+$A$11,0,1,1) -> 2018-11-26 | C194: =OFFSET(InputPriceData!G$15,CalculationsAndCharts!$A194+$A$11,IF($C$7,8,0),1,1) -> 79981400 | D194: =OFFSET(InputPriceData!C$15,CalculationsAndCharts!$A194+$A$11,IF($C$7,8,0),1,1) -> 265.779999 | E194: =OFFSET(InputPriceData!D$15,CalculationsAndCharts!$A194+$A$11,IF($C$7,8,0),1,1) -> 267.75 | F194: =OFFSET(InputPriceData!E$15,CalculationsAndCharts!$A194+$A$11,IF($C$7,8,0),1,1) -> 265.339996 | G194: =OFFSET(InputPriceData!F$15,CalculationsAndCharts!$A194+$A$11,IF($C$7,8,0),1,1) -> 267.5 | H194: 0 | AP194: 79981400
A195: 163 | B195: =OFFSET(InputPriceData!B$15,CalculationsAndCharts!$A195+$A$11,0,1,1) -> 2018-11-23 | C195: =OFFSET(InputPriceData!G$15,CalculationsAndCharts!$A195+$A$11,IF($C$7,8,0),1,1) -> 42807900 | D195: =OFFSET(InputPriceData!C$15,CalculationsAndCharts!$A195+$A$11,IF($C$7,8,0),1,1) -> 263.179993 | E195: =OFFSET(InputPriceData!D$15,CalculationsAndCharts!$A195+$A$11,IF($C$7,8,0),1,1) -> 264.820007 | F195: =OFFSET(InputPriceData!E$15,CalculationsAndCharts!$A195+$A$11,IF($C$7,8,0),1,1) -> 263.070007 | G195: =OFFSET(InputPriceData!F$15,CalculationsAndCharts!$A195+$A$11,IF($C$7,8,0),1,1) -> 263.25 | H195: 0 | AP195: 42807900
A196: 164 | B196: =OFFSET(InputPriceData!B$15,CalculationsAndCharts!$A196+$A$11,0,1,1) -> 2018-11-21 | C196: =OFFSET(InputPriceData!G$15,CalculationsAndCharts!$A196+$A$11,IF($C$7,8,0),1,1) -> 75563700 | D196: =OFFSET(InputPriceData!C$15,CalculationsAndCharts!$A196+$A$11,IF($C$7,8,0),1,1) -> 265.859985 | E196: =OFFSET(InputPriceData!D$15,CalculationsAndCharts!$A196+$A$11,IF($C$7,8,0),1,1) -> 267.149994 | F196: =OFFSET(InputPriceData!E$15,CalculationsAndCharts!$A196+$A$11,IF($C$7,8,0),1,1) -> 265.01001 | G196: =OFFSET(InputPriceData!F$15,CalculationsAndCharts!$A196+$A$11,IF($C$7,8,0),1,1) -> 265.019989 | H196: 0 | AQ196: 75563700
A197: 165 | B197: =OFFSET(InputPriceData!B$15,CalculationsAndCharts!$A197+$A$11,0,1,1) -> 2018-11-20 | C197: =OFFSET(InputPriceData!G$15,CalculationsAndCharts!$A197+$A$11,IF($C$7,8,0),1,1) -> 136021300 | D197: =OFFSET(InputPriceData!C$15,CalculationsAndCharts!$A197+$A$11,IF($C$7,8,0),1,1) -> 265.359985 | E197: =OFFSET(InputPriceData!D$15,CalculationsAndCharts!$A197+$A$11,IF($C$7,8,0),1,1) -> 267 | F197: =OFFSET(InputPriceData!E$15,CalculationsAndCharts!$A197+$A$11,IF($C$7,8,0),1,1) -> 263.149994 | G197: =OFFSET(InputPriceData!F$15,CalculationsAndCharts!$A197+$A$11,IF($C$7,8,0),1,1) -> 264.119995 | H197: 0 | AQ197: 136021300
A198: 166 | B198: =OFFSET(InputPriceData!B$15,CalculationsAndCharts!$A198+$A$11,0,1,1) -> 2018-11-19 | C198: =OFFSET(InputPriceData!G$15,CalculationsAndCharts!$A198+$A$11,IF($C$7,8,0),1,1) -> 103061700 | D198: =OFFSET(InputPriceData!C$15,CalculationsAndCharts!$A198+$A$11,IF($C$7,8,0),1,1) -> 273.049988 | E198: =OFFSET(InputPriceData!D$15,CalculationsAndCharts!$A198+$A$11,IF($C$7,8,0),1,1) -> 273.380005 | F198: =OFFSET(InputPriceData!E$15,CalculationsAndCharts!$A198+$A$11,IF($C$7,8,0),1,1) -> 268.070007 | G198: =OFFSET(InputPriceData!F$15,CalculationsAndCharts!$A198+$A$11,IF($C$7,8,0),1,1) -> 269.100006 | H198: 0 | AQ198: 103061700
A199: 167 | B199: =OFFSET(InputPriceData!B$15,CalculationsAndCharts!$A199+$A$11,0,1,1) -> 2018-11-16 | C199: =OFFSET(InputPriceData!G$15,CalculationsAndCharts!$A199+$A$11,IF($C$7,8,0),1,1) -> 126668000 | D199: =OFFSET(InputPriceData!C$15,CalculationsAndCharts!$A199+$A$11,IF($C$7,8,0),1,1) -> 271.790009 | E199: =OFFSET(InputPriceData!D$15,CalculationsAndCharts!$A199+$A$11,IF($C$7,8,0),1,1) -> 274.75 | F199: =OFFSET(InputPriceData!E$15,CalculationsAndCharts!$A199+$A$11,IF($C$7,8,0),1,1) -> 271.209991 | G199: =OFFSET(InputPriceData!F$15,CalculationsAndCharts!$A199+$A$11,IF($C$7,8,0),1,1) -> 273.730011 | H199: 0 | AP199: 126668000
A200: 168 | B200: =OFFSET(InputPriceData!B$15,CalculationsAndCharts!$A200+$A$11,0,1,1) -> 2018-11-15 | C200: =OFFSET(InputPriceData!G$15,CalculationsAndCharts!$A200+$A$11,IF($C$7,8,0),1,1) -> 135101400 | D200: =OFFSET(InputPriceData!C$15,CalculationsAndCharts!$A200+$A$11,IF($C$7,8,0),1,1) -> 268.779999 | E200: =OFFSET(InputPriceData!D$15,CalculationsAndCharts!$A200+$A$11,IF($C$7,8,0),1,1) -> 273.540009 | F200: =OFFSET(InputPriceData!E$15,CalculationsAndCharts!$A200+$A$11,IF($C$7,8,0),1,1) -> 267.01001 | G200: =OFFSET(InputPriceData!F$15,CalculationsAndCharts!$A200+$A$11,IF($C$7,8,0),1,1) -> 273.019989 | H200: 0 | AP200: 135101400
A201: 169 | B201: =OFFSET(InputPriceData!B$15,CalculationsAndCharts!$A201+$A$11,0,1,1) -> 2018-11-14 | C201: =OFFSET(InputPriceData!G$15,CalculationsAndCharts!$A201+$A$11,IF($C$7,8,0),1,1) -> 125335900 | D201: =OFFSET(InputPriceData!C$15,CalculationsAndCharts!$A201+$A$11,IF($C$7,8,0),1,1) -> 274.160004 | E201: =OFFSET(InputPriceData!D$15,CalculationsAndCharts!$A201+$A$11,IF($C$7,8,0),1,1) -> 274.609985 | F201: =OFFSET(InputPriceData!E$15,CalculationsAndCharts!$A201+$A$11,IF($C$7,8,0),1,1) -> 268.450012 | G201: =OFFSET(InputPriceData!F$15,CalculationsAndCharts!$A201+$A$11,IF($C$7,8,0),1,1) -> 270.200012 | H201: 0 | AQ201: 125335900
A202: 170 | B202: =OFFSET(InputPriceData!B$15,CalculationsAndCharts!$A202+$A$11,0,1,1) -> 2018-11-13 | C202: =OFFSET(InputPriceData!G$15,CalculationsAndCharts!$A202+$A$11,IF($C$7,8,0),1,1) -> 98176600 | D202: =OFFSET(InputPriceData!C$15,CalculationsAndCharts!$A202+$A$11,IF($C$7,8,0),1,1) -> 273.089996 | E202: =OFFSET(InputPriceData!D$15,CalculationsAndCharts!$A202+$A$11,IF($C$7,8,0),1,1) -> 275.329987 | F202: =OFFSET(InputPriceData!E$15,CalculationsAndCharts!$A202+$A$11,IF($C$7,8,0),1,1) -> 271.25 | G202: =OFFSET(InputPriceData!F$15,CalculationsAndCharts!$A202+$A$11,IF($C$7,8,0),1,1) -> 272.059998 | H202: 0 | AQ202: 98176600
A203: 171 | B203: =OFFSET(InputPriceData!B$15,CalculationsAndCharts!$A203+$A$11,0,1,1) -> 2018-11-12 | C203: =OFFSET(InputPriceData!G$15,CalculationsAndCharts!$A203+$A$11,IF($C$7,8,0),1,1) -> 99673600 | D203: =OFFSET(InputPriceData!C$15,CalculationsAndCharts!$A203+$A$11,IF($C$7,8,0),1,1) -> 277.190002 | E203: =OFFSET(InputPriceData!D$15,CalculationsAndCharts!$A203+$A$11,IF($C$7,8,0),1,1) -> 277.459991 | F203: =OFFSET(InputPriceData!E$15,CalculationsAndCharts!$A203+$A$11,IF($C$7,8,0),1,1) -> 271.98999 | G203: =OFFSET(InputPriceData!F$15,CalculationsAndCharts!$A203+$A$11,IF($C$7,8,0),1,1) -> 272.570007 | H203: 0 | AQ203: 99673600
A204: 172 | B204: =OFFSET(InputPriceData!B$15,CalculationsAndCharts!$A204+$A$11,0,1,1) -> 2018-11-09 | C204: =OFFSET(InputPriceData!G$15,CalculationsAndCharts!$A204+$A$11,IF($C$7,8,0),1,1) -> 98812600 | D204: =OFFSET(InputPriceData!C$15,CalculationsAndCharts!$A204+$A$11,IF($C$7,8,0),1,1) -> 279.029999 | E204: =OFFSET(InputPriceData!D$15,CalculationsAndCharts!$A204+$A$11,IF($C$7,8,0),1,1) -> 279.23999 | F204: =OFFSET(InputPriceData!E$15,CalculationsAndCharts!$A204+$A$11,IF($C$7,8,0),1,1) -> 276.179993 | G204: =OFFSET(InputPriceData!F$15,CalculationsAndCharts!$A204+$A$11,IF($C$7,8,0),1,1) -> 277.76001 | H204: 0 | AQ204: 98812600
A205: 173 | B205: =OFFSET(InputPriceData!B$15,CalculationsAndCharts!$A205+$A$11,0,1,1) -> 2018-11-08 | C205: =OFFSET(InputPriceData!G$15,CalculationsAndCharts!$A205+$A$11,IF($C$7,8,0),1,1) -> 65584900 | D205: =OFFSET(InputPriceData!C$15,CalculationsAndCharts!$A205+$A$11,IF($C$7,8,0),1,1) -> 280.109985 | E205: =OFFSET(InputPriceData!D$15,CalculationsAndCharts!$A205+$A$11,IF($C$7,8,0),1,1) -> 281.220001 | F205: =OFFSET(InputPriceData!E$15,CalculationsAndCharts!$A205+$A$11,IF($C$7,8,0),1,1) -> 279.220001 | G205: =OFFSET(InputPriceData!F$15,CalculationsAndCharts!$A205+$A$11,IF($C$7,8,0),1,1) -> 280.5 | H205: 0 | AP205: 65584900
A206: 174 | B206: =OFFSET(InputPriceData!B$15,CalculationsAndCharts!$A206+$A$11,0,1,1) -> 2018-11-07 | C206: =OFFSET(InputPriceData!G$15,CalculationsAndCharts!$A206+$A$11,IF($C$7,8,0),1,1) -> 102752100 | D206: =OFFSET(InputPriceData!C$15,CalculationsAndCharts!$A206+$A$11,IF($C$7,8,0),1,1) -> 277.559998 | E206: =OFFSET(InputPriceData!D$15,CalculationsAndCharts!$A206+$A$11,IF($C$7,8,0),1,1) -> 281.100006 | F206: =OFFSET(InputPriceData!E$15,CalculationsAndCharts!$A206+$A$11,IF($C$7,8,0),1,1) -> 277.079987 | G206: =OFFSET(InputPriceData!F$15,CalculationsAndCharts!$A206+$A$11,IF($C$7,8,0),1,1) -> 281.01001 | H206: 0 | AP206: 102752100
A207: 175 | B207: =OFFSET(InputPriceData!B$15,CalculationsAndCharts!$A207+$A$11,0,1,1) -> 2018-11-06 | C207: =OFFSET(InputPriceData!G$15,CalculationsAndCharts!$A207+$A$11,IF($C$7,8,0),1,1) -> 60085900 | D207: =OFFSET(InputPriceData!C$15,CalculationsAndCharts!$A207+$A$11,IF($C$7,8,0),1,1) -> 273.320007 | E207: =OFFSET(InputPriceData!D$15,CalculationsAndCharts!$A207+$A$11,IF($C$7,8,0),1,1) -> 275.299988 | F207: =OFFSET(InputPriceData!E$15,CalculationsAndCharts!$A207+$A$11,IF($C$7,8,0),1,1) -> 273.25 | G207: =OFFSET(InputPriceData!F$15,CalculationsAndCharts!$A207+$A$11,IF($C$7,8,0),1,1) -> 275.119995 | H207: 0 | AP207: 60085900
A208: 176 | B208: =OFFSET(InputPriceData!B$15,CalculationsAndCharts!$A208+$A$11,0,1,1) -> 2018-11-05 | C208: =OFFSET(InputPriceData!G$15,CalculationsAndCharts!$A208+$A$11,IF($C$7,8,0),1,1) -> 65622500 | D208: =OFFSET(InputPriceData!C$15,CalculationsAndCharts!$A208+$A$11,IF($C$7,8,0),1,1) -> 272.440002 | E208: =OFFSET(InputPriceData!D$15,CalculationsAndCharts!$A208+$A$11,IF($C$7,8,0),1,1) -> 274.01001 | F208: =OFFSET(InputPriceData!E$15,CalculationsAndCharts!$A208+$A$11,IF($C$7,8,0),1,1) -> 271.350006 | G208: =OFFSET(InputPriceData!F$15,CalculationsAndCharts!$A208+$A$11,IF($C$7,8,0),1,1) -> 273.390015 | H208: 0 | AP208: 65622500
A209: 177 | B209: =OFFSET(InputPriceData!B$15,CalculationsAndCharts!$A209+$A$11,0,1,1) -> 2018-11-02 | C209: =OFFSET(InputPriceData!G$15,CalculationsAndCharts!$A209+$A$11,IF($C$7,8,0),1,1) -> 122634100 | D209: =OFFSET(InputPriceData!C$15,CalculationsAndCharts!$A209+$A$11,IF($C$7,8,0),1,1) -> 274.75 | E209: =OFFSET(InputPriceData!D$15,CalculationsAndCharts!$A209+$A$11,IF($C$7,8,0),1,1) -> 275.230011 | F209: =OFFSET(InputPriceData!E$15,CalculationsAndCharts!$A209+$A$11,IF($C$7,8,0),1,1) -> 269.589996 | G209: =OFFSET(InputPriceData!F$15,CalculationsAndCharts!$A209+$A$11,IF($C$7,8,0),1,1) -> 271.890015 | H209: 0 | AQ209: 122634100
A210: 178 | B210: =OFFSET(InputPriceData!B$15,CalculationsAndCharts!$A210+$A$11,0,1,1) -> 2018-11-01 | C210: =OFFSET(InputPriceData!G$15,CalculationsAndCharts!$A210+$A$11,IF($C$7,8,0),1,1) -> 99495000 | D210: =OFFSET(InputPriceData!C$15,CalculationsAndCharts!$A210+$A$11,IF($C$7,8,0),1,1) -> 271.600006 | E210: =OFFSET(InputPriceData!D$15,CalculationsAndCharts!$A210+$A$11,IF($C$7,8,0),1,1) -> 273.730011 | F210: =OFFSET(InputPriceData!E$15,CalculationsAndCharts!$A210+$A$11,IF($C$7,8,0),1,1) -> 270.380005 | G210: =OFFSET(InputPriceData!F$15,CalculationsAndCharts!$A210+$A$11,IF($C$7,8,0),1,1) -> 273.51001 | H210: 0 | AP210: =IF(G210>=D210,C210,NA()) -> 99495000 | AQ210: =IF(G210<D210,C210,NA()) -> 
A211: 179 | B211: =OFFSET(InputPriceData!B$15,CalculationsAndCharts!$A211+$A$11,0,1,1) -> 2018-10-31 | C211: =OFFSET(InputPriceData!G$15,CalculationsAndCharts!$A211+$A$11,IF($C$7,8,0),1,1) -> 128296300 | D211: =OFFSET(InputPriceData!C$15,CalculationsAndCharts!$A211+$A$11,IF($C$7,8,0),1,1) -> 270.649994 | E211: =OFFSET(InputPriceData!D$15,CalculationsAndCharts!$A211+$A$11,IF($C$7,8,0),1,1) -> 273.230011 | F211: =OFFSET(InputPriceData!E$15,CalculationsAndCharts!$A211+$A$11,IF($C$7,8,0),1,1) -> 270.119995 | G211: =OFFSET(InputPriceData!F$15,CalculationsAndCharts!$A211+$A$11,IF($C$7,8,0),1,1) -> 270.630005 | H211: 0 | AQ211: 128296300
A212: 180 | B212: =OFFSET(InputPriceData!B$15,CalculationsAndCharts!$A212+$A$11,0,1,1) -> 2018-10-30 | C212: =OFFSET(InputPriceData!G$15,CalculationsAndCharts!$A212+$A$11,IF($C$7,8,0),1,1) -> 157116000 | D212: =OFFSET(InputPriceData!C$15,CalculationsAndCharts!$A212+$A$11,IF($C$7,8,0),1,1) -> 263.670013 | E212: =OFFSET(InputPriceData!D$15,CalculationsAndCharts!$A212+$A$11,IF($C$7,8,0),1,1) -> 268.119995 | F212: =OFFSET(InputPriceData!E$15,CalculationsAndCharts!$A212+$A$11,IF($C$7,8,0),1,1) -> 263.119995 | G212: =OFFSET(InputPriceData!F$15,CalculationsAndCharts!$A212+$A$11,IF($C$7,8,0),1,1) -> 267.769989 | H212: 0 | AP212: 157116000
A213: 181 | B213: =OFFSET(InputPriceData!B$15,CalculationsAndCharts!$A213+$A$11,0,1,1) -> 2018-10-29 | C213: =OFFSET(InputPriceData!G$15,CalculationsAndCharts!$A213+$A$11,IF($C$7,8,0),1,1) -> 160749100 | D213: =OFFSET(InputPriceData!C$15,CalculationsAndCharts!$A213+$A$11,IF($C$7,8,0),1,1) -> 268.799988 | E213: =OFFSET(InputPriceData!D$15,CalculationsAndCharts!$A213+$A$11,IF($C$7,8,0),1,1) -> 270.25 | F213: =OFFSET(InputPriceData!E$15,CalculationsAndCharts!$A213+$A$11,IF($C$7,8,0),1,1) -> 259.850006 | G213: =OFFSET(InputPriceData!F$15,CalculationsAndCharts!$A213+$A$11,IF($C$7,8,0),1,1) -> 263.859985 | H213: 0 | AQ213: 160749100
A214: 182 | B214: =OFFSET(InputPriceData!B$15,CalculationsAndCharts!$A214+$A$11,0,1,1) -> 2018-10-26 | C214: =OFFSET(InputPriceData!G$15,CalculationsAndCharts!$A214+$A$11,IF($C$7,8,0),1,1) -> 201574600 | D214: =OFFSET(InputPriceData!C$15,CalculationsAndCharts!$A214+$A$11,IF($C$7,8,0),1,1) -> 265.920013 | E214: =OFFSET(InputPriceData!D$15,CalculationsAndCharts!$A214+$A$11,IF($C$7,8,0),1,1) -> 271 | F214: =OFFSET(InputPriceData!E$15,CalculationsAndCharts!$A214+$A$11,IF($C$7,8,0),1,1) -> 262.290009 | G214: =OFFSET(InputPriceData!F$15,CalculationsAndCharts!$A214+$A$11,IF($C$7,8,0),1,1) -> 265.329987 | H214: 0 | AQ214: 201574600
... 818 more rows

Sheet Follow
A1: Stocks and Indexes I wish to follow
A3: To ease following a stock, enter a Yahoo Finance acceptable symbol in column "A" anywhere below cell "A9".
A4: Thereafter you may doubleclick the cell containing a symbol of interest to initiate data retrieval and charting for that symbol.
A7: Symbol
A8: To | B8: Description | C8: Last Trade as of most recent check
A9: Follow | C9: Date | D9: Time | E9: Open | F9: High | G9: Low | H9: Close | I9: Volume | J9: Change
A10: A | B10: Agilent Technolog (A) -NYSE (Daily) | C10: 2015-02-02 | D10: 16:03:00 | E10: 37.9 | F10: 38.76 | G10: 37.71 | H10: 38.69 | I10: 2508493 | J10: 0.92
A11: AA | B11: Alcoa Corporation (AA) -NYSE (Weekly) | C11: 2018-06-19 | D11: 16:04:00 | E11: 44.630001 | F11: 44.630001 | G11: 43.349998 | H11: 44.470001 | I11: 3190085 | J11: -1.309998
A12: AAL | B12: American Airlines Group Inc. (AAL) -NasdaqGS (Daily) | C12: 2019-07-12 | D12: 16:00:00 | E12: 33.119999 | F12: 33.900002 | G12: 33 | H12: 33.779999 | I12: 5012200 | J12: 0.75
A13: ADM | B13: Archer-Daniels-Midland Company (ADM) -NYSE (Weekly) | C13: 2018-07-13 | D13: 16:00:00 | E13: 47.5 | F13: 47.84 | G13: 47.169998 | H13: 47.57 | I13: 2402809 | J13: 0
A14: AMC | B14: AMC Entertainment Holdings, Inc. (AMC) -NYSE (Weekly) | C14: 2018-07-13 | D14: 16:02:00 | E14: 17.049999 | F14: 17.15 | G14: 16.525 | H14: 17.049999 | I14: 1442776 | J14: 0
A15: BSX | B15: Boston Scientific Corporation C (BSX) -NYQ (Daily) | C15: 2015-03-13 | D15: 16:01:00 | E15: 16.84 | F15: 16.91 | G15: 16.44 | H15: 16.61 | I15: 7262460 | J15: -0.28
A16: CASY | B16: Casey's General Stores, Inc. (CASY) -NasdaqGS (Daily) | C16: 2019-04-10 | D16: 16:00:00 | E16: 128.979996 | F16: 130.330002 | G16: 128.779999 | H16: 130.179993 | I16: 351300 | J16: 1.489991
A17: CAT | B17: Caterpillar Inc. (CAT) -NYSE (Daily) | C17: 2019-07-19 | D17: 16:00:00 | E17: 134.220001 | F17: 137.050003 | G17: 134.220001 | H17: 136.229996 | I17: 4835600 | J17: 1.339997
A18: CSCO | B18: Cisco Systems, In (CSCO) -NasdaqNM (Daily) | C18: 2015-02-19 | D18: 16:00:00 | E18: 29.32 | F18: 29.39 | G18: 29.13 | H18: 29.31 | I18: 21469012 | J18: -0.18
A19: CVS | B19: CVS Health Corpor (CVS) -NYSE (Daily) | C19: 2015-02-02 | D19: 16:01:00 | E19: 98.34 | F19: 99.22 | G19: 97.06 | H19: 99.11 | I19: 4416094 | J19: 0.95
A20: DIS | B20: Walt Disney Compa (DIS) -NYSE (Daily) | C20: 2015-02-26 | D20: 16:00:00 | E20: 105.5 | F20: 105.71 | G20: 104.14 | H20: 104.56 | I20: 5044969 | J20: -1.01
A21: F | B21: Ford Motor Company (F) -NYSE (Daily) | C21: 2019-07-12 | D21: 16:04:00 | E21: 10.24 | F21: 10.5 | G21: 10.24 | H21: 10.49 | I21: 40748100 | J21: 0.3
A22: FAS | B22: Direxion Daily Financial Bull 3X ETF (FAS) -NYSEArca (Daily) | C22: 2017-10-13 | D22: 16:00:00 | E22: 58.099998 | F22: 58.939999 | G22: 57.43 | H22: 58.450001 | I22: 1709300 | J22: 0.07
A23: FB | B23: Facebook, Inc. (FB) -NasdaqGS (Daily) | C23: 2018-07-13 | D23: 16:00:00 | E23: 207.809998 | F23: 208.429993 | G23: 206.449997 | H23: 207.320007 | I23: 11486800 | J23: 0.400009
A24: GSK | B24: GlaxoSmithKline P (GSK) -NYSE (Daily) | C24: 2015-02-02 | D24: 16:01:00 | E24: 44.11 | F24: 44.12 | G24: 43.71 | H24: 43.96 | I24: 3654466 | J24: -0.04
A25: GDX | B25: VanEck Vectors Gold Miners ETF (GDX) -PCX (Daily) | C25: 2017-02-10 | D25: 20:00:00 | E25: 24.67 | F25: 25.36 | G25: 24.6 | H25: 25.29 | I25: 65396107 | J25: 0.38
A26: HD | B26: The Home Depot, Inc. (HD) -NYSE (Daily) | C26: 2019-06-17 | D26: 15:30:00 | E26: 207 | F26: 208.789993 | G26: 206 | H26: 207.610001 | I26: 3491229 | J26: 1.839997
A27: HSY | B27: The Hershey Company (HSY) -NYSE (Daily) | C27: 2019-04-10 | D27: 16:02:00 | E27: 116.099998 | F27: 116.43 | G27: 115.75 | H27: 116.309998 | I27: 574600 | J27: 0.290001
A28: HTLD | B28: Heartland Express, Inc. (HTLD) -NasdaqGS (Daily) | C28: 2018-04-16 | D28: 13:57:00 | E28: 18.17 | F28: 18.620001 | G28: 18.129999 | H28: 18.540001 | I28: 202134 | J28: 0.540001
A29: IBM | B29: International Business Machines Corporation (IBM) -NYSE (Weekly) | C29: 2018-07-13 | D29: 16:01:00 | E29: 146.449997 | F29: 146.979904 | G29: 145.800003 | H29: 145.899994 | I29: 3067638 | J29: 0
A30: INTC | B30: Intel Corporation (INTC) -NasdaqGS (Daily) | C30: 2019-06-17 | D30: 15:32:00 | E30: 46.139999 | F30: 46.529999 | G30: 45.799999 | H30: 46.102501 | I30: 7977641 | J30: -0.087498
A31: JAH | B31: Jarden Corporation Common Stock (JAH) -NYQ (Daily) | C31: 2016-01-08 | D31: 16:02:00 | E31: 53.82 | F31: 53.88 | G31: 52.65 | H31: 52.73 | I31: 4519480 | J31: -0.81
A32: JNJ | B32: Johnson & Johnson (JNJ) -NYSE (Daily) | C32: 2019-06-17 | D32: 15:31:00 | E32: 140 | F32: 140.240005 | G32: 139.259995 | H32: 139.479996 | I32: 3682553 | J32: -0.61
A33: KO | B33: The Coca-Cola Company (KO) -NYSE (Daily) | C33: 2019-07-19 | D33: 16:00:00 | E33: 52.139999 | F33: 52.150002 | G33: 51.369999 | H33: 51.389999 | I33: 10355500 | J33: -0.64
A34: LOW | B34: Lowe's Companies, Inc. (LOW) -NYSE (Daily) | C34: 2019-06-17 | D34: 15:29:00 | E34: 99.769997 | F34: 100.735001 | G34: 99.334999 | H34: 100.360001 | I34: 2967215 | J34: 0.730004
A35: LHO | B35: LaSalle Hotel Properties (LHO) -NYSE (Daily) | C35: 2018-07-13 | E35: 35.009998 | F35: 35.07 | G35: 34.82 | H35: 34.880001 | I35: 168400 | J35: -0.09
A36: LINE | B36: Linn Energy, LLC (LINE) -NasdaqNM (Daily) | C36: 2015-02-02 | D36: 16:00:00 | E36: 10.4 | F36: 10.78 | G36: 10.25 | H36: 10.77 | I36: 3766537 | J36: 0.51
A37: LO | B37: Lorillard, Inc Co (LO) -NYSE (Daily) | C37: 2015-02-02 | D37: 16:03:00 | E37: 65.71 | F37: 66.29 | G37: 65.43 | H37: 66.29 | I37: 1563618 | J37: 0.68
A38: MCD | B38: McDonald's Corporation (MCD) -NYSE (Daily) | C38: 2019-07-16 | D38: 12:45:00 | E38: 213.529999 | F38: 214.889999 | G38: 212.169998 | H38: 213.289993 | I38: 1155972 | J38: -0.920014
A39: MDT | B39: Medtronic plc. Or (MDT) -NYSE (Daily) | C39: 2015-02-19 | D39: 16:01:00 | E39: 78.59 | F39: 78.59 | G39: 77.85 | H39: 78.13 | I39: 6900528 | J39: -0.37
A40: MGM | B40: MGM Resorts Inter (MGM) -NYSE (Daily) | C40: 2015-02-02 | D40: 16:00:00 | E40: 19.44 | F40: 19.75 | G40: 19.12 | H40: 19.74 | I40: 7570281 | J40: 0.26
A41: MO | B41: Altria Group, Inc (MO) -NYSE (Daily) | C41: 2015-02-02 | D41: 16:01:00 | E41: 53.25 | F41: 53.84 | G41: 52.98 | H41: 53.8 | I41: 9183582 | J41: 0.7
A42: MSFT | B42: Microsoft Corporation (MSFT) -NasdaqGS (Daily) | C42: 2019-04-10 | D42: 16:00:00 | E42: 119.760002 | F42: 120.349998 | G42: 119.540001 | H42: 120.190002 | I42: 16123400 | J42: 0.910003
A43: NFLX | B43: Netflix, Inc. (NFLX) -NasdaqGS (Weekly) | C43: 2018-06-19 | D43: 14:59:00 | E43: 389.5 | F43: 404.390015 | G43: 388.5 | H43: 404.100006 | I43: 13053145 | J43: 13.700012
A44: NUGT | B44: Direxion Daily Gold Miners Inde (NUGT) -PCX (Daily) | C44: 2016-04-13 | D44: 14:18:00 | E44: 81.48 | F44: 84.97 | G44: 79.59 | H44: 80.5352 | I44: 4380827 | J44: -5.6148
A45: NVS | B45: Novartis AG (NVS) -NYSE (Daily) | C45: 2018-04-13 | D45: 16:02:00 | E45: 81.150002 | F45: 81.269997 | G45: 80.699997 | H45: 81.040001 | I45: 1037000 | J45: -0.400001
A46: NVDA | B46: NVIDIA Corporation (NVDA) -NasdaqGS (Daily) | C46: 2019-07-19 | D46: 16:00:00 | E46: 171.720001 | F46: 171.979996 | G46: 168.199997 | H46: 168.440002 | I46: 8603700 | J46: -1.739991
A47: PRU | B47: Prudential Financ (PRU) -NYSE (Daily) | C47: 2015-02-23 | D47: 12:22:00 | E47: 80.25 | F47: 80.4499 | G47: 79.8 | H47: 80.12 | I47: 1604052 | J47: -0.69
A48: PSEC | B48: Prospect Capital Corporation (PSEC) -NasdaqGS (Daily) | C48: 2019-04-10 | D48: 16:00:00 | E48: 6.57 | F48: 6.59 | G48: 6.55 | H48: 6.58 | I48: 887400 | J48: 0.01
A49: RAI | B49: Reynolds American (RAI) -NYSE (Daily) | C49: 2015-02-02 | D49: 16:03:00 | E49: 68.12 | F49: 69.06 | G49: 67.4346 | H49: 69.05 | I49: 1822013 | J49: 1.1
A50: RPM | B50: RPM International Inc. (RPM) -NYSE (Daily) | C50: 2018-04-13 | D50: 16:02:00 | E50: 49.52 | F50: 49.52 | G50: 48.970001 | H50: 49.240002 | I50: 908200 | J50: 0.010002 | K50: Owns the Rust-Oleum brand
A51: RSP | B51: Guggenheim S&P 500 Equal Weight (RSP) -PCX (Daily) | C51: 2016-01-08 | D51: 11:33:00 | E51: 73.24 | F51: 73.47 | G51: 72.41 | H51: 72.41 | I51: 754279 | J51: -0.48
A52: SPR | B52: Spirit Aerosystems Holdings, In (SPR) -NYQ (Daily) | C52: 2017-02-08 | D52: 16:02:00 | E52: 56.31 | F52: 56.53 | G52: 55.13 | H52: 56.41 | I52: 849196 | J52: 0.06
A53: SWKS | B53: Skyworks Solution (SWKS) -NasdaqNM (Daily) | C53: 2015-02-02 | D53: 16:00:00 | E53: 83.07 | F53: 83.73 | G53: 80.15 | H53: 82.02 | I53: 4119001 | J53: -1.03
A54: TOL | B54: Toll Brothers, Inc. (TOL) -NYSE (Daily) | C54: 2019-04-10 | D54: 16:01:00 | E54: 37.25 | F54: 37.619999 | G54: 37.029999 | H54: 37.450001 | I54: 1023200 | J54: 0.200001
A55: TSLA | B55: Tesla, Inc. (TSLA) -NasdaqGS (Daily) | C55: 2019-06-14 | D55: 09:56:00 | E55: 211.25 | F55: 214.160004 | G55: 210.399994 | H55: 212.816193 | I55: 1053711 | J55: -1.093811
A56: UNP | B56: Union Pacific Cor (UNP) -NYSE (Daily) | C56: 2015-02-02 | D56: 16:10:00 | E56: 118.13 | F56: 119.06 | G56: 116.7 | H56: 119.01 | I56: 3259594 | J56: 1.8
A57: VZ | B57: Verizon Communications Inc. (VZ) -NYSE (Daily) | C57: 2019-04-10 | D57: 16:00:00 | E57: 58.400002 | F57: 58.700001 | G57: 58.360001 | H57: 58.610001 | I57: 8022000 | J57: 0.209999
A58: WBA | B58: (WBA) -NasdaqNM (Daily) | C58: 2015-02-02 | D58: 16:00:00 | E58: 73.06 | F58: 74.98 | G58: 73 | H58: 74.89 | I58: 4247395 | J58: 1.14
A59: WMT | B59: Walmart Inc. (WMT) -NYSE (Daily) | C59: 2018-07-13 | D59: 16:00:00 | E59: 86.519997 | F59: 87.989998 | G59: 86.5 | H59: 87.699997 | I59: 6388600 | J59: 1.18
A61: ^NDX | B61: NASDAQ-100 (^NDX) -NIM (Daily) | C61: 2015-08-10 | D61: 17:15:00 | E61: 4558.68 | F61: 4583.63 | G61: 4554.63 | H61: 4573.11 | I61: 0 | J61: 53.03
A62: ^FTSE | B62: FTSE 100 (^FTSE) -FTSE (Daily) | C62: 2018-02-14 | D62: 15:51:00 | E62: 7168.009766 | F62: 7243.149902 | G62: 7145.72998 | H62: 7222.319824 | I62: 0 | J62: 54.319824
A63: ^DJI | B63: Dow Jones Industrial Average (^DJI) -DJI (Daily) | C63: 2018-02-14 | D63: 13:58:00 | E63: 24535.82031 | F63: 24835.44922 | G63: 24490.35938 | H63: 24816.16016 | I63: 254641020 | J63: 175.710937
A64: SPY | B64: SPDR S&P 500 ETF (SPY) -NYSEArca (Daily) | C64: 2019-07-19 | D64: 16:00:00 | E64: 300.040009 | F64: 300.070007 | G64: 296.980011 | H64: 297.170013 | I64: 58678600 | J64: -1.659974
A65: ^GSPC | B65: S&P 500 (^GSPC) -SNP (Daily) | C65: 2019-06-04 | D65: 14:27:00 | E65: 2762.639893 | F65: 2796.100098 | G65: 2762.639893 | H65: 2792.830078 | I65: 1396814023 | J65: 48.380127
A66: IWM | B66: iShares Russell 2000 ETF (IWM) -NYSEArca (Daily) | C66: 2018-04-13 | D66: 16:00:00 | E66: 155.289993 | F66: 155.330002 | G66: 153.509995 | H66: 153.949997 | I66: 19710100 | J66: -0.809998
A67: QQQ | B67: Invesco QQQ Trust (QQQ) -NasdaqGM (Daily) | C67: 2019-06-04 | D67: 14:19:00 | E67: 171.979996 | F67: 174.559998 | G67: 171.380005 | H67: 174.130005 | I67: 33794292 | J67: 4.01001
A68: ^RUT | B68: Russell 2000 (^RUT) -Chicago Options (Daily) | C68: 2019-02-14 | D68: 16:30:00 | E68: 1540.987793 | F68: 1551.385864 | G68: 1534.590088 | H68: 1545.105225 | I68: 0 | J68: 2.165284
A69: ^VIX | B69: VOLATILITY S&P 500 (^VIX) -WCB (Daily) | C69: 2015-12-04 | D69: 16:14:00 | E69: 17.43 | F69: 17.65 | G69: 14.69 | H69: 14.81 | I69: 0 | J69: -3.3
A70: ^NYA | B70: NYSE COMPOSITE (DJ) (^NYA) -NYSE (Daily) | C70: 2018-07-13 | D70: 16:15:00 | E70: 12744.79981 | F70: 12783.24023 | G70: 12727.75977 | H70: 12769.5 | I70: 2614000000 | J70: 8.040039
A72: ACAD | B72: ACADIA Pharmaceut (ACAD) -NasdaqNM (Daily) | C72: 2014-07-21 | D72: 16:00:00 | E72: 20.13 | F72: 20.55 | G72: 19.8101 | H72: 20.31 | I72: 691016
A73: CLDX | B73: Celldex Therapeut (CLDX) -NasdaqNM (Daily) | C73: 2015-02-02 | D73: 16:00:00 | E73: 21.47 | F73: 21.69 | G73: 20.11 | H73: 21.02 | I73: 1570418 | J73: -0.4
A74: ICPT | B74: Intercept Pharmac (ICPT) -NasdaqNM (Daily) | C74: 2014-07-21 | D74: 16:00:00 | E74: 215.97 | F74: 218.43 | G74: 213.05 | H74: 218.14 | I74: 191276
A75: INO | B75: Inovio Pharmaceut (INO) -AMEX (Daily) | C75: 2014-07-21 | D75: 16:00:00 | E75: 10.3 | F75: 11.08 | G75: 10.1 | H75: 11.01 | I75: 1800796
A76: JCP | B76: J. C. Penney Company, Inc. (JCP) -NYSE (Daily) | C76: 2017-12-07 | D76: 16:01:00 | E76: 3.34 | F76: 3.4 | G76: 3.25 | H76: 3.27 | I76: 14485464 | J76: -0.07
A77: LCI | B77: Lannett Co Inc Co (LCI) -NYSE (Daily) | C77: 2014-07-21 | D77: 16:02:00 | E77: 38.09 | F77: 38.803 | G77: 36.5101 | H77: 37.76 | I77: 611367
A78: NPSP | B78: NPS Pharmaceutica (NPSP) -NasdaqNM (Daily) | C78: 2014-07-21 | D78: 15:59:00 | E78: 28.75 | F78: 29.43 | G78: 28.31 | H78: 29.29 | I78: 1126758
A79: PBYI | B79: Puma Biotechnolog (PBYI) -NYSE (Daily) | C79: 2014-07-21 | D79: 16:02:00 | E79: 58.27 | F79: 59.46 | G79: 57.39 | H79: 58.98 | I79: 348030

Sheet SeasonalityTables
A1: Seasonality Tables for: | C1: =InputPriceData!$A$1 -> SPDR S&P 500 ETF (SPY) -NYSEArca (Daily) | AD1: Seasonality Tables for: | AF1: =InputPriceData!$A$1 -> SPDR S&P 500 ETF (SPY) -NYSEArca (Daily) | AQ1: Seasonality Tables for: | AS1: =InputPriceData!$A$1 -> SPDR S&P 500 ETF (SPY) -NYSEArca (Daily) | BE1: Seasonality Tables for: | BF1: =InputPriceData!$A$1 -> SPDR S&P 500 ETF (SPY) -NYSEArca (Daily)
M3: Chart Notes:
M4: Here we have two views of the same chart.
M5: The heat map is the view looking down on
M6: the 3-D chart from directly above.
M7: For visual clutter control, both charts use a faint
M8: wire frame instead of colors for those values
M9: that fall out side of the significant thresholds. | BM9: Seasonality Trade Summary for:
BM10: =InputPriceData!$A$1 -> SPDR S&P 500 ETF (SPY) -NYSEArca (Daily)
M11: Red Represents the >= 75% Potential Sell Threshold | BN11: ="Calculated with a " & C20 & " Year Look Back Period" -> Calculated with a 4 Year Look Back Period | BU11: Completed Trades | BV11: Winning Trades | BW11: % Winning Trades | BX11: Total P/L
M12: Green Represents the <= 25% Potential Buy Threshold | BN12: ="Using "& IF($C$18="Adjusted","Close Adjusted","Raw") & ", Historical "& $C$19 & " Prices." -> Using Close Adjusted, Historical Close Prices.
BO13: As downloaded: | BP13: From | BQ13: Thru | BU13: =BR19+BY19 -> 17 | BV13: =BR17+BY17 -> 13 | BW13: =BV13/BU13 -> 0.7647058824 | BX13: =BS19+BZ19 -> 9307.931597
M14: Thin Red or Green lines represent a ridge connecting | BP14: =InputPriceData!$B$11 -> 1998-01-02 | BQ14: =InputPriceData!$B$12 -> 2019-07-19
M15: points where the threshold is just achieved. | BN15: 10000 | BO15: Max Exposure Limit per Trade
BN16: Long Trades | BQ16: Potential Long Trades: | BR16: =COUNTIF($BL27:$BL68,"Long") -> 14 | BS16: P/L $ | BU16: Short Trades | BX16: Potential Short Trades: | BY16: =COUNTIF($BL27:$BL68,"Short") -> 4 | BZ16: P/L $
A17: User Controls | D17: Calculated Intermediate Lookup and Reference Values | BQ17: Winning Trades: | BR17: =COUNTIF(BS27:BS68,">0") -> 10 | BS17: =SUMIF(BS27:BS68,">0") -> 12641.87055 | BX17: Winning Trades: | BY17: =COUNTIF(BZ27:BZ68,">0") -> 3 | BZ17: =SUMIF(BZ27:BZ68,">0") -> 2615.380917
B18: Price Type To Use: | C18: Adjusted | H18: Monthly Data Available: | I18: =MonthlyInputPriceData!$B$11 -> 1998-01-01 | J18: to | K18: =MonthlyInputPriceData!$B$12 -> 2019-07-19 | BQ18: Loosing Trades: | BR18: =COUNTIF(BS27:BS68,"<0") -> 3 | BS18: =SUMIF(BS27:BS68,"<0") -> -4215.150075 | BX18: Loosing Trades: | BY18: =COUNTIF(BZ27:BZ68,"<0") -> 1 | BZ18: =SUMIF(BZ27:BZ68,"<0") -> -1734.169798
B19: Price To Use: | C19: Close | D19: =MATCH(C19,{"Open","High","Low","Close"},0)-1 -> 3 | E19: =(MATCH(C18,{"Raw","Adjusted"},0)-1)*8 -> 8 | H19: Full Years of Monthly Data: | I19: =MonthlyInputPriceData!$F$11 -> 1998 | J19: to | K19: =MonthlyInputPriceData!F12 -> 2018 | N19: First Full Year Row Offset: | O19: =K20-I19 -> 20 | BD19: Next Year Tradable Tally | BQ19: Completed Long Trades: | BR19: =SUM(BR17:BR18) -> 13 | BS19: =BS17+BS18 -> 8426.720478 | BX19: Completed Long Trades: | BY19: =SUM(BY17:BY18) -> 4 | BZ19: =BZ17+BZ18 -> 881.211119
B20: Look Back Years: | C20: 4 | E20: =MATCH(DATE(K20,12,1),OFFSET(MonthlyInputPriceData!$B$15,1,0,MonthlyInputPriceData!B10,1),0) -> 9 | H20: Years With Full Look Back: | I20: =MonthlyInputPriceData!F11+ C20-1 -> 2001 | J20: to | K20: 2018 | N20: First Trade Year Row Offset: | O20: =O19-C20+1 -> 17 | BG20: ="# of Full Years of Monthly Data. Accomodating a [ " & C20 & " ] Year Look Back" -> # of Full Years of Monthly Data. Accomodating a [ 4 ] Year Look Back | BM20: ="Trades Generated Using " & C20 & " Year Seasonal Analysis for Calendar" -> Trades Generated Using 4 Year Seasonal Analysis for Calendar | BQ20: IncompleteTrades: | BR20: =BR16-BR19 -> 1 | BX20: IncompleteTrades: | BY20: =BY16-BY19 -> 0
D21: Seasonality Analysis Results | BD21: Trade Threshods for Calendar Year | BP21: Max | BQ21: Win | BR21: Loss | BW21: Max | BX21: Win | BY21: Loss
D22: =K20-I20+1 -> 18 | E22: =" <== Seasonality Years with Full " & C20 & " Year Look Back" -> <== Seasonality Years with Full 4 Year Look Back | M22: Years With Buy/Sell Thresholds Met: | N22: =BF26 -> 18 | BF22: Years With Both Trade Thresholds Met | BQ22: =MAX(BS27:BS68) -> 3802.500625 | BR22: =MIN(BS27:BS68) -> -3141.000375 | BX22: =MAX(BZ27:BZ68) -> 1392.300204 | BY22: =MIN(BZ27:BZ68) -> -1734.169798
BD23: At Least One Month | BE23: At Least One Month | BH23: Seasonality Determined Trade Month | BN23: Long Trade Details | BU23: Short Trade Details
C24: 11 | D24: 10 | E24: 9 | F24: 8 | G24: 7 | H24: 6 | I24: 5 | J24: 4 | K24: 3 | L24: 2 | M24: 1 | N24: 0 | BH24: Min Low % | BI24: Min Low % Month | BJ24: Max High % | BK24: Max High % Month | BL24: Trade Type | BN24: Buy Date | BO24: Buy Price | BP24: ="Shares for " & TEXT($BN$15,"$##,##0") & " Exposure" -> Shares for $10,000 Exposure | BS24: Trade Result $ | BW24: ="Shares for " & TEXT($BN$15,"$##,##0") & " Exposure" -> Shares for $10,000 Exposure | BZ24: Trade Result $
A25: Relative Year Offset | C25: ="Monthly " & $C$19 & " Prices" -> Monthly Close Prices | O25: Average | R25: ="Monthly " & $C$19 & " Price as % of Annual Average" -> Monthly Close Price as % of Annual Average | AE25: =$C$20 & " Year Average Return for Given Month" -> 4 Year Average Return for Given Month | AR25: ="Percentage of Time Month is Up in " & $C$20 & " Year Look Back Period" -> Percentage of Time Month is Up in 4 Year Look Back Period
B26: Year | C26: Jan | D26: Feb | E26: Mar | F26: Apr | G26: May | H26: Jun | I26: Jul | J26: Aug | K26: Sep | L26: Oct | M26: Nov | N26: Dec | O26: Yearly $ | Q26: Year | R26: Jan | S26: Feb | T26: Mar | U26: Apr | V26: May | W26: Jun | X26: Jul | Y26: Aug | Z26: Sep | AA26: Oct | AB26: Nov | AC26: Dec | AD26: Year | AE26: Jan | AF26: Feb | AG26: Mar | AH26: Apr | AI26: May | AJ26: Jun | AK26: Jul | AL26: Aug | AM26: Sep | AN26: Oct | AO26: Nov | AP26: Dec | AQ26: Year | AR26: Jan | AS26: Feb | AT26: Mar | AU26: Apr | AV26: May | AW26: Jun | AX26: Jul | AY26: Aug | AZ26: Sep | BA26: Oct | BB26: Nov | BC26: Dec | BD26: <=%25 | BE26: >=%75 | BF26: =COUNTIF(OFFSET(BF26,1,0,SeasonalityFreqRowCount,1),TRUE) -> 18 | BG26: =K20-I20+1 -> 18 | BQ26: Sell Date | BR26: Sell Price | BU26: Sell Date | BV26: Sell Price | BX26: Buy Date | BY26: Buy Price
A27: 0 | B27: =$K$20 -> 2018 | C27: =IF($A27>$O$19,"",OFFSET(MonthlyInputPriceData!$C$15,$E$20+C$24+$A27*12,$D$19+$E$19,1,1)) -> 274.1 | D27: =IF($A27>$O$19,"",OFFSET(MonthlyInputPriceData!$C$15,$E$20+D$24+$A27*12,$D$19+$E$19,1,1)) -> 264.13 | E27: =IF($A27>$O$19,"",OFFSET(MonthlyInputPriceData!$C$15,$E$20+E$24+$A27*12,$D$19+$E$19,1,1)) -> 255.87 | F27: =IF($A27>$O$19,"",OFFSET(MonthlyInputPriceData!$C$15,$E$20+F$24+$A27*12,$D$19+$E$19,1,1)) -> 258.22 | G27: =IF($A27>$O$19,"",OFFSET(MonthlyInputPriceData!$C$15,$E$20+G$24+$A27*12,$D$19+$E$19,1,1)) -> 264.5 | H27: =IF($A27>$O$19,"",OFFSET(MonthlyInputPriceData!$C$15,$E$20+H$24+$A27*12,$D$19+$E$19,1,1)) -> 264.83 | I27: =IF($A27>$O$19,"",OFFSET(MonthlyInputPriceData!$C$15,$E$20+I$24+$A27*12,$D$19+$E$19,1,1)) -> 275.87 | J27: =IF($A27>$O$19,"",OFFSET(MonthlyInputPriceData!$C$15,$E$20+J$24+$A27*12,$D$19+$E$19,1,1)) -> 284.68 | K27: =IF($A27>$O$19,"",OFFSET(MonthlyInputPriceData!$C$15,$E$20+K$24+$A27*12,$D$19+$E$19,1,1)) -> 285.08 | L27: =IF($A27>$O$19,"",OFFSET(MonthlyInputPriceData!$C$15,$E$20+L$24+$A27*12,$D$19+$E$19,1,1)) -> 266.58 | M27: =IF($A27>$O$19,"",OFFSET(MonthlyInputPriceData!$C$15,$E$20+M$24+$A27*12,$D$19+$E$19,1,1)) -> 271.53 | N27: =IF($A27>$O$19,"",OFFSET(MonthlyInputPriceData!$C$15,$E$20+N$24+$A27*12,$D$19+$E$19,1,1)) -> 246.18 | O27: =IF($A27>$O$19,"",AVERAGE(C27:N27)) -> 267.6308333 | Q27: =IF($A27>$O$19,"",$B27) -> 2018 | R27: =IFERROR(C27/$O27-1,"") -> 0.02417197819 | S27: =IFERROR(D27/$O27-1,"") -> -0.01308082963 | T27: =IFERROR(E27/$O27-1,"") -> -0.04394423911 | U27: =IFERROR(F27/$O27-1,"") -> -0.03516348702 | V27: =IFERROR(G27/$O27-1,"") -> -0.01169832823 | W27: =IFERROR(H27/$O27-1,"") -> -0.01046528645 | X27: =IFERROR(I27/$O27-1,"") -> 0.03078556594 | Y27: =IFERROR(J27/$O27-1,"") -> 0.06370404506 | Z27: =IFERROR(K27/$O27-1,"") -> 0.06519864116 | AA27: =IFERROR(L27/$O27-1,"") -> -0.003926428507 | AB27: =IFERROR(M27/$O27-1,"") -> 0.01456919824 | AC27: =IFERROR(N27/$O27-1,"") -> -0.08015082966 | AD27: =IF($A27>$O$20,"",$B27) -> 2018 | AE27: =IF($A27>$O$20,"",AVERAGE(OFFSET(R27,0,0,$C$20,1))) -> -0.04533009137 | AF27: =IF($A27>$O$20,"",AVERAGE(OFFSET(S27,0,0,$C$20,1))) -> -0.03227856229 | AG27: =IF($A27>$O$20,"",AVERAGE(OFFSET(T27,0,0,$C$20,1))) -> -0.03173938331 | AH27: =IF($A27>$O$20,"",AVERAGE(OFFSET(U27,0,0,$C$20,1))) -> -0.02036380612 | AI27: =IF($A27>$O$20,"",AVERAGE(OFFSET(V27,0,0,$C$20,1))) -> -0.003680710076 | AJ27: =IF($A27>$O$20,"",AVERAGE(OFFSET(W27,0,0,$C$20,1))) -> -0.009852226151 | AK27: =IF($A27>$O$20,"",AVERAGE(OFFSET(X27,0,0,$C$20,1))) -> 0.02398751105 | AL27: =IF($A27>$O$20,"",AVERAGE(OFFSET(Y27,0,0,$C$20,1))) -> 0.01942781358 | AM27: =IF($A27>$O$20,"",AVERAGE(OFFSET(Z27,0,0,$C$20,1))) -> 0.0131231932 | AN27: =IF($A27>$O$20,"",AVERAGE(OFFSET(AA27,0,0,$C$20,1))) -> 0.02235264499 | AO27: =IF($A27>$O$20,"",AVERAGE(OFFSET(AB27,0,0,$C$20,1))) -> 0.04414368071 | AP27: =IF($A27>$O$20,"",AVERAGE(OFFSET(AC27,0,0,$C$20,1))) -> 0.02020993579 | AQ27: =IF($A27>$O$20,"",$B27) -> 2018 | AR27: =IF($A27>$O$20,"",IF(OR(COUNTIF(OFFSET(R27,0,0,$C$20,1),">0")/$C$20=0.25,COUNTIF(OFFSET(R27,0,0,$C$20,1),">0")/$C$20=1),-0.005,0)+COUNTIF(OFFSET(R27,0,0,$C$20,1),">0")/$C$20) -> 0.245 | AS27: =IF($A27>$O$20,"",IF(OR(COUNTIF(OFFSET(S27,0,0,$C$20,1),">0")/$C$20=0.25,COUNTIF(OFFSET(S27,0,0,$C$20,1),">0")/$C$20=1),-0.005,0)+COUNTIF(OFFSET(S27,0,0,$C$20,1),">0")/$C$20) -> 0.245 | AT27: =IF($A27>$O$20,"",IF(OR(COUNTIF(OFFSET(T27,0,0,$C$20,1),">0")/$C$20=0.25,COUNTIF(OFFSET(T27,0,0,$C$20,1),">0")/$C$20=1),-0.005,0)+COUNTIF(OFFSET(T27,0,0,$C$20,1),">0")/$C$20) -> 0 | AU27: =IF($A27>$O$20,"",IF(OR(COUNTIF(OFFSET(U27,0,0,$C$20,1),">0")/$C$20=0.25,COUNTIF(OFFSET(U27,0,0,$C$20,1),">0")/$C$20=1),-0.005,0)+COUNTIF(OFFSET(U27,0,0,$C$20,1),">0")/$C$20) -> 0.245 | AV27: =IF($A27>$O$20,"",IF(OR(COUNTIF(OFFSET(V27,0,0,$C$20,1),">0")/$C$20=0.25,COUNTIF(OFFSET(V27,0,0,$C$20,1),">0")/$C$20=1),-0.005,0)+COUNTIF(OFFSET(V27,0,0,$C$20,1),">0")/$C$20) -> 0.245 | AW27: =IF($A27>$O$20,"",IF(OR(COUNTIF(OFFSET(W27,0,0,$C$20,1),">0")/$C$20=0.25,COUNTIF(OFFSET(W27,0,0,$C$20,1),">0")/$C$20=1),-0.005,0)+COUNTIF(OFFSET(W27,0,0,$C$20,1),">0")/$C$20) -> 0 | AX27: =IF($A27>$O$20,"",IF(OR(COUNTIF(OFFSET(X27,0,0,$C$20,1),">0")/$C$20=0.25,COUNTIF(OFFSET(X27,0,0,$C$20,1),">0")/$C$20=1),-0.005,0)+COUNTIF(OFFSET(X27,0,0,$C$20,1),">0")/$C$20) -> 0.995 | AY27: =IF($A27>$O$20,"",IF(OR(COUNTIF(OFFSET(Y27,0,0,$C$20,1),">0")/$C$20=0.25,COUNTIF(OFFSET(Y27,0,0,$C$20,1),">0")/$C$20=1),-0.005,0)+COUNTIF(OFFSET(Y27,0,0,$C$20,1),">0")/$C$20) -> 0.75 | AZ27: =IF($A27>$O$20,"",IF(OR(COUNTIF(OFFSET(Z27,0,0,$C$20,1),">0")/$C$20=0.25,COUNTIF(OFFSET(Z27,0,0,$C$20,1),">0")/$C$20=1),-0.005,0)+COUNTIF(OFFSET(Z27,0,0,$C$20,1),">0")/$C$20) -> 0.75 | BA27: =IF($A27>$O$20,"",IF(OR(COUNTIF(OFFSET(AA27,0,0,$C$20,1),">0")/$C$20=0.25,COUNTIF(OFFSET(AA27,0,0,$C$20,1),">0")/$C$20=1),-0.005,0)+COUNTIF(OFFSET(AA27,0,0,$C$20,1),">0")/$C$20) -> 0.75 | BB27: =IF($A27>$O$20,"",IF(OR(COUNTIF(OFFSET(AB27,0,0,$C$20,1),">0")/$C$20=0.25,COUNTIF(OFFSET(AB27,0,0,$C$20,1),">0")/$C$20=1),-0.005,0)+COUNTIF(OFFSET(AB27,0,0,$C$20,1),">0")/$C$20) -> 0.995 | BC27: =IF($A27>$O$20,"",IF(OR(COUNTIF(OFFSET(AC27,0,0,$C$20,1),">0")/$C$20=0.25,COUNTIF(OFFSET(AC27,0,0,$C$20,1),">0")/$C$20=1),-0.005,0)+COUNTIF(OFFSET(AC27,0,0,$C$20,1),">0")/$C$20) -> 0.5 | BD27: =IF($A27>$O$20,"",COUNTIF(AR27:BC27,"<=%25")>0) -> TRUE | BE27: =IF($A27>$O$20,"",COUNTIF(AR27:BC27,">=%75")>0) -> TRUE | BF27: =IF($A27>$O$20,"",AND(BD27,BE27)) -> TRUE | BH27: =IF($A27>$O$20,"",IF(NOT(BF27),"",MIN(AR27:BC27))) -> 0 | BI27: =IF($A27>$O$20,"",IF(NOT(BF27),"",SUMPRODUCT(MAX(COLUMN(AR27:BC27)*(BH27=AR27:BC27)))-COLUMN(AQ27))) -> 6 | BJ27: =IF($A27>$O$20,"",IF(NOT(BF27),"",MAX(AR27:BC27))) -> 0.995 | BK27: =IF($A27>$O$20,"",IF(NOT(BF27),"",SUMPRODUCT(MAX(COLUMN(AR27:BC27)*(BJ27=AR27:BC27)))-COLUMN(AQ27))) -> 11 | BL27: =IF($A27>$O$20,"",IF(NOT(BF27),"",IF(BI27<BK27,"Long","Short"))) -> Long | BM27: =IF($A27>$O$20,"",$B27) -> 2018 | BN27: =IF($A27>$O$20,"",IF(NOT(BF27),"",IF(BL27="Short","",IFERROR(OFFSET(InputPriceData!$B$15,MATCH(DATE($BM27+1+INT(BI27/12),BI27+1-INT(BI27/12)*12,1),OFFSET(InputPriceData!$B$15,1,0,InputPriceData!$B$10,1),-1)+1,0,1,1),"")))) -> 2019-06-28 | BO27: =IF($A27>$O$20,"",IF(NOT(BF27),"",IF(BL27="Short","",IFERROR(OFFSET(InputPriceData!$C$15,MATCH(DATE($BM27 +1 + INT(BI27/12),BI27+1-INT(BI27/12)*12,1),OFFSET(InputPriceData!$B$15,1,0,InputPriceData!$B$10,1),-1)+1,$D$19,1,1),"")))) -> 293 | BP27: =IF($A27>$O$20,"",IF(NOT($BF27),"",IF($BL27="Short","",IFERROR(INT($BN$15/BO27),"")))) -> 34 | BQ27: =IF($A27>$O$20,"",IF(NOT(BF27),"",IF(BL27="Short","",IFERROR(OFFSET(InputPriceData!$B$15,MATCH(DATE($BM27+1+INT(BK27/12),BK27+1-INT(BK27/12)*12,1),OFFSET(InputPriceData!$B$15,1,0,InputPriceData!$B$10,1),-1)+1,0,1,1),"")))) ->  | BR27: =IF($A27>$O$20,"",IF(NOT(BF27),"",IF(BL27="Short","",IFERROR(OFFSET(InputPriceData!$C$15,MATCH(DATE($BM27 +1 + INT(BK27/12),BK27+1-INT(BK27/12)*12,1),OFFSET(InputPriceData!$B$15,1,0,InputPriceData!$B$10,1),-1)+1,$D$19,1,1),"")))) ->  | BS27: =IF($A27>$O$20,"",IF(NOT($BF27),"",IF($BL27="Short","",IFERROR(BP27*(BR27-BO27),"")))) ->  | BU27: =IF($A27>$O$20,"",IF(NOT(BF27),"",IF(BL27="Long","",OFFSET(InputPriceData!$B$15,MATCH(DATE($BM27 +1 + INT(BK27/12),BK27+1-INT(BK27/12)*12,1),OFFSET(InputPriceData!$B$15,1,0,InputPriceData!$B$10,1),-1)+1,0,1,1)))) ->  | BV27: =IF($A27>$O$20,"",IF(NOT(BF27),"",IF(BL27="Long","",OFFSET(InputPriceData!$C$15,MATCH(DATE($BM27 +1 + INT(BK27/12),BK27+1-INT(BK27/12)*12,1),OFFSET(InputPriceData!$B$15,1,0,InputPriceData!$B$10,1),-1)+1,$D$19,1,1)))) ->  | BW27: =IF($A27>$O$20,"",IF(NOT($BF27),"",IF($BL27="Long","",IFERROR(INT($BN$15/BV27),"")))) ->  | BX27: =IF($A27>$O$20,"",IF(NOT(BF27),"",IF(BL27="Long","",OFFSET(InputPriceData!$B$15,MATCH(DATE($BM27 +1 + INT(BI27/12),BI27+1-INT(BI27/12)*12,1),OFFSET(InputPriceData!$B$15,1,0,InputPriceData!$B$10,1),-1)+1,0,1,1)))) ->  | BY27: =IF($A27>$O$20,"",IF(NOT(BF27),"",IF(BL27="Long","",OFFSET(InputPriceData!$C$15,MATCH(DATE($BM27 +1 + INT(BI27/12),BI27+1-INT(BI27/12)*12,1),OFFSET(InputPriceData!$B$15,1,0,InputPriceData!$B$10,1),-1)+1,$D$19,1,1)))) ->  | BZ27: =IF($A27>$O$20,"",IF(NOT($BF27),"",IF($BL27="Long","",IFERROR(BW27*(BY27-BV27),"")))) -> 
A28: 1 | B28: =IF($A28>$O$19,"",$B$27-A28) -> 2017 | C28: =IF($A28>$O$19,"",OFFSET(MonthlyInputPriceData!$C$15,$E$20+C$24+$A28*12,$D$19+$E$19,1,1)) -> 217.01 | D28: =IF($A28>$O$19,"",OFFSET(MonthlyInputPriceData!$C$15,$E$20+D$24+$A28*12,$D$19+$E$19,1,1)) -> 225.54 | E28: =IF($A28>$O$19,"",OFFSET(MonthlyInputPriceData!$C$15,$E$20+E$24+$A28*12,$D$19+$E$19,1,1)) -> 224.85 | F28: =IF($A28>$O$19,"",OFFSET(MonthlyInputPriceData!$C$15,$E$20+F$24+$A28*12,$D$19+$E$19,1,1)) -> 228.06 | G28: =IF($A28>$O$19,"",OFFSET(MonthlyInputPriceData!$C$15,$E$20+G$24+$A28*12,$D$19+$E$19,1,1)) -> 231.28 | H28: =IF($A28>$O$19,"",OFFSET(MonthlyInputPriceData!$C$15,$E$20+H$24+$A28*12,$D$19+$E$19,1,1)) -> 231.63 | I28: =IF($A28>$O$19,"",OFFSET(MonthlyInputPriceData!$C$15,$E$20+I$24+$A28*12,$D$19+$E$19,1,1)) -> 237.54 | J28: =IF($A28>$O$19,"",OFFSET(MonthlyInputPriceData!$C$15,$E$20+J$24+$A28*12,$D$19+$E$19,1,1)) -> 238.24 | K28: =IF($A28>$O$19,"",OFFSET(MonthlyInputPriceData!$C$15,$E$20+K$24+$A28*12,$D$19+$E$19,1,1)) -> 241.84 | L28: =IF($A28>$O$19,"",OFFSET(MonthlyInputPriceData!$C$15,$E$20+L$24+$A28*12,$D$19+$E$19,1,1)) -> 248.76 | M28: =IF($A28>$O$19,"",OFFSET(MonthlyInputPriceData!$C$15,$E$20+M$24+$A28*12,$D$19+$E$19,1,1)) -> 256.37 | N28: =IF($A28>$O$19,"",OFFSET(MonthlyInputPriceData!$C$15,$E$20+N$24+$A28*12,$D$19+$E$19,1,1)) -> 258.16 | O28: 236.6066667 | Q28: 2017 | R28: =IFERROR(C28/$O28-1,"") -> -0.08282381449 | S28: =IFERROR(D28/$O28-1,"") -> -0.04677242118 | T28: =IFERROR(E28/$O28-1,"") -> -0.04968865346 | U28: =IFERROR(F28/$O28-1,"") -> -0.0361218337 | V28: =IFERROR(G28/$O28-1,"") -> -0.02251274971 | W28: =IFERROR(H28/$O28-1,"") -> -0.02103350145 | X28: =IFERROR(I28/$O28-1,"") -> 0.003944662027 | Y28: =IFERROR(J28/$O28-1,"") -> 0.006903158547 | Z28: =IFERROR(K28/$O28-1,"") -> 0.02211828351 | AA28: =IFERROR(L28/$O28-1,"") -> 0.05136513482 | AB28: =IFERROR(M28/$O28-1,"") -> 0.08352821842 | AC28: =IFERROR(N28/$O28-1,"") -> 0.09109351667 | AD28: 2017 | AE28: -0.07391325323 | AF28: -0.04119133192 | AG28: -0.03201155143 | AH28: -0.02011382251 | AI28: -0.003691613725 | AJ28: -0.00627321698 | AK28: 0.01506286303 | AL28: 0.01209011349 | AM28: 0.0006600562295 | AN28: 0.03436959176 | AO28: 0.0587070833 | AP28: 0.05630508198 | AQ28: 2017 | AR28: 0 | AS28: 0.245 | AT28: 0 | AU28: 0.245 | AV28: 0.245 | AW28: 0.245 | AX28: 0.75 | AY28: 0.75 | AZ28: 0.75 | BA28: 0.995 | BB28: 0.995 | BC28: 0.75 | BD28: TRUE | BE28: TRUE | BF28: TRUE | BH28: 0 | BI28: 3 | BJ28: 0.995 | BK28: 11 | BL28: Long | BM28: 2017 | BN28: =IF($A28>$O$20,"",IF(NOT(BF28),"",IF(BL28="Short","",IFERROR(OFFSET(InputPriceData!$B$15,MATCH(DATE($BM28+1+INT(BI28/12),BI28+1-INT(BI28/12)*12,1),OFFSET(InputPriceData!$B$15,1,0,InputPriceData!$B$10,1),-1)+1,0,1,1),"")))) -> 2018-03-29 | BO28: =IF($A28>$O$20,"",IF(NOT(BF28),"",IF(BL28="Short","",IFERROR(OFFSET(InputPriceData!$C$15,MATCH(DATE($BM28 +1 + INT(BI28/12),BI28+1-INT(BI28/12)*12,1),OFFSET(InputPriceData!$B$15,1,0,InputPriceData!$B$10,1),-1)+1,$D$19,1,1),"")))) -> 263.149994 | BP28: 38 | BQ28: =IF($A28>$O$20,"",IF(NOT(BF28),"",IF(BL28="Short","",IFERROR(OFFSET(InputPriceData!$B$15,MATCH(DATE($BM28+1+INT(BK28/12),BK28+1-INT(BK28/12)*12,1),OFFSET(InputPriceData!$B$15,1,0,InputPriceData!$B$10,1),-1)+1,0,1,1),"")))) -> 2018-11-30 | BR28: =IF($A28>$O$20,"",IF(NOT(BF28),"",IF(BL28="Short","",IFERROR(OFFSET(InputPriceData!$C$15,MATCH(DATE($BM28 +1 + INT(BK28/12),BK28+1-INT(BK28/12)*12,1),OFFSET(InputPriceData!$B$15,1,0,InputPriceData!$B$10,1),-1)+1,$D$19,1,1),"")))) -> 275.649994 | BS28: 475 | BU28: =IF($A28>$O$20,"",IF(NOT(BF28),"",IF(BL28="Long","",OFFSET(InputPriceData!$B$15,MATCH(DATE($BM28 +1 + INT(BK28/12),BK28+1-INT(BK28/12)*12,1),OFFSET(InputPriceData!$B$15,1,0,InputPriceData!$B$10,1),-1)+1,0,1,1)))) ->  | BV28: =IF($A28>$O$20,"",IF(NOT(BF28),"",IF(BL28="Long","",OFFSET(InputPriceData!$C$15,MATCH(DATE($BM28 +1 + INT(BK28/12),BK28+1-INT(BK28/12)*12,1),OFFSET(InputPriceData!$B$15,1,0,InputPriceData!$B$10,1),-1)+1,$D$19,1,1)))) ->  | BX28: =IF($A28>$O$20,"",IF(NOT(BF28),"",IF(BL28="Long","",OFFSET(InputPriceData!$B$15,MATCH(DATE($BM28 +1 + INT(BI28/12),BI28+1-INT(BI28/12)*12,1),OFFSET(InputPriceData!$B$15,1,0,InputPriceData!$B$10,1),-1)+1,0,1,1)))) ->  | BY28: =IF($A28>$O$20,"",IF(NOT(BF28),"",IF(BL28="Long","",OFFSET(InputPriceData!$C$15,MATCH(DATE($BM28 +1 + INT(BI28/12),BI28+1-INT(BI28/12)*12,1),OFFSET(InputPriceData!$B$15,1,0,InputPriceData!$B$10,1),-1)+1,$D$19,1,1)))) -> 
A29: 2 | B29: 2016 | C29: =IF($A29>$O$19,"",OFFSET(MonthlyInputPriceData!$C$15,$E$20+C$24+$A29*12,$D$19+$E$19,1,1)) -> 180.88 | D29: =IF($A29>$O$19,"",OFFSET(MonthlyInputPriceData!$C$15,$E$20+D$24+$A29*12,$D$19+$E$19,1,1)) -> 180.73 | E29: =IF($A29>$O$19,"",OFFSET(MonthlyInputPriceData!$C$15,$E$20+E$24+$A29*12,$D$19+$E$19,1,1)) -> 191.9 | F29: =IF($A29>$O$19,"",OFFSET(MonthlyInputPriceData!$C$15,$E$20+F$24+$A29*12,$D$19+$E$19,1,1)) -> 193.65 | G29: =IF($A29>$O$19,"",OFFSET(MonthlyInputPriceData!$C$15,$E$20+G$24+$A29*12,$D$19+$E$19,1,1)) -> 196.95 | H29: =IF($A29>$O$19,"",OFFSET(MonthlyInputPriceData!$C$15,$E$20+H$24+$A29*12,$D$19+$E$19,1,1)) -> 196.61 | I29: =IF($A29>$O$19,"",OFFSET(MonthlyInputPriceData!$C$15,$E$20+I$24+$A29*12,$D$19+$E$19,1,1)) -> 204.84 | J29: =IF($A29>$O$19,"",OFFSET(MonthlyInputPriceData!$C$15,$E$20+J$24+$A29*12,$D$19+$E$19,1,1)) -> 205.08 | K29: =IF($A29>$O$19,"",OFFSET(MonthlyInputPriceData!$C$15,$E$20+K$24+$A29*12,$D$19+$E$19,1,1)) -> 204.06 | L29: =IF($A29>$O$19,"",OFFSET(MonthlyInputPriceData!$C$15,$E$20+L$24+$A29*12,$D$19+$E$19,1,1)) -> 201.54 | M29: =IF($A29>$O$19,"",OFFSET(MonthlyInputPriceData!$C$15,$E$20+M$24+$A29*12,$D$19+$E$19,1,1)) -> 208.96 | N29: =IF($A29>$O$19,"",OFFSET(MonthlyInputPriceData!$C$15,$E$20+N$24+$A29*12,$D$19+$E$19,1,1)) -> 211.95 | O29: 198.0958333 | Q29: 2016 | R29: -0.08690658982 | S29: -0.08766379909 | T29: -0.03127694929 | U29: -0.02244284122 | V29: -0.005784237427 | W29: -0.007500578424 | X29: 0.03404496982 | Y29: 0.03525650464 | Z29: 0.03010748165 | AA29: 0.01738636603 | AB29: 0.05484298425 | AC29: 0.06993668889 | AD29: 2016 | AE29: -0.07847483825 | AF29: -0.05189836544 | AG29: -0.03439433092 | AH29: -0.02030711799 | AI29: -0.001603584118 | AJ29: -0.009112117019 | AK29: 0.01982145342 | AL29: 0.008445612358 | AM29: -0.000182965825 | AN29: 0.03930590251 | AO29: 0.06353917624 | AP29: 0.06486117502 | AQ29: 2016 | AR29: 0 | AS29: 0.245 | AT29: 0 | AU29: 0.245 | AV29: 0.245 | AW29: 0.245 | AX29: 0.75 | AY29: 0.5 | AZ29: 0.75 | BA29: 0.995 | BB29: 0.995 | BC29: 0.75 | BD29: TRUE | BE29: TRUE | BF29: TRUE | BH29: 0 | BI29: 3 | BJ29: 0.995 | BK29: 11 | BL29: Long | BM29: 2016 | BN29: =IF($A29>$O$20,"",IF(NOT(BF29),"",IF(BL29="Short","",IFERROR(OFFSET(InputPriceData!$B$15,MATCH(DATE($BM29+1+INT(BI29/12),BI29+1-INT(BI29/12)*12,1),OFFSET(InputPriceData!$B$15,1,0,InputPriceData!$B$10,1),-1)+1,0,1,1),"")))) -> 2017-03-31 | BO29: =IF($A29>$O$20,"",IF(NOT(BF29),"",IF(BL29="Short","",IFERROR(OFFSET(InputPriceData!$C$15,MATCH(DATE($BM29 +1 + INT(BI29/12),BI29+1-INT(BI29/12)*12,1),OFFSET(InputPriceData!$B$15,1,0,InputPriceData!$B$10,1),-1)+1,$D$19,1,1),"")))) -> 235.740005 | BP29: 42 | BQ29: =IF($A29>$O$20,"",IF(NOT(BF29),"",IF(BL29="Short","",IFERROR(OFFSET(InputPriceData!$B$15,MATCH(DATE($BM29+1+INT(BK29/12),BK29+1-INT(BK29/12)*12,1),OFFSET(InputPriceData!$B$15,1,0,InputPriceData!$B$10,1),-1)+1,0,1,1),"")))) -> 2017-11-30 | BR29: =IF($A29>$O$20,"",IF(NOT(BF29),"",IF(BL29="Short","",IFERROR(OFFSET(InputPriceData!$C$15,MATCH(DATE($BM29 +1 + INT(BK29/12),BK29+1-INT(BK29/12)*12,1),OFFSET(InputPriceData!$B$15,1,0,InputPriceData!$B$10,1),-1)+1,$D$19,1,1),"")))) -> 265.01001 | BS29: 1229.34021 | BU29: =IF($A29>$O$20,"",IF(NOT(BF29),"",IF(BL29="Long","",OFFSET(InputPriceData!$B$15,MATCH(DATE($BM29 +1 + INT(BK29/12),BK29+1-INT(BK29/12)*12,1),OFFSET(InputPriceData!$B$15,1,0,InputPriceData!$B$10,1),-1)+1,0,1,1)))) ->  | BV29: =IF($A29>$O$20,"",IF(NOT(BF29),"",IF(BL29="Long","",OFFSET(InputPriceData!$C$15,MATCH(DATE($BM29 +1 + INT(BK29/12),BK29+1-INT(BK29/12)*12,1),OFFSET(InputPriceData!$B$15,1,0,InputPriceData!$B$10,1),-1)+1,$D$19,1,1)))) ->  | BX29: =IF($A29>$O$20,"",IF(NOT(BF29),"",IF(BL29="Long","",OFFSET(InputPriceData!$B$15,MATCH(DATE($BM29 +1 + INT(BI29/12),BI29+1-INT(BI29/12)*12,1),OFFSET(InputPriceData!$B$15,1,0,InputPriceData!$B$10,1),-1)+1,0,1,1)))) ->  | BY29: =IF($A29>$O$20,"",IF(NOT(BF29),"",IF(BL29="Long","",OFFSET(InputPriceData!$C$15,MATCH(DATE($BM29 +1 + INT(BI29/12),BI29+1-INT(BI29/12)*12,1),OFFSET(InputPriceData!$B$15,1,0,InputPriceData!$B$10,1),-1)+1,$D$19,1,1)))) -> 
A30: 3 | B30: 2015 | C30: =IF($A30>$O$19,"",OFFSET(MonthlyInputPriceData!$C$15,$E$20+C$24+$A30*12,$D$19+$E$19,1,1)) -> 182.47 | D30: =IF($A30>$O$19,"",OFFSET(MonthlyInputPriceData!$C$15,$E$20+D$24+$A30*12,$D$19+$E$19,1,1)) -> 192.72 | E30: =IF($A30>$O$19,"",OFFSET(MonthlyInputPriceData!$C$15,$E$20+E$24+$A30*12,$D$19+$E$19,1,1)) -> 188.85 | F30: =IF($A30>$O$19,"",OFFSET(MonthlyInputPriceData!$C$15,$E$20+F$24+$A30*12,$D$19+$E$19,1,1)) -> 191.56 | G30: =IF($A30>$O$19,"",OFFSET(MonthlyInputPriceData!$C$15,$E$20+G$24+$A30*12,$D$19+$E$19,1,1)) -> 194.02 | H30: =IF($A30>$O$19,"",OFFSET(MonthlyInputPriceData!$C$15,$E$20+H$24+$A30*12,$D$19+$E$19,1,1)) -> 189.16 | I30: =IF($A30>$O$19,"",OFFSET(MonthlyInputPriceData!$C$15,$E$20+I$24+$A30*12,$D$19+$E$19,1,1)) -> 194.38 | J30: =IF($A30>$O$19,"",OFFSET(MonthlyInputPriceData!$C$15,$E$20+J$24+$A30*12,$D$19+$E$19,1,1)) -> 183.91 | K30: =IF($A30>$O$19,"",OFFSET(MonthlyInputPriceData!$C$15,$E$20+K$24+$A30*12,$D$19+$E$19,1,1)) -> 176.95 | L30: =IF($A30>$O$19,"",OFFSET(MonthlyInputPriceData!$C$15,$E$20+L$24+$A30*12,$D$19+$E$19,1,1)) -> 193.89 | M30: =IF($A30>$O$19,"",OFFSET(MonthlyInputPriceData!$C$15,$E$20+M$24+$A30*12,$D$19+$E$19,1,1)) -> 193.71 | N30: =IF($A30>$O$19,"",OFFSET(MonthlyInputPriceData!$C$15,$E$20+N$24+$A30*12,$D$19+$E$19,1,1)) -> 189.23 | O30: 189.2375 | Q30: 2015 | R30: -0.03576193936 | S30: 0.01840280071 | T30: -0.002047691393 | U30: 0.01227293745 | V30: 0.02527247506 | W30: -0.0004095382786 | X30: 0.02717484642 | Y30: -0.02815245393 | Z30: -0.06493163353 | AA30: 0.02458550763 | AB30: 0.02363432195 | AC30: -3.963273664e-05 | AD30: 2015 | AE30: -0.07190070311 | AF30: -0.03495127586 | AG30: -0.02476870768 | AH30: -0.01347194475 | AI30: -0.01402149334 | AJ30: -0.01278775558 | AK30: 0.009936803462 | AL30: 0.004492967747 | AM30: 0.002222688408 | AN30: 0.04152499556 | AO30: 0.05784892218 | AP30: 0.05587550296 | AQ30: 2015 | AR30: 0 | AS30: 0.245 | AT30: 0.245 | AU30: 0.5 | AV30: 0.245 | AW30: 0.245 | AX30: 0.5 | AY30: 0.5 | AZ30: 0.75 | BA30: 0.995 | BB30: 0.995 | BC30: 0.75 | BD30: TRUE | BE30: TRUE | BF30: TRUE | BH30: 0 | BI30: 1 | BJ30: 0.995 | BK30: 11 | BL30: Long | BM30: 2015 | BN30: =IF($A30>$O$20,"",IF(NOT(BF30),"",IF(BL30="Short","",IFERROR(OFFSET(InputPriceData!$B$15,MATCH(DATE($BM30+1+INT(BI30/12),BI30+1-INT(BI30/12)*12,1),OFFSET(InputPriceData!$B$15,1,0,InputPriceData!$B$10,1),-1)+1,0,1,1),"")))) -> 2016-01-29 | BO30: =IF($A30>$O$20,"",IF(NOT(BF30),"",IF(BL30="Short","",IFERROR(OFFSET(InputPriceData!$C$15,MATCH(DATE($BM30 +1 + INT(BI30/12),BI30+1-INT(BI30/12)*12,1),OFFSET(InputPriceData!$B$15,1,0,InputPriceData!$B$10,1),-1)+1,$D$19,1,1),"")))) -> 193.720001 | BP30: 51 | BQ30: =IF($A30>$O$20,"",IF(NOT(BF30),"",IF(BL30="Short","",IFERROR(OFFSET(InputPriceData!$B$15,MATCH(DATE($BM30+1+INT(BK30/12),BK30+1-INT(BK30/12)*12,1),OFFSET(InputPriceData!$B$15,1,0,InputPriceData!$B$10,1),-1)+1,0,1,1),"")))) -> 2016-11-30 | BR30: =IF($A30>$O$20,"",IF(NOT(BF30),"",IF(BL30="Short","",IFERROR(OFFSET(InputPriceData!$C$15,MATCH(DATE($BM30 +1 + INT(BK30/12),BK30+1-INT(BK30/12)*12,1),OFFSET(InputPriceData!$B$15,1,0,InputPriceData!$B$10,1),-1)+1,$D$19,1,1),"")))) -> 220.380005 | BS30: 1359.660204 | BU30: =IF($A30>$O$20,"",IF(NOT(BF30),"",IF(BL30="Long","",OFFSET(InputPriceData!$B$15,MATCH(DATE($BM30 +1 + INT(BK30/12),BK30+1-INT(BK30/12)*12,1),OFFSET(InputPriceData!$B$15,1,0,InputPriceData!$B$10,1),-1)+1,0,1,1)))) ->  | BV30: =IF($A30>$O$20,"",IF(NOT(BF30),"",IF(BL30="Long","",OFFSET(InputPriceData!$C$15,MATCH(DATE($BM30 +1 + INT(BK30/12),BK30+1-INT(BK30/12)*12,1),OFFSET(InputPriceData!$B$15,1,0,InputPriceData!$B$10,1),-1)+1,$D$19,1,1)))) ->  | BX30: =IF($A30>$O$20,"",IF(NOT(BF30),"",IF(BL30="Long","",OFFSET(InputPriceData!$B$15,MATCH(DATE($BM30 +1 + INT(BI30/12),BI30+1-INT(BI30/12)*12,1),OFFSET(InputPriceData!$B$15,1,0,InputPriceData!$B$10,1),-1)+1,0,1,1)))) ->  | BY30: =IF($A30>$O$20,"",IF(NOT(BF30),"",IF(BL30="Long","",OFFSET(InputPriceData!$C$15,MATCH(DATE($BM30 +1 + INT(BI30/12),BI30+1-INT(BI30/12)*12,1),OFFSET(InputPriceData!$B$15,1,0,InputPriceData!$B$10,1),-1)+1,$D$19,1,1)))) -> 
A31: 4 | B31: 2014 | C31: =IF($A31>$O$19,"",OFFSET(MonthlyInputPriceData!$C$15,$E$20+C$24+$A31*12,$D$19+$E$19,1,1)) -> 159.88 | D31: =IF($A31>$O$19,"",OFFSET(MonthlyInputPriceData!$C$15,$E$20+D$24+$A31*12,$D$19+$E$19,1,1)) -> 167.16 | E31: =IF($A31>$O$19,"",OFFSET(MonthlyInputPriceData!$C$15,$E$20+E$24+$A31*12,$D$19+$E$19,1,1)) -> 167.81 | F31: =IF($A31>$O$19,"",OFFSET(MonthlyInputPriceData!$C$15,$E$20+F$24+$A31*12,$D$19+$E$19,1,1)) -> 169.72 | G31: =IF($A31>$O$19,"",OFFSET(MonthlyInputPriceData!$C$15,$E$20+G$24+$A31*12,$D$19+$E$19,1,1)) -> 173.66 | H31: =IF($A31>$O$19,"",OFFSET(MonthlyInputPriceData!$C$15,$E$20+H$24+$A31*12,$D$19+$E$19,1,1)) -> 176.4 | I31: =IF($A31>$O$19,"",OFFSET(MonthlyInputPriceData!$C$15,$E$20+I$24+$A31*12,$D$19+$E$19,1,1)) -> 174.86 | J31: =IF($A31>$O$19,"",OFFSET(MonthlyInputPriceData!$C$15,$E$20+J$24+$A31*12,$D$19+$E$19,1,1)) -> 181.76 | K31: =IF($A31>$O$19,"",OFFSET(MonthlyInputPriceData!$C$15,$E$20+K$24+$A31*12,$D$19+$E$19,1,1)) -> 178.42 | L31: =IF($A31>$O$19,"",OFFSET(MonthlyInputPriceData!$C$15,$E$20+L$24+$A31*12,$D$19+$E$19,1,1)) -> 183.48 | M31: =IF($A31>$O$19,"",OFFSET(MonthlyInputPriceData!$C$15,$E$20+M$24+$A31*12,$D$19+$E$19,1,1)) -> 188.52 | N31: =IF($A31>$O$19,"",OFFSET(MonthlyInputPriceData!$C$15,$E$20+N$24+$A31*12,$D$19+$E$19,1,1)) -> 187.01 | O31: 175.7233333 | Q31: 2014 | R31: -0.09016066923 | S31: -0.04873190811 | T31: -0.04503291158 | U31: -0.03416355255 | V31: -0.01174194283 | W31: 0.003850750232 | X31: -0.004913026159 | Y31: 0.03435324468 | Z31: 0.01534609329 | AA31: 0.04414135858 | AB31: 0.07282280858 | AC31: 0.06422975511 | AD31: 2014 | AE31: -0.06375108481 | AF31: -0.03167969428 | AG31: -0.01746452422 | AH31: -0.001176686888 | AI31: -0.007940433226 | AJ31: -0.005985027093 | AK31: 0.005959955505 | AL31: 0.0004455450861 | AM31: -0.01036986107 | AN31: 0.03196812637 | AO31: 0.04751876578 | AP31: 0.05247491885 | AQ31: 2014 | AR31: 0 | AS31: 0.245 | AT31: 0.5 | AU31: 0.5 | AV31: 0.245 | AW31: 0.5 | AX31: 0.5 | AY31: 0.5 | AZ31: 0.75 | BA31: 0.75 | BB31: 0.75 | BC31: 0.75 | BD31: TRUE | BE31: TRUE | BF31: TRUE | BH31: 0 | BI31: 1 | BJ31: 0.75 | BK31: 12 | BL31: Long | BM31: 2014 | BN31: =IF($A31>$O$20,"",IF(NOT(BF31),"",IF(BL31="Short","",IFERROR(OFFSET(InputPriceData!$B$15,MATCH(DATE($BM31+1+INT(BI31/12),BI31+1-INT(BI31/12)*12,1),OFFSET(InputPriceData!$B$15,1,0,InputPriceData!$B$10,1),-1)+1,0,1,1),"")))) -> 2015-01-30 | BO31: =IF($A31>$O$20,"",IF(NOT(BF31),"",IF(BL31="Short","",IFERROR(OFFSET(InputPriceData!$C$15,MATCH(DATE($BM31 +1 + INT(BI31/12),BI31+1-INT(BI31/12)*12,1),OFFSET(InputPriceData!$B$15,1,0,InputPriceData!$B$10,1),-1)+1,$D$19,1,1),"")))) -> 199.449997 | BP31: 50 | BQ31: =IF($A31>$O$20,"",IF(NOT(BF31),"",IF(BL31="Short","",IFERROR(OFFSET(InputPriceData!$B$15,MATCH(DATE($BM31+1+INT(BK31/12),BK31+1-INT(BK31/12)*12,1),OFFSET(InputPriceData!$B$15,1,0,InputPriceData!$B$10,1),-1)+1,0,1,1),"")))) -> 2015-12-31 | BR31: =IF($A31>$O$20,"",IF(NOT(BF31),"",IF(BL31="Short","",IFERROR(OFFSET(InputPriceData!$C$15,MATCH(DATE($BM31 +1 + INT(BK31/12),BK31+1-INT(BK31/12)*12,1),OFFSET(InputPriceData!$B$15,1,0,InputPriceData!$B$10,1),-1)+1,$D$19,1,1),"")))) -> 203.869995 | BS31: 220.9999 | BU31: =IF($A31>$O$20,"",IF(NOT(BF31),"",IF(BL31="Long","",OFFSET(InputPriceData!$B$15,MATCH(DATE($BM31 +1 + INT(BK31/12),BK31+1-INT(BK31/12)*12,1),OFFSET(InputPriceData!$B$15,1,0,InputPriceData!$B$10,1),-1)+1,0,1,1)))) ->  | BV31: =IF($A31>$O$20,"",IF(NOT(BF31),"",IF(BL31="Long","",OFFSET(InputPriceData!$C$15,MATCH(DATE($BM31 +1 + INT(BK31/12),BK31+1-INT(BK31/12)*12,1),OFFSET(InputPriceData!$B$15,1,0,InputPriceData!$B$10,1),-1)+1,$D$19,1,1)))) ->  | BX31: =IF($A31>$O$20,"",IF(NOT(BF31),"",IF(BL31="Long","",OFFSET(InputPriceData!$B$15,MATCH(DATE($BM31 +1 + INT(BI31/12),BI31+1-INT(BI31/12)*12,1),OFFSET(InputPriceData!$B$15,1,0,InputPriceData!$B$10,1),-1)+1,0,1,1)))) ->  | BY31: =IF($A31>$O$20,"",IF(NOT(BF31),"",IF(BL31="Long","",OFFSET(InputPriceData!$C$15,MATCH(DATE($BM31 +1 + INT(BI31/12),BI31+1-INT(BI31/12)*12,1),OFFSET(InputPriceData!$B$15,1,0,InputPriceData!$B$10,1),-1)+1,$D$19,1,1)))) -> 
